Workbook

Sheet SheetNames (hidden)
A1: SheetNames | C1: Background Sheets
A2: USA
A3: Vietnam
A4: Thailand | C4: SheetNames
A5: Taiwan | C5: USA
A6: SriLanka | C6: Vietnam
A7: SouthKorea | C7: Thailand
A8: Singapore | C8: Taiwan
A9: Phillipines | C9: SriLanka
A10: Pakistan | C10: SouthKorea
A11: Myanmar | C11: Singapore
A12: Malaysia | C12: Phillipines
A13: Laos | C13: Pakistan
A14: Japan | C14: Myanmar
A15: Indonesia | C15: Malaysia
A16: India | C16: Laos
A17: HongKong | C17: Japan
A18: China | C18: Indonesia
A19: Cambodia | C19: India
A20: Brunei | C20: HongKong
A21: Bangladesh | C21: China
A22: iDataCollect | C22: Cambodia
A23: iDateCollect | C23: Brunei
A24: Home | C24: Bangladesh
A25: 1. Map | C25: iDataCollect
A26: iMap_Rank | C26: iDateCollect
A27: iMap_Graph | C27: 1. Map
A28: uxb_mapdata | C28: iMap_Rank
A29: uxb_regions | C29: iMap_Graph
A30: tblIndicators | C30: uxb_mapdata
A31: uxb_works | C31: uxb_regions
A32: tblIndiSets | C32: tblIndicators
A33: tblCategories | C33: uxb_works
A34: tblTerritories | C34: tblIndiSets
A35: iData | C35: tblCategories
A36: iSummary | C36: tblTerritories
A37: Summary | C37: iData
A38: iIndiRank | C38: iSummary
A39: Indicator_Ranking | C39: Summary
A40: iScatter | C40: iIndiRank
A41: Scatter | C41: Indicator_Ranking
A42: iCntPMaps | C42: iScatter
A43: CountryProfile | C43: Scatter
A44: iCountryP | C44: iCntPMaps
A45: Country_Compare | C45: CountryProfile
A46: Scores | C46: iCountryP
A47: iCC_Overview | C47: Country_Compare
A48: iCountryCompSpider | C48: Scores
A49: iCityCompare | C49: iCC_Overview
A50: Data | C50: iCountryCompSpider
A51: rScores | C51: iCityCompare
A52: iWeights | C52: Data
A53: iWeights2 | C53: rScores
A54: Weights | C54: iWeights
A55: iScoresWS2 | C55: iWeights2
A56: rScoresWS2 | C56: Weights
A57: iWeightsComp | C57: iScoresWS2
A58: Weight_Compare | C58: rScoresWS2
A59: Methodology | C59: iWeightsComp
A60: Weights2 | C60: Weight_Compare
A61: iWeightsSet | C61: Methodology
C62: Weights2
C63: iWeightsSet

Sheet USA (hidden)
B4: Indicator | C4: Source | D4: Scale | E4: 2005 | F4: 2006 | G4: 2007 | H4: 2008 | I4: 2009 | J4: 2010 | K4: 2011 | L4: 2012 | M4: 2013 | N4: 2014 | O4: 2015 | P4: 2016 | Q4: 2017 | R4: 2018 | S4: 2019
B5: Economic pillar
B6: Growth in per capita GDP | C6: EIU | E6: 1.53 | F6: 3.98 | G6: 2.13 | H6: 1.54 | I6: -0.41 | J6: 1.03 | K6: 2.5 | L6: 2.99 | M6: -0.38 | N6: 2.42 | O6: 2.6 | P6: 1.7 | Q6: 1.7 | R6: 1.8 | S6: 1.4
B7: Current account liberalisation | C7: EIU BER | E7: 5 | F7: 5 | G7: 5 | H7: 5 | I7: 5 | J7: 5 | K7: 5 | L7: 5 | M7: 5 | N7: 5 | O7: 5 | P7: 5 | Q7: 5 | R7: 5 | S7: 5
B8: Tariff & non-tariff barriers | C8: EIU BER | E8: 5 | F8: 5 | G8: 4.8 | H8: 4 | I8: 4 | J8: 4 | K8: 4 | L8: 4 | M8: 4 | N8: 4 | O8: 4 | P8: 4 | Q8: 4 | R8: 4 | S8: 4
B9: Exchange rate volatility | E9: 0.02 | F9: 0.02 | G9: 0.02 | H9: 0.04 | I9: 0.03 | J9: 0.02 | K9: 0.03 | L9: 0.02 | M9: 0.02 | N9: 0.02
B10: Financial sector depth | C10: EIU | E10: 188 | F10: 198 | G10: 206 | H10: 188 | I10: 197 | J10: 191 | K10: 182 | L10: 186 | M10: 192 | N10: 196
B11: Foreign trade and payments risk | C11: EIU | E11: 14.5 | F11: 15 | G11: 14 | H11: 14 | I11: 14 | J11: 14 | K11: 16 | L11: 18 | M11: 18 | N11: 21
B12: Export market concentration | C12: EIU | E12: 11.89 | F12: 11.68 | G12: 11.17 | H12: 10.69 | I12: 10.76 | J12: 11.03 | K12: 10.93 | L12: 11.14 | M12: 11.3 | N12: 11.47
B13: Export product concentration | C13: EIU | E13: 22.3 | F13: 22.3 | G13: 22.1 | H13: 21.9 | I13: 21.8 | J13: 21.8 | K13: 22 | L13: 21.9 | M13: 21.9 | N13: 21.8
B14: Foreign Direct Investment | C14: EIU | E14: 1.1 | F14: 2.1 | G14: 2.3 | H14: 2.3 | I14: 1.1 | J14: 1.7 | K14: 1.7 | L14: 1.4 | M14: 1.7 | N14: 0.8 | O14: 1.2 | P14: 1.5 | Q14: 1.7 | R14: 1.7 | S14: 2
B15: Gross fixed capital formation | C15: EIU | E15: 18.85 | F15: 18.86 | G15: 18.02 | H15: 16.69 | I15: 14.05 | J15: 13.63 | K15: 14.17 | L15: 15.17 | M15: 15.56 | N15: 16.04 | O15: 16.2 | P15: 16.8 | Q15: 17.4 | R15: 17.8 | S15: 18.1
B16: Trade costs
B17: Infrastructure | C17: EIU BER | E17: 9.3 | F17: 9.3 | G17: 9.3 | H17: 9.3 | I17: 9.2 | J17: 8.9 | K17: 8.9 | L17: 8.9 | M17: 8.9 | N17: 9 | O17: 9 | P17: 9.1 | Q17: 9.2 | R17: 9.2 | S17: 9.2
B18: Logistics performance | C18: WB LPI | N18: 3.92
B19: Corruption | C19: EIU BER | E19: 4 | F19: 4 | G19: 4 | H19: 4 | I19: 4 | J19: 4 | K19: 4 | L19: 4 | M19: 4 | N19: 4 | O19: 4 | P19: 4 | Q19: 4 | R19: 4 | S19: 4
B20: Legal system | C20: EIU BER | E20: 4 | F20: 4 | G20: 4 | H20: 4 | I20: 4 | J20: 4 | K20: 4 | L20: 4 | M20: 4 | N20: 4 | O20: 4 | P20: 4 | Q20: 4 | R20: 4 | S20: 4
B21: Technological innovation | C21: UNESCO/World Bank | L21: 2.79
B22: Technological infrastructure | C22: EIU | N22: 0
B23: Growth in labour force | C23: EIU | N23: 0.06
B24: Social pillar
B25: Inequality (Gini coefficient) | C25: World Bank | D25: Inverse | L25: 39
B26: Educational attainment | C26: UNESCO/World Bank | D26: Normal | E26: 81.31697 | F26: 81.2776 | G26: 82.25604 | H26: 84.21237 | I26: 87.73228 | J26: 93.29339 | K26: 95.33196 | L26: 94.2767 | M26: 89.08239
B27: Labour standards | C27: ILO | D27: Normal | N27: 1
B28: Political stability | C28: EIU | D28: Normal | N28: 0
B29: Environmental pillar
B30: Air pollution | C30: Yale EPI | I30: 8.9 | J30: 8.2 | K30: 7.94 | L30: 7.47
B31: Deforestation | C31: Yale EPI | L31: -4.1
B32: Water pollution | C32: Yale EPI | L32: 63.67
B33: Environmental standards in trade | C33: WTO / Academic research | N33: 6
B34: Carbon emissions in trade | C34: OECD / WTO / Academic research | N34: 0.00068022
B35: Share of natural resources in trade | C35: UNCTAD / WTO | N35: 0.176412633

Sheet Vietnam (hidden)
B4: Indicator | C4: Source | D4: Scale | E4: 2005 | F4: 2006 | G4: 2007 | H4: 2008 | I4: 2009 | J4: 2010 | K4: 2011 | L4: 2012 | M4: 2013 | N4: 2014 | O4: 2015 | P4: 2016 | Q4: 2017 | R4: 2018 | S4: 2019
B5: Economic pillar
B6: Growth in per capita GDP | C6: EIU | E6: 5.84 | F6: 7.5 | G6: 9.8 | H6: 7.7 | I6: 2.3 | J6: 8.2 | K6: 4.1 | L6: 4.9 | M6: 5.2 | N6: 6.4 | O6: 6.1 | P6: 7.7 | Q6: 7.6 | R6: 6.9 | S6: 8.2
B7: Current account liberalisation | C7: EIU | E7: 3 | F7: 5 | G7: 5 | H7: 5 | I7: 5 | J7: 5 | K7: 5 | L7: 5 | M7: 5 | N7: 5 | O7: 5 | P7: 5 | Q7: 5 | R7: 5 | S7: 5
B8: Tariff & non-tariff barriers | C8: EIU | E8: 2 | F8: 2 | G8: 2.2 | H8: 2 | I8: 2 | J8: 2 | K8: 2 | L8: 2 | M8: 2.2 | N8: 2.4 | O8: 2.6 | P8: 2.8 | Q8: 3 | R8: 3 | S8: 3
B9: Exchange rate volatility | E9: 0.01 | F9: 0.01 | G9: 0.01 | H9: 0.03 | I9: 0.03 | J9: 0.02 | K9: 0.03 | L9: 0.01 | M9: 0.01 | N9: 0.01
B10: Financial sector depth | C10: EIU | E10: 60 | F10: 65 | G10: 86 | H10: 83 | I10: 103 | J10: 115 | K10: 102 | L10: 95 | M10: 97 | N10: 100
B11: Foreign trade and payments risk | C11: EIU | E11: 54 | F11: 48 | G11: 46 | H11: 50 | I11: 50 | J11: 50 | K11: 50 | L11: 50 | M11: 50 | N11: 49
B12: Export market concentration | C12: EIU | E12: 10.91 | F12: 10.78 | G12: 10.85 | H12: 10.77 | I12: 10.76 | J12: 11.59 | K12: 11.72 | L12: 11.44 | M12: 11.33 | N12: 11.54
B13: Export product concentration | C13: EIU | E13: 14 | F13: 13.1 | G13: 12.4 | H13: 11.4 | I13: 10.3 | J13: 9.2 | K13: 8.9 | L13: 8 | M13: 7.7 | N13: 7.8
B14: Foreign Direct Investment | C14: EIU | E14: 3.4 | F14: 3.6 | G14: 8.6 | H14: 9.7 | I14: 7.5 | J14: 7.1 | K14: 5.5 | L14: 5.4 | M14: 5.2 | N14: 5 | O14: 4.8 | P14: 4.6 | Q14: 4.3 | R14: 4 | S14: 3.7
B15: Gross fixed capital formation | C15: EIU | E15: 31.27 | F15: 31.36 | G15: 35.11 | H15: 31.81 | I15: 33.86 | J15: 32.64 | K15: 26.82 | L15: 24.2 | M15: 23.56 | N15: 23.8 | O15: 24 | P15: 24.2 | Q15: 24.4 | R15: 24.6 | S15: 24.7
B16: Trade costs
B17: Infrastructure | C17: EIU | E17: 3 | F17: 3.5 | G17: 3.8 | H17: 3.7 | I17: 4 | J17: 4.7 | K17: 4.7 | L17: 4.7 | M17: 4.8 | N17: 5 | O17: 5.1 | P17: 5.3 | Q17: 5.5 | R17: 5.5 | S17: 5.5
B18: Logistics performance | C18: WB LPI | N18: 3.15
B19: Corruption | C19: EIU | E19: 1 | F19: 1 | G19: 1 | H19: 1 | I19: 1 | J19: 1 | K19: 1 | L19: 1 | M19: 1 | N19: 1 | O19: 1 | P19: 1 | Q19: 1 | R19: 1 | S19: 1
B20: Legal system | C20: EIU | E20: 2 | F20: 2 | G20: 2 | H20: 2 | I20: 2 | J20: 2 | K20: 2 | L20: 2 | M20: 2 | N20: 2 | O20: 2 | P20: 2 | Q20: 2 | R20: 2 | S20: 2
B21: Technological innovation | C21: UNESCO/World Bank | J21: 0.19
B22: Technological infrastructure | C22: EIU | N22: 1
B23: Growth in labour force | C23: EIU | N23: 0.101
B24: Social pillar
B25: Inequality (Gini coefficient) | C25: World Bank | L25: 38.7
B26: Educational attainment | C26: UNESCO/World Bank | E26: 15.87791 | F26: 16.48521 | G26: 18.17133 | H26: 18.74038 | I26: 19.86936 | J26: 22.385 | K26: 24.4293 | L26: 24.59961 | M26: 24.58324
B27: Labour standards | C27: ILO | N27: 3
B28: Political stability | C28: EIU | N28: 1
B29: Environmental pillar
B30: Air pollution | C30: Yale EPI | I30: 18.27 | J30: 18.28 | K30: 18.22 | L30: 17.87
B31: Deforestation | C31: Yale EPI | L31: -3.6
B32: Water pollution | C32: Yale EPI | L32: 0.14
B33: Environmental standards in trade | C33: WTO / Academic research | N33: 5
B34: Carbon emissions in trade | C34: OECD / WTO / Academic research | N34: 0.000446519
B35: Share of natural resources in trade | C35: UNCTAD / WTO | N35: 0.366843581

Sheet Thailand (hidden)
B4: Indicator | C4: Source | D4: Scale | E4: 2005 | F4: 2006 | G4: 2007 | H4: 2008 | I4: 2009 | J4: 2010 | K4: 2011 | L4: 2012 | M4: 2013 | N4: 2014 | O4: 2015 | P4: 2016 | Q4: 2017 | R4: 2018 | S4: 2019
B5: Economic pillar
B6: Growth in per capita GDP | C6: EIU | E6: 4.16 | F6: 2.7 | G6: 0.9 | H6: 2.8 | I6: -1.1 | J6: 4.8 | K6: 1.9 | L6: 6.6 | M6: 0.8 | N6: 0.6 | O6: 2.4 | P6: 2.6 | Q6: 2.9 | R6: 3.2 | S6: 3.3
B7: Current account liberalisation | C7: EIU | E7: 5 | F7: 5 | G7: 5 | H7: 5 | I7: 5 | J7: 5 | K7: 5 | L7: 5 | M7: 5 | N7: 5 | O7: 5 | P7: 5 | Q7: 5 | R7: 5 | S7: 5
B8: Tariff & non-tariff barriers | C8: EIU | E8: 3 | F8: 3 | G8: 3 | H8: 3 | I8: 3 | J8: 3 | K8: 3 | L8: 3 | M8: 3.2 | N8: 3.4 | O8: 3.6 | P8: 3.8 | Q8: 4 | R8: 4 | S8: 4
B9: Exchange rate volatility | E9: 0.02 | F9: 0.02 | G9: 0.01 | H9: 0.03 | I9: 0.02 | J9: 0.02 | K9: 0.02 | L9: 0.05 | M9: 0.02 | N9: 0.01
B10: Financial sector depth | C10: EIU | E10: 101 | F10: 95 | G10: 113 | H10: 113 | I10: 116 | J10: 124 | K10: 140 | L10: 148 | M10: 154 | N10: 159
B11: Foreign trade and payments risk | C11: EIU | E11: 39 | F11: 39 | G11: 43 | H11: 43 | I11: 45.25 | J11: 46 | K11: 46 | L11: 46 | M11: 43.75 | N11: 43
B12: Export market concentration | C12: EIU | E12: 10.62 | F12: 10.45 | G12: 9.79 | H12: 9.35 | I12: 9.22 | J12: 9.39 | K12: 9.47 | L12: 9.33 | M12: 9.35 | N12: 9.19
B13: Export product concentration | C13: EIU | E13: 25 | F13: 25 | G13: 25 | H13: 25 | I13: 25 | J13: 25 | K13: 25 | L13: 25 | M13: 25 | N13: 25
B14: Foreign Direct Investment | C14: EIU | E14: 4.3 | F14: 4.3 | G14: 4.3 | H14: 2.9 | I14: 1.7 | J14: 2.7 | K14: 0.7 | L14: 3.2 | M14: 3.4 | N14: 3.1 | O14: 2.9 | P14: 3.1 | Q14: 3 | R14: 3 | S14: 3
B15: Gross fixed capital formation | C15: EIU | E15: 27.71 | F15: 26.85 | G15: 25.46 | H15: 26.45 | I15: 23.12 | J15: 24.01 | K15: 25.85 | L15: 26.88 | M15: 25.34 | N15: 24.64 | O15: 25.7 | P15: 26.5 | Q15: 27.5 | R15: 28.3 | S15: 29
B16: Trade costs
B17: Infrastructure | C17: EIU | E17: 4.9 | F17: 5.4 | G17: 5.5 | H17: 5.4 | I17: 5.5 | J17: 5.6 | K17: 5.6 | L17: 5.6 | M17: 5.8 | N17: 5.9 | O17: 6.1 | P17: 6.2 | Q17: 6.3 | R17: 6.3 | S17: 6.3
B18: Logistics performance | C18: WB LPI | N18: 3.43
B19: Corruption | C19: EIU | E19: 2 | F19: 2 | G19: 2 | H19: 2 | I19: 2 | J19: 2 | K19: 2 | L19: 2 | M19: 2 | N19: 2 | O19: 2 | P19: 2 | Q19: 2 | R19: 2 | S19: 2
B20: Legal system | C20: EIU | E20: 2 | F20: 2 | G20: 2 | H20: 2 | I20: 2 | J20: 2 | K20: 2 | L20: 2 | M20: 2 | N20: 2 | O20: 2 | P20: 2 | Q20: 2 | R20: 2 | S20: 2
B21: Technological innovation | C21: UNESCO/World Bank | I21: 0.25
B22: Technological infrastructure | C22: EIU | N22: 2
B23: Growth in labour force | C23: EIU | N23: -0.034
B24: Social pillar
B25: Inequality (Gini coefficient) | C25: World Bank | J25: 39.3 | L25: 39.3
B26: Educational attainment | C26: UNESCO/World Bank | E26: 44.17739 | F26: 44.15963 | G26: 48.11159 | H26: 47.73226 | I26: 48.64748 | J26: 50.02553 | K26: 52.58112 | L26: 51.40475 | M26: 51.23354
B27: Labour standards | C27: ILO | N27: 3
B28: Political stability | C28: EIU | N28: 3
B29: Environmental pillar
B30: Air pollution | C30: Yale EPI | I30: 13.95 | J30: 13.75 | K30: 14.05 | L30: 14.6
B31: Deforestation | C31: Yale EPI | L31: -2.5
B32: Water pollution | C32: Yale EPI | L32: 16
B33: Environmental standards in trade | C33: WTO / Academic research | N33: 5
B34: Carbon emissions in trade | C34: OECD / WTO / Academic research | N34: 0.000317348
B35: Share of natural resources in trade | C35: UNCTAD / WTO | N35: 0.247661981

Sheet Taiwan (hidden)
B4: Indicator | C4: Source | D4: Scale | E4: 2005 | F4: 2006 | G4: 2007 | H4: 2008 | I4: 2009 | J4: 2010 | K4: 2011 | L4: 2012 | M4: 2013 | N4: 2014 | O4: 2015 | P4: 2016 | Q4: 2017 | R4: 2018 | S4: 2019
B5: Economic pillar
B6: Growth in per capita GDP | C6: EIU | E6: 1.97 | F6: 5.02 | G6: 2.88 | H6: -4.42 | I6: 1.18 | J6: 4.32 | K6: 1.06 | L6: 2.02 | M6: 2.6 | N6: 3.2 | O6: 4.2 | P6: 2.2 | Q6: 2 | R6: 2.1 | S6: 2.1
B7: Current account liberalisation | C7: EIU | E7: 5 | F7: 5 | G7: 5 | H7: 5 | I7: 5 | J7: 5 | K7: 5 | L7: 5 | M7: 5 | N7: 5 | O7: 5 | P7: 5 | Q7: 5 | R7: 5 | S7: 5
B8: Tariff & non-tariff barriers | C8: EIU | E8: 4 | F8: 4 | G8: 4 | H8: 4 | I8: 4 | J8: 4 | K8: 4 | L8: 4 | M8: 4 | N8: 4 | O8: 4 | P8: 4 | Q8: 4 | R8: 4 | S8: 4
B9: Exchange rate volatility | E9: 0.01 | F9: 0.01 | G9: 0.01 | H9: 0.03 | I9: 0.02 | J9: 0.02 | K9: 0.02 | L9: 0.01 | M9: 0.01 | N9: 0.01
B10: Financial sector depth | C10: EIU | E10: 144.89 | F10: 143.24 | G10: 143.31 | H10: 141.85 | I10: 146.87 | J10: 156.39 | K10: 155.39 | L10: 165.22 | M10: 162.1 | N10: 159.6
B11: Foreign trade and payments risk | C11: EIU | E11: 18 | F11: 23.25 | G11: 25 | H11: 22 | I11: 21 | J11: 21 | K11: 21 | L11: 21 | M11: 20.25 | N11: 18
B12: Export market concentration | C12: EIU | E12: 16.09 | F12: 16.17 | G12: 15.78 | H12: 15.17 | I12: 15.71 | J12: 15.7 | K12: 15.3 | L12: 15.01 | M12: 15.02 | N12: 15.15
B13: Export product concentration | C13: EIU | E13: 19 | F13: 19.1 | G13: 19.1 | H13: 18.4 | I13: 18.7 | J13: 19 | K13: 19 | L13: 18.6 | M13: 18.9 | N13: 19.4
B14: Foreign Direct Investment | C14: EIU | E14: 0.4 | F14: 1.9 | G14: 1.9 | H14: 1.3 | I14: 0.7 | J14: 0.6 | K14: -0.4 | L14: 0.6 | M14: 0.7 | N14: 0.5 | O14: 0.7 | P14: 0.6 | Q14: 0.5 | R14: 0.5 | S14: 0.5
B15: Gross fixed capital formation | C15: EIU | E15: 24.18 | F15: 24.23 | G15: 23.91 | H15: 23.16 | I15: 21.31 | J15: 23.63 | K15: 23.39 | L15: 22.35 | M15: 22.15 | N15: 21.58 | O15: 20.6 | P15: 20.2 | Q15: 19.9 | R15: 19.6 | S15: 19.3
B16: Trade costs
B17: Infrastructure | C17: EIU | E17: 8.3 | F17: 8.5 | G17: 8.5 | H17: 8.3 | I17: 7.9 | J17: 8.3 | K17: 8.3 | L17: 8.3 | M17: 8.4 | N17: 8.4 | O17: 8.5 | P17: 8.5 | Q17: 8.6 | R17: 8.6 | S17: 8.6
B18: Logistics performance | C18: WB LPI | N18: 3.72
B19: Corruption | C19: EIU | E19: 3 | F19: 3 | G19: 3 | H19: 3 | I19: 3 | J19: 3 | K19: 3 | L19: 3 | M19: 3 | N19: 3 | O19: 3 | P19: 3 | Q19: 3 | R19: 3 | S19: 3
B20: Legal system | C20: EIU | E20: 3 | F20: 3 | G20: 3.2 | H20: 3 | I20: 3 | J20: 3 | K20: 3 | L20: 3 | M20: 3.2 | N20: 3.4 | O20: 3.6 | P20: 3.8 | Q20: 4 | R20: 4 | S20: 4
B21: Technological innovation | C21: UNESCO/World Bank | K21: 2.3
B22: Technological infrastructure | C22: EIU | N22: 0
B23: Growth in labour force | C23: EIU | N23: -0.044
B24: Social pillar
B25: Inequality (Gini coefficient) | C25: World Bank | K25: 34.2
B26: Educational attainment | C26: Taiwan Ministry of Education | E26: 82.01731554 | F26: 83.58275493 | G26: 85.30781771 | H26: 83.18083715 | I26: 82.17418151 | J26: 83.77322245 | K26: 83.37172298 | L26: 84.43092159 | M26: 84.43092159 | N26: 83.87723183
B27: Labour standards | C27: ILO | N27: 1
B28: Political stability | C28: EIU | N28: 2
B29: Environmental pillar
B30: Air pollution | C30: Yale EPI | I30: 14.95 | J30: 13.98 | K30: 14.07 | L30: 14.57
B31: Deforestation | C31: Yale EPI | L31: -0.8
B32: Water pollution | C32: Yale EPI | L32: 4.59
B33: Environmental standards in trade* | C33: WTO / Academic research | N33: 1
B34: Carbon emissions in trade | C34: OECD / WTO / Academic research | N34: 0.00022695
B35: Share of natural resources in trade | C35: UNCTAD / WTO | N35: 0.097734885
B36: * Taiwan not eligible to sign UN Conventions as it is not recognized by the UN

Sheet SriLanka (hidden)
B4: Indicator | C4: Source | D4: Scale | E4: 2005 | F4: 2006 | G4: 2007 | H4: 2008 | I4: 2009 | J4: 2010 | K4: 2011 | L4: 2012 | M4: 2013 | N4: 2014 | O4: 2015 | P4: 2016 | Q4: 2017 | R4: 2018 | S4: 2019
B5: Economic pillar
B6: Growth in per capita GDP | C6: EIU | E6: 4.91 | F6: 3.24 | G6: 4.45 | H6: 3.26 | I6: 6.22 | J6: 11.61 | K6: 9.62 | L6: 11.96 | M6: 3.54 | N6: 0.42 | O6: 8.82 | P6: 7.36 | Q6: 5.8 | R6: 6.89 | S6: 6.75
B7: Current account liberalisation | C7: EIU | E7: 5 | F7: 5 | G7: 5 | H7: 5 | I7: 5 | J7: 5 | K7: 5 | L7: 5 | M7: 5 | N7: 5 | O7: 5 | P7: 5 | Q7: 5 | R7: 5 | S7: 5
B8: Tariff & non-tariff barriers | C8: EIU | E8: 3 | F8: 3 | G8: 3 | H8: 3 | I8: 3 | J8: 3 | K8: 3 | L8: 3 | M8: 3 | N8: 3 | O8: 3 | P8: 3 | Q8: 3 | R8: 3 | S8: 3
B9: Exchange rate volatility | E9: 0.02 | F9: 0.02 | G9: 0.02 | H9: 0.03 | I9: 0.03 | J9: 0.02 | K9: 0.02 | L9: 0.03 | M9: 0.02 | N9: 0.01
B10: Financial sector depth | C10: EIU | E10: 33 | F10: 34 | G10: 33 | H10: 29 | I10: 25 | J10: 27 | K10: 31 | L10: 31 | M10: 29 | N10: 28
B11: Foreign trade and payments risk | C11: EIU | E11: 29 | F11: 29 | G11: 29 | H11: 30.5 | I11: 36 | J11: 32 | K11: 32 | L11: 32 | M11: 35 | N11: 36
B12: Export market concentration | C12: EIU | E12: 13.83 | F12: 13.2 | G12: 11.75 | H12: 10.66 | I12: 10.54 | J12: 9.64 | K12: 9.62 | L12: 10.37 | M12: 10.26 | N12: 11.17
B13: Export product concentration | C13: EIU | E13: 15.6 | F13: 15.5 | G13: 15.2 | H13: 16.7 | I13: 17.3 | J13: 15.9 | K13: 15.8 | L13: 16.1 | M13: 16.3 | N13: 15.9
B14: Foreign Direct Investment | C14: EIU | E14: 1.1 | F14: 1.7 | G14: 1.9 | H14: 1.8 | I14: 1 | J14: 1 | K14: 1.6 | L14: 1.6 | M14: 1.4 | N14: 1.3 | O14: 1.6 | P14: 2.1 | Q14: 2.4 | R14: 2.4 | S14: 2.3
B15: Gross fixed capital formation | C15: EIU | E15: 23.37 | F15: 24.87 | G15: 24.72 | H15: 25.29 | I15: 23.73 | J15: 25.91 | K15: 27.09 | L15: 28.9 | M15: 29.25 | N15: 28.14 | O15: 27.8 | P15: 27.7 | Q15: 27.7 | R15: 27.7 | S15: 27.7
B16: Trade costs
B17: Infrastructure | C17: EIU | E17: 3.7 | F17: 4.2 | G17: 4.4 | H17: 4.7 | I17: 4.7 | J17: 5.2 | K17: 5.1 | L17: 5.1 | M17: 5.3 | N17: 5.5 | O17: 5.6 | P17: 5.9 | Q17: 6.1 | R17: 6.1 | S17: 6.1
B18: Logistics performance | C18: WB LPI | N18: 2.7
B19: Corruption | C19: EIU | E19: 2 | F19: 2 | G19: 2 | H19: 2 | I19: 2 | J19: 2 | K19: 2 | L19: 2 | M19: 2 | N19: 2 | O19: 2 | P19: 2 | Q19: 2 | R19: 2 | S19: 2
B20: Legal system | C20: EIU | E20: 3 | F20: 3 | G20: 3 | H20: 3 | I20: 3 | J20: 3 | K20: 3 | L20: 3 | M20: 3 | N20: 3 | O20: 3 | P20: 3 | Q20: 3 | R20: 3 | S20: 3
B21: Technological innovation | C21: UNESCO/World Bank | J21: 0.16
B22: Technological infrastructure | C22: EIU | N22: 2
B23: Growth in labour force | C23: EIU | N23: 0.064
B24: Social pillar
B25: Inequality (Gini coefficient) | C25: World Bank | L25: 38.6
B26: Educational attainment | C26: UNESCO/World Bank | E26: .. | F26: .. | G26: .. | H26: .. | I26: .. | J26: 16.04246 | K26: 15.0175 | L26: 16.96746 | M26: 18.7629
B27: Labour standards | C27: ILO | N27: 2
B28: Political stability | C28: EIU | N28: 3
B29: Environmental pillar
B30: Air pollution | C30: Yale EPI | I30: 8.82 | J30: 9.12 | K30: 8.96 | L30: 9.17
B31: Deforestation | C31: Yale EPI | L31: -1.7
B32: Water pollution | C32: Yale EPI | L32: 0
B33: Environmental standards in trade | C33: WTO / Academic research | N33: 4
B34: Carbon emissions in trade | C34: OECD / WTO / Academic research | N34: 0.000304485
B35: Share of natural resources in trade | C35: UNCTAD / WTO | N35: 0.285779643

Sheet SouthKorea (hidden)
B4: Indicator | C4: Source | D4: Scale | E4: 2005 | F4: 2006 | G4: 2007 | H4: 2008 | I4: 2009 | J4: 2010 | K4: 2011 | L4: 2012 | M4: 2013 | N4: 2014 | O4: 2015 | P4: 2016 | Q4: 2017 | R4: 2018 | S4: 2019
B5: Economic pillar
B6: Growth in per capita GDP | C6: EIU | E6: 2.77 | F6: 3.21 | G6: 3.01 | H6: 1.59 | I6: 1.3 | J6: 4.19 | K6: 2.04 | L6: 1.96 | M6: 3.72 | N6: 3.3 | O6: 0.1 | P6: 3.2 | Q6: 3.7 | R6: 3.8 | S6: 2.5
B7: Current account liberalisation | C7: EIU | E7: 4 | F7: 4 | G7: 4.2 | H7: 4 | I7: 4 | J7: 4 | K7: 4 | L7: 4 | M7: 4.2 | N7: 4.4 | O7: 4.6 | P7: 4.8 | Q7: 5 | R7: 5 | S7: 5
B8: Tariff & non-tariff barriers | C8: EIU | E8: 4 | F8: 4 | G8: 4 | H8: 4 | I8: 4 | J8: 4 | K8: 4 | L8: 4 | M8: 4 | N8: 4 | O8: 4 | P8: 4 | Q8: 4 | R8: 4 | S8: 4
B9: Exchange rate volatility | E9: 0.01 | F9: 0.02 | G9: 0.02 | H9: 0.07 | I9: 0.06 | J9: 0.03 | K9: 0.03 | L9: 0.02 | M9: 0.02 | N9: 0.02
B10: Financial sector depth | C10: EIU | E10: 115 | F10: 127 | G10: 135 | H10: 148 | I10: 145 | J10: 136 | K10: 138 | L10: 137 | M10: 135 | N10: 138
B11: Foreign trade and payments risk | C11: EIU | E11: 21 | F11: 21 | G11: 21 | H11: 24 | I11: 32 | J11: 31.25 | K11: 29 | L11: 29 | M11: 29 | N11: 26
B12: Export market concentration | C12: EIU | E12: 12.57 | F12: 12.16 | G12: 11.64 | H12: 11.01 | I12: 11.41 | J12: 11.81 | K12: 11.76 | L12: 12.07 | M12: 12.09 | N12: 12.02
B13: Export product concentration | C13: EIU | E13: 22.7 | F13: 22.4 | G13: 22.3 | H13: 22.2 | I13: 21.7 | J13: 21.8 | K13: 22.1 | L13: 22 | M13: 22.2 | N13: 22.3
B14: Foreign Direct Investment | C14: EIU | E14: 1.5 | F14: 0.9 | G14: 0.8 | H14: 1.1 | I14: 1 | J14: 0.9 | K14: 0.8 | L14: 0.8 | M14: 1 | N14: 0.7 | O14: 0.7 | P14: 0.8 | Q14: 0.9 | R14: 0.8 | S14: 0.8
B15: Gross fixed capital formation | C15: EIU | E15: 30.86 | F15: 30.74 | G15: 30.51 | H15: 31.38 | I15: 31.32 | J15: 30.5 | K15: 30.24 | L15: 29.57 | M15: 29.26 | N15: 29.11 | O15: 31.9 | P15: 32.1 | Q15: 32.2 | R15: 32.1 | S15: 31.8
B16: Trade costs
B17: Infrastructure | C17: EIU | E17: 7.8 | F17: 7.6 | G17: 7.6 | H17: 7.9 | I17: 7.6 | J17: 8 | K17: 8 | L17: 8 | M17: 8 | N17: 8 | O17: 7.9 | P17: 7.9 | Q17: 7.9 | R17: 7.9 | S17: 7.9
B18: Logistics performance | C18: WB LPI | N18: 3.67
B19: Corruption | C19: EIU | E19: 4 | F19: 4 | G19: 4 | H19: 4 | I19: 4 | J19: 4 | K19: 4 | L19: 4 | M19: 4 | N19: 4 | O19: 4 | P19: 4 | Q19: 4 | R19: 4 | S19: 4
B20: Legal system | C20: EIU | E20: 3 | F20: 3 | G20: 3 | H20: 3 | I20: 3 | J20: 3 | K20: 3 | L20: 3 | M20: 3 | N20: 3 | O20: 3 | P20: 3 | Q20: 3 | R20: 3 | S20: 3
B21: Technological innovation | C21: UNESCO/World Bank | L21: 4.36
B22: Technological infrastructure | C22: EIU | N22: 0 | O22: 0
B23: Growth in labour force | C23: EIU | N23: -0.01
B24: Social pillar
B25: Inequality (Gini coefficient) | C25: World Bank | K25: 30.7
B26: Educational attainment | C26: UNESCO/World Bank | E26: 93.47805 | F26: 97.50587 | G26: 100.81131 | H26: 101.75924 | I26: 101.56675 | J26: 100.95611 | K26: 100.8 | L26: .. | M26: 98.37919 | N26: 96.58497
B27: Labour standards | C27: ILO | N27: 1
B28: Political stability | C28: EIU | N28: 2
B29: Environmental pillar
B30: Air pollution | C30: Yale EPI | I30: 21.81 | J30: 20.3 | K30: 20.15 | L30: 19.9
B31: Deforestation | C31: Yale EPI | L31: -1.7
B32: Water pollution | C32: Yale EPI | L32: 83.68
B33: Environmental standards in trade | C33: WTO / Academic research | N33: 6
B34: Carbon emissions in trade | C34: OECD / WTO / Academic research | N34: 0.000237077
B35: Share of natural resources in trade | C35: UNCTAD / WTO | N35: 0.105734249

Sheet Singapore (hidden)
B4: Indicator | C4: Source | D4: Scale | E4: 2005 | F4: 2006 | G4: 2007 | H4: 2008 | I4: 2009 | J4: 2010 | K4: 2011 | L4: 2012 | M4: 2013 | N4: 2014 | O4: 2015 | P4: 2016 | Q4: 2017 | R4: 2018 | S4: 2019
B5: Economic pillar
B6: Growth in per capita GDP | C6: EIU | E6: 7.4 | F6: 9.1 | G6: 6.3 | H6: 6 | I6: -1.7 | J6: 7.7 | K6: 4.2 | L6: 3.5 | M6: 5 | N6: -1.3 | O6: 1.7 | P6: 3.1 | Q6: 3.6 | R6: 3.9 | S6: 4.1
B7: Current account liberalisation | C7: EIU | E7: 5 | F7: 5 | G7: 5 | H7: 5 | I7: 5 | J7: 5 | K7: 5 | L7: 5 | M7: 5 | N7: 5 | O7: 5 | P7: 5 | Q7: 5 | R7: 5 | S7: 5
B8: Tariff & non-tariff barriers | C8: EIU | E8: 5 | F8: 5 | G8: 5 | H8: 5 | I8: 5 | J8: 5 | K8: 5 | L8: 5 | M8: 5 | N8: 5 | O8: 5 | P8: 5 | Q8: 5 | R8: 5 | S8: 5
B9: Exchange rate volatility | E9: 0.01 | F9: 0.01 | G9: 0.01 | H9: 0.03 | I9: 0.02 | J9: 0.02 | K9: 0.02 | L9: 0.02 | M9: 0.02 | N9: 0.01
B10: Financial sector depth | C10: EIU | E10: 89 | F10: 85 | G10: 86 | H10: 99 | I10: 98 | J10: 96 | K10: 106 | L10: 115 | M10: 126 | N10: 131
B11: Foreign trade and payments risk | C11: EIU | E11: 4 | F11: 4 | G11: 4 | H11: 4 | I11: 4 | J11: 4 | K11: 4 | L11: 4 | M11: 4 | N11: 4
B12: Export market concentration | C12: EIU | E12: 10.36 | F12: 10.69 | G12: 10.44 | H12: 9.65 | I12: 9.79 | J12: 10.09 | K12: 9.75 | L12: 9.83 | M12: 10.22 | N12: 10.27
B13: Export product concentration | C13: EIU | E13: 14 | F13: 15 | G13: 15.2 | H13: 15.6 | I13: 15.6 | J13: 16.3 | K13: 16.7 | L13: 17.5 | M13: 17.4 | N13: 17.6
B14: Foreign Direct Investment | C14: EIU | E14: 14.2 | F14: 25 | G14: 26.5 | H14: 6.3 | I14: 12.4 | J14: 23.3 | K14: 17.4 | L14: 19.5 | M14: 21.4 | N14: 21.9 | O14: 23 | P14: 20.8 | Q14: 20.5 | R14: 20.5 | S14: 20.1
B15: Gross fixed capital formation | C15: EIU | E15: 23.08 | F15: 23.06 | G15: 24.48 | H15: 28.34 | I15: 29.27 | J15: 26.13 | K15: 25.5 | L15: 26.73 | M15: 26.44 | N15: 25.37 | O15: 25.3 | P15: 24 | Q15: 24.3 | R15: 24.3 | S15: 24.3
B16: Trade costs
B17: Infrastructure | C17: EIU | E17: 9.2 | F17: 9.2 | G17: 9.2 | H17: 9.7 | I17: 9.2 | J17: 9 | K17: 9 | L17: 9 | M17: 9 | N17: 9.1 | O17: 9.1 | P17: 9.1 | Q17: 9.2 | R17: 9.2 | S17: 9.2
B18: Logistics performance | C18: WB LPI | N18: 4
B19: Corruption | C19: EIU | E19: 5 | F19: 5 | G19: 5 | H19: 5 | I19: 5 | J19: 5 | K19: 5 | L19: 5 | M19: 5 | N19: 5 | O19: 5 | P19: 5 | Q19: 5 | R19: 5 | S19: 5
B20: Legal system | C20: EIU | E20: 4 | F20: 4 | G20: 4 | H20: 4 | I20: 4 | J20: 4 | K20: 4 | L20: 4 | M20: 4 | N20: 4 | O20: 4 | P20: 4 | Q20: 4 | R20: 4 | S20: 4
B21: Technological innovation | C21: UNESCO/World Bank | K21: 2.23 | L21: 0 | M21: 0 | N21: 0 | O21: 0
B22: Technological infrastructure | C22: EIU | N22: 0 | O22: 0
B23: Growth in labour force | C23: EIU | N23: 0.092 | O23: 0
B24: Social pillar
B25: Inequality (Gini coefficient) | C25: World Bank | K25: 47.8
B26: Educational attainment | C26: UNESCO/World Bank (http://www.moe.gov.sg/education/education-statistics-digest/files/esd-2013.pdf) | N26: 90
B27: Labour standards | C27: ILO | N27: 1
B28: Political stability | C28: EIU | N28: 1
B29: Environmental pillar
B30: Air pollution | C30: Yale EPI | I30: 4.26 | J30: 4.51 | K30: 4.55 | L30: 5.16
B31: Deforestation | C31: Yale EPI | L31: 0
B32: Water pollution | C32: Yale EPI | L32: 99.65
B33: Environmental standards in trade | C33: WTO / Academic research | N33: 5
B34: Carbon emissions in trade | C34: OECD / WTO / Academic research | N34: 1.10187e-05
B35: Share of natural resources in trade | C35: UNCTAD / WTO | N35: 0.161219523

Sheet Phillipines (hidden)
B4: Indicator | C4: Source | D4: Scale | E4: 2005 | F4: 2006 | G4: 2007 | H4: 2008 | I4: 2009 | J4: 2010 | K4: 2011 | L4: 2012 | M4: 2013 | N4: 2014 | O4: 2015 | P4: 2016 | Q4: 2017 | R4: 2018 | S4: 2019
B5: Economic pillar
B6: Growth in per capita GDP | C6: EIU | E6: 4.23 | F6: 3.9 | G6: 4.4 | H6: 3.4 | I6: 2.8 | J6: 4.4 | K6: 6 | L6: 6.4 | M6: 5.6 | N6: 5.5 | O6: 6.2 | P6: 5.3 | Q6: 5.2 | R6: 5.5 | S6: 5.4
B7: Current account liberalisation | C7: EIU | E7: 4 | F7: 4 | G7: 4.2 | H7: 4 | I7: 4 | J7: 4 | K7: 4 | L7: 4 | M7: 4.2 | N7: 4.4 | O7: 4.6 | P7: 4.8 | Q7: 5 | R7: 5 | S7: 5
B8: Tariff & non-tariff barriers | C8: EIU | E8: 4 | F8: 4 | G8: 4 | H8: 4 | I8: 4 | J8: 4 | K8: 4 | L8: 4 | M8: 4 | N8: 4 | O8: 4 | P8: 4 | Q8: 4 | R8: 4 | S8: 4
B9: Exchange rate volatility | E9: 0.02 | F9: 0.02 | G9: 0.02 | H9: 0.03 | I9: 0.03 | J9: 0.02 | K9: 0.02 | L9: 0.02 | M9: 0.02 | N9: 0.02
B10: Financial sector depth | C10: EIU | E10: 29 | F10: 29 | G10: 29 | H10: 29 | I10: 29 | J10: 30 | K10: 32 | L10: 33 | M10: 36 | N10: 39
B11: Foreign trade and payments risk | C11: EIU | E11: 32 | F11: 29 | G11: 29 | H11: 29 | I11: 29 | J11: 29 | K11: 29 | L11: 29 | M11: 29 | N11: 29
B12: Export market concentration | C12: EIU | E12: 13.46 | F12: 13.07 | G12: 13.66 | H12: 13.4 | I12: 12.76 | J12: 12.35 | K12: 13.34 | L12: 13.54 | M12: 13.34 | N12: 14.67
B13: Export product concentration | C13: EIU | E13: 19.6 | F13: 18.7 | G13: 18.8 | H13: 18.2 | I13: 18.1 | J13: 18.7 | K13: 17.3 | L13: 16.3 | M13: 15.4 | N13: 16.3
B14: Foreign Direct Investment | C14: EIU | E14: 1.6 | F14: 2.2 | G14: 2 | H14: 0.8 | I14: 1.2 | J14: 0.5 | K14: 0.9 | L14: 1.3 | M14: 1.4 | N14: 2.2 | O14: 1.2 | P14: 0.8 | Q14: 1 | R14: 1.1 | S14: 1.1
B15: Gross fixed capital formation | C15: EIU | E15: 19.9 | F15: 20.12 | G15: 19.9 | H15: 19.66 | I15: 19.01 | J15: 20.52 | K15: 18.74 | L15: 19.59 | M15: 20.53 | N15: 20.78 | O15: 21.3 | P15: 21.4 | Q15: 21.5 | R15: 21.7 | S15: 22.1
B16: Trade costs
B17: Infrastructure | C17: EIU | E17: 3.5 | F17: 4.2 | G17: 4.3 | H17: 4.2 | I17: 4.2 | J17: 4.8 | K17: 5.1 | L17: 5.1 | M17: 5.1 | N17: 5.2 | O17: 5.2 | P17: 5.3 | Q17: 5.4 | R17: 5.4 | S17: 5.4
B18: Logistics performance | C18: WB LPI | N18: 3
B19: Corruption | C19: EIU | E19: 1 | F19: 1 | G19: 1 | H19: 1 | I19: 1 | J19: 1 | K19: 1 | L19: 1 | M19: 1 | N19: 1 | O19: 1 | P19: 1 | Q19: 1 | R19: 1 | S19: 1
B20: Legal system | C20: EIU | E20: 3 | F20: 2 | G20: 2 | H20: 2 | I20: 2 | J20: 2 | K20: 2 | L20: 2 | M20: 2 | N20: 2 | O20: 2 | P20: 2 | Q20: 2 | R20: 2 | S20: 2
B21: Technological innovation | C21: UNESCO/World Bank | G21: 0.11 | H21: 0 | I21: 0 | J21: 0 | K21: 0 | L21: 0 | M21: 0 | N21: 0 | O21: 0
B22: Technological infrastructure | C22: EIU | N22: 1 | O22: 0
B23: Growth in labour force | C23: EIU | N23: 0.346 | O23: 0
B24: Social pillar
B25: Inequality (Gini coefficient) | C25: World Bank | L25: 43
B26: Educational attainment | C26: UNESCO/World Bank | E26: 27.52297 | F26: 27.84935 | G26: .. | H26: 28.84396 | I26: 28.19964 | J26: 29.44935 | K26: 30.94589 | L26: 31.4763 | M26: 33.84203
B27: Labour standards | C27: ILO | N27: 4
B28: Political stability | C28: EIU | N28: 3
B29: Environmental pillar
B30: Air pollution | C30: Yale EPI | I30: 6.51 | J30: 6.46 | K30: 6.81 | L30: 6.68
B31: Deforestation | C31: Yale EPI | L31: -1.9
B32: Water pollution | C32: Yale EPI | L32: 0.53
B33: Environmental standards in trade | C33: WTO / Academic research | N33: 6
B34: Carbon emissions in trade | C34: OECD / WTO / Academic research | N34: 0.000391307
B35: Share of natural resources in trade | C35: UNCTAD / WTO | N35: 0.162346574

Sheet Pakistan (hidden)
B4: Indicator | C4: Source | D4: Scale | E4: 2005 | F4: 2006 | G4: 2007 | H4: 2008 | I4: 2009 | J4: 2010 | K4: 2011 | L4: 2012 | M4: 2013 | N4: 2014 | O4: 2015 | P4: 2016 | Q4: 2017 | R4: 2018 | S4: 2019
B5: Economic pillar
B6: Growth in per capita GDP | C6: EIU | E6: 10.2 | F6: -1.9 | G6: 1.4 | H6: 3.6 | I6: -0.5 | J6: 2.2 | K6: 5.8 | L6: 5 | M6: 2.2 | N6: 5.5 | O6: 3.8 | P6: 4.7 | Q6: 4.9 | R6: 4.5 | S6: 4.4
B7: Current account liberalisation | C7: EIU | E7: 3 | F7: 3 | G7: 3 | H7: 3 | I7: 3 | J7: 3 | K7: 3 | L7: 3 | M7: 3 | N7: 3 | O7: 3 | P7: 3 | Q7: 3 | R7: 3 | S7: 3
B8: Tariff & non-tariff barriers | C8: EIU | E8: 2 | F8: 2 | G8: 2 | H8: 2 | I8: 2 | J8: 2 | K8: 2 | L8: 2 | M8: 2 | N8: 2 | O8: 2 | P8: 2 | Q8: 2 | R8: 2 | S8: 2
B9: Exchange rate volatility | E9: 0.01 | F9: 0.01 | G9: 0.01 | H9: 0.03 | I9: 0.02 | J9: 0.01 | K9: 0.01 | L9: 0.01 | M9: 0.02 | N9: 0.02
B10: Financial sector depth | C10: EIU | E10: 29 | F10: 27 | G10: 28 | H10: 29 | I10: 23 | J10: 21 | K10: 18 | L10: 17 | M10: 16 | N10: 15
B11: Foreign trade and payments risk | C11: EIU | E11: 61 | F11: 61 | G11: 59 | H11: 61 | I11: 61 | J11: 61 | K11: 61 | L11: 61 | M11: 71.5 | N11: 75
B12: Export market concentration | C12: EIU | E12: 10.75 | F12: 10.88 | G12: 11.8 | H12: 11.06 | I12: 10.08 | J12: 9.96 | K12: 9.4 | L12: 10.77 | M12: 10.98 | N12: 10.56
B13: Export product concentration | C13: EIU | E13: 10.1 | F13: 10.3 | G13: 9.7 | H13: 9.6 | I13: 9.4 | J13: 9.5 | K13: 9.1 | L13: 8.9 | M13: 9.3 | N13: 8.8
B14: Foreign Direct Investment | C14: EIU | E14: 1.9 | F14: 3.1 | G14: 3.7 | H14: 3.2 | I14: 1.4 | J14: 1.1 | K14: 0.6 | L14: 0.4 | M14: 0.6 | N14: 0.7 | O14: 0.7 | P14: 0.7 | Q14: 0.8 | R14: 0.9 | S14: 0.8
B15: Gross fixed capital formation | C15: EIU | E15: 15.07 | F15: 17.73 | G15: 17.19 | H15: 17.61 | I15: 15.95 | J15: 14.21 | K15: 12.52 | L15: 13.48 | M15: 13.36 | N15: 13.38 | O15: 13.52 | P15: 13.2 | Q15: 13 | R15: 12.7 | S15: 12.7
B16: Trade costs
B17: Infrastructure | C17: EIU | E17: 4.1 | F17: 3.3 | G17: 3.5 | H17: 3.4 | I17: 3.4 | J17: 3.8 | K17: 3.8 | L17: 3.8 | M17: 3.9 | N17: 4.1 | O17: 4.2 | P17: 4.4 | Q17: 4.5 | R17: 4.5 | S17: 4.5
B18: Logistics performance | C18: WB LPI | N18: 2.83
B19: Corruption | C19: EIU | E19: 1 | F19: 1 | G19: 1.1 | H19: 1 | I19: 1 | J19: 1 | K19: 1 | L19: 1 | M19: 1.1 | N19: 1.3 | O19: 1.5 | P19: 1.7 | Q19: 2 | R19: 2 | S19: 2
B20: Legal system | C20: EIU | E20: 2 | F20: 2 | G20: 2 | H20: 2 | I20: 2 | J20: 2 | K20: 2 | L20: 2 | M20: 2 | N20: 2 | O20: 2 | P20: 2 | Q20: 2 | R20: 2 | S20: 2
B21: Technological innovation | C21: UNESCO/World Bank | K21: 0.33
B22: Technological infrastructure | C22: EIU | N22: 3
B23: Growth in labour force | C23: EIU | N23: 0.457
B24: Social pillar
B25: Inequality (Gini coefficient) | C25: World Bank | J25: 29.6
B26: Educational attainment | C26: UNESCO/World Bank | E26: 4.72976 | F26: 4.78288 | G26: 5.39025 | H26: 5.36803 | I26: 6.63953 | J26: .. | K26: 8.31155 | L26: 9.52802 | M26: 9.81827
B27: Labour standards | C27: ILO | N27: 4
B28: Political stability | C28: EIU | N28: 3
B29: Environmental pillar
B30: Air pollution | C30: Yale EPI | I30: 29.17 | J30: 29.46 | K30: 29.21 | L30: 29.35
B31: Deforestation | C31: Yale EPI | L31: -1.1
B32: Water pollution | C32: Yale EPI | L32: 3.52
B33: Environmental standards in trade | C33: WTO / Academic research | N33: 5
B34: Carbon emissions in trade | C34: OECD / WTO / Academic research | N34: 0.001422755
B35: Share of natural resources in trade | C35: UNCTAD / WTO | N35: 0.204835384

Sheet Myanmar (hidden)
B4: Indicator | C4: Source | D4: Scale | E4: 2005 | F4: 2006 | G4: 2007 | H4: 2008 | I4: 2009 | J4: 2010 | K4: 2011 | L4: 2012 | M4: 2013 | N4: 2014 | O4: 2015 | P4: 2016 | Q4: 2017 | R4: 2018 | S4: 2019
B5: Economic pillar
B6: Growth in per capita GDP | C6: EIU | E6: 0 | F6: 0 | G6: 0 | H6: 0 | I6: 0 | J6: 0 | K6: 0 | L6: 0 | M6: 0 | N6: 0 | O6: 0 | P6: 0 | Q6: 0 | R6: 0 | S6: 0
B7: Current account liberalisation | C7: EIU | E7: 0 | F7: 0 | G7: 0 | H7: 0 | I7: 0 | J7: 0 | K7: 0 | L7: 0 | M7: 0 | N7: 4
B8: Tariff & non-tariff barriers | C8: EIU | E8: 0 | F8: 0 | G8: 0 | H8: 0 | I8: 0 | J8: 0 | K8: 0 | L8: 0 | M8: 0 | N8: 4
B9: Exchange rate volatility | E9: 0.01 | F9: 0.01 | G9: 0.01 | H9: 0.02 | I9: 0.02 | J9: 0.02 | K9: 0.02 | L9: 1.44 | M9: 0.02 | N9: 0.01
B10: Financial sector depth | C10: EIU | E10: .. | F10: .. | G10: .. | H10: .. | I10: .. | J10: .. | K10: .. | L10: 10 | M10: 14 | N10: ..
B11: Foreign trade and payments risk | C11: EIU | E11: #DIV/0! | F11: 96 | G11: 96 | H11: 96 | I11: 96 | J11: 96 | K11: 95.25 | L11: 76.5 | M11: 71 | N11: 64
B12: Export market concentration | C12: EIU | E12: 16.88 | F12: 17.85 | G12: 17.78 | H12: 18.97 | I12: 19.16 | J12: 18.73 | K12: 19.18 | L12: 19.3 | M12: 19.51 | N12: 21.98
B13: Export product concentration | C13: EIU | E13: 15.7 | F13: 15.1 | G13: 16.4 | H13: 13.8 | I13: 14.8 | J13: 13.3 | K13: 13.8 | L13: 15.8 | M13: 14.5 | N13: 17.2
B14: Foreign Direct Investment | C14: EIU | E14: 2 | F14: 2.2 | G14: 4 | H14: 3.5 | I14: 3.8 | J14: 2.6 | K14: 6.2 | L14: 3.2 | M14: 5.3 | N14: 8.1 | O14: 9.4 | P14: 10.5 | Q14: 10.7 | R14: 10.7 | S14: 10
B15: Gross fixed capital formation | C15: EIU | E15: 11.4 | F15: 11.8 | G15: 12.6 | H15: 13.7 | I15: 14.4 | J15: 14.6 | K15: 16.5 | L15: 16.9 | M15: 17.8 | N15: 19.9 | O15: 21.2 | P15: 22.9 | Q15: 24.7 | R15: 26.7 | S15: 28.7
B16: Trade costs
B17: Infrastructure | C17: EIU | N17: 1.933333333
B18: Logistics performance | C18: WB LPI | N18: 2.25 | O18: 0
B19: Corruption | C19: EIU | N19: 1
B20: Legal system | C20: EIU | N20: 1
B21: Technological innovation | C21: UNESCO/World Bank | N21: 0 | O21: 0
B22: Technological infrastructure | C22: EIU | N22: 4 | O22: 0
B23: Growth in labour force | C23: EIU | N23: 0.033 | O23: 0
B24: Social pillar
B25: Inequality (Gini coefficient) | C25: World Bank | I25: 38
B26: Educational attainment | C26: UNESCO/World Bank | E26: .. | F26: .. | G26: 10.14058 | H26: .. | I26: .. | J26: .. | K26: 13.81368 | L26: 13.37805
B27: Labour standards | C27: ILO | N27: 4
B28: Political stability | C28: EIU | N28: 3
B29: Environmental pillar
B30: Air pollution | C30: Yale EPI | I30: 13.12 | J30: 12.67 | K30: 13.5 | L30: 14.12
B31: Deforestation | C31: Yale EPI | L31: -2.6
B32: Water pollution | C32: Yale EPI | L32: 0
B33: Environmental standards in trade | C33: WTO / Academic research | N33: 3
B34: Carbon emissions in trade | C34: OECD / WTO / Academic research | N34: 0.000336624
B35: Share of natural resources in trade | C35: UNCTAD / WTO | N35: 0.830924702

Sheet Malaysia (hidden)
B4: Indicator | C4: Source | D4: Scale | E4: 2005 | F4: 2006 | G4: 2007 | H4: 2008 | I4: 2009 | J4: 2010 | K4: 2011 | L4: 2012 | M4: 2013 | N4: 2014 | O4: 2015 | P4: 2016 | Q4: 2017 | R4: 2018 | S4: 2019
B5: Economic pillar
B6: Growth in per capita GDP | C6: EIU | E6: 0.17 | F6: 4.4 | G6: 9 | H6: 8.4 | I6: -0.5 | J6: 7.5 | K6: 7 | L6: 9.5 | M6: 7 | N6: 6.5 | O6: 6.4 | P6: 6.7 | Q6: 7.3 | R6: 7.1 | S6: 6.4
B7: Current account liberalisation | C7: EIU | E7: 5 | F7: 5 | G7: 5 | H7: 5 | I7: 5 | J7: 5 | K7: 5 | L7: 5 | M7: 5 | N7: 5 | O7: 5 | P7: 5 | Q7: 5 | R7: 5 | S7: 5
B8: Tariff & non-tariff barriers | C8: EIU | E8: 4 | F8: 4 | G8: 4 | H8: 4 | I8: 4 | J8: 4 | K8: 4 | L8: 4 | M8: 4 | N8: 4 | O8: 4 | P8: 4 | Q8: 4 | R8: 4 | S8: 4
B9: Exchange rate volatility | E9: 0.01 | F9: 0.01 | G9: 0.02 | H9: 0.03 | I9: 0.02 | J9: 0.02 | K9: 0.02 | L9: 0.02 | M9: 0.02 | N9: 0.02
B10: Financial sector depth | C10: EIU | E10: 107 | F10: 104 | G10: 102 | H10: 97 | I10: 112 | J10: 110 | K10: 112 | L10: 118 | M10: 124 | N10: 125
B11: Foreign trade and payments risk | C11: EIU | E11: 32 | F11: 32 | G11: 32 | H11: 32 | I11: 32 | J11: 30.25 | K11: 21 | L11: 21 | M11: 21 | N11: 21
B12: Export market concentration | C12: EIU | E12: 12.76 | F12: 12.57 | G12: 12.05 | H12: 11.89 | I12: 11.71 | J12: 11.48 | K12: 11.43 | L12: 11.7 | M12: 11.65 | N12: 11.37
B13: Export product concentration | C13: EIU | E13: 20.1 | F13: 20 | G13: 19.5 | H13: 19 | I13: 19 | J13: 18.7 | K13: 18 | L13: 18.5 | M13: 19.2 | N13: 19.3
B14: Foreign Direct Investment | C14: EIU | E14: 2.7 | F14: 4.6 | G14: 4.5 | H14: 3.2 | I14: 0.1 | J14: 4.3 | K14: 5.1 | L14: 3.1 | M14: 3.6 | N14: 3.3 | O14: 3.5 | P14: 3.3 | Q14: 3.1 | R14: 2.8 | S14: 2.6
B15: Gross fixed capital formation | C15: EIU | E15: 22.19 | F15: 21.84 | G15: 22.29 | H15: 20.47 | I15: 21.87 | J15: 22.44 | K15: 22.18 | L15: 25.36 | M15: 26.48 | N15: 25.98 | O15: 27.1 | P15: 27.1 | Q15: 26.9 | R15: 26.8 | S15: 26.9
B16: Trade costs
B17: Infrastructure | C17: EIU | E17: 6.8 | F17: 6.8 | G17: 6.9 | H17: 6.5 | I17: 7.2 | J17: 6.8 | K17: 6.8 | L17: 6.8 | M17: 7 | N17: 7.1 | O17: 7.3 | P17: 7.5 | Q17: 7.8 | R17: 7.8 | S17: 7.8
B18: Logistics performance | C18: WB LPI | N18: 3.59
B19: Corruption | C19: EIU | E19: 3 | F19: 3 | G19: 3 | H19: 3 | I19: 3 | J19: 3 | K19: 3 | L19: 3 | M19: 3 | N19: 3 | O19: 3 | P19: 3 | Q19: 3 | R19: 3 | S19: 3
B20: Legal system | C20: EIU | E20: 3 | F20: 3 | G20: 3 | H20: 3 | I20: 3 | J20: 3 | K20: 3 | L20: 3 | M20: 3 | N20: 3 | O20: 3 | P20: 3 | Q20: 3 | R20: 3 | S20: 3
B21: Technological innovation | C21: UNESCO/World Bank | K21: 1.07
B22: Technological infrastructure | C22: EIU | N22: 1
B23: Growth in labour force | C23: EIU | N23: 0.218
B24: Social pillar
B25: Inequality (Gini coefficient) | C25: World Bank | I25: 46.3
B26: Educational attainment | C26: UNESCO/World Bank | E26: 27.91557 | F26: 28.58267 | G26: 30.24552 | H26: 33.71005 | I26: 35.72051 | J26: 37.13453 | K26: 35.97491 | L26: 37.20023
B27: Labour standards | C27: ILO | N27: 2
B28: Political stability | C28: EIU | N28: 1
B29: Environmental pillar
B30: Air pollution | C30: Yale EPI | I30: 9.16 | J30: 9.69 | K30: 10.11 | L30: 10.65
B31: Deforestation | C31: Yale EPI | L31: -7.2
B32: Water pollution | C32: Yale EPI | L32: 8.64
B33: Environmental standards in trade | C33: WTO / Academic research | N33: 5
B34: Carbon emissions in trade | C34: OECD / WTO / Academic research | N34: 0.000232448
B35: Share of natural resources in trade | C35: UNCTAD / WTO | N35: 0.280923861

Sheet Laos (hidden)
B4: Indicator | C4: Source | D4: Scale | E4: 2005 | F4: 2006 | G4: 2007 | H4: 2008 | I4: 2009 | J4: 2010 | K4: 2011 | L4: 2012 | M4: 2013 | N4: 2014 | O4: 2015 | P4: 2016 | Q4: 2017 | R4: 2018 | S4: 2019
B5: Economic pillar
B6: Growth in per capita GDP | C6: EIU
B7: Current account liberalisation | C7: EIU | N7: 5
B8: Tariff & non-tariff barriers | C8: EIU | N8: 4
B9: Exchange rate volatility | E9: 0.01 | F9: 0.01 | G9: 0.01 | H9: 0.01 | I9: 0.01 | J9: 0.01 | K9: 0.02 | L9: 0.01 | M9: 0.02 | N9: 0.01
B10: Financial sector depth | C10: EIU | E10: 7 | F10: 6 | G10: 7 | H10: 10 | I10: 17 | J10: 21 | K10: .. | L10: .. | M10: .. | N10: ..
B11: Foreign trade and payments risk | C11: EIU | F11: 64 | G11: 64 | H11: 64 | I11: 64 | J11: 64 | K11: 64 | L11: 64 | M11: 67.5 | N11: 71
B12: Export market concentration | C12: EIU | E12: 11.13 | F12: 13.93 | G12: 13.44 | H12: 15.1 | I12: 16.11 | J12: 17.08 | K12: 18.14 | L12: 17.75 | M12: 18.44 | N12: 19.78
B13: Export product concentration | C13: EIU | E13: 19.3 | F13: 12.1
B14: Foreign Direct Investment | C14: EIU | E14: 1 | F14: 5.4 | G14: 7.7 | H14: 4.2 | I14: 5.5 | J14: 3.9 | K14: 3.6 | L14: 3.1 | M14: 3.8 | N14: 3.8
B15: Gross fixed capital formation | C15: EIU | E15: 23.08 | F15: 27.06 | G15: 34.09 | H15: 32.13 | I15: 30.29 | J15: 24.32 | K15: 26.46 | L15: 31.59 | M15: 29.17 | N15: 29.4
B16: Trade costs
B17: Infrastructure | C17: EIU | E17: 0 | F17: 0 | G17: 0 | H17: 0 | I17: 0 | J17: 0 | K17: 0 | L17: 0 | M17: 0 | N17: 2.4
B18: Logistics performance | C18: WB LPI | N18: 2.39
B19: Corruption | C19: EIU | E19: 0 | F19: 0 | G19: 0 | H19: 0 | I19: 0 | J19: 0 | K19: 0 | L19: 0 | M19: 0 | N19: 1
B20: Legal system | C20: EIU | E20: 0 | F20: 0 | G20: 0 | H20: 0 | I20: 0 | J20: 0 | K20: 0 | L20: 0 | M20: 0 | N20: 1
B21: Technological innovation | C21: UNESCO/World Bank | N21: 0
B22: Technological infrastructure | C22: EIU | N22: 3
B23: Growth in labour force | C23: EIU | N23: 0.068
B24: Social pillar
B25: Inequality (Gini coefficient) | C25: World Bank | L25: 37.9
B26: Educational attainment | C26: UNESCO/World Bank | E26: 7.78892 | F26: 8.96279 | G26: 11.39688 | H26: 13.09264 | I26: 15.99353 | J26: 16.08795 | K26: 17.08848 | L26: 16.72537 | M26: 17.69779
B27: Labour standards | C27: ILO | N27: 4
B28: Political stability | C28: EIU | N28: 1
B29: Environmental pillar
B30: Air pollution | C30: Yale EPI | I30: 16.74 | J30: 17.31 | K30: 18.42 | L30: 21.14
B31: Deforestation | C31: Yale EPI | L31: -4.3
B32: Water pollution | C32: Yale EPI | L32: 0
B33: Environmental standards in trade | C33: WTO / Academic research | N33: 4
B34: Carbon emissions in trade | C34: OECD / WTO / Academic research | N34: 0.000136461
B35: Share of natural resources in trade | C35: UNCTAD / WTO | N35: 0.732680149

Sheet Japan (hidden)
B4: Indicator | C4: Source | D4: Scale | E4: 2005 | F4: 2006 | G4: 2007 | H4: 2008 | I4: 2009 | J4: 2010 | K4: 2011 | L4: 2012 | M4: 2013 | N4: 2014 | O4: 2015 | P4: 2016 | Q4: 2017 | R4: 2018 | S4: 2019
B5: Economic pillar
B6: Growth in per capita GDP | C6: EIU | E6: 0.89 | F6: 0.78 | G6: 0.68 | H6: -1.37 | I6: 1.21 | J6: 2.37 | K6: 0.96 | L6: 0.88 | M6: 0.71 | N6: -0.88 | O6: 1.3 | P6: 1.2 | Q6: 0.2 | R6: 0.7 | S6: 1
B7: Current account liberalisation | C7: EIU | E7: 5 | F7: 5 | G7: 5 | H7: 5 | I7: 5 | J7: 5 | K7: 5 | L7: 5 | M7: 5 | N7: 5 | O7: 5 | P7: 5 | Q7: 5 | R7: 5 | S7: 5
B8: Tariff & non-tariff barriers | C8: EIU | E8: 4 | F8: 4 | G8: 4 | H8: 4 | I8: 4 | J8: 4 | K8: 4 | L8: 4 | M8: 4 | N8: 4 | O8: 4 | P8: 4 | Q8: 4 | R8: 4 | S8: 4
B9: Exchange rate volatility | E9: 0.02 | F9: 0.02 | G9: 0.03 | H9: 0.05 | I9: 0.04 | J9: 0.03 | K9: 0.03 | L9: 0.03 | M9: 0.03 | N9: 0.03
B10: Financial sector depth | C10: EIU | E10: 194 | F10: 191 | G10: 181 | H10: 176 | I10: 185 | J10: 176 | K10: 175 | L10: 178 | M10: 188 | N10: 188
B11: Foreign trade and payments risk | C11: EIU | E11: 14 | F11: 14 | G11: 15 | H11: 18 | I11: 18 | J11: 18 | K11: 18 | L11: 18 | M11: 21 | N11: 25
B12: Export market concentration | C12: EIU | E12: 12.55 | F12: 12.64 | G12: 12.18 | H12: 11.63 | I12: 12.24 | J12: 12.16 | K12: 12.1 | L12: 12.17 | M12: 12.5 | N12: 12.54
B13: Export product concentration | C13: EIU | E13: 23.7 | F13: 23.6 | G13: 23.4 | H13: 23.6 | I13: 23.1 | J13: 23.3 | K13: 23.3 | L13: 23.5 | M13: 23.4 | N13: 23.3
B14: Foreign Direct Investment | C14: EIU | E14: 0.1 | F14: -0.1 | G14: 0.5 | H14: 0.5 | I14: 0.2 | J14: 0.1 | K14: 0 | L14: 0 | M14: 0.2 | N14: 0.2 | O14: 0.6 | P14: 0.6 | Q14: 0.7 | R14: 0.6 | S14: 0.7
B15: Gross fixed capital formation | C15: EIU | E15: 22.36 | F15: 22.7 | G15: 22.58 | H15: 22.39 | I15: 20.79 | J15: 19.98 | K15: 20.62 | L15: 21.03 | M15: 21.73 | N15: 22.34 | O15: 22.3 | P15: 22.4 | Q15: 22.3 | R15: 22.2 | S15: 22.2
B16: Trade costs
B17: Infrastructure | C17: EIU | E17: 8.5 | F17: 8.6 | G17: 8.7 | H17: 8.6 | I17: 8.5 | J17: 8.6 | K17: 8.6 | L17: 8.6 | M17: 8.6 | N17: 8.6 | O17: 8.7 | P17: 8.7 | Q17: 8.7 | R17: 8.7 | S17: 8.7
B18: Logistics performance | C18: WB LPI | N18: 3.91
B19: Corruption | C19: EIU | E19: 3 | F19: 3 | G19: 3 | H19: 3 | I19: 3 | J19: 3 | K19: 3 | L19: 3 | M19: 3 | N19: 3 | O19: 3 | P19: 3 | Q19: 3 | R19: 3 | S19: 3
B20: Legal system | C20: EIU | E20: 4 | F20: 4 | G20: 4 | H20: 4 | I20: 4 | J20: 4 | K20: 4 | L20: 4 | M20: 4 | N20: 4 | O20: 4 | P20: 4 | Q20: 4 | R20: 4 | S20: 4
B21: Technological innovation | C21: UNESCO/World Bank | L21: 3.4
B22: Technological infrastructure | C22: EIU | N22: 0
B23: Growth in labour force | C23: EIU | N23: -0.106
B24: Social pillar
B25: Inequality (Gini coefficient) | C25: World Bank | I25: 33.6
B26: Educational attainment | C26: UNESCO/World Bank | E26: 54.97135 | F26: 57.1059 | G26: 57.81827 | H26: 57.644 | I26: 57.6837 | J26: 58.07908 | K26: 59.92406 | L26: 61.45932
B27: Labour standards | C27: ILO | N27: 1
B28: Political stability | C28: EIU | N28: 0
B29: Environmental pillar
B30: Air pollution | C30: Yale EPI | I30: 12.9 | J30: 12 | K30: 11.96 | L30: 11.69
B31: Deforestation | C31: Yale EPI | L31: -0.6
B32: Water pollution | C32: Yale EPI | L32: 71.26
B33: Environmental standards in trade | C33: WTO / Academic research | N33: 6
B34: Carbon emissions in trade | C34: OECD / WTO / Academic research | N34: 0.000348008
B35: Share of natural resources in trade | C35: UNCTAD / WTO | N35: 0.063178455

Sheet Indonesia (hidden)
B4: Indicator | C4: Source | D4: Scale | E4: 2005 | F4: 2006 | G4: 2007 | H4: 2008 | I4: 2009 | J4: 2010 | K4: 2011 | L4: 2012 | M4: 2013 | N4: 2014 | O4: 2015 | P4: 2016 | Q4: 2017 | R4: 2018 | S4: 2019
B5: Economic pillar
B6: Growth in per capita GDP | C6: EIU | E6: 12.27 | F6: 3.2 | G6: 6.9 | H6: 4.8 | I6: 6.5 | J6: 4.1 | K6: 5.1 | L6: 6.4 | M6: 5.4 | N6: 5.3 | O6: 4 | P6: 5 | Q6: 4.9 | R6: 5 | S6: 5.1
B7: Current account liberalisation | C7: EIU | E7: 4 | F7: 4 | G7: 4 | H7: 4 | I7: 4 | J7: 4 | K7: 4 | L7: 4 | M7: 4 | N7: 4 | O7: 4 | P7: 4 | Q7: 4 | R7: 4 | S7: 4
B8: Tariff & non-tariff barriers | C8: EIU | E8: 4 | F8: 4 | G8: 4 | H8: 4 | I8: 4 | J8: 4 | K8: 4 | L8: 4 | M8: 4 | N8: 4 | O8: 4 | P8: 4 | Q8: 4 | R8: 4 | S8: 4
B9: Exchange rate volatility | E9: 0.02 | F9: 0.02 | G9: 0.02 | H9: 0.06 | I9: 0.03 | J9: 0.02 | K9: 0.02 | L9: 0.02 | M9: 0.03 | N9: 0.03
B10: Financial sector depth | C10: EIU | E10: 26 | F10: 25 | G10: 25 | H10: 27 | I10: 28 | J10: 27 | K10: 30 | L10: 33 | M10: 40 | N10: 40
B11: Foreign trade and payments risk | C11: EIU | E11: 43 | F11: 43 | G11: 43 | H11: 44.75 | I11: 47.25 | J11: 43 | K11: 43 | L11: 43 | M11: 43 | N11: 43
B12: Export market concentration | C12: EIU | E12: 12.39 | F12: 12.47 | G12: 12.15 | H12: 11.92 | I12: 11 | J12: 11.01 | K12: 11.27 | L12: 11.03 | M12: 11.25 | N12: 10.58
B13: Export product concentration | C13: EIU | E13: 15.2 | F13: 15.9 | G13: 16.1 | H13: 16.5 | I13: 15.9 | J13: 16.7 | K13: 17.3 | L13: 19.2 | M13: 19.2 | N13: 19.7
B14: Foreign Direct Investment | C14: EIU | E14: 2.7 | F14: 1.2 | G14: 1.5 | H14: 1.7 | I14: 0.8 | J14: 2 | K14: 2.3 | L14: 2.3 | M14: 2.6 | N14: 2.6 | O14: 2.7 | P14: 2.7 | Q14: 2.6 | R14: 2.2 | S14: 1.9
B15: Gross fixed capital formation | C15: EIU | E15: 27.23 | F15: 27.81 | G15: 28.73 | H15: 31.39 | I15: 31.24 | J15: 30.95 | K15: 31.26 | L15: 32.67 | M15: 32.09 | N15: 32.56 | O15: 32.9 | P15: 33.4 | Q15: 33.9 | R15: 34.2 | S15: 35.1
B16: Trade costs
B17: Infrastructure | C17: EIU | E17: 4 | F17: 4 | G17: 4.1 | H17: 4.2 | I17: 4.4 | J17: 4.9 | K17: 4.9 | L17: 4.9 | M17: 5 | N17: 5.1 | O17: 5.2 | P17: 5.3 | Q17: 5.4 | R17: 5.4 | S17: 5.4
B18: Logistics performance | C18: WB LPI | N18: 3.08
B19: Corruption | C19: EIU | E19: 1 | F19: 1 | G19: 1 | H19: 1 | I19: 1 | J19: 1 | K19: 1 | L19: 1 | M19: 1 | N19: 1 | O19: 1 | P19: 1 | Q19: 1 | R19: 1 | S19: 1
B20: Legal system | C20: EIU | E20: 2 | F20: 2 | G20: 2 | H20: 2 | I20: 2 | J20: 2 | K20: 2 | L20: 2 | M20: 2 | N20: 2 | O20: 2 | P20: 2 | Q20: 2 | R20: 2 | S20: 2
B21: Technological innovation | C21: UNESCO/World Bank | I21: 0.08
B22: Technological infrastructure | C22: EIU | N22: 3
B23: Growth in labour force | C23: EIU | N23: 0.238
B24: Social pillar
B25: Inequality (Gini coefficient) | C25: World Bank | J25: 35.6
B26: Educational attainment | C26: UNESCO/World Bank | E26: 17.73973 | F26: 17.91134 | G26: 18.39534 | H26: 21.33734 | I26: 23.74035 | J26: 24.88563 | K26: 27.20455 | L26: 31.51226
B27: Labour standards | C27: ILO | N27: 4
B28: Political stability | C28: EIU | N28: 2
B29: Environmental pillar
B30: Air pollution | C30: Yale EPI | I30: 8.56 | J30: 8.3 | K30: 8.63 | L30: 9.21
B31: Deforestation | C31: Yale EPI | L31: -5.5
B32: Water pollution | C32: Yale EPI | L32: 0.02
B33: Environmental standards in trade | C33: WTO / Academic research | N33: 5
B34: Carbon emissions in trade | C34: OECD / WTO / Academic research | N34: 0.000722076
B35: Share of natural resources in trade | C35: UNCTAD / WTO | N35: 0.599441571

Sheet India (hidden)
B4: Indicator | C4: Source | D4: Scale | E4: 2005 | F4: 2006 | G4: 2007 | H4: 2008 | I4: 2009 | J4: 2010 | K4: 2011 | L4: 2012 | M4: 2013 | N4: 2014 | O4: 2015 | P4: 2016 | Q4: 2017 | R4: 2018 | S4: 2019
B5: Economic pillar
B6: Growth in per capita GDP | C6: EIU | E6: 8.63 | F6: 8.49 | G6: 9.3 | H6: 7.2 | I6: 5.6 | J6: 8.6 | K6: 6.1 | L6: 6.1 | M6: 6.8 | N6: 6.3 | O6: 8.3 | P6: 8.5 | Q6: 4.4 | R6: 8.3 | S6: 8
B7: Current account liberalisation | C7: EIU | E7: 4 | F7: 4 | G7: 4 | H7: 4 | I7: 4 | J7: 4 | K7: 4 | L7: 4 | M7: 4 | N7: 4 | O7: 4 | P7: 4 | Q7: 4 | R7: 4 | S7: 4
B8: Tariff & non-tariff barriers | C8: EIU | E8: 1 | F8: 2 | G8: 2 | H8: 2 | I8: 2 | J8: 2 | K8: 2 | L8: 2 | M8: 2 | N8: 2 | O8: 2 | P8: 2 | Q8: 2 | R8: 2 | S8: 2
B9: Exchange rate volatility | E9: 0.01 | F9: 0.02 | G9: 0.02 | H9: 0.03 | I9: 0.03 | J9: 0.03 | K9: 0.03 | L9: 0.04 | M9: 0.05 | N9: 0.02
B10: Financial sector depth | C10: EIU | E10: 39 | F10: 43 | G10: 45 | H10: 49 | I10: 47 | J10: 50 | K10: 51 | L10: 52 | M10: 52 | N10: 51
B11: Foreign trade and payments risk | C11: EIU | E11: 54 | F11: 51 | G11: 50 | H11: 51 | I11: 54 | J11: 54 | K11: 54 | L11: 54 | M11: 52 | N11: 50
B12: Export market concentration | C12: EIU | E12: 8.61 | F12: 8.35 | G12: 7.84 | H12: 7.95 | I12: 7.93 | J12: 7.98 | K12: 8.49 | L12: 8.3 | M12: 7.71 | N12: 7.8
B13: Export product concentration | C13: EIU | E13: 14.3 | F13: 15.2 | G13: 15.9 | H13: 16.2 | I13: 16 | J13: 15.8 | K13: 17.1 | L13: 17.2 | M13: 17.1 | N13: 16.6
B14: Foreign Direct Investment | C14: EIU | E14: 0.9 | F14: 2.1 | G14: 2.1 | H14: 3.9 | I14: 2.6 | J14: 1.6 | K14: 2 | L14: 1.3 | M14: 1.5 | N14: 1.7 | O14: 2.2 | P14: 2.6 | Q14: 3.2 | R14: 3.1 | S14: 2.9
B15: Gross fixed capital formation | C15: EIU | E15: 31.32 | F15: 32.29 | G15: 33.99 | H15: 33.44 | I15: 32.8 | J15: 31.97 | K15: 33.66 | L15: 31.36 | M15: 29.66 | N15: 28.71 | O15: 26.5 | P15: 26.5 | Q15: 26.4 | R15: 26 | S15: 25.7
B16: Trade costs
B17: Infrastructure | C17: EIU | E17: 3.4 | F17: 3.7 | G17: 3.9 | H17: 4.1 | I17: 3.8 | J17: 4.4 | K17: 4.4 | L17: 4.4 | M17: 4.6 | N17: 4.7 | O17: 4.9 | P17: 5.1 | Q17: 5.4 | R17: 5.4 | S17: 5.4
B18: Logistics performance | C18: WB LPI | N18: 3.08
B19: Corruption | C19: EIU | E19: 1 | F19: 1 | G19: 1.1 | H19: 1 | I19: 1 | J19: 1 | K19: 1 | L19: 1 | M19: 1.1 | N19: 1.3 | O19: 1.5 | P19: 1.7 | Q19: 2 | R19: 2 | S19: 2
B20: Legal system | C20: EIU | E20: 3 | F20: 3 | G20: 3 | H20: 3 | I20: 3 | J20: 3 | K20: 3 | L20: 3 | M20: 3 | N20: 3 | O20: 3 | P20: 3 | Q20: 3 | R20: 3 | S20: 3
B21: Technological innovation | C21: UNESCO/World Bank | K21: 0.81
B22: Technological infrastructure | C22: EIU | N22: 1
B23: Growth in labour force | C23: EIU | N23: 0.286
B24: Social pillar
B25: Inequality (Gini coefficient) | C25: World Bank | I25: 33.9
B26: Educational attainment | C26: UNESCO/World Bank | E26: 11.00422 | F26: 11.82165 | G26: 13.48119 | H26: 15.41577 | I26: 16.39657 | J26: 18.22679 | K26: 23.27124 | L26: 24.80476 | M26: 24.68669
B27: Labour standards | C27: ILO | N27: 4
B28: Political stability | C28: EIU | N28: 2
B29: Environmental pillar
B30: Air pollution | C30: Yale EPI | I30: 30.95 | J30: 31.09 | K30: 31.69 | L30: 31.98
B31: Deforestation | C31: Yale EPI | L31: -1.6
B32: Water pollution | C32: Yale EPI | L32: 10.49
B33: Environmental standards in trade | C33: WTO / Academic research | N33: 5
B34: Carbon emissions in trade | C34: OECD / WTO / Academic research | N34: 0.001267273
B35: Share of natural resources in trade | C35: UNCTAD / WTO | N35: 0.303998321

Sheet HongKong (hidden)
B4: Indicator | C4: Source | D4: Scale | E4: 2005 | F4: 2006 | G4: 2007 | H4: 2008 | I4: 2009 | J4: 2010 | K4: 2011 | L4: 2012 | M4: 2013 | N4: 2014 | O4: 2015 | P4: 2016 | Q4: 2017 | R4: 2018 | S4: 2019
B5: Economic pillar
B6: Growth in per capita GDP | C6: EIU | E6: 1.31 | F6: 3.2 | G6: 4.4 | H6: 0.1 | I6: -0.3 | J6: 3.2 | K6: 4.7 | L6: 2 | M6: 2.7 | N6: 1.7 | O6: 2.4 | P6: 1.5 | Q6: 2.4 | R6: 2.8 | S6: 2.9
B7: Current account liberalisation | C7: EIU | E7: 5 | F7: 5 | G7: 5 | H7: 5 | I7: 5 | J7: 5 | K7: 5 | L7: 5 | M7: 5 | N7: 5 | O7: 5 | P7: 5 | Q7: 5 | R7: 5 | S7: 5
B8: Tariff & non-tariff barriers | C8: EIU | E8: 5 | F8: 5 | G8: 5 | H8: 5 | I8: 5 | J8: 5 | K8: 5 | L8: 5 | M8: 5 | N8: 5 | O8: 5 | P8: 5 | Q8: 5 | R8: 5 | S8: 5
B9: Exchange rate volatility | E9: 0.01 | F9: 0.01 | G9: 0.01 | H9: 0.02 | I9: 0.01 | J9: 0.01 | K9: 0.01 | L9: 0.01 | M9: 0.01 | N9: 0.01
B10: Financial sector depth | C10: EIU | E10: 143 | F10: 137 | G10: 137 | H10: 140 | I10: 155 | J10: 186 | K10: 202 | L10: 199 | M10: 218 | N10: 234
B11: Foreign trade and payments risk | C11: EIU | E11: 4 | F11: 7 | G11: 7 | H11: 7 | I11: 7 | J11: 7 | K11: 7 | L11: 7 | M11: 7 | N11: 7
B12: Export market concentration | C12: EIU | E12: 16.81 | F12: 16.97 | G12: 17.02 | H12: 17.2 | I12: 17.45 | J12: 17.58 | K12: 17.26 | L12: 17.58 | M12: 17.54 | N12: 17.32
B13: Export product concentration | C13: EIU | E13: 23.4 | F13: 23.5 | G13: 23.9 | H13: 24.2 | I13: 24.3 | J13: 24.3 | K13: 24.5 | L13: 24.6 | M13: 24.5 | N13: 24.5
B14: Foreign Direct Investment | C14: EIU | E14: 22.56 | F14: 23.2 | G14: 29.36 | H14: 30.57 | I14: 25.36 | J14: 36.17 | K14: 38.68 | L14: 28.51 | M14: 27.87 | N14: 39.87 | O14: 36.31 | P14: 30.74 | Q14: 26.2 | R14: 24.41 | S14: 20.63
B15: Gross fixed capital formation | C15: EIU | E15: 21.4 | F15: 22.43 | G15: 20.62 | H15: 20.55 | I15: 20.46 | J15: 21.78 | K15: 23.54 | L15: 25.4 | M15: 24.12 | N15: 23.65 | O15: 22.5 | P15: 20.5 | Q15: 20.3 | R15: 20.5 | S15: 20
B16: Trade costs
B17: Infrastructure | C17: EIU | E17: 8.7 | F17: 8.5 | G17: 8.5 | H17: 8.5 | I17: 8.5 | J17: 8.6 | K17: 8.6 | L17: 8.6 | M17: 8.6 | N17: 8.6 | O17: 8.6 | P17: 8.6 | Q17: 8.6 | R17: 8.6 | S17: 8.6
B18: Logistics performance | C18: WB LPI | N18: 3.83
B19: Corruption | C19: EIU | E19: 4 | F19: 4 | G19: 4 | H19: 4 | I19: 4 | J19: 4 | K19: 4 | L19: 4 | M19: 4 | N19: 4 | O19: 4 | P19: 4 | Q19: 4 | R19: 4 | S19: 4
B20: Legal system | C20: EIU | E20: 3 | F20: 3 | G20: 3.2 | H20: 3 | I20: 3 | J20: 3 | K20: 3 | L20: 3 | M20: 3.2 | N20: 3.4 | O20: 3.6 | P20: 3.8 | Q20: 4 | R20: 4 | S20: 4
B21: Technological innovation | C21: UNESCO/World Bank | J21: 0.75
B22: Technological infrastructure | C22: EIU | N22: 2
B23: Growth in labour force | C23: EIU | N23: -0.061
B24: Social pillar
B25: Inequality (Gini coefficient) | C25: See footnote | K25: 53.7
B26: Educational attainment | C26: UNESCO/World Bank | E26: 32.11565 | F26: 32.98464 | G26: 41.15414 | H26: 53.86305 | I26: 54.83638 | J26: 57.83573 | K26: 59.89669 | L26: 60.1254 | M26: 66.83704
B27: Labour standards | C27: ILO | N27: 1
B28: Political stability | C28: EIU | N28: 2
B29: Environmental pillar
B30: Air pollution | C30: Yale EPI | I30: 19.2 | J30: 17.33 | K30: 16.25 | L30: 15.37
B31: Deforestation | C31: Yale EPI | L31: 0.2
B32: Water pollution | C32: Yale EPI | L32: 87.78688
B33: Environmental standards in trade** | C33: WTO / Academic research | N33: 7
B34: Carbon emissions in trade | C34: OECD / WTO / Academic research | N34: 2.07632e-05
B35: Share of natural resources in trade | C35: UNCTAD / WTO | N35: 0.086433671
B36: * HK is part of China for the EPI
B37: ** HK is part of China for Convention signing

Sheet China (hidden)
B4: Indicator | C4: Source | D4: Scale | E4: 2005 | F4: 2006 | G4: 2007 | H4: 2008 | I4: 2009 | J4: 2010 | K4: 2011 | L4: 2012 | M4: 2013 | N4: 2014 | O4: 2015 | P4: 2016 | Q4: 2017 | R4: 2018 | S4: 2019
B5: Economic pillar
B6: Growth in per capita GDP | C6: EIU | E6: 11.96 | F6: 9.14 | G6: 12.19 | H6: 8.58 | I6: 12.02 | J6: 8.71 | K6: 7.69 | L6: 10.38 | M6: 6.55 | N6: 7.4 | O6: 6.8 | P6: 6.2 | Q6: 5.6 | R6: 5.5 | S6: 5.2
B7: Current account liberalisation | C7: EIU | E7: 3 | F7: 4 | G7: 4.2 | H7: 4 | I7: 4 | J7: 4 | K7: 4 | L7: 4 | M7: 4.2 | N7: 4.4 | O7: 4.6 | P7: 4.8 | Q7: 5 | R7: 5 | S7: 5
B8: Tariff & non-tariff barriers | C8: EIU | E8: 3 | F8: 3 | G8: 3 | H8: 3 | I8: 3 | J8: 3 | K8: 3 | L8: 3 | M8: 3 | N8: 3 | O8: 3 | P8: 3 | Q8: 3 | R8: 3 | S8: 3
B9: Exchange rate volatility | E9: 0.01 | F9: 0.01 | G9: 0.01 | H9: 0.03 | I9: 0.02 | J9: 0.02 | K9: 0.02 | L9: 0.02 | M9: 0.02 | N9: 0.02
B10: Financial sector depth | C10: EIU | E10: 113 | F10: 110 | G10: 107 | H10: 103 | I10: 125 | J10: 128 | K10: 124 | L10: 130 | M10: 135 | N10: 142
B11: Foreign trade and payments risk | C11: EIU | E11: 34 | F11: 32 | G11: 32 | H11: 34 | I11: 36 | J11: 36 | K11: 36 | L11: 36 | M11: 36 | N11: 33
B12: Export market concentration | C12: EIU | E12: 13.36 | F12: 12.79 | G12: 11.82 | H12: 11.08 | I12: 11.22 | J12: 10.95 | K12: 10.84 | L12: 11.17 | M12: 11.26 | N12: 10.78
B13: Export product concentration | C13: EIU | E13: 11.7 | F13: 11.7 | G13: 11.4 | H13: 10.7 | I13: 11.4 | J13: 11.2 | K13: 10.5 | L13: 10.5 | M13: 10.7 | N13: 10.3
B14: Foreign Direct Investment | C14: EIU | E14: 4.54 | F14: 4.51 | G14: 4.41 | H14: 3.76 | I14: 2.25 | J14: 4.55 | K14: 4.46 | L14: 3.49 | M14: 3.65 | N14: 3.62 | O14: 2.99 | P14: 2.43 | Q14: 1.94 | R14: 2 | S14: 1.8
B15: Gross fixed capital formation | C15: EIU | E15: 39.53 | F15: 38.86 | G15: 38.08 | H15: 39.4 | I15: 44.14 | J15: 44.56 | K15: 44.49 | L15: 44.46 | M15: 44.6 | N15: 44.17 | O15: 42.4 | P15: 41.8 | Q15: 41.3 | R15: 40.6 | S15: 39.9
B16: Trade costs
B17: Infrastructure | C17: EIU | E17: 4.7 | F17: 4.9 | G17: 5.2 | H17: 5.6 | I17: 5.4 | J17: 5.8 | K17: 5.8 | L17: 5.8 | M17: 6 | N17: 6.2 | O17: 6.4 | P17: 6.7 | Q17: 6.9 | R17: 6.9 | S17: 6.9
B18: Logistics performance | C18: WB LPI | N18: 3.53
B19: Corruption | C19: EIU | E19: 1 | F19: 1 | G19: 1 | H19: 1 | I19: 1 | J19: 1 | K19: 1 | L19: 1 | M19: 1 | N19: 1 | O19: 1 | P19: 1 | Q19: 1 | R19: 1 | S19: 1
B20: Legal system | C20: EIU | E20: 1 | F20: 1 | G20: 1.1 | H20: 1 | I20: 1 | J20: 1 | K20: 1 | L20: 1 | M20: 1.1 | N20: 1.3 | O20: 1.5 | P20: 1.7 | Q20: 2 | R20: 2 | S20: 2
B21: Technological innovation | C21: UNESCO/World Bank | L21: 1.98
B22: Technological infrastructure | C22: EIU | N22: 2 | O22: 0
B23: Growth in labour force | C23: EIU | N23: -0.057
B24: Social pillar
B25: Inequality (Gini coefficient) | C25: World Bank | J25: 42.06
B26: Educational attainment | C26: UNESCO/World Bank | E26: 18.34087 | F26: 19.51878 | G26: 19.9669 | H26: 20.18727 | I26: 21.82372 | J26: 23.32153 | K26: 24.32841 | L26: 26.7 | M26: 29.69645
B27: Labour standards | C27: ILO | N27: 3
B28: Political stability | C28: EIU | N28: 2
B29: Environmental pillar
B30: Air pollution | C30: Yale EPI | I30: 49.84 | J30: 48.41 | K30: 49.1 | L30: 48
B31: Deforestation | C31: Yale EPI | L31: -2.5
B32: Water pollution | C32: Yale EPI | L32: 18.17991224
B33: Environmental standards in trade | C33: WTO / Academic research | N33: 7
B34: Carbon emissions in trade | C34: OECD / WTO / Academic research | N34: 0.001235593
B35: Share of natural resources in trade | C35: UNCTAD / WTO | N35: 0.062638868

Sheet Cambodia (hidden)
B4: Indicator | C4: Source | D4: Scale | E4: 2005 | F4: 2006 | G4: 2007 | H4: 2008 | I4: 2009 | J4: 2010 | K4: 2011 | L4: 2012 | M4: 2013 | N4: 2014 | O4: 2015 | P4: 2016 | Q4: 2017 | R4: 2018 | S4: 2019
B5: Economic pillar
B6: Growth in per capita GDP | C6: EIU | P6: 0 | Q6: 0 | R6: 0 | S6: 0
B7: Current account liberalisation | C7: EIU | N7: 5
B8: Tariff & non-tariff barriers | C8: EIU | N8: 3
B9: Exchange rate volatility | E9: 0.02 | F9: 0.01 | G9: 0.01 | H9: 0.02 | I9: 0.02 | J9: 0.02 | K9: 0.02 | L9: 0.01 | M9: 0.01 | N9: 0.01
B10: Financial sector depth | C10: EIU | E10: 9 | F10: 12 | G10: 18 | H10: 23 | I10: 25 | J10: 28 | K10: 28 | L10: 39 | M10: 45 | N10: 54
B11: Foreign trade and payments risk | C11: EIU | F11: 32 | G11: 32 | H11: 32 | I11: 32 | J11: 32 | K11: 32 | L11: 34 | M11: 37.5 | N11: 42
B12: Export market concentration | C12: EIU | E12: 17 | F12: 16.84 | G12: 16.64 | H12: 14.66 | I12: 10.22 | J12: 11.31 | K12: 11.95 | L12: 7.87 | M12: 10.53 | N12: 17.22
B13: Export product concentration | C13: EIU | E13: 19.9 | F13: 18.7 | G13: 23.9 | H13: 23.7 | I13: 21.4 | J13: 22.6 | K13: 22.9 | L13: 24.2 | M13: 23.4 | N13: 30.6
B14: Foreign Direct Investment | C14: EIU | E14: 6 | F14: 6.64 | G14: 10.04 | H14: 7.87 | I14: 4.91 | J14: 6.54 | K14: 6.2 | L14: 10.25 | M14: 8.82 | N14: 6.76 | O14: 7.08 | P14: 7.02 | Q14: 7.31 | R14: 7.32 | S14: 7.24
B15: Gross fixed capital formation | C15: EIU | E15: 18.89 | F15: 19.35 | G15: 19.77 | H15: 17.27 | I15: 20.14 | J15: 16.01 | K15: 16.9 | L15: 17 | M15: 18.1 | N15: 18.1 | O15: 18.7 | P15: 19.2 | Q15: 20 | R15: 20.8 | S15: 22.4
B16: Trade costs
B17: Infrastructure | C17: EIU | N17: 3.53125
B18: Border procedures | C18: Trade Facilitation Index | N18: 2.74
B19: Corruption | C19: EIU | N19: 1
B20: Legal system | C20: EIU | N20: 1
B21: Technological innovation | C21: UNESCO/World Bank | N21: 0
B22: Technological infrastructure | C22: EIU | N22: 3
B23: Growth in labour force | C23: EIU | N23: 0.023
B24: Social pillar
B25: Inequality (Gini coefficient) | C25: World Bank | L25: 30.76
B26: Educational attainment | C26: UNESCO/World Bank | E26: 3.32616 | F26: 5.59144 | G26: 7.25094 | H26: 9.08014 | I26: 11.72333 | J26: 14.0676 | K26: 15.83411
B27: Labour standards | C27: ILO | N27: 4
B28: Political stability | C28: EIU | N28: 3
B29: Environmental pillar
B30: Air pollution | C30: Yale EPI | I30: 8.74 | J30: 8.77 | K30: 9.16 | L30: 9.59
B31: Deforestation | C31: Yale EPI | L31: -13.7
B32: Water pollution | C32: Yale EPI | L32: 0
B33: Environmental standards in trade | C33: WTO / Academic research | N33: 5
B34: Carbon emissions in trade | C34: OECD / WTO / Academic research | N34: 0.000157893
B35: Share of natural resources in trade | C35: UNCTAD / WTO | N35: 0.105486428

Sheet Brunei (hidden)
B4: Indicator | C4: Source | D4: Scale | E4: 2005 | F4: 2006 | G4: 2007 | H4: 2008 | I4: 2009 | J4: 2010 | K4: 2011 | L4: 2012 | M4: 2013 | N4: 2014 | O4: 2015 | P4: 2016 | Q4: 2017 | R4: 2018 | S4: 2019
B5: Economic pillar
B6: Growth in per capita GDP | C6: EIU | Q6: n.a. | R6: n.a. | S6: n.a.
B7: Current account liberalisation | C7: EIU | N7: 5
B8: Tariff & non-tariff barriers | C8: EIU | N8: 3
B9: Exchange rate volatility | E9: 0.01 | F9: 0.01 | G9: 0.01 | H9: 0.03 | I9: 0.02 | J9: 0.02 | K9: 0.02 | L9: 0.02 | M9: 0.02 | N9: 0.01
B10: Financial sector depth | C10: EIU | E10: 40 | F10: 35 | G10: 38 | H10: 35 | I10: 45 | J10: 41 | K10: 31 | L10: 31 | M10: 35 | N10: 33
B11: Foreign trade and payments risk | C11: EIU | G11: 14 | H11: 14 | I11: 21 | J11: 21 | K11: 21 | L11: 21 | M11: 21 | N11: 21
B12: Export market concentration | C12: EIU
B13: Export product concentration | C13: EIU
B14: Foreign Direct Investment | C14: EIU | G14: 0.0087 | H14: 0.0079 | J14: 0.0202 | K14: 0.0366
B15: Gross fixed capital formation | C15: EIU | E15: 29.3 | F15: 27 | G15: 33.5 | H15: 35.2 | I15: 45.2 | J15: 40.9 | K15: 33.7 | L15: 35 | M15: 39.46 | N15: 27.27 | O15: 27.2 | P15: 27.1 | Q15: n.a. | R15: n.a. | S15: n.a.
B16: Trade costs
B17: Infrastructure | C17: EIU | N17: 3.53125
B18: Logistics performance | C18: World Bank LPI
B19: Corruption | C19: EIU | N19: 3
B20: Legal system | C20: EIU | N20: 1
B21: Technological innovation | C21: UNESCO/World Bank | N21: 0
B22: Technological infrastructure | C22: EIU
B23: Growth in labour force | C23: EIU | N23: -0.033
B24: Social pillar
B25: Inequality (Gini coefficient) | C25: Scholarly estimate (see note) | M25: 40.5
B26: Educational attainment | C26: UNESCO/World Bank | E26: 17.6941 | F26: 17.76584 | G26: 17.94593 | H26: 18.31874 | I26: 19.19414 | J26: 17.60385 | K26: 19.72259 | L26: 24.33869 | M26: 25.36182
B27: Labour standards | C27: ILO | N27: 1
B28: Political stability | C28: EIU | N28: 0
B29: Environmental pillar
B30: Air pollution | C30: Yale EPI | I30: 8.57 | J30: 7.87 | K30: 9.24 | L30: 9.2
B31: Deforestation | C31: Yale EPI | L31: -1.5
B32: Water pollution | C32: Yale EPI | L32: 37.84
B33: Environmental standards in trade | C33: WTO / Academic research | N33: 3
B34: Carbon emissions in trade | C34: OECD / WTO / Academic research | L34: 0.000198807
B35: Share of natural resources in trade | C35: UNCTAD / WTO | L35: 0.879658079

Sheet Bangladesh (hidden)
B4: Indicator | C4: Source | D4: Scale | E4: 2005 | F4: 2006 | G4: 2007 | H4: 2008 | I4: 2009 | J4: 2010 | K4: 2011 | L4: 2012 | M4: 2013 | N4: 2014 | O4: 2015 | P4: 2016 | Q4: 2017 | R4: 2018 | S4: 2019
B5: Economic pillar
B6: Growth in per capita GDP | C6: EIU | Q6: n.a. | R6: n.a. | S6: n.a.
B7: Current account liberalisation | C7: EIU | N7: 4 | AA7: 4
B8: Tariff & non-tariff barriers | C8: EIU | N8: 2 | AA8: 2
B9: Exchange rate volatility | E9: 0.02 | F9: 0.03 | G9: 0.01 | H9: 0.03 | I9: 0.02 | J9: 0.02 | K9: 0.03 | L9: 0.03 | M9: 0.02 | N9: 0.01
B10: Financial sector depth | C10: EIU | E10: 29 | F10: 31 | G10: 32 | H10: 34 | I10: 36 | J10: 41 | K10: 42 | L10: 43 | M10: 42 | N10: 42
B11: Foreign trade and payments risk | C11: EIU | F11: 57 | G11: 57 | H11: 57 | I11: 57 | J11: 55.5 | K11: 54 | L11: 54 | M11: 54 | N11: 57
B12: Export market concentration | C12: EIU | E12: 12.31 | F12: 12.66 | G12: 12.15 | H12: 11.82 | I12: 11.88 | J12: 11.3 | K12: 10.7 | L12: 10.24 | M12: 9.84 | N12: 9.71
B13: Export product concentration | C13: EIU | E13: 19.3 | F13: 19 | G13: 19.2 | H13: 18.9 | I13: 19.2 | J13: 18.9 | K13: 18.9 | L13: 18.9 | M13: 18.8 | N13: 18.6
B14: Foreign Direct Investment | C14: EIU | E14: 1.1 | F14: 1 | G14: 0.8 | H14: 1.1 | I14: 0.8 | J14: 0.7 | K14: 0.9 | L14: 1.1 | M14: 1 | N14: 0.9 | O14: 0.8 | P14: 0.8 | Q14: 0.7 | R14: 0.7 | S14: 0.6
B15: Gross fixed capital formation | C15: EIU | E15: 25.83 | F15: 26.14 | G15: 26.18 | H15: 26.2 | I15: 26.21 | J15: 26.25 | K15: 27.42 | L15: 28.26 | M15: 28.39 | N15: 28.69 | O15: 28.7 | P15: 29 | Q15: 29.3 | R15: 29.8 | S15: 30.3
B16: Trade costs
B17: Infrastructure | C17: EIU | N17: 2.5
B18: Logistics performance | C18: World Bank LPI | N18: 2.56
B19: Corruption | C19: EIU | N19: 1
B20: Legal system | C20: EIU | N20: 3
B21: Technological innovation | C21: UNESCO/World Bank | L21: 3.5
B22: Technological infrastructure | C22: EIU | N22: 2
B23: Growth in labour force | C23: EIU | N23: 0.259
B24: Social pillar
B25: Inequality (Gini coefficient) | C25: World Bank | J25: 32
B26: Educational attainment | C26: UNESCO/World Bank | E26: 6.2199 | F26: 7.10346 | G26: 7.65622 | H26: 8.56355 | I26: 10.46633 | J26: .. | K26: 13.15282 | L26: 13.22793
B27: Labour standards | C27: ILO | N27: 4
B28: Political stability | C28: EIU | N28: 3
B29: Environmental pillar
B30: Air pollution | C30: Yale EPI | I30: 28 | J30: 28.99 | K30: 28.95 | L30: 29.62
B31: Deforestation | C31: Yale EPI | L31: -2.8
B32: Water pollution | C32: Yale EPI | L32: 0
B33: Environmental standards in trade | C33: WTO / Academic research | N33: 3
B34: Carbon emissions in trade | C34: OECD / WTO / Academic research | K34: 0.000576619
B35: Share of natural resources in trade | C35: UNCTAD / WTO | K35: 0.070791049

Sheet iDataCollect (hidden)
D3: Bangladesh | E3: Brunei | F3: Cambodia | G3: China | H3: HongKong | I3: India | J3: Indonesia | K3: Japan | L3: Laos | M3: Malaysia | N3: Myanmar | O3: Pakistan | P3: Phillipines | Q3: Singapore | R3: SouthKorea | S3: SriLanka | T3: Taiwan | U3: Thailand | V3: Vietnam | W3: USA
C5: Economic pillar
A6: 6 | C6: Growth in per capita GDP | D6: 4.89 | E6: -1.63 | F6: 5.11 | G6: 8 | H6: 3.04 | I6: 5.15 | J6: 4.73 | K6: 1.59 | L6: 6.04 | M6: 4.04 | N6: 4.36 | O6: 1.65 | P6: 4.42 | Q6: 4.5 | R6: 3.16 | S6: 5.83 | T6: 4.22 | U6: 3.58 | V6: 4.7 | W6: 1.29
A7: 7 | C7: Current account liberalisation | D7: 4 | E7: =IF(ISNUMBER(INDEX(INDIRECT(E$3&"!"&"E"&$A7&":N"&$A7),MATCH(9.99999999999999E+307,INDIRECT(E$3&"!"&"E"&$A7&":N"&$A7)))),INDEX(INDIRECT(E$3&"!"&"E"&$A7&":N"&$A7),MATCH(9.99999999999999E+307,INDIRECT(E$3&"!"&"E"&$A7&":N"&$A7))),"") -> 5 | F7: 5 | G7: 4.4 | H7: 5 | I7: 4 | J7: 4 | K7: 5 | L7: 5 | M7: 5 | N7: 4 | O7: 3 | P7: 4.4 | Q7: 5 | R7: 4.4 | S7: 5 | T7: 5 | U7: 5 | V7: 5 | W7: 5
A8: 8 | C8: Tariff & non-tariff barriers | D8: =IF(ISNUMBER(INDEX(INDIRECT(D$3&"!"&"E"&$A8&":N"&$A8),MATCH(9.99999999999999E+307,INDIRECT(D$3&"!"&"E"&$A8&":N"&$A8)))),INDEX(INDIRECT(D$3&"!"&"E"&$A8&":N"&$A8),MATCH(9.99999999999999E+307,INDIRECT(D$3&"!"&"E"&$A8&":N"&$A8))),"") -> 2 | E8: 3 | F8: 3 | G8: 3 | H8: 5 | I8: 2 | J8: 4 | K8: 4 | L8: 4 | M8: 4 | N8: 4 | O8: 2 | P8: 4 | Q8: 5 | R8: 4 | S8: 3 | T8: 4 | U8: 3.4 | V8: 2.4 | W8: 4
A9: 9 | B9: * | C9: Exchange rate volatility | D9: =AVERAGE(INDIRECT(D$3&"!"&"$J"&$A9&":"&"$N"&$A9)) -> 0.022 | E9: =AVERAGE(INDIRECT(E$3&"!"&"$J"&$A9&":"&"$N"&$A9)) -> 0.018 | F9: 0.014 | G9: 0.02 | H9: 0.01 | I9: 0.034 | J9: 0.024 | K9: 0.03 | L9: 0.014 | M9: 0.02 | N9: 0.302 | O9: 0.014 | P9: 0.02 | Q9: 0.018 | R9: 0.024 | S9: 0.02 | T9: 0.014 | U9: 0.024 | V9: 0.016 | W9: 0.022
A10: 10 | C10: Financial sector depth | D10: 42 | E10: 33 | F10: 54 | G10: 142 | H10: 234 | I10: 51 | J10: 40 | K10: 188 | L10: 21 | M10: 125 | N10: 14 | O10: 15 | P10: 39 | Q10: 131 | R10: 138 | S10: 28 | T10: 159.6 | U10: 159 | V10: 100 | W10: 196
A11: 11 | C11: Foreign trade and payments risk | D11: 57 | E11: 21 | F11: 42 | G11: 33 | H11: 7 | I11: 50 | J11: 43 | K11: 25 | L11: 71 | M11: 21 | N11: 64 | O11: 75 | P11: 29 | Q11: 4 | R11: 26 | S11: 36 | T11: 18 | U11: 43 | V11: 49 | W11: 21
A12: 12 | B12: * | C12: Export market concentration | D12: =AVERAGE(INDIRECT(D$3&"!"&"$J"&$A12&":"&"$N"&$A12)) -> 10.358 | E12: 70.6 | F12: =AVERAGE(INDIRECT(F$3&"!"&"$J"&$A12&":"&"$N"&$A12)) -> 11.776 | G12: 11 | H12: 17.456 | I12: 8.056 | J12: 11.028 | K12: 12.294 | L12: 18.238 | M12: 11.526 | N12: 19.74 | O12: 10.334 | P12: 13.448 | Q12: 10.032 | R12: 11.95 | S12: 10.212 | T12: 15.236 | U12: 9.346 | V12: 11.524 | W12: 11.174
A13: 13 | B13: * | C13: Export product concentration | D13: =AVERAGE(INDIRECT(D$3&"!"&"$J"&$A13&":"&"$N"&$A13)) -> 18.82 | E13: 98.1 | F13: 24.74 | G13: 10.64 | H13: 24.48 | I13: 16.76 | J13: 18.42 | K13: 23.36 | L13: 12.1 | M13: 18.74 | N13: 14.92 | O13: 9.12 | P13: 16.8 | Q13: 17.1 | R13: 22.08 | S13: 16 | T13: 18.98 | U13: 25 | V13: 8.32 | W13: 21.88
A14: 14 | B14: * | C14: Foreign Direct Investment | D14: 0.92 | E14: 0.0284 | F14: 7.714 | G14: 3.954 | H14: 34.22 | I14: 1.62 | J14: 2.36 | K14: 0.1 | L14: 3.64 | M14: 3.88 | N14: 5.08 | O14: 0.68 | P14: 1.26 | Q14: 20.7 | R14: 0.84 | S14: 1.38 | T14: 0.4 | U14: 2.62 | V14: 5.64 | W14: 1.46
A15: 15 | B15: * | C15: Gross fixed capital formation | D15: 27.802 | E15: 35.266 | F15: 17.222 | G15: 44.456 | H15: 23.698 | I15: 31.072 | J15: 31.906 | K15: 21.14 | L15: 28.188 | M15: 24.488 | N15: 17.14 | O15: 13.39 | P15: 20.032 | Q15: 26.034 | R15: 29.736 | S15: 27.858 | T15: 22.62 | U15: 25.344 | V15: 26.204 | W15: 14.914
A16: 16 | C16: Trade costs
A17: 17 | C17: Infrastructure | D17: 2.5 | E17: 3.53125 | F17: 3.53125 | G17: 6.2 | H17: 8.6 | I17: 4.7 | J17: 5.1 | K17: 8.6 | L17: 2.4 | M17: 7.1 | N17: 1.933333333 | O17: 4.1 | P17: 5.2 | Q17: 9.1 | R17: 8 | S17: 5.5 | T17: 8.4 | U17: 5.9 | V17: 5 | W17: 9
A18: 18 | C18: Logistics performance | D18: 2.56 | F18: 2.74 | G18: 3.53 | H18: 3.83 | I18: 3.08 | J18: 3.08 | K18: 3.91 | L18: 2.39 | M18: 3.59 | N18: 2.25 | O18: 2.83 | P18: 3 | Q18: 4 | R18: 3.67 | S18: 2.7 | T18: 3.72 | U18: 3.43 | V18: 3.15 | W18: 3.92
A19: 19 | C19: Corruption | D19: 1 | E19: 3 | F19: 1 | G19: 1 | H19: 4 | I19: 1.3 | J19: 1 | K19: 3 | L19: 1 | M19: 3 | N19: 1 | O19: 1.3 | P19: 1 | Q19: 5 | R19: 4 | S19: 2 | T19: 3 | U19: 2 | V19: 1 | W19: 4
A20: 20 | C20: Legal system | D20: 3 | E20: 1 | F20: 1 | G20: 1.3 | H20: 3.4 | I20: 3 | J20: 2 | K20: 4 | L20: 1 | M20: 3 | N20: 1 | O20: 2 | P20: 2 | Q20: 4 | R20: 3 | S20: =IF(ISNUMBER(INDEX(INDIRECT(S$3&"!"&"E"&$A20&":N"&$A20),MATCH(9.99999999999999E+307,INDIRECT(S$3&"!"&"E"&$A20&":N"&$A20)))),INDEX(INDIRECT(S$3&"!"&"E"&$A20&":N"&$A20),MATCH(9.99999999999999E+307,INDIRECT(S$3&"!"&"E"&$A20&":N"&$A20))),"") -> 3 | T20: 3.4 | U20: 2 | V20: 2 | W20: 4
A21: 21 | C21: Technological innovation | D21: =IF(ISNUMBER(INDEX(INDIRECT(D$3&"!"&"E"&$A21&":N"&$A21),MATCH(9.99999999999999E+307,INDIRECT(D$3&"!"&"E"&$A21&":N"&$A21)))),INDEX(INDIRECT(D$3&"!"&"E"&$A21&":N"&$A21),MATCH(9.99999999999999E+307,INDIRECT(D$3&"!"&"E"&$A21&":N"&$A21))),"") -> 3.5 | E21: 0 | F21: 0 | G21: 1.98 | H21: 0.75 | I21: 0.81 | J21: 0.08 | K21: 3.4 | L21: 0 | M21: 1.07 | N21: 0 | O21: 0.33 | P21: 0 | Q21: 0 | R21: 4.36 | S21: 0.16 | T21: 2.3 | U21: 0.25 | V21: 0.19 | W21: 2.79
A22: 22 | C22: Technological infrastructure | D22: 2 | F22: 3 | G22: 2 | H22: 2 | I22: 1 | J22: 3 | K22: 0 | L22: 3 | M22: 1 | N22: 4 | O22: 3 | P22: 1 | Q22: 0 | R22: 0 | S22: 2 | T22: 0 | U22: 2 | V22: 1 | W22: 0
A23: 23 | C23: Growth in labour force | D23: 0.259 | E23: -0.033 | F23: 0.023 | G23: -0.057 | H23: -0.061 | I23: 0.286 | J23: 0.238 | K23: -0.106 | L23: 0.068 | M23: 0.218 | N23: 0.033 | O23: 0.457 | P23: 0.346 | Q23: 0.092 | R23: -0.01 | S23: 0.064 | T23: -0.044 | U23: -0.034 | V23: 0.101 | W23: 0.06
A24: 24 | C24: Social pillar
A25: 25 | C25: Inequality (Gini coefficient) | D25: 32 | E25: 40.5 | F25: 30.76 | G25: 42.06 | H25: 53.7 | I25: 33.9 | J25: 35.6 | K25: 33.6 | L25: 37.9 | M25: 46.3 | N25: 38 | O25: 29.6 | P25: 43 | Q25: 47.8 | R25: 30.7 | S25: 38.6 | T25: 34.2 | U25: 39.3 | V25: 38.7 | W25: 39
A26: 26 | C26: Educational attainment | D26: 13.22793 | E26: 25.36182 | F26: 15.83411 | G26: 29.69645 | H26: 66.83704 | I26: 24.68669 | J26: 31.51226 | K26: 61.45932 | L26: 17.69779 | M26: 37.20023 | N26: 13.37805 | O26: 9.81827 | P26: 33.84203 | Q26: 90 | R26: 96.58497 | S26: 18.7629 | T26: 83.87723183 | U26: 51.23354 | V26: 24.58324 | W26: 89.08239
A27: 27 | C27: Labour standards | D27: 4 | E27: 1 | F27: 4 | G27: 3 | H27: 1 | I27: 4 | J27: 4 | K27: 1 | L27: 4 | M27: 2 | N27: 4 | O27: 4 | P27: 4 | Q27: 1 | R27: 1 | S27: 2 | T27: 1 | U27: 3 | V27: 3 | W27: 1
A28: 28 | C28: Political stability | D28: 3 | E28: 0 | F28: 3 | G28: 2 | H28: 2 | I28: 2 | J28: 2 | K28: 0 | L28: 1 | M28: 1 | N28: 3 | O28: 3 | P28: 3 | Q28: 1 | R28: 2 | S28: 3 | T28: 2 | U28: 3 | V28: 1 | W28: 0
A29: 29 | C29: Environmental pillar
A30: 30 | C30: Air pollution | D30: 29.62 | E30: 9.2 | F30: 9.59 | G30: 48 | H30: 15.37 | I30: 31.98 | J30: 9.21 | K30: 11.69 | L30: 21.14 | M30: 10.65 | N30: 14.12 | O30: 29.35 | P30: 6.68 | Q30: 5.16 | R30: 19.9 | S30: 9.17 | T30: 14.57 | U30: 14.6 | V30: 17.87 | W30: 7.47
A31: 31 | C31: Deforestation | D31: -2.8 | E31: -1.5 | F31: -13.7 | G31: -2.5 | H31: 0.2 | I31: -1.6 | J31: -5.5 | K31: -0.6 | L31: -4.3 | M31: -7.2 | N31: -2.6 | O31: -1.1 | P31: -1.9 | Q31: 0 | R31: -1.7 | S31: -1.7 | T31: -0.8 | U31: -2.5 | V31: -3.6 | W31: -4.1
A32: 32 | C32: Water pollution | D32: 0 | E32: =IF(ISNUMBER(INDEX(INDIRECT(E$3&"!"&"E"&$A32&":N"&$A32),MATCH(9.99999999999999E+307,INDIRECT(E$3&"!"&"E"&$A32&":N"&$A32)))),INDEX(INDIRECT(E$3&"!"&"E"&$A32&":N"&$A32),MATCH(9.99999999999999E+307,INDIRECT(E$3&"!"&"E"&$A32&":N"&$A32))),"") -> 37.84 | F32: 0 | G32: 18.17991224 | H32: 87.78688 | I32: 10.49 | J32: 0.02 | K32: 71.26 | L32: 0 | M32: 8.64 | N32: 0 | O32: 3.52 | P32: 0.53 | Q32: 99.65 | R32: 83.68 | S32: 0 | T32: 4.59 | U32: 16 | V32: 0.14 | W32: 63.67
A33: 33 | C33: Environmental standards in trade | D33: 3 | E33: 3 | F33: 5 | G33: 7 | H33: 7 | I33: 5 | J33: 5 | K33: 6 | L33: 4 | M33: 5 | N33: 3 | O33: 5 | P33: 6 | Q33: 5 | R33: 6 | S33: =IF(ISNUMBER(INDEX(INDIRECT(S$3&"!"&"E"&$A33&":N"&$A33),MATCH(9.99999999999999E+307,INDIRECT(S$3&"!"&"E"&$A33&":N"&$A33)))),INDEX(INDIRECT(S$3&"!"&"E"&$A33&":N"&$A33),MATCH(9.99999999999999E+307,INDIRECT(S$3&"!"&"E"&$A33&":N"&$A33))),"") -> 4 | T33: 1 | U33: 5 | V33: 5 | W33: 6
A34: 34 | C34: Carbon emissions in trade | D34: =IF(ISNUMBER(INDEX(INDIRECT(D$3&"!"&"E"&$A34&":N"&$A34),MATCH(9.99999999999999E+307,INDIRECT(D$3&"!"&"E"&$A34&":N"&$A34)))),INDEX(INDIRECT(D$3&"!"&"E"&$A34&":N"&$A34),MATCH(9.99999999999999E+307,INDIRECT(D$3&"!"&"E"&$A34&":N"&$A34))),"") -> 0.000576619 | E34: 0.000198807 | F34: 0.000157893 | G34: 0.001235593 | H34: 2.07632e-05 | I34: 0.001267273 | J34: 0.000722076 | K34: 0.000348008 | L34: 0.000136461 | M34: 0.000232448 | N34: 0.000336624 | O34: 0.001422755 | P34: 0.000391307 | Q34: 1.10187e-05 | R34: 0.000237077 | S34: 0.000304485 | T34: 0.00022695 | U34: 0.000317348 | V34: 0.000446519 | W34: 0.00068022
A35: 35 | C35: Share of natural resources in trade | D35: 0.070791049 | E35: 0.879658079 | F35: 0.105486428 | G35: 0.062638868 | H35: 0.086433671 | I35: 0.303998321 | J35: 0.599441571 | K35: 0.063178455 | L35: 0.732680149 | M35: 0.280923861 | N35: 0.830924702 | O35: 0.204835384 | P35: 0.162346574 | Q35: 0.161219523 | R35: 0.105734249 | S35: 0.285779643 | T35: 0.097734885 | U35: 0.247661981 | V35: 0.366843581 | W35: 0.176412633

Sheet iDateCollect (hidden)
D3: Bangladesh | E3: Brunei | F3: Cambodia | G3: China | H3: HongKong | I3: India | J3: Indonesia | K3: Japan | L3: Laos | M3: Malaysia | N3: Myanmar | O3: Pakistan | P3: Phillipines | Q3: Singapore | R3: SouthKorea | S3: SriLanka | T3: Taiwan | U3: Thailand | V3: Vietnam | W3: USA | Y3: All the same or not?
AB4: =MIN(Y6:Y35) -> 2006 | AC4: =MAX(Z6:Z35) -> 2014 | AD4: =IF(ISBLANK(AA4),IF(AB4=AC4,4,3),AA4) -> 3
C5: Economic pillar | AB5: =MIN(Y6:Y15,Y21:Y23) -> 2006 | AC5: =MAX(Z7:Z36) -> 2014 | AD5: =IF(ISBLANK(AA5),IF(AB5=AC5,4,3),AA5) -> 3
A6: 6 | C6: Real personal disposable income | D6: =IF(ISNUMBER(INDEX(INDIRECT(D$3&"!"&"E4:N4"),MATCH(9.99999999999999E+307,INDIRECT(D$3&"!"&"E"&$A6&":N"&$A6)))),INDEX(INDIRECT(D$3&"!"&"E4:N4"),MATCH(9.99999999999999E+307,INDIRECT(D$3&"!"&"E"&$A6&":N"&$A6))),"") ->  | G6: 2014 | H6: 2014 | I6: 2014 | J6: 2014 | K6: 2014 | M6: 2014 | N6: 2014 | O6: 2014 | P6: 2014 | Q6: 2014 | R6: 2014 | S6: 2014 | T6: 2014 | U6: 2014 | V6: 2014 | W6: 2014 | Y6: =MIN(D6:W6) -> 2014 | Z6: =MAX(D6:W6) -> 2014 | AA6: =IF(Z6=Y6,1,2) -> 1 | AD6: 1
A7: 7 | C7: Current account liberalisation | D7: 2014 | E7: 2014 | F7: 2014 | G7: 2014 | H7: 2014 | I7: 2014 | J7: 2014 | K7: 2014 | L7: 2014 | M7: 2014 | N7: 2014 | O7: 2014 | P7: 2014 | Q7: 2014 | R7: 2014 | S7: 2014 | T7: 2014 | U7: 2014 | V7: 2014 | W7: 2014 | Y7: =MIN(D7:W7) -> 2014 | Z7: =MAX(D7:W7) -> 2014 | AA7: =IF(Z7=Y7,1,2) -> 1 | AD7: 1
A8: 8 | C8: Tariff & non-tariff barriers | D8: 2014 | E8: 2014 | F8: 2014 | G8: 2014 | H8: 2014 | I8: 2014 | J8: 2014 | K8: 2014 | L8: 2014 | M8: 2014 | N8: 2014 | O8: 2014 | P8: 2014 | Q8: 2014 | R8: 2014 | S8: 2014 | T8: 2014 | U8: 2014 | V8: 2014 | W8: 2014 | Y8: 2014 | Z8: 2014 | AA8: 1 | AD8: 1
A9: 9 | C9: Exchange rate volatility | D9: 2014 | E9: 2014 | F9: 2014 | G9: 2014 | H9: 2014 | I9: 2014 | J9: 2014 | K9: 2014 | L9: 2014 | M9: 2014 | N9: 2014 | O9: 2014 | P9: 2014 | Q9: 2014 | R9: 2014 | S9: 2014 | T9: 2014 | U9: 2014 | V9: 2014 | W9: 2014 | Y9: 2014 | Z9: 2014 | AA9: 1 | AD9: 1
A10: 10 | C10: Financial sector depth | D10: 2014 | E10: 2014 | F10: 2014 | G10: 2014 | H10: 2014 | I10: 2014 | J10: 2014 | K10: 2014 | L10: 2010 | M10: 2014 | N10: 2013 | O10: 2014 | P10: 2014 | Q10: 2014 | R10: 2014 | S10: 2014 | T10: 2014 | U10: 2014 | V10: 2014 | W10: 2014 | Y10: 2010 | Z10: 2014 | AA10: 2 | AD10: 2
A11: 11 | C11: Foreign trade and payments risk | D11: 2014 | E11: 2014 | F11: 2014 | G11: 2014 | H11: 2014 | I11: 2014 | J11: 2014 | K11: 2014 | L11: 2014 | M11: 2014 | N11: 2014 | O11: 2014 | P11: 2014 | Q11: 2014 | R11: 2014 | S11: 2014 | T11: 2014 | U11: 2014 | V11: 2014 | W11: 2014 | Y11: 2014 | Z11: 2014 | AA11: 1 | AD11: 1
A12: 12 | C12: Export market concentration | D12: 2014 | F12: 2014 | G12: 2014 | H12: 2014 | I12: 2014 | J12: 2014 | K12: 2014 | L12: 2014 | M12: 2014 | N12: 2014 | O12: 2014 | P12: 2014 | Q12: 2014 | R12: 2014 | S12: 2014 | T12: 2014 | U12: 2014 | V12: 2014 | W12: 2014 | Y12: 2014 | Z12: 2014 | AA12: 1 | AD12: 1
A13: 13 | C13: Export product concentration | D13: 2014 | F13: 2014 | G13: 2014 | H13: 2014 | I13: 2014 | J13: 2014 | K13: 2014 | L13: 2006 | M13: 2014 | N13: 2014 | O13: 2014 | P13: 2014 | Q13: 2014 | R13: 2014 | S13: 2014 | T13: 2014 | U13: 2014 | V13: 2014 | W13: 2014 | Y13: 2006 | Z13: 2014 | AA13: 2 | AD13: 2
A14: 14 | C14: Foreign Direct Investment | D14: 2014 | E14: 2011 | F14: 2014 | G14: 2014 | H14: 2014 | I14: 2014 | J14: 2014 | K14: 2014 | L14: 2014 | M14: 2014 | N14: 2014 | O14: 2014 | P14: 2014 | Q14: 2014 | R14: 2014 | S14: 2014 | T14: 2014 | U14: 2014 | V14: 2014 | W14: 2014 | Y14: 2011 | Z14: 2014 | AA14: 2 | AD14: 2
A15: 15 | C15: Gross fixed capital formation | D15: 2014 | E15: 2014 | F15: 2014 | G15: 2014 | H15: 2014 | I15: 2014 | J15: 2014 | K15: 2014 | L15: 2014 | M15: 2014 | N15: 2014 | O15: 2014 | P15: 2014 | Q15: 2014 | R15: 2014 | S15: 2014 | T15: 2014 | U15: 2014 | V15: 2014 | W15: 2014 | Y15: 2014 | Z15: 2014 | AA15: 1 | AD15: 1
A16: 16 | C16: Trade costs | AB16: =MIN(Y17:Y20) -> 2014 | AC16: =MAX(Z17:Z20) -> 2014 | AD16: 4
A17: 17 | C17: Infrastructure | D17: 2014 | E17: 2014 | F17: 2014 | G17: 2014 | H17: 2014 | I17: 2014 | J17: 2014 | K17: 2014 | L17: 2014 | M17: 2014 | N17: 2014 | O17: 2014 | P17: 2014 | Q17: 2014 | R17: 2014 | S17: 2014 | T17: 2014 | U17: 2014 | V17: 2014 | W17: 2014 | Y17: 2014 | Z17: 2014 | AA17: 1 | AD17: 1
A18: 18 | C18: Border procedures | D18: 2014 | F18: 2014 | G18: 2014 | H18: 2014 | I18: 2014 | J18: 2014 | K18: 2014 | L18: 2014 | M18: 2014 | N18: 2014 | O18: 2014 | P18: 2014 | Q18: 2014 | R18: 2014 | S18: =IF(ISNUMBER(INDEX(INDIRECT(S$3&"!"&"E4:N4"),MATCH(9.99999999999999E+307,INDIRECT(S$3&"!"&"E"&$A18&":N"&$A18)))),INDEX(INDIRECT(S$3&"!"&"E4:N4"),MATCH(9.99999999999999E+307,INDIRECT(S$3&"!"&"E"&$A18&":N"&$A18))),"") -> 2014 | T18: 2014 | U18: 2014 | V18: 2014 | W18: 2014 | Y18: 2014 | Z18: 2014 | AA18: 1 | AD18: 1
A19: 19 | C19: Corruption | D19: =IF(ISNUMBER(INDEX(INDIRECT(D$3&"!"&"E4:N4"),MATCH(9.99999999999999E+307,INDIRECT(D$3&"!"&"E"&$A19&":N"&$A19)))),INDEX(INDIRECT(D$3&"!"&"E4:N4"),MATCH(9.99999999999999E+307,INDIRECT(D$3&"!"&"E"&$A19&":N"&$A19))),"") -> 2014 | E19: 2014 | F19: 2014 | G19: 2014 | H19: 2014 | I19: 2014 | J19: 2014 | K19: 2014 | L19: 2014 | M19: 2014 | N19: 2014 | O19: 2014 | P19: 2014 | Q19: 2014 | R19: 2014 | S19: 2014 | T19: 2014 | U19: 2014 | V19: 2014 | W19: 2014 | Y19: 2014 | Z19: 2014 | AA19: 1 | AD19: 1
A20: 20 | C20: Legal system | D20: 2014 | E20: 2014 | F20: 2014 | G20: 2014 | H20: 2014 | I20: 2014 | J20: 2014 | K20: 2014 | L20: 2014 | M20: 2014 | N20: 2014 | O20: 2014 | P20: 2014 | Q20: 2014 | R20: 2014 | S20: 2014 | T20: 2014 | U20: 2014 | V20: 2014 | W20: 2014 | Y20: 2014 | Z20: 2014 | AA20: 1 | AD20: 1
A21: 21 | C21: Technological innovation | D21: 2012 | E21: 2014 | F21: 2014 | G21: 2012 | H21: 2010 | I21: 2011 | J21: 2009 | K21: 2012 | L21: 2014 | M21: 2011 | N21: 2014 | O21: 2011 | P21: 2014 | Q21: 2014 | R21: 2012 | S21: 2010 | T21: 2011 | U21: 2009 | V21: 2010 | W21: 2012 | Y21: 2009 | Z21: 2014 | AA21: 2 | AD21: 2
A22: 22 | C22: Technological infrastructure | D22: 2014 | F22: 2014 | G22: 2014 | H22: 2014 | I22: 2014 | J22: 2014 | K22: 2014 | L22: 2014 | M22: 2014 | N22: 2014 | O22: 2014 | P22: 2014 | Q22: 2014 | R22: 2014 | S22: 2014 | T22: 2014 | U22: 2014 | V22: 2014 | W22: 2014 | Y22: 2014 | Z22: 2014 | AA22: 1 | AD22: 1
A23: 23 | C23: Working age population | D23: 2014 | E23: 2014 | F23: 2014 | G23: 2014 | H23: 2014 | I23: 2014 | J23: 2014 | K23: 2014 | L23: 2014 | M23: 2014 | N23: 2014 | O23: 2014 | P23: 2014 | Q23: 2014 | R23: 2014 | S23: 2014 | T23: 2014 | U23: 2014 | V23: 2014 | W23: 2014 | Y23: 2014 | Z23: 2014 | AA23: 1 | AD23: 1
A24: 24 | C24: Social pillar | AB24: =MIN(Y25:Y28) -> 2009 | AC24: =MAX(Z25:Z28) -> 2014 | AD24: 3
A25: 25 | C25: Inequality (Gini coefficient) | D25: 2010 | E25: 2013 | F25: 2012 | G25: 2010 | H25: 2011 | I25: 2009 | J25: 2010 | K25: 2009 | L25: 2012 | M25: 2009 | N25: 2009 | O25: 2010 | P25: 2012 | Q25: 2011 | R25: 2011 | S25: 2012 | T25: 2011 | U25: 2012 | V25: 2012 | W25: 2012 | Y25: 2009 | Z25: 2013 | AA25: 2 | AD25: 2
A26: 26 | C26: Educational attainment | D26: 2012 | E26: 2013 | F26: 2011 | G26: 2013 | H26: 2013 | I26: 2013 | J26: 2012 | K26: 2012 | L26: 2013 | M26: 2012 | N26: 2012 | O26: 2013 | P26: 2013 | Q26: 2014 | R26: 2014 | S26: 2013 | T26: 2014 | U26: 2013 | V26: 2013 | W26: 2013 | Y26: 2011 | Z26: 2014 | AA26: 2 | AD26: 2
A27: 27 | C27: Labour standards | D27: 2014 | E27: 2014 | F27: 2014 | G27: 2014 | H27: 2014 | I27: 2014 | J27: 2014 | K27: 2014 | L27: 2014 | M27: 2014 | N27: 2014 | O27: 2014 | P27: 2014 | Q27: 2014 | R27: 2014 | S27: 2014 | T27: 2014 | U27: 2014 | V27: 2014 | W27: 2014 | Y27: 2014 | Z27: 2014 | AA27: 1 | AD27: 1
A28: 28 | C28: Political stability | D28: 2014 | E28: 2014 | F28: 2014 | G28: 2014 | H28: 2014 | I28: 2014 | J28: 2014 | K28: 2014 | L28: 2014 | M28: 2014 | N28: 2014 | O28: 2014 | P28: 2014 | Q28: 2014 | R28: 2014 | S28: 2014 | T28: 2014 | U28: 2014 | V28: 2014 | W28: 2014 | Y28: 2014 | Z28: 2014 | AA28: 1 | AD28: 1
A29: 29 | C29: Environmental pillar | AB29: =MIN(Y30:Y35) -> 2011 | AC29: =MAX(Z30:Z35) -> 2014 | AD29: 3
A30: 30 | C30: Air pollution | D30: 2012 | E30: 2012 | F30: 2012 | G30: 2012 | H30: 2012 | I30: 2012 | J30: 2012 | K30: 2012 | L30: 2012 | M30: 2012 | N30: 2012 | O30: 2012 | P30: 2012 | Q30: 2012 | R30: 2012 | S30: 2012 | T30: 2012 | U30: 2012 | V30: 2012 | W30: 2012 | Y30: 2012 | Z30: 2012 | AA30: 1 | AD30: 1
A31: 31 | C31: Deforestation | D31: 2012 | E31: 2012 | F31: 2012 | G31: 2012 | H31: 2012 | I31: 2012 | J31: 2012 | K31: 2012 | L31: 2012 | M31: 2012 | N31: 2012 | O31: 2012 | P31: 2012 | Q31: 2012 | R31: 2012 | S31: =IF(ISNUMBER(INDEX(INDIRECT(S$3&"!"&"E4:N4"),MATCH(9.99999999999999E+307,INDIRECT(S$3&"!"&"E"&$A31&":N"&$A31)))),INDEX(INDIRECT(S$3&"!"&"E4:N4"),MATCH(9.99999999999999E+307,INDIRECT(S$3&"!"&"E"&$A31&":N"&$A31))),"") -> 2012 | T31: 2012 | U31: 2012 | V31: 2012 | W31: 2012 | Y31: 2012 | Z31: 2012 | AA31: 1 | AD31: 1
A32: 32 | C32: Water pollution | D32: =IF(ISNUMBER(INDEX(INDIRECT(D$3&"!"&"E4:N4"),MATCH(9.99999999999999E+307,INDIRECT(D$3&"!"&"E"&$A32&":N"&$A32)))),INDEX(INDIRECT(D$3&"!"&"E4:N4"),MATCH(9.99999999999999E+307,INDIRECT(D$3&"!"&"E"&$A32&":N"&$A32))),"") -> 2012 | E32: 2012 | F32: 2012 | G32: 2012 | H32: 2012 | I32: 2012 | J32: 2012 | K32: 2012 | L32: 2012 | M32: 2012 | N32: 2012 | O32: 2012 | P32: 2012 | Q32: 2012 | R32: 2012 | S32: 2012 | T32: 2012 | U32: 2012 | V32: 2012 | W32: 2012 | Y32: 2012 | Z32: 2012 | AA32: 1 | AD32: 1
A33: 33 | C33: Environmental standards in trade | D33: 2014 | E33: 2014 | F33: 2014 | G33: 2014 | H33: 2014 | I33: 2014 | J33: 2014 | K33: 2014 | L33: 2014 | M33: 2014 | N33: 2014 | O33: 2014 | P33: 2014 | Q33: 2014 | R33: 2014 | S33: 2014 | T33: 2014 | U33: 2014 | V33: 2014 | W33: 2014 | Y33: 2014 | Z33: 2014 | AA33: 1 | AD33: 1
A34: 34 | C34: Carbon emissions in trade | D34: 2011 | E34: 2012 | F34: 2014 | G34: 2014 | H34: 2014 | I34: 2014 | J34: 2014 | K34: 2014 | L34: 2014 | M34: 2014 | N34: 2014 | O34: 2014 | P34: 2014 | Q34: 2014 | R34: 2014 | S34: 2014 | T34: 2014 | U34: 2014 | V34: 2014 | W34: 2014 | Y34: 2011 | Z34: 2014 | AA34: 2 | AD34: 2
A35: 35 | C35: Share of natural resources in trade | D35: 2011 | E35: 2012 | F35: 2014 | G35: 2014 | H35: 2014 | I35: 2014 | J35: 2014 | K35: 2014 | L35: 2014 | M35: 2014 | N35: 2014 | O35: 2014 | P35: 2014 | Q35: 2014 | R35: 2014 | S35: 2014 | T35: 2014 | U35: 2014 | V35: 2014 | W35: 2014 | Y35: 2011 | Z35: 2014 | AA35: 2 | AD35: 2

Sheet Home (hidden)
B20: Zoom | J20: Full screen
B21: Select a zoom level appropriate for your display.
J22: To maximise the viewing area, click for Full-Screen mode.
J23: Press Escape to return to normal display mode.
B24: Selected zoom will be applied to all worksheets except this one.
B33: PRODUCTION

Sheet 1. Map
B6: =IF(uxb_works!$B$14=1,uxb_works!Z14,uxb_works!AA14) -> 1) ECONOMIC PILLAR
B7: =IF(uxb_works!$B$14=1,"",uxb_works!Z14) -> 1.11) Current account liberalisation | L7: =IF(uxb_works!$B$6=1,"No Country Highlighted","SELECTED COUNTRY") -> No Country Highlighted
J8: =iMap_Rank!C9 -> Click on map or select from the country highlight drop down box
B39: BEST ENVIRONMENT | E39: GOOD ENVIRONMENT | H39: MODERATE ENVIRONMENT | K39: NEEDS IMPROVEMENT
B40: =iMap_Rank!AN15 -> Score 75.1 to 100 | E40: =iMap_Rank!AQ15 -> Score 50.1 to 75 | H40: =iMap_Rank!AT15 -> Score 25.1 to 50 | K40: =iMap_Rank!AW15 -> Score 0 to 25
A41: =iMap_Rank!AM19 -> 1 | B41: =iMap_Rank!AN19 -> Brunei | C41: =iMap_Rank!AO19 -> 100 | D41: =iMap_Rank!AP19 -> 1 | E41: =iMap_Rank!AQ19 -> Bangladesh | F41: =iMap_Rank!AR19 -> 75 | G41: =iMap_Rank!AS19 -> 1 | H41: =iMap_Rank!AT19 -> Pakistan | I41: =iMap_Rank!AU19 -> 50 | J41: =iMap_Rank!AV19 -> 0 | K41: =iMap_Rank!AW19 ->  | L41: =iMap_Rank!AX19 -> 
A42: =iMap_Rank!AM20 -> 1 | B42: =iMap_Rank!AN20 -> Cambodia | C42: =iMap_Rank!AO20 -> 100 | D42: =iMap_Rank!AP20 -> 1 | E42: =iMap_Rank!AQ20 -> India | F42: =iMap_Rank!AR20 -> 75 | G42: =iMap_Rank!AS20 -> 0 | H42: =iMap_Rank!AT20 ->  | I42: =iMap_Rank!AU20 ->  | J42: =iMap_Rank!AV20 -> 0 | K42: =iMap_Rank!AW20 ->  | L42: =iMap_Rank!AX20 -> 
A43: =iMap_Rank!AM21 -> 1 | B43: =iMap_Rank!AN21 -> Hong Kong | C43: =iMap_Rank!AO21 -> 100 | D43: =iMap_Rank!AP21 -> 1 | E43: =iMap_Rank!AQ21 -> Indonesia | F43: =iMap_Rank!AR21 -> 75 | G43: =iMap_Rank!AS21 -> 0 | H43: =iMap_Rank!AT21 ->  | I43: =iMap_Rank!AU21 ->  | J43: =iMap_Rank!AV21 -> 0 | K43: =iMap_Rank!AW21 ->  | L43: =iMap_Rank!AX21 -> 
A44: =iMap_Rank!AM22 -> 1 | B44: =iMap_Rank!AN22 -> Japan | C44: =iMap_Rank!AO22 -> 100 | D44: =iMap_Rank!AP22 -> 1 | E44: =iMap_Rank!AQ22 -> Myanmar | F44: =iMap_Rank!AR22 -> 75 | G44: =iMap_Rank!AS22 -> 0 | H44: =iMap_Rank!AT22 ->  | I44: =iMap_Rank!AU22 ->  | J44: =iMap_Rank!AV22 -> 0 | K44: =iMap_Rank!AW22 ->  | L44: =iMap_Rank!AX22 -> 
A45: =iMap_Rank!AM23 -> 1 | B45: =iMap_Rank!AN23 -> Laos | C45: =iMap_Rank!AO23 -> 100 | D45: =iMap_Rank!AP23 -> 0 | E45: =iMap_Rank!AQ23 ->  | F45: =iMap_Rank!AR23 ->  | G45: =iMap_Rank!AS23 -> 0 | H45: =iMap_Rank!AT23 ->  | I45: =iMap_Rank!AU23 ->  | J45: =iMap_Rank!AV23 -> 0 | K45: =iMap_Rank!AW23 ->  | L45: =iMap_Rank!AX23 -> 
A46: =iMap_Rank!AM24 -> 1 | B46: =iMap_Rank!AN24 -> Malaysia | C46: =iMap_Rank!AO24 -> 100 | D46: =iMap_Rank!AP24 -> 0 | E46: =iMap_Rank!AQ24 ->  | F46: =iMap_Rank!AR24 ->  | G46: =iMap_Rank!AS24 -> 0 | H46: =iMap_Rank!AT24 ->  | I46: =iMap_Rank!AU24 ->  | J46: =iMap_Rank!AV24 -> 0 | K46: =iMap_Rank!AW24 ->  | L46: =iMap_Rank!AX24 -> 
A47: =iMap_Rank!AM25 -> 1 | B47: =iMap_Rank!AN25 -> Singapore | C47: =iMap_Rank!AO25 -> 100 | D47: =iMap_Rank!AP25 -> 0 | E47: =iMap_Rank!AQ25 ->  | F47: =iMap_Rank!AR25 ->  | G47: =iMap_Rank!AS25 -> 0 | H47: =iMap_Rank!AT25 ->  | I47: =iMap_Rank!AU25 ->  | J47: =iMap_Rank!AV25 -> 0 | K47: =iMap_Rank!AW25 ->  | L47: =iMap_Rank!AX25 -> 
A48: =iMap_Rank!AM26 -> 1 | B48: =iMap_Rank!AN26 -> Sri Lanka | C48: =iMap_Rank!AO26 -> 100 | D48: =iMap_Rank!AP26 -> 0 | E48: =iMap_Rank!AQ26 ->  | F48: =iMap_Rank!AR26 ->  | G48: =iMap_Rank!AS26 -> 0 | H48: =iMap_Rank!AT26 ->  | I48: =iMap_Rank!AU26 ->  | J48: =iMap_Rank!AV26 -> 0 | K48: =iMap_Rank!AW26 ->  | L48: =iMap_Rank!AX26 -> 
A49: =iMap_Rank!AM27 -> 1 | B49: =iMap_Rank!AN27 -> Taiwan | C49: =iMap_Rank!AO27 -> 100 | D49: =iMap_Rank!AP27 -> 0 | E49: =iMap_Rank!AQ27 ->  | F49: =iMap_Rank!AR27 ->  | G49: =iMap_Rank!AS27 -> 0 | H49: =iMap_Rank!AT27 ->  | I49: =iMap_Rank!AU27 ->  | J49: =iMap_Rank!AV27 -> 0 | K49: =iMap_Rank!AW27 ->  | L49: =iMap_Rank!AX27 -> 
A50: =iMap_Rank!AM28 -> 1 | B50: =iMap_Rank!AN28 -> Thailand | C50: =iMap_Rank!AO28 -> 100 | D50: =iMap_Rank!AP28 -> 0 | E50: =iMap_Rank!AQ28 ->  | F50: =iMap_Rank!AR28 ->  | G50: =iMap_Rank!AS28 -> 0 | H50: =iMap_Rank!AT28 ->  | I50: =iMap_Rank!AU28 ->  | J50: =iMap_Rank!AV28 -> 0 | K50: =iMap_Rank!AW28 ->  | L50: =iMap_Rank!AX28 -> 
A51: =iMap_Rank!AM29 -> 1 | B51: =iMap_Rank!AN29 -> Vietnam | C51: =iMap_Rank!AO29 -> 100 | D51: =iMap_Rank!AP29 -> 0 | E51: =iMap_Rank!AQ29 ->  | F51: =iMap_Rank!AR29 ->  | G51: =iMap_Rank!AS29 -> 0 | H51: =iMap_Rank!AT29 ->  | I51: =iMap_Rank!AU29 ->  | J51: =iMap_Rank!AV29 -> 0 | K51: =iMap_Rank!AW29 ->  | L51: =iMap_Rank!AX29 -> 
A52: =iMap_Rank!AM30 -> 1 | B52: =iMap_Rank!AN30 -> USA | C52: =iMap_Rank!AO30 -> 100 | D52: =iMap_Rank!AP30 -> 0 | E52: =iMap_Rank!AQ30 ->  | F52: =iMap_Rank!AR30 ->  | G52: =iMap_Rank!AS30 -> 0 | H52: =iMap_Rank!AT30 ->  | I52: =iMap_Rank!AU30 ->  | J52: =iMap_Rank!AV30 -> 0 | K52: =iMap_Rank!AW30 ->  | L52: =iMap_Rank!AX30 -> 
A53: =iMap_Rank!AM31 -> 1 | B53: =iMap_Rank!AN31 -> China | C53: =iMap_Rank!AO31 -> 85 | D53: =iMap_Rank!AP31 -> 0 | E53: =iMap_Rank!AQ31 ->  | F53: =iMap_Rank!AR31 ->  | G53: =iMap_Rank!AS31 -> 0 | H53: =iMap_Rank!AT31 ->  | I53: =iMap_Rank!AU31 ->  | J53: =iMap_Rank!AV31 -> 0 | K53: =iMap_Rank!AW31 ->  | L53: =iMap_Rank!AX31 -> 
A54: =iMap_Rank!AM32 -> 1 | B54: =iMap_Rank!AN32 -> Philippines | C54: =iMap_Rank!AO32 -> 85 | D54: =iMap_Rank!AP32 -> 0 | E54: =iMap_Rank!AQ32 ->  | F54: =iMap_Rank!AR32 ->  | G54: =iMap_Rank!AS32 -> 0 | H54: =iMap_Rank!AT32 ->  | I54: =iMap_Rank!AU32 ->  | J54: =iMap_Rank!AV32 -> 0 | K54: =iMap_Rank!AW32 ->  | L54: =iMap_Rank!AX32 -> 
A55: =iMap_Rank!AM33 -> 1 | B55: =iMap_Rank!AN33 -> South Korea | C55: =iMap_Rank!AO33 -> 85 | D55: =iMap_Rank!AP33 -> 0 | E55: =iMap_Rank!AQ33 ->  | F55: =iMap_Rank!AR33 ->  | G55: =iMap_Rank!AS33 -> 0 | H55: =iMap_Rank!AT33 ->  | I55: =iMap_Rank!AU33 ->  | J55: =iMap_Rank!AV33 -> 0 | K55: =iMap_Rank!AW33 ->  | L55: =iMap_Rank!AX33 -> 
A56: =iMap_Rank!AM34 -> 0 | B56: =iMap_Rank!AN34 ->  | C56: =iMap_Rank!AO34 ->  | D56: =iMap_Rank!AP34 -> 0 | E56: =iMap_Rank!AQ34 ->  | F56: =iMap_Rank!AR34 ->  | G56: =iMap_Rank!AS34 -> 0 | H56: =iMap_Rank!AT34 ->  | I56: =iMap_Rank!AU34 ->  | J56: =iMap_Rank!AV34 -> 0 | K56: =iMap_Rank!AW34 ->  | L56: =iMap_Rank!AX34 -> 
A57: =iMap_Rank!AM35 -> 0 | B57: =iMap_Rank!AN35 ->  | C57: =iMap_Rank!AO35 ->  | D57: =iMap_Rank!AP35 -> 0 | E57: =iMap_Rank!AQ35 ->  | F57: =iMap_Rank!AR35 ->  | G57: =iMap_Rank!AS35 -> 0 | H57: =iMap_Rank!AT35 ->  | I57: =iMap_Rank!AU35 ->  | J57: =iMap_Rank!AV35 -> 0 | K57: =iMap_Rank!AW35 ->  | L57: =iMap_Rank!AX35 -> 
A58: =iMap_Rank!AM36 -> 0 | B58: =iMap_Rank!AN36 ->  | C58: =iMap_Rank!AO36 ->  | D58: =iMap_Rank!AP36 -> 0 | E58: =iMap_Rank!AQ36 ->  | F58: =iMap_Rank!AR36 ->  | G58: =iMap_Rank!AS36 -> 0 | H58: =iMap_Rank!AT36 ->  | I58: =iMap_Rank!AU36 ->  | J58: =iMap_Rank!AV36 -> 0 | K58: =iMap_Rank!AW36 ->  | L58: =iMap_Rank!AX36 -> 
A59: =iMap_Rank!AM37 -> 0 | B59: =iMap_Rank!AN37 ->  | C59: =iMap_Rank!AO37 ->  | D59: =iMap_Rank!AP37 -> 0 | E59: =iMap_Rank!AQ37 ->  | F59: =iMap_Rank!AR37 ->  | G59: =iMap_Rank!AS37 -> 0 | H59: =iMap_Rank!AT37 ->  | I59: =iMap_Rank!AU37 ->  | J59: =iMap_Rank!AV37 -> 0 | K59: =iMap_Rank!AW37 ->  | L59: =iMap_Rank!AX37 -> 
A60: =iMap_Rank!AM38 -> 0 | B60: =iMap_Rank!AN38 ->  | C60: =iMap_Rank!AO38 ->  | D60: =iMap_Rank!AP38 -> 0 | E60: =iMap_Rank!AQ38 ->  | F60: =iMap_Rank!AR38 ->  | G60: =iMap_Rank!AS38 -> 0 | H60: =iMap_Rank!AT38 ->  | I60: =iMap_Rank!AU38 ->  | J60: =iMap_Rank!AV38 -> 0 | K60: =iMap_Rank!AW38 ->  | L60: =iMap_Rank!AX38 -> 
A61: =iMap_Rank!AM39 -> 0 | B61: =iMap_Rank!AN39 -> 0 | C61: =iMap_Rank!AO39 -> 0 | D61: =iMap_Rank!AP39 -> 0 | E61: =iMap_Rank!AQ39 -> 0 | F61: =iMap_Rank!AR39 -> 0 | G61: =iMap_Rank!AS39 -> 0 | H61: =iMap_Rank!AT39 -> 0 | I61: =iMap_Rank!AU39 -> 0 | J61: =iMap_Rank!AV39 -> 0 | K61: =iMap_Rank!AW39 -> 0 | L61: =iMap_Rank!AX39 -> 0
A62: =iMap_Rank!AM40 -> 0 | B62: =iMap_Rank!AN40 -> 0 | C62: =iMap_Rank!AO40 -> 0 | D62: =iMap_Rank!AP40 -> 0 | E62: =iMap_Rank!AQ40 -> 0 | F62: =iMap_Rank!AR40 -> 0 | G62: =iMap_Rank!AS40 -> 0 | H62: =iMap_Rank!AT40 -> 0 | I62: =iMap_Rank!AU40 -> 0 | J62: =iMap_Rank!AV40 -> 0 | K62: =iMap_Rank!AW40 -> 0 | L62: =iMap_Rank!AX40 -> 0
A63: =iMap_Rank!AM41 -> 0 | B63: =iMap_Rank!AN41 -> 0 | C63: =iMap_Rank!AO41 -> 0 | D63: =iMap_Rank!AP41 -> 0 | E63: =iMap_Rank!AQ41 -> 0 | F63: =iMap_Rank!AR41 -> 0 | G63: =iMap_Rank!AS41 -> 0 | H63: =iMap_Rank!AT41 -> 0 | I63: =iMap_Rank!AU41 -> 0 | J63: =iMap_Rank!AV41 -> 0 | K63: =iMap_Rank!AW41 -> 0 | L63: =iMap_Rank!AX41 -> 0
A64: =iMap_Rank!AM42 -> 0 | B64: =iMap_Rank!AN42 -> 0 | C64: =iMap_Rank!AO42 -> 0 | D64: =iMap_Rank!AP42 -> 0 | E64: =iMap_Rank!AQ42 -> 0 | F64: =iMap_Rank!AR42 -> 0 | G64: =iMap_Rank!AS42 -> 0 | H64: =iMap_Rank!AT42 -> 0 | I64: =iMap_Rank!AU42 -> 0 | J64: =iMap_Rank!AV42 -> 0 | K64: =iMap_Rank!AW42 -> 0 | L64: =iMap_Rank!AX42 -> 0
A65: =iMap_Rank!AM43 -> 0 | B65: =iMap_Rank!AN43 -> 0 | C65: =iMap_Rank!AO43 -> 0 | D65: =iMap_Rank!AP43 -> 0 | E65: =iMap_Rank!AQ43 -> 0 | F65: =iMap_Rank!AR43 -> 0 | G65: =iMap_Rank!AS43 -> 0 | H65: =iMap_Rank!AT43 -> 0 | I65: =iMap_Rank!AU43 -> 0 | J65: =iMap_Rank!AV43 -> 0 | K65: =iMap_Rank!AW43 -> 0 | L65: =iMap_Rank!AX43 -> 0
A66: =iMap_Rank!AM44 -> 0 | B66: =iMap_Rank!AN44 -> 0 | C66: =iMap_Rank!AO44 -> 0 | D66: =iMap_Rank!AP44 -> 0 | E66: =iMap_Rank!AQ44 -> 0 | F66: =iMap_Rank!AR44 -> 0 | G66: =iMap_Rank!AS44 -> 0 | H66: =iMap_Rank!AT44 -> 0 | I66: =iMap_Rank!AU44 -> 0 | J66: =iMap_Rank!AV44 -> 0 | K66: =iMap_Rank!AW44 -> 0 | L66: =iMap_Rank!AX44 -> 0
A67: =iMap_Rank!AM45 -> 0 | B67: =iMap_Rank!AN45 -> 0 | C67: =iMap_Rank!AO45 -> 0 | D67: =iMap_Rank!AP45 -> 0 | E67: =iMap_Rank!AQ45 -> 0 | F67: =iMap_Rank!AR45 -> 0 | G67: =iMap_Rank!AS45 -> 0 | H67: =iMap_Rank!AT45 -> 0 | I67: =iMap_Rank!AU45 -> 0 | J67: =iMap_Rank!AV45 -> 0 | K67: =iMap_Rank!AW45 -> 0 | L67: =iMap_Rank!AX45 -> 0
A68: =iMap_Rank!AM46 -> 0 | B68: =iMap_Rank!AN46 -> 0 | C68: =iMap_Rank!AO46 -> 0 | D68: =iMap_Rank!AP46 -> 0 | E68: =iMap_Rank!AQ46 -> 0 | F68: =iMap_Rank!AR46 -> 0 | G68: =iMap_Rank!AS46 -> 0 | H68: =iMap_Rank!AT46 -> 0 | I68: =iMap_Rank!AU46 -> 0 | J68: =iMap_Rank!AV46 -> 0 | K68: =iMap_Rank!AW46 -> 0 | L68: =iMap_Rank!AX46 -> 0
A69: =iMap_Rank!AM47 -> 0 | B69: =iMap_Rank!AN47 -> 0 | C69: =iMap_Rank!AO47 -> 0 | D69: =iMap_Rank!AP47 -> 0 | E69: =iMap_Rank!AQ47 -> 0 | F69: =iMap_Rank!AR47 -> 0 | G69: =iMap_Rank!AS47 -> 0 | H69: =iMap_Rank!AT47 -> 0 | I69: =iMap_Rank!AU47 -> 0 | J69: =iMap_Rank!AV47 -> 0 | K69: =iMap_Rank!AW47 -> 0 | L69: =iMap_Rank!AX47 -> 0
A70: =iMap_Rank!AM48 -> 0 | B70: =iMap_Rank!AN48 -> 0 | C70: =iMap_Rank!AO48 -> 0 | D70: =iMap_Rank!AP48 -> 0 | E70: =iMap_Rank!AQ48 -> 0 | F70: =iMap_Rank!AR48 -> 0 | G70: =iMap_Rank!AS48 -> 0 | H70: =iMap_Rank!AT48 -> 0 | I70: =iMap_Rank!AU48 -> 0 | J70: =iMap_Rank!AV48 -> 0 | K70: =iMap_Rank!AW48 -> 0 | L70: =iMap_Rank!AX48 -> 0
A71: =iMap_Rank!AM49 -> 0 | B71: =iMap_Rank!AN49 -> 0 | C71: =iMap_Rank!AO49 -> 0 | D71: =iMap_Rank!AP49 -> 0 | E71: =iMap_Rank!AQ49 -> 0 | F71: =iMap_Rank!AR49 -> 0 | G71: =iMap_Rank!AS49 -> 0 | H71: =iMap_Rank!AT49 -> 0 | I71: =iMap_Rank!AU49 -> 0 | J71: =iMap_Rank!AV49 -> 0 | K71: =iMap_Rank!AW49 -> 0 | L71: =iMap_Rank!AX49 -> 0
A72: =iMap_Rank!AM50 -> 0 | B72: =iMap_Rank!AN50 -> 0 | C72: =iMap_Rank!AO50 -> 0 | D72: =iMap_Rank!AP50 -> 0 | E72: =iMap_Rank!AQ50 -> 0 | F72: =iMap_Rank!AR50 -> 0 | G72: =iMap_Rank!AS50 -> 0 | H72: =iMap_Rank!AT50 -> 0 | I72: =iMap_Rank!AU50 -> 0 | J72: =iMap_Rank!AV50 -> 0 | K72: =iMap_Rank!AW50 -> 0 | L72: =iMap_Rank!AX50 -> 0
A73: =iMap_Rank!AM51 -> 0 | B73: =iMap_Rank!AN51 -> 0 | C73: =iMap_Rank!AO51 -> 0 | D73: =iMap_Rank!AP51 -> 0 | E73: =iMap_Rank!AQ51 -> 0 | F73: =iMap_Rank!AR51 -> 0 | G73: =iMap_Rank!AS51 -> 0 | H73: =iMap_Rank!AT51 -> 0 | I73: =iMap_Rank!AU51 -> 0 | J73: =iMap_Rank!AV51 -> 0 | K73: =iMap_Rank!AW51 -> 0 | L73: =iMap_Rank!AX51 -> 0
A74: =iMap_Rank!AM52 -> 0 | B74: =iMap_Rank!AN52 -> 0 | C74: =iMap_Rank!AO52 -> 0 | D74: =iMap_Rank!AP52 -> 0 | E74: =iMap_Rank!AQ52 -> 0 | F74: =iMap_Rank!AR52 -> 0 | G74: =iMap_Rank!AS52 -> 0 | H74: =iMap_Rank!AT52 -> 0 | I74: =iMap_Rank!AU52 -> 0 | J74: =iMap_Rank!AV52 -> 0 | K74: =iMap_Rank!AW52 -> 0 | L74: =iMap_Rank!AX52 -> 0
A75: =iMap_Rank!AM53 -> 0 | B75: =iMap_Rank!AN53 -> 0 | C75: =iMap_Rank!AO53 -> 0 | D75: =iMap_Rank!AP53 -> 0 | E75: =iMap_Rank!AQ53 -> 0 | F75: =iMap_Rank!AR53 -> 0 | G75: =iMap_Rank!AS53 -> 0 | H75: =iMap_Rank!AT53 -> 0 | I75: =iMap_Rank!AU53 -> 0 | J75: =iMap_Rank!AV53 -> 0 | K75: =iMap_Rank!AW53 -> 0 | L75: =iMap_Rank!AX53 -> 0
A76: =iMap_Rank!AM54 -> 0 | B76: =iMap_Rank!AN54 -> 0 | C76: =iMap_Rank!AO54 -> 0 | D76: =iMap_Rank!AP54 -> 0 | E76: =iMap_Rank!AQ54 -> 0 | F76: =iMap_Rank!AR54 -> 0 | G76: =iMap_Rank!AS54 -> 0 | H76: =iMap_Rank!AT54 -> 0 | I76: =iMap_Rank!AU54 -> 0 | J76: =iMap_Rank!AV54 -> 0 | K76: =iMap_Rank!AW54 -> 0 | L76: =iMap_Rank!AX54 -> 0
A77: =iMap_Rank!AM55 -> 0 | B77: =iMap_Rank!AN55 -> 0 | C77: =iMap_Rank!AO55 -> 0 | D77: =iMap_Rank!AP55 -> 0 | E77: =iMap_Rank!AQ55 -> 0 | F77: =iMap_Rank!AR55 -> 0 | G77: =iMap_Rank!AS55 -> 0 | H77: =iMap_Rank!AT55 -> 0 | I77: =iMap_Rank!AU55 -> 0 | J77: =iMap_Rank!AV55 -> 0 | K77: =iMap_Rank!AW55 -> 0 | L77: =iMap_Rank!AX55 -> 0
A78: =iMap_Rank!AM56 -> 0 | B78: =iMap_Rank!AN56 -> 0 | C78: =iMap_Rank!AO56 -> 0 | D78: =iMap_Rank!AP56 -> 0 | E78: =iMap_Rank!AQ56 -> 0 | F78: =iMap_Rank!AR56 -> 0 | G78: =iMap_Rank!AS56 -> 0 | H78: =iMap_Rank!AT56 -> 0 | I78: =iMap_Rank!AU56 -> 0 | J78: =iMap_Rank!AV56 -> 0 | K78: =iMap_Rank!AW56 -> 0 | L78: =iMap_Rank!AX56 -> 0
A79: =iMap_Rank!AM57 -> 0 | B79: =iMap_Rank!AN57 -> 0 | C79: =iMap_Rank!AO57 -> 0 | D79: =iMap_Rank!AP57 -> 0 | E79: =iMap_Rank!AQ57 -> 0 | F79: =iMap_Rank!AR57 -> 0 | G79: =iMap_Rank!AS57 -> 0 | H79: =iMap_Rank!AT57 -> 0 | I79: =iMap_Rank!AU57 -> 0 | J79: =iMap_Rank!AV57 -> 0 | K79: =iMap_Rank!AW57 -> 0 | L79: =iMap_Rank!AX57 -> 0
A80: =iMap_Rank!AM58 -> 0 | B80: =iMap_Rank!AN58 -> 0 | C80: =iMap_Rank!AO58 -> 0 | D80: =iMap_Rank!AP58 -> 0 | E80: =iMap_Rank!AQ58 -> 0 | F80: =iMap_Rank!AR58 -> 0 | G80: =iMap_Rank!AS58 -> 0 | H80: =iMap_Rank!AT58 -> 0 | I80: =iMap_Rank!AU58 -> 0 | J80: =iMap_Rank!AV58 -> 0 | K80: =iMap_Rank!AW58 -> 0 | L80: =iMap_Rank!AX58 -> 0
A81: =iMap_Rank!AM59 -> 0 | B81: =iMap_Rank!AN59 -> 0 | C81: =iMap_Rank!AO59 -> 0 | D81: =iMap_Rank!AP59 -> 0 | E81: =iMap_Rank!AQ59 -> 0 | F81: =iMap_Rank!AR59 -> 0 | G81: =iMap_Rank!AS59 -> 0 | H81: =iMap_Rank!AT59 -> 0 | I81: =iMap_Rank!AU59 -> 0 | J81: =iMap_Rank!AV59 -> 0 | K81: =iMap_Rank!AW59 -> 0 | L81: =iMap_Rank!AX59 -> 0
A82: =iMap_Rank!AM60 -> 0 | B82: =iMap_Rank!AN60 -> 0 | C82: =iMap_Rank!AO60 -> 0 | D82: =iMap_Rank!AP60 -> 0 | E82: =iMap_Rank!AQ60 -> 0 | F82: =iMap_Rank!AR60 -> 0 | G82: =iMap_Rank!AS60 -> 0 | H82: =iMap_Rank!AT60 -> 0 | I82: =iMap_Rank!AU60 -> 0 | J82: =iMap_Rank!AV60 -> 0 | K82: =iMap_Rank!AW60 -> 0 | L82: =iMap_Rank!AX60 -> 0
A83: =iMap_Rank!AM61 -> 0 | B83: =iMap_Rank!AN61 -> 0 | C83: =iMap_Rank!AO61 -> 0 | D83: =iMap_Rank!AP61 -> 0 | E83: =iMap_Rank!AQ61 -> 0 | F83: =iMap_Rank!AR61 -> 0 | G83: =iMap_Rank!AS61 -> 0 | H83: =iMap_Rank!AT61 -> 0 | I83: =iMap_Rank!AU61 -> 0 | J83: =iMap_Rank!AV61 -> 0 | K83: =iMap_Rank!AW61 -> 0 | L83: =iMap_Rank!AX61 -> 0
A84: =iMap_Rank!AM62 -> 0 | B84: =iMap_Rank!AN62 -> 0 | C84: =iMap_Rank!AO62 -> 0 | D84: =iMap_Rank!AP62 -> 0 | E84: =iMap_Rank!AQ62 -> 0 | F84: =iMap_Rank!AR62 -> 0 | G84: =iMap_Rank!AS62 -> 0 | H84: =iMap_Rank!AT62 -> 0 | I84: =iMap_Rank!AU62 -> 0 | J84: =iMap_Rank!AV62 -> 0 | K84: =iMap_Rank!AW62 -> 0 | L84: =iMap_Rank!AX62 -> 0
A85: =iMap_Rank!AM63 -> 0 | B85: =iMap_Rank!AN63 -> 0 | C85: =iMap_Rank!AO63 -> 0 | D85: =iMap_Rank!AP63 -> 0 | E85: =iMap_Rank!AQ63 -> 0 | F85: =iMap_Rank!AR63 -> 0 | G85: =iMap_Rank!AS63 -> 0 | H85: =iMap_Rank!AT63 -> 0 | I85: =iMap_Rank!AU63 -> 0 | J85: =iMap_Rank!AV63 -> 0 | K85: =iMap_Rank!AW63 -> 0 | L85: =iMap_Rank!AX63 -> 0
A86: =iMap_Rank!AM64 -> 0 | B86: =iMap_Rank!AN64 -> 0 | C86: =iMap_Rank!AO64 -> 0 | D86: =iMap_Rank!AP64 -> 0 | E86: =iMap_Rank!AQ64 -> 0 | F86: =iMap_Rank!AR64 -> 0 | G86: =iMap_Rank!AS64 -> 0 | H86: =iMap_Rank!AT64 -> 0 | I86: =iMap_Rank!AU64 -> 0 | J86: =iMap_Rank!AV64 -> 0 | K86: =iMap_Rank!AW64 -> 0 | L86: =iMap_Rank!AX64 -> 0
A87: =iMap_Rank!AM65 -> 0 | B87: =iMap_Rank!AN65 -> 0 | C87: =iMap_Rank!AO65 -> 0 | D87: =iMap_Rank!AP65 -> 0 | E87: =iMap_Rank!AQ65 -> 0 | F87: =iMap_Rank!AR65 -> 0 | G87: =iMap_Rank!AS65 -> 0 | H87: =iMap_Rank!AT65 -> 0 | I87: =iMap_Rank!AU65 -> 0 | J87: =iMap_Rank!AV65 -> 0 | K87: =iMap_Rank!AW65 -> 0 | L87: =iMap_Rank!AX65 -> 0
A88: =iMap_Rank!AM66 -> 0 | B88: =iMap_Rank!AN66 -> 0 | C88: =iMap_Rank!AO66 -> 0 | D88: =iMap_Rank!AP66 -> 0 | E88: =iMap_Rank!AQ66 -> 0 | F88: =iMap_Rank!AR66 -> 0 | G88: =iMap_Rank!AS66 -> 0 | H88: =iMap_Rank!AT66 -> 0 | I88: =iMap_Rank!AU66 -> 0 | J88: =iMap_Rank!AV66 -> 0 | K88: =iMap_Rank!AW66 -> 0 | L88: =iMap_Rank!AX66 -> 0
A89: =iMap_Rank!AM67 -> 0 | B89: =iMap_Rank!AN67 -> 0 | C89: =iMap_Rank!AO67 -> 0 | D89: =iMap_Rank!AP67 -> 0 | E89: =iMap_Rank!AQ67 -> 0 | F89: =iMap_Rank!AR67 -> 0 | G89: =iMap_Rank!AS67 -> 0 | H89: =iMap_Rank!AT67 -> 0 | I89: =iMap_Rank!AU67 -> 0 | J89: =iMap_Rank!AV67 -> 0 | K89: =iMap_Rank!AW67 -> 0 | L89: =iMap_Rank!AX67 -> 0
A90: =iMap_Rank!AM68 -> 0 | B90: =iMap_Rank!AN68 -> 0 | C90: =iMap_Rank!AO68 -> 0 | D90: =iMap_Rank!AP68 -> 0 | E90: =iMap_Rank!AQ68 -> 0 | F90: =iMap_Rank!AR68 -> 0 | G90: =iMap_Rank!AS68 -> 0 | H90: =iMap_Rank!AT68 -> 0 | I90: =iMap_Rank!AU68 -> 0 | J90: =iMap_Rank!AV68 -> 0 | K90: =iMap_Rank!AW68 -> 0 | L90: =iMap_Rank!AX68 -> 0
A91: =iMap_Rank!AM69 -> 0 | B91: =iMap_Rank!AN69 -> 0 | C91: =iMap_Rank!AO69 -> 0 | D91: =iMap_Rank!AP69 -> 0 | E91: =iMap_Rank!AQ69 -> 0 | F91: =iMap_Rank!AR69 -> 0 | G91: =iMap_Rank!AS69 -> 0 | H91: =iMap_Rank!AT69 -> 0 | I91: =iMap_Rank!AU69 -> 0 | J91: =iMap_Rank!AV69 -> 0 | K91: =iMap_Rank!AW69 -> 0 | L91: =iMap_Rank!AX69 -> 0
A92: =iMap_Rank!AM70 -> 0 | B92: =iMap_Rank!AN70 -> 0 | C92: =iMap_Rank!AO70 -> 0 | D92: =iMap_Rank!AP70 -> 0 | E92: =iMap_Rank!AQ70 -> 0 | F92: =iMap_Rank!AR70 -> 0 | G92: =iMap_Rank!AS70 -> 0 | H92: =iMap_Rank!AT70 -> 0 | I92: =iMap_Rank!AU70 -> 0 | J92: =iMap_Rank!AV70 -> 0 | K92: =iMap_Rank!AW70 -> 0 | L92: =iMap_Rank!AX70 -> 0
A93: =iMap_Rank!AM71 -> 0 | B93: =iMap_Rank!AN71 -> 0 | C93: =iMap_Rank!AO71 -> 0 | D93: =iMap_Rank!AP71 -> 0 | E93: =iMap_Rank!AQ71 -> 0 | F93: =iMap_Rank!AR71 -> 0 | G93: =iMap_Rank!AS71 -> 0 | H93: =iMap_Rank!AT71 -> 0 | I93: =iMap_Rank!AU71 -> 0 | J93: =iMap_Rank!AV71 -> 0 | K93: =iMap_Rank!AW71 -> 0 | L93: =iMap_Rank!AX71 -> 0
A94: =iMap_Rank!AM72 -> 0 | B94: =iMap_Rank!AN72 -> 0 | C94: =iMap_Rank!AO72 -> 0 | D94: =iMap_Rank!AP72 -> 0 | E94: =iMap_Rank!AQ72 -> 0 | F94: =iMap_Rank!AR72 -> 0 | G94: =iMap_Rank!AS72 -> 0 | H94: =iMap_Rank!AT72 -> 0 | I94: =iMap_Rank!AU72 -> 0 | J94: =iMap_Rank!AV72 -> 0 | K94: =iMap_Rank!AW72 -> 0 | L94: =iMap_Rank!AX72 -> 0
A95: =iMap_Rank!AM73 -> 0 | B95: =iMap_Rank!AN73 -> 0 | C95: =iMap_Rank!AO73 -> 0 | D95: =iMap_Rank!AP73 -> 0 | E95: =iMap_Rank!AQ73 -> 0 | F95: =iMap_Rank!AR73 -> 0 | G95: =iMap_Rank!AS73 -> 0 | H95: =iMap_Rank!AT73 -> 0 | I95: =iMap_Rank!AU73 -> 0 | J95: =iMap_Rank!AV73 -> 0 | K95: =iMap_Rank!AW73 -> 0 | L95: =iMap_Rank!AX73 -> 0
A96: =iMap_Rank!AM74 -> 0 | B96: =iMap_Rank!AN74 -> 0 | C96: =iMap_Rank!AO74 -> 0 | D96: =iMap_Rank!AP74 -> 0 | E96: =iMap_Rank!AQ74 -> 0 | F96: =iMap_Rank!AR74 -> 0 | G96: =iMap_Rank!AS74 -> 0 | H96: =iMap_Rank!AT74 -> 0 | I96: =iMap_Rank!AU74 -> 0 | J96: =iMap_Rank!AV74 -> 0 | K96: =iMap_Rank!AW74 -> 0 | L96: =iMap_Rank!AX74 -> 0

Sheet iMap_Rank (hidden)
B1: =uxb_works!#REF! ->  | C1: =uxb_works!C13 -> IS_BG | D1: =uxb_works!D13 -> Spare1 | E1: =uxb_works!E13 -> INDI_CODE | F1: =uxb_works!F13 -> PARENT_CODE | G1: =uxb_works!G13 -> DEPTH | H1: =uxb_works!H13 -> REF | I1: =uxb_works!I13 -> NDICATOR_SHORT | J1: =uxb_works!J13 -> DESCRIPTION | K1: =uxb_works!K13 -> INDICATOR_UNIT | L1: =uxb_works!L13 -> Rational | M1: =uxb_works!M13 -> Scoring Criteria (0-100 or 0-4 etc) | N1: =uxb_works!N13 -> Year | O1: =uxb_works!O13 -> Geography | P1: =uxb_works!P13 -> HIGH=Good | Q1: =uxb_works!Q13 -> Format | R1: =uxb_works!R13 -> MAIN_SOURCE | S1: =uxb_works!S13 -> SOURCE_WS_ID | T1: =uxb_works!T13 -> HIGH_IS | U1: =uxb_works!U13 -> NORM_ID (1=sumproduct, 2=min max set by data values, 3=min max set by user here)
A2: =uxb_works!A19 -> CITY1_ID | B2: =uxb_works!B14 -> 4 | C2: =uxb_works!C14 -> 0 | D2: =uxb_works!D14 ->  | E2: =uxb_works!E14 -> EP_11 | F2: =uxb_works!F14 -> EP | G2: =uxb_works!G14 -> 2 | H2: =uxb_works!H14 -> 1.11 | I2: =uxb_works!I14 -> Current account liberalisation | J2: =uxb_works!J14 -> A measure of a country’s current account liberalisation, with consideration of restrictions in this area; used to capture the ease with which a country trades goods across its border. | K2: =uxb_works!K14 -> 1-5 scores | L2: =uxb_works!L14 ->  | M2: =uxb_works!M14 ->  | N2: =uxb_works!N14 -> 2014 | O2: =uxb_works!O14 ->  | P2: =uxb_works!P14 -> High score = good | Q2: =uxb_works!Q14 -> #0 | R2: =uxb_works!R14 -> EIU | S2: =uxb_works!S14 -> 1.11 | T2: =uxb_works!T14 -> 0 | U2: =uxb_works!U14 -> 3
A3: INDI_IS_NATIONAL | B3: =D2 ->  | U3: 1
R5: percentiles | S5: equal buckets
A6: SERIES_LEVEL | B6: 1 | O6: Fifths | Q6: 0 | R6: =IF($U$2=1,PERCENTILE(R$19:R$38,Q6),Q6*100) -> 0 | S6: =#REF! -> 
A7: Rank_Order | B7: 0 | Q7: 0.25 | R7: =IF($U$2=1,PERCENTILE(R$19:R$38,Q7),Q7*100) -> 25 | S7: =AB38 -> 50 | T7: 1 | Z7: =56/6 -> 9.333333333
Q8: 0.5 | R8: =IF($U$2=1,PERCENTILE(R$19:R$38,Q8),Q8*100) -> 50 | S8: =AB33 -> 85 | T8: 2
A9: =uxb_works!A6 -> CITY_HIGHLIGHT_DD | B9: =uxb_works!B6 -> 1 | C9: =IF(uxb_works!C6="<none>","Click on map or select from the country highlight drop down box",uxb_works!C6) -> Click on map or select from the country highlight drop down box | D9: =IF(ISNA(INDEX(P19:P38,MATCH(C9,N19:N38,0))),"",INDEX(P19:P38,MATCH(C9,N19:N38,0))) ->  | Q9: 0.75 | R9: =IF($U$2=1,PERCENTILE(R$19:R$38,Q9),Q9*100) -> 75 | S9: =AB28 -> 100 | T9: 3
Q10: 1 | R10: =IF($U$2=1,PERCENTILE(R$19:R$38,Q10),Q10*100) -> 100 | S10: =AB23 -> 100 | T10: 4
S11: =AB19 -> 100 | T11: 5 | U11: =80/5 -> 16
S13: =PERCENTILE(R$19:R$38,Q11) -> 50
AI14: Buckets
AN15: ="Score "&ROUND($R$9+0.1,1)&" to "&$R$10 -> Score 75.1 to 100 | AQ15: ="Score "&ROUND($R$8+0.1,1)&" to "&ROUND($R$9,1) -> Score 50.1 to 75 | AT15: ="Score "&ROUND($R$7+0.1,1)&" to "&ROUND($R$8,1) -> Score 25.1 to 50 | AW15: ="Score "&ROUND($R$6,1)&" to "&ROUND($R$7,1) -> Score 0 to 25
A17: SHOW_DATA | B17: =IF(OR(P2=1,AC2=0),FALSE,TRUE) -> FALSE | T17: ALL UNFILTERED DATA POINTS | V17: Country Highlight | W17: Country Filter | AI17: 4 | AJ17: 3 | AK17: 2 | AL17: 1 | AN17: 1 | AO17: 3 | AQ17: 1 | AR17: 3 | AT17: 1 | AU17: 3 | AW17: 1 | AX17: 3
D18: IsRegion | F18: ActiveStatus | G18: Score (unrounded) | H18: Rank unrounded | I18: LU | J18: yScatter | K18: RankRounded | O18: Score | P18: Score Display | Q18: =IF($B$17,"Data","") ->  | R18: Map Display | T18: X | U18: Y | AF18: Main Set | AG18: Highlighted | AI18: 0 | AJ18: 0 | AK18: 0 | AL18: 0 | AM18: =$F$18 -> ActiveStatus | AN18: B1 | AO18: B1a | AP18: =$F$18 -> ActiveStatus | AQ18: B2 | AR18: B2a | AS18: =$F$18 -> ActiveStatus | AT18: B3 | AU18: B3a | AV18: =$F$18 -> ActiveStatus | AW18: B4 | AX18: B4a
A19: =tblTerritories!A3 -> 1 | B19: =tblTerritories!B3 -> BGD | C19: =tblTerritories!C3 -> Bangladesh | D19: =INDEX(tblTerritories!$R$3:$V$22,A19,uxb_works!$B$10) -> 1 | F19: =IF(D19=0,0,tblTerritories!G3) -> 1 | G19: =IF(F19=0,"",INDEX(aScores,$B$2,$A19)) -> 75 | H19: =IF(F19=0,"",RANK(G19,G$19:G$38,$B$7)+COUNTIF(G$19:G19,G19)-1) -> 16 | I19: =IF(ISERROR(MATCH($A19,H$19:H$38,0)),"",MATCH($A19,H$19:H$38,0)) -> 2 | J19: =IF(I19="","",1) -> 1 | K19: =IF(I19="","",RANK(O19,O$19:O$38,$B$7)) -> 1 | L19: =IF(I19="",0,INDEX($F$19:$F$38,I19)) -> 1 | M19: =IF(I19="","",IF(OR(K19=K18,K19=K20),CONCATENATE("=",K19),K19)) -> =1 | N19: =IF(I19="","",INDEX($C$19:$C$38,I19)) -> Brunei | O19: =IF(I19="","",INDEX(aRoundedScores,$B$2,I19)) -> 100 | P19: =IF(L19=0,"",IF($C$2=1,"-",O19)) -> 100 | Q19: =IF(ISNA(VLOOKUP(N19,uxb_regions!$C$3:$I$82,7,FALSE)),"",VLOOKUP(N19,uxb_regions!$C$3:$I$82,7,FALSE)) -> BRN | R19: =IF(L19=0,"",O19) -> 100 | S19: =IF(Q19="","",CHOOSE($U$3,IF(R19<=R$7,1,IF(R19<=R$8,2,IF(R19<=R$9,3,IF(R19<=R$10,4)))))) -> 4 | T19: =IF(ISNUMBER(O19),O19,NA()) -> 100 | U19: =1 -> 1 | V19: =IF(ISNA(INDEX($F$19:$F$38,MATCH(N19,$C$19:$C$38,0))),0,INDEX($F$19:$F$38,MATCH(N19,$C$19:$C$38,0))) -> 1 | W19: =IF(OR(V19=3,V19=2),Q19,0) -> 0 | X19: =IF(ISNA(V19),"",Q19) -> BRN | Y19: =IF(L19=2,T19,NA()) ->  | Z19: =IF(L19=2,1,NA()) ->  | AB19: =LARGE($R$19:$R$38,ROW(R1)-ROW($R$1)+1) -> 100 | AE19: =IF(ISNUMBER(O19),N19,CONCATENATE(N19)) -> Brunei | AF19: =IF(ISNUMBER(P19),P19,"-") -> 100 | AG19: =IF(W19=0,NA(),AF19) ->  | AH19: =TEXT(AF19,$Q$2) -> 100 | AI19: =AI18+MATCH(AI$17,OFFSET($S$19:$S$38,AI18,0),0) -> 1 | AJ19: =AJ18+MATCH(AJ$17,OFFSET($S$19:$S$38,AJ18,0),0) -> 16 | AK19: =AK18+MATCH(AK$17,OFFSET($S$19:$S$38,AK18,0),0) -> 20 | AL19: =AL18+MATCH(AL$17,OFFSET($S$19:$S$38,AL18,0),0) ->  | AM19: =IF(AN19="",0,INDEX($F$19:$F$38,MATCH(AN19,$C$19:$C$38,0))) -> 1 | AN19: =IF(ISNA(AI19),"",INDEX($N$19:$P$38,$AI19,AN$17)) -> Brunei | AO19: =IF(ISNA(AI19),"",INDEX($N$19:$P$38,$AI19,AO$17)) -> 100 | AP19: =IF(AQ19="",0,INDEX($F$19:$F$38,MATCH(AQ19,$C$19:$C$38,0))) -> 1 | AQ19: =IF(ISNA(AJ19),"",INDEX($N$19:$P$38,$AJ19,AQ$17)) -> Bangladesh | AR19: =IF(ISNA(AJ19),"",INDEX($N$19:$P$38,$AJ19,AR$17)) -> 75 | AS19: =IF(AT19="",0,INDEX($F$19:$F$38,MATCH(AT19,$C$19:$C$38,0))) -> 1 | AT19: =IF(ISNA(AK19),"",INDEX($N$19:$P$38,$AK19,AT$17)) -> Pakistan | AU19: =IF(ISNA(AK19),"",INDEX($N$19:$P$38,$AK19,AU$17)) -> 50 | AV19: =IF(AW19="",0,INDEX($F$19:$F$38,MATCH(AW19,$C$19:$C$38,0))) -> 0 | AW19: =IF(ISNA(AL19),"",INDEX($N$19:$P$38,$AL19,AW$17)) ->  | AX19: =IF(ISNA(AL19),"",INDEX($N$19:$P$38,$AL19,AX$17)) -> 
A20: =tblTerritories!A4 -> 2 | B20: =tblTerritories!B4 -> BRN | C20: =tblTerritories!C4 -> Brunei | D20: =INDEX(tblTerritories!$R$3:$V$22,A20,uxb_works!$B$10) -> 1 | F20: =IF(D20=0,0,tblTerritories!G4) -> 1 | G20: =IF(F20=0,"",INDEX(aScores,$B$2,$A20)) -> 100 | H20: =IF(F20=0,"",RANK(G20,G$19:G$38,$B$7)+COUNTIF(G$19:G20,G20)-1) -> 1 | I20: =IF(ISERROR(MATCH($A20,H$19:H$38,0)),"",MATCH($A20,H$19:H$38,0)) -> 3 | J20: =IF(I20="","",1) -> 1 | K20: =IF(I20="","",RANK(O20,O$19:O$38,$B$7)) -> 1 | L20: =IF(I20="",0,INDEX($F$19:$F$38,I20)) -> 1 | M20: =IF(I20="","",IF(OR(K20=K19,K20=K21),CONCATENATE("=",K20),K20)) -> =1 | N20: =IF(I20="","",INDEX($C$19:$C$38,I20)) -> Cambodia | O20: =IF(I20="","",INDEX(aRoundedScores,$B$2,I20)) -> 100 | P20: =IF(L20=0,"",IF($C$2=1,"-",O20)) -> 100 | Q20: =IF(ISNA(VLOOKUP(N20,uxb_regions!$C$3:$I$82,7,FALSE)),"",VLOOKUP(N20,uxb_regions!$C$3:$I$82,7,FALSE)) -> KHM | R20: =IF(L20=0,"",O20) -> 100 | S20: =IF(Q20="","",CHOOSE($U$3,IF(R20<=R$7,1,IF(R20<=R$8,2,IF(R20<=R$9,3,IF(R20<=R$10,4)))))) -> 4 | T20: =IF(ISNUMBER(O20),O20,NA()) -> 100 | U20: =1 -> 1 | V20: =IF(ISNA(INDEX($F$19:$F$38,MATCH(N20,$C$19:$C$38,0))),0,INDEX($F$19:$F$38,MATCH(N20,$C$19:$C$38,0))) -> 1 | W20: =IF(OR(V20=3,V20=2),Q20,0) -> 0 | X20: =IF(ISNA(V20),"",Q20) -> KHM | Y20: =IF(L20=2,T20,NA()) ->  | Z20: =IF(L20=2,1,NA()) ->  | AB20: =LARGE($R$19:$R$38,ROW(R2)-ROW($R$1)+1) -> 100 | AE20: =IF(ISNUMBER(O20),N20,CONCATENATE(N20)) -> Cambodia | AF20: =IF(ISNUMBER(P20),P20,"-") -> 100 | AG20: =IF(W20=0,NA(),AF20) ->  | AH20: =TEXT(AF20,$Q$2) -> 100 | AI20: =AI19+MATCH(AI$17,OFFSET($S$19:$S$38,AI19,0),0) -> 2 | AJ20: =AJ19+MATCH(AJ$17,OFFSET($S$19:$S$38,AJ19,0),0) -> 17 | AK20: =AK19+MATCH(AK$17,OFFSET($S$19:$S$38,AK19,0),0) ->  | AL20: =AL19+MATCH(AL$17,OFFSET($S$19:$S$38,AL19,0),0) ->  | AM20: =IF(AN20="",0,INDEX($F$19:$F$38,MATCH(AN20,$C$19:$C$38,0))) -> 1 | AN20: =IF(ISNA(AI20),"",INDEX($N$19:$P$38,$AI20,AN$17)) -> Cambodia | AO20: =IF(ISNA(AI20),"",INDEX($N$19:$P$38,$AI20,AO$17)) -> 100 | AP20: =IF(AQ20="",0,INDEX($F$19:$F$38,MATCH(AQ20,$C$19:$C$38,0))) -> 1 | AQ20: =IF(ISNA(AJ20),"",INDEX($N$19:$P$38,$AJ20,AQ$17)) -> India | AR20: =IF(ISNA(AJ20),"",INDEX($N$19:$P$38,$AJ20,AR$17)) -> 75 | AS20: =IF(AT20="",0,INDEX($F$19:$F$38,MATCH(AT20,$C$19:$C$38,0))) -> 0 | AT20: =IF(ISNA(AK20),"",INDEX($N$19:$P$38,$AK20,AT$17)) ->  | AU20: =IF(ISNA(AK20),"",INDEX($N$19:$P$38,$AK20,AU$17)) ->  | AV20: =IF(AW20="",0,INDEX($F$19:$F$38,MATCH(AW20,$C$19:$C$38,0))) -> 0 | AW20: =IF(ISNA(AL20),"",INDEX($N$19:$P$38,$AL20,AW$17)) ->  | AX20: =IF(ISNA(AL20),"",INDEX($N$19:$P$38,$AL20,AX$17)) -> 
A21: =tblTerritories!A5 -> 3 | B21: =tblTerritories!B5 -> KHM | C21: =tblTerritories!C5 -> Cambodia | D21: =INDEX(tblTerritories!$R$3:$V$22,A21,uxb_works!$B$10) -> 1 | F21: =IF(D21=0,0,tblTerritories!G5) -> 1 | G21: =IF(F21=0,"",INDEX(aScores,$B$2,$A21)) -> 100 | H21: =IF(F21=0,"",RANK(G21,G$19:G$38,$B$7)+COUNTIF(G$19:G21,G21)-1) -> 2 | I21: 5 | J21: 1 | K21: 1 | L21: 1 | M21: =1 | N21: Hong Kong | O21: 100 | P21: 100 | Q21: =IF(ISNA(VLOOKUP(N21,uxb_regions!$C$3:$I$82,7,FALSE)),"",VLOOKUP(N21,uxb_regions!$C$3:$I$82,7,FALSE)) -> HKG | R21: 100 | S21: 4 | T21: 100 | U21: =1 -> 1 | V21: 1 | W21: 0 | X21: HKG | AB21: 100 | AE21: Hong Kong | AF21: 100 | AH21: 100 | AI21: 3 | AJ21: 18 | AM21: 1 | AN21: Hong Kong | AO21: 100 | AP21: 1 | AQ21: Indonesia | AR21: 75 | AS21: 0 | AV21: 0
A22: =tblTerritories!A6 -> 4 | B22: =tblTerritories!B6 -> CHN | C22: =tblTerritories!C6 -> China | D22: =INDEX(tblTerritories!$R$3:$V$22,A22,uxb_works!$B$10) -> 1 | F22: =IF(D22=0,0,tblTerritories!G6) -> 1 | G22: 85 | H22: =IF(F22=0,"",RANK(G22,G$19:G$38,$B$7)+COUNTIF(G$19:G22,G22)-1) -> 13 | I22: 8 | J22: 1 | K22: 1 | L22: 1 | M22: =1 | N22: Japan | O22: 100 | P22: 100 | Q22: =IF(ISNA(VLOOKUP(N22,uxb_regions!$C$3:$I$82,7,FALSE)),"",VLOOKUP(N22,uxb_regions!$C$3:$I$82,7,FALSE)) -> JPN | R22: 100 | S22: 4 | T22: 100 | U22: =1 -> 1 | V22: 1 | W22: 0 | X22: JPN | AB22: 100 | AE22: Japan | AF22: 100 | AH22: 100 | AI22: 4 | AJ22: 19 | AM22: 1 | AN22: Japan | AO22: 100 | AP22: 1 | AQ22: Myanmar | AR22: 75 | AS22: 0 | AV22: 0
A23: =tblTerritories!A7 -> 5 | B23: =tblTerritories!B7 -> HKG | C23: =tblTerritories!C7 -> Hong Kong | D23: =INDEX(tblTerritories!$R$3:$V$22,A23,uxb_works!$B$10) -> 1 | F23: =IF(D23=0,0,tblTerritories!G7) -> 1 | G23: 100 | H23: =IF(F23=0,"",RANK(G23,G$19:G$38,$B$7)+COUNTIF(G$19:G23,G23)-1) -> 3 | I23: 9 | J23: 1 | K23: 1 | L23: 1 | M23: =1 | N23: Laos | O23: 100 | P23: 100 | Q23: =IF(ISNA(VLOOKUP(N23,uxb_regions!$C$3:$I$82,7,FALSE)),"",VLOOKUP(N23,uxb_regions!$C$3:$I$82,7,FALSE)) -> LAO | R23: 100 | S23: 4 | T23: 100 | U23: =1 -> 1 | V23: 1 | W23: 0 | X23: LAO | AB23: 100 | AE23: Laos | AF23: 100 | AH23: 100 | AI23: 5 | AM23: 1 | AN23: Laos | AO23: 100 | AP23: 0 | AS23: 0 | AV23: 0
A24: =tblTerritories!A8 -> 6 | B24: =tblTerritories!B8 -> IND | C24: =tblTerritories!C8 -> India | D24: =INDEX(tblTerritories!$R$3:$V$22,A24,uxb_works!$B$10) -> 1 | F24: =IF(D24=0,0,tblTerritories!G8) -> 1 | G24: 75 | H24: =IF(F24=0,"",RANK(G24,G$19:G$38,$B$7)+COUNTIF(G$19:G24,G24)-1) -> 17 | I24: 10 | J24: 1 | K24: 1 | L24: 1 | M24: =1 | N24: Malaysia | O24: 100 | P24: 100 | Q24: =IF(ISNA(VLOOKUP(N24,uxb_regions!$C$3:$I$82,7,FALSE)),"",VLOOKUP(N24,uxb_regions!$C$3:$I$82,7,FALSE)) -> MYS | R24: 100 | S24: 4 | T24: 100 | U24: =1 -> 1 | V24: 1 | W24: 0 | X24: MYS | AB24: 100 | AE24: Malaysia | AF24: 100 | AH24: 100 | AI24: 6 | AM24: 1 | AN24: Malaysia | AO24: 100 | AP24: 0 | AS24: 0 | AV24: 0
A25: =tblTerritories!A9 -> 7 | B25: =tblTerritories!B9 -> IDN | C25: =tblTerritories!C9 -> Indonesia | D25: =INDEX(tblTerritories!$R$3:$V$22,A25,uxb_works!$B$10) -> 1 | F25: =IF(D25=0,0,tblTerritories!G9) -> 1 | G25: 75 | H25: =IF(F25=0,"",RANK(G25,G$19:G$38,$B$7)+COUNTIF(G$19:G25,G25)-1) -> 18 | I25: 14 | J25: 1 | K25: 1 | L25: 1 | M25: =1 | N25: Singapore | O25: 100 | P25: 100 | Q25: =IF(ISNA(VLOOKUP(N25,uxb_regions!$C$3:$I$82,7,FALSE)),"",VLOOKUP(N25,uxb_regions!$C$3:$I$82,7,FALSE)) -> SGP | R25: 100 | S25: 4 | T25: 100 | U25: =1 -> 1 | V25: 1 | W25: 0 | X25: SGP | AB25: 100 | AE25: Singapore | AF25: 100 | AH25: 100 | AI25: 7 | AM25: 1 | AN25: Singapore | AO25: 100 | AP25: 0 | AS25: 0 | AV25: 0
A26: =tblTerritories!A10 -> 8 | B26: =tblTerritories!B10 -> JPN | C26: =tblTerritories!C10 -> Japan | D26: =INDEX(tblTerritories!$R$3:$V$22,A26,uxb_works!$B$10) -> 1 | F26: =IF(D26=0,0,tblTerritories!G10) -> 1 | G26: 100 | H26: =IF(F26=0,"",RANK(G26,G$19:G$38,$B$7)+COUNTIF(G$19:G26,G26)-1) -> 4 | I26: 16 | J26: 1 | K26: 1 | L26: 1 | M26: =1 | N26: Sri Lanka | O26: 100 | P26: 100 | Q26: =IF(ISNA(VLOOKUP(N26,uxb_regions!$C$3:$I$82,7,FALSE)),"",VLOOKUP(N26,uxb_regions!$C$3:$I$82,7,FALSE)) -> LKA | R26: 100 | S26: 4 | T26: 100 | U26: =1 -> 1 | V26: 1 | W26: 0 | X26: LKA | AB26: 100 | AE26: Sri Lanka | AF26: 100 | AH26: 100 | AI26: 8 | AM26: 1 | AN26: Sri Lanka | AO26: 100 | AP26: 0 | AS26: 0 | AV26: 0
A27: =tblTerritories!A11 -> 9 | B27: =tblTerritories!B11 -> LAO | C27: =tblTerritories!C11 -> Laos | D27: =INDEX(tblTerritories!$R$3:$V$22,A27,uxb_works!$B$10) -> 1 | F27: =IF(D27=0,0,tblTerritories!G11) -> 1 | G27: 100 | H27: =IF(F27=0,"",RANK(G27,G$19:G$38,$B$7)+COUNTIF(G$19:G27,G27)-1) -> 5 | I27: 17 | J27: 1 | K27: 1 | L27: 1 | M27: =1 | N27: Taiwan | O27: 100 | P27: 100 | Q27: =IF(ISNA(VLOOKUP(N27,uxb_regions!$C$3:$I$82,7,FALSE)),"",VLOOKUP(N27,uxb_regions!$C$3:$I$82,7,FALSE)) -> TWN | R27: 100 | S27: 4 | T27: 100 | U27: =1 -> 1 | V27: 1 | W27: 0 | X27: TWN | AB27: 100 | AE27: Taiwan | AF27: 100 | AH27: 100 | AI27: 9 | AM27: 1 | AN27: Taiwan | AO27: 100 | AP27: 0 | AS27: 0 | AV27: 0
A28: =tblTerritories!A12 -> 10 | B28: =tblTerritories!B12 -> MYS | C28: =tblTerritories!C12 -> Malaysia | D28: =INDEX(tblTerritories!$R$3:$V$22,A28,uxb_works!$B$10) -> 1 | F28: =IF(D28=0,0,tblTerritories!G12) -> 1 | G28: 100 | H28: =IF(F28=0,"",RANK(G28,G$19:G$38,$B$7)+COUNTIF(G$19:G28,G28)-1) -> 6 | I28: 18 | J28: 1 | K28: 1 | L28: 1 | M28: =1 | N28: Thailand | O28: 100 | P28: 100 | Q28: =IF(ISNA(VLOOKUP(N28,uxb_regions!$C$3:$I$82,7,FALSE)),"",VLOOKUP(N28,uxb_regions!$C$3:$I$82,7,FALSE)) -> THA | R28: 100 | S28: 4 | T28: 100 | U28: =1 -> 1 | V28: 1 | W28: 0 | X28: THA | AB28: 100 | AE28: Thailand | AF28: 100 | AH28: 100 | AI28: 10 | AM28: 1 | AN28: Thailand | AO28: 100 | AP28: 0 | AS28: 0 | AV28: 0
A29: =tblTerritories!A13 -> 11 | B29: =tblTerritories!B13 -> MMR | C29: =tblTerritories!C13 -> Myanmar | D29: =INDEX(tblTerritories!$R$3:$V$22,A29,uxb_works!$B$10) -> 1 | F29: =IF(D29=0,0,tblTerritories!G13) -> 1 | G29: 75 | H29: =IF(F29=0,"",RANK(G29,G$19:G$38,$B$7)+COUNTIF(G$19:G29,G29)-1) -> 19 | I29: 19 | J29: 1 | K29: 1 | L29: 1 | M29: =1 | N29: Vietnam | O29: 100 | P29: 100 | Q29: =IF(ISNA(VLOOKUP(N29,uxb_regions!$C$3:$I$82,7,FALSE)),"",VLOOKUP(N29,uxb_regions!$C$3:$I$82,7,FALSE)) -> VNM | R29: 100 | S29: 4 | T29: 100 | U29: =1 -> 1 | V29: 1 | W29: 0 | X29: VNM | AB29: 100 | AE29: Vietnam | AF29: 100 | AH29: 100 | AI29: 11 | AM29: 1 | AN29: Vietnam | AO29: 100 | AP29: 0 | AS29: 0 | AV29: 0
A30: =tblTerritories!A14 -> 12 | B30: =tblTerritories!B14 -> PAK | C30: =tblTerritories!C14 -> Pakistan | D30: =INDEX(tblTerritories!$R$3:$V$22,A30,uxb_works!$B$10) -> 1 | F30: =IF(D30=0,0,tblTerritories!G14) -> 1 | G30: 50 | H30: =IF(F30=0,"",RANK(G30,G$19:G$38,$B$7)+COUNTIF(G$19:G30,G30)-1) -> 20 | I30: 20 | J30: 1 | K30: 1 | L30: 1 | M30: =1 | N30: USA | O30: 100 | P30: 100 | Q30: =IF(ISNA(VLOOKUP(N30,uxb_regions!$C$3:$I$82,7,FALSE)),"",VLOOKUP(N30,uxb_regions!$C$3:$I$82,7,FALSE)) -> USA | R30: 100 | S30: 4 | T30: 100 | U30: =1 -> 1 | V30: 1 | W30: 0 | X30: USA | AB30: 100 | AE30: USA | AF30: 100 | AH30: 100 | AI30: 12 | AM30: 1 | AN30: USA | AO30: 100 | AP30: 0 | AS30: 0 | AV30: 0
A31: =tblTerritories!A15 -> 13 | B31: =tblTerritories!B15 -> PHL | C31: =tblTerritories!C15 -> Philippines | D31: =INDEX(tblTerritories!$R$3:$V$22,A31,uxb_works!$B$10) -> 1 | F31: =IF(D31=0,0,tblTerritories!G15) -> 1 | G31: 85 | H31: =IF(F31=0,"",RANK(G31,G$19:G$38,$B$7)+COUNTIF(G$19:G31,G31)-1) -> 14 | I31: 4 | J31: 1 | K31: 13 | L31: 1 | M31: =13 | N31: China | O31: 85 | P31: 85 | Q31: =IF(ISNA(VLOOKUP(N31,uxb_regions!$C$3:$I$82,7,FALSE)),"",VLOOKUP(N31,uxb_regions!$C$3:$I$82,7,FALSE)) -> CHN | R31: 85 | S31: 4 | T31: 85 | U31: =1 -> 1 | V31: 1 | W31: 0 | X31: CHN | AB31: 85 | AE31: China | AF31: 85 | AH31: 85 | AI31: 13 | AM31: 1 | AN31: China | AO31: 85 | AP31: 0 | AS31: 0 | AV31: 0
A32: =tblTerritories!A16 -> 14 | B32: =tblTerritories!B16 -> SGP | C32: =tblTerritories!C16 -> Singapore | D32: =INDEX(tblTerritories!$R$3:$V$22,A32,uxb_works!$B$10) -> 1 | F32: =IF(D32=0,0,tblTerritories!G16) -> 1 | G32: 100 | H32: =IF(F32=0,"",RANK(G32,G$19:G$38,$B$7)+COUNTIF(G$19:G32,G32)-1) -> 7 | I32: 13 | J32: 1 | K32: 13 | L32: 1 | M32: =13 | N32: Philippines | O32: 85 | P32: 85 | Q32: =IF(ISNA(VLOOKUP(N32,uxb_regions!$C$3:$I$82,7,FALSE)),"",VLOOKUP(N32,uxb_regions!$C$3:$I$82,7,FALSE)) -> PHL | R32: 85 | S32: 4 | T32: 85 | U32: =1 -> 1 | V32: 1 | W32: 0 | X32: PHL | AB32: 85 | AE32: Philippines | AF32: 85 | AH32: 85 | AI32: 14 | AM32: 1 | AN32: Philippines | AO32: 85 | AP32: 0 | AS32: 0 | AV32: 0
A33: =tblTerritories!A17 -> 15 | B33: =tblTerritories!B17 -> KOR | C33: =tblTerritories!C17 -> South Korea | D33: =INDEX(tblTerritories!$R$3:$V$22,A33,uxb_works!$B$10) -> 1 | F33: =IF(D33=0,0,tblTerritories!G17) -> 1 | G33: 85 | H33: =IF(F33=0,"",RANK(G33,G$19:G$38,$B$7)+COUNTIF(G$19:G33,G33)-1) -> 15 | I33: 15 | J33: 1 | K33: 13 | L33: 1 | M33: =13 | N33: South Korea | O33: 85 | P33: 85 | Q33: =IF(ISNA(VLOOKUP(N33,uxb_regions!$C$3:$I$82,7,FALSE)),"",VLOOKUP(N33,uxb_regions!$C$3:$I$82,7,FALSE)) -> KOR | R33: 85 | S33: 4 | T33: 85 | U33: =1 -> 1 | V33: 1 | W33: 0 | X33: KOR | AB33: 85 | AE33: South Korea | AF33: 85 | AH33: 85 | AI33: 15 | AM33: 1 | AN33: South Korea | AO33: 85 | AP33: 0 | AS33: 0 | AV33: 0
A34: =tblTerritories!A18 -> 16 | B34: =tblTerritories!B18 -> LKA | C34: =tblTerritories!C18 -> Sri Lanka | D34: =INDEX(tblTerritories!$R$3:$V$22,A34,uxb_works!$B$10) -> 1 | F34: =IF(D34=0,0,tblTerritories!G18) -> 1 | G34: 100 | H34: =IF(F34=0,"",RANK(G34,G$19:G$38,$B$7)+COUNTIF(G$19:G34,G34)-1) -> 8 | I34: 1 | J34: 1 | K34: 16 | L34: 1 | M34: =16 | N34: Bangladesh | O34: 75 | P34: 75 | Q34: =IF(ISNA(VLOOKUP(N34,uxb_regions!$C$3:$I$82,7,FALSE)),"",VLOOKUP(N34,uxb_regions!$C$3:$I$82,7,FALSE)) -> BGD | R34: 75 | S34: 3 | T34: 75 | U34: =1 -> 1 | V34: 1 | W34: 0 | X34: BGD | AB34: 75 | AE34: Bangladesh | AF34: 75 | AH34: 75 | AM34: 0 | AP34: 0 | AS34: 0 | AV34: 0
A35: =tblTerritories!A19 -> 17 | B35: =tblTerritories!B19 -> TWN | C35: =tblTerritories!C19 -> Taiwan | D35: =INDEX(tblTerritories!$R$3:$V$22,A35,uxb_works!$B$10) -> 1 | F35: =IF(D35=0,0,tblTerritories!G19) -> 1 | G35: 100 | H35: =IF(F35=0,"",RANK(G35,G$19:G$38,$B$7)+COUNTIF(G$19:G35,G35)-1) -> 9 | I35: 6 | J35: 1 | K35: 16 | L35: 1 | M35: =16 | N35: India | O35: 75 | P35: 75 | Q35: =IF(ISNA(VLOOKUP(N35,uxb_regions!$C$3:$I$82,7,FALSE)),"",VLOOKUP(N35,uxb_regions!$C$3:$I$82,7,FALSE)) -> IND | R35: 75 | S35: 3 | T35: 75 | U35: =1 -> 1 | V35: 1 | W35: 0 | X35: IND | AB35: 75 | AE35: India | AF35: 75 | AH35: 75 | AM35: 0 | AP35: 0 | AS35: 0 | AV35: 0
A36: =tblTerritories!A20 -> 18 | B36: =tblTerritories!B20 -> THA | C36: =tblTerritories!C20 -> Thailand | D36: =INDEX(tblTerritories!$R$3:$V$22,A36,uxb_works!$B$10) -> 1 | F36: =IF(D36=0,0,tblTerritories!G20) -> 1 | G36: 100 | H36: =IF(F36=0,"",RANK(G36,G$19:G$38,$B$7)+COUNTIF(G$19:G36,G36)-1) -> 10 | I36: 7 | J36: 1 | K36: 16 | L36: 1 | M36: =16 | N36: Indonesia | O36: 75 | P36: 75 | Q36: =IF(ISNA(VLOOKUP(N36,uxb_regions!$C$3:$I$82,7,FALSE)),"",VLOOKUP(N36,uxb_regions!$C$3:$I$82,7,FALSE)) -> IDN | R36: 75 | S36: 3 | T36: 75 | U36: =1 -> 1 | V36: 1 | W36: 0 | X36: IDN | AB36: 75 | AE36: Indonesia | AF36: 75 | AH36: 75 | AM36: 0 | AP36: 0 | AS36: 0 | AV36: 0
A37: =tblTerritories!A21 -> 19 | B37: =tblTerritories!B21 -> VNM | C37: =tblTerritories!C21 -> Vietnam | D37: =INDEX(tblTerritories!$R$3:$V$22,A37,uxb_works!$B$10) -> 1 | F37: =IF(D37=0,0,tblTerritories!G21) -> 1 | G37: 100 | H37: =IF(F37=0,"",RANK(G37,G$19:G$38,$B$7)+COUNTIF(G$19:G37,G37)-1) -> 11 | I37: 11 | J37: 1 | K37: 16 | L37: 1 | M37: =16 | N37: Myanmar | O37: 75 | P37: 75 | Q37: =IF(ISNA(VLOOKUP(N37,uxb_regions!$C$3:$I$82,7,FALSE)),"",VLOOKUP(N37,uxb_regions!$C$3:$I$82,7,FALSE)) -> MMR | R37: 75 | S37: 3 | T37: 75 | U37: =1 -> 1 | V37: 1 | W37: 0 | X37: MMR | AB37: 75 | AE37: Myanmar | AF37: 75 | AH37: 75 | AM37: 0 | AP37: 0 | AS37: 0 | AV37: 0
A38: =tblTerritories!A22 -> 20 | B38: =tblTerritories!B22 -> USA | C38: =tblTerritories!C22 -> USA | D38: =INDEX(tblTerritories!$R$3:$V$22,A38,uxb_works!$B$10) -> 1 | F38: =IF(D38=0,0,tblTerritories!G22) -> 1 | G38: 100 | H38: =IF(F38=0,"",RANK(G38,G$19:G$38,$B$7)+COUNTIF(G$19:G38,G38)-1) -> 12 | I38: 12 | J38: 1 | K38: 20 | L38: 1 | M38: 20 | N38: Pakistan | O38: 50 | P38: 50 | Q38: =IF(ISNA(VLOOKUP(N38,uxb_regions!$C$3:$I$82,7,FALSE)),"",VLOOKUP(N38,uxb_regions!$C$3:$I$82,7,FALSE)) -> PAK | R38: 50 | S38: 2 | T38: 50 | U38: =1 -> 1 | V38: 1 | W38: 0 | X38: PAK | AB38: 50 | AE38: Pakistan | AF38: 50 | AH38: 50 | AM38: 0 | AP38: 0 | AS38: 0 | AV38: 0
J42: 1 | O42: =IF(uxb_works!B7>1,INDEX(G18:G38,uxb_works!B7),NA()) -> 

Sheet iMap_Graph (hidden)
B1: =uxb_works!B13 -> 32 | C1: =uxb_works!C13 -> IS_BG | D1: =uxb_works!D13 -> Spare1 | E1: =uxb_works!E13 -> INDI_CODE | F1: =uxb_works!F13 -> PARENT_CODE | G1: =uxb_works!G13 -> DEPTH | H1: =uxb_works!H13 -> REF | I1: =uxb_works!I13 -> NDICATOR_SHORT | J1: =uxb_works!J13 -> DESCRIPTION | K1: =uxb_works!K13 -> INDICATOR_UNIT | L1: =uxb_works!L13 -> Rational | M1: =uxb_works!M13 -> Scoring Criteria (0-100 or 0-4 etc) | N1: =uxb_works!N13 -> Year | O1: =uxb_works!O13 -> Geography | P1: =uxb_works!P13 -> HIGH=Good | Q1: =uxb_works!Q13 -> Format | R1: =uxb_works!R13 -> MAIN_SOURCE | S1: =uxb_works!S13 -> SOURCE_WS_ID | T1: =uxb_works!T13 -> HIGH_IS | U1: =uxb_works!U13 -> NORM_ID (1=sumproduct, 2=min max set by data values, 3=min max set by user here)
A2: =uxb_works!A19 -> CITY1_ID | B2: =uxb_works!B14 -> 4 | C2: =uxb_works!C14 -> 0 | D2: =uxb_works!D14 ->  | E2: =uxb_works!E14 -> EP_11 | F2: =uxb_works!F14 -> EP | G2: =uxb_works!G14 -> 2 | H2: =uxb_works!H14 -> 1.11 | I2: =uxb_works!I14 -> Current account liberalisation | J2: =uxb_works!J14 -> A measure of a country’s current account liberalisation, with consideration of restrictions in this area; used to capture the ease with which a country trades goods across its border. | K2: =uxb_works!K14 -> 1-5 scores | L2: =uxb_works!L14 ->  | M2: =uxb_works!M14 ->  | N2: =uxb_works!N14 -> 2014 | O2: =uxb_works!O14 ->  | P2: =uxb_works!P14 -> High score = good | Q2: =uxb_works!Q14 -> #0 | R2: =uxb_works!R14 -> EIU | S2: =uxb_works!S14 -> 1.11 | T2: =uxb_works!T14 -> 0 | U2: =uxb_works!U14 -> 3
A3: INDI_IS_NATIONAL | B3: =D2 ->  | U3: 1
R5: percentiles | S5: equal buckets
A6: SERIES_LEVEL | B6: 1 | O6: Fifths | Q6: 0 | R6: =IF($U$2=1,PERCENTILE(R$19:R$38,Q6),Q6*100) -> 0
A7: Rank_Order | B7: 0 | Q7: 0.25 | R7: =IF($U$2=1,PERCENTILE(R$19:R$38,Q7),Q7*100) -> 25 | T7: 1 | Z7: =56/6 -> 9.333333333
Q8: 0.5 | R8: =IF($U$2=1,PERCENTILE(R$19:R$38,Q8),Q8*100) -> 50 | T8: 2
A9: =uxb_works!A6 -> CITY_HIGHLIGHT_DD | B9: =uxb_works!B6 -> 1 | C9: =uxb_works!C6 -> <none> | D9: =INDEX(P19:P38,MATCH(C9,N19:N38,0)) ->  | Q9: 0.75 | R9: =IF($U$2=1,PERCENTILE(R$19:R$38,Q9),Q9*100) -> 75 | T9: 3
Q10: 1 | R10: =IF($U$2=1,PERCENTILE(R$19:R$38,Q10),Q10*100) -> 100 | T10: 4
T11: 5 | U11: =80/5 -> 16
S13: =PERCENTILE(R$19:R$38,Q11) -> 50
AT14: Buckets
AB15: =uxb_works!B10 -> 1 | AE15: =uxb_works!B10 -> 1 | AY15: ="Score "&ROUND($R$9+0.1,1)&" to "&$R$10 -> Score 75.1 to 100 | BB15: ="Score "&ROUND($R$8+0.1,1)&" to "&ROUND($R$9,1) -> Score 50.1 to 75 | BE15: ="Score "&ROUND($R$7+0.1,1)&" to "&ROUND($R$8,1) -> Score 25.1 to 50 | BH15: ="Score "&ROUND($R$6,1)&" to "&ROUND($R$7,1) -> Score 0 to 25
A17: SHOW_DATA | B17: =IF(OR(P2=1,AK2=0),FALSE,TRUE) -> FALSE | E17: Highlight | T17: ALL UNFILTERED DATA POINTS | V17: Country Highlight | W17: Country Filter | AB17: Region Filter | AE17: Group Filter | AT17: 4 | AU17: 3 | AV17: 2 | AW17: 1 | AY17: 1 | AZ17: 3 | BB17: 1 | BC17: 3 | BE17: 1 | BF17: 3 | BH17: 1 | BI17: 3
D18: IsRegion | E18: Status | F18: ActiveStatus | G18: Score (unrounded) | H18: Rank unrounded | I18: LU | J18: yScatter | K18: RankRounded | O18: Score | P18: Score Display | Q18: =IF($B$17,"Data","") ->  | R18: Map Display | T18: X | U18: Y | AB18: Unsorted | AC18: Sorted | AE18: Unsorted | AF18: Sorted | AN18: Main Set | AO18: Region Filter | AP18: Group Filter | AQ18: Intersect | AR18: Highlighted | AT18: 0 | AU18: 0 | AV18: 0 | AW18: 0 | AY18: B1 | AZ18: B1a | BB18: B2 | BC18: B2a | BE18: B3 | BF18: B3a | BH18: B4 | BI18: B4a
A19: =tblTerritories!A3 -> 1 | B19: =tblTerritories!B3 -> BGD | C19: =tblTerritories!C3 -> Bangladesh | E19: =tblTerritories!E3 -> Bangladesh | F19: =IF(tblTerritories!G3=3,3,IF(tblTerritories!G3=2,2,1)) -> 1 | G19: =IF(F19=0,"",ROUND(INDEX(aScores,$B$2,$A19),2)) -> 75 | H19: =IF(F19=0,"",RANK(G19,G$19:G$38,$B$7)+COUNTIF(G$19:G19,G19)-1) -> 16 | I19: =IF(ISERROR(MATCH($A19,H$19:H$38,0)),"",MATCH($A19,H$19:H$38,0)) -> 2 | J19: =IF(I19="","",1) -> 1 | K19: =IF(I19="","",RANK(O19,O$19:O$38,$B$7)) -> 1 | L19: =IF(I19="",0,INDEX($F$19:$F$38,I19)) -> 1 | M19: =IF(I19="","",IF(OR(K19=K18,K19=K20),CONCATENATE("=",K19),K19)) -> =1 | N19: =IF(I19="","",INDEX($C$19:$C$38,I19)) -> Brunei | O19: =IF(I19="","",INDEX(aRoundedScores,$B$2,I19)) -> 100 | P19: =IF(L19=0,"",IF($C$2=1,"-",O19)) -> 100 | Q19: =IF(ISNA(VLOOKUP(N19,uxb_regions!$C$3:$I$82,7,FALSE)),"",VLOOKUP(N19,uxb_regions!$C$3:$I$82,7,FALSE)) -> BRN | R19: =IF(L19=0,"",O19) -> 100 | S19: =IF(Q19="","",CHOOSE($U$3,IF(R19<R$7,1,IF(R19<R$8,2,IF(R19<R$9,3,IF(R19<=R$10,4)))))) -> 4 | T19: =IF(ISNUMBER(O19),O19,NA()) -> 100 | U19: =1 -> 1 | V19: =IF(ISNA(INDEX($F$19:$F$38,MATCH(N19,$C$19:$C$38,0))),0,INDEX($F$19:$F$38,MATCH(N19,$C$19:$C$38,0))) -> 1 | W19: =IF(OR(V19=3,V19=2),Q19,0) -> 0 | X19: =IF(ISNA(V19),"",Q19) -> BRN | Y19: =IF(L19=2,T19,NA()) ->  | Z19: =IF(L19=2,1,NA()) ->  | AE19: =IF($AE$15=1,0,INDEX(tblTerritories!$S$3:$V$22,A19,$AE$15-1)) -> 0 | AF19: =IF(ISNA(INDEX($AE$19:$AE$38,MATCH(N19,$C$19:$C$38,0))),0,INDEX($AE$19:$AE$38,MATCH(N19,$C$19:$C$38,0))) -> 0 | AJ19: =LARGE($R$19:$R$38,ROW(R1)-ROW($R$1)+1) -> 100 | AM19: =IF(ISNUMBER(O19),N19,CONCATENATE(N19)) -> Brunei | AN19: =IF(ISNUMBER(P19),P19,"-") -> 100 | AP19: =IF(AF19=0,NA(),$AN19) ->  | AR19: =IF(W19=0,NA(),$AN19) ->  | AS19: =TEXT(AN19,$Q$2) -> 100 | AT19: =AT18+MATCH(AT$17,OFFSET($S$19:$S$38,AT18,0),0) -> 1 | AU19: =AU18+MATCH(AU$17,OFFSET($S$19:$S$38,AU18,0),0) -> 20 | AV19: =AV18+MATCH(AV$17,OFFSET($S$19:$S$38,AV18,0),0) ->  | AW19: =AW18+MATCH(AW$17,OFFSET($S$19:$S$38,AW18,0),0) ->  | AY19: =IF(ISNA(AT19),"",INDEX($N$19:$P$38,$AT19,AY$17)) -> Brunei | AZ19: =IF(ISNA(AT19),"",INDEX($N$19:$P$38,$AT19,AZ$17)) -> 100 | BB19: =IF(ISNA(AU19),"",INDEX($N$19:$P$38,$AU19,BB$17)) -> Pakistan | BC19: =IF(ISNA(AU19),"",INDEX($N$19:$P$38,$AU19,BC$17)) -> 50 | BE19: =IF(ISNA(AV19),"",INDEX($N$19:$P$38,$AV19,BE$17)) ->  | BF19: =IF(ISNA(AV19),"",INDEX($N$19:$P$38,$AV19,BF$17)) ->  | BH19: =IF(ISNA(AW19),"",INDEX($N$19:$P$38,$AW19,BH$17)) ->  | BI19: =IF(ISNA(AW19),"",INDEX($N$19:$P$38,$AW19,BI$17)) -> 
A20: =tblTerritories!A4 -> 2 | B20: =tblTerritories!B4 -> BRN | C20: =tblTerritories!C4 -> Brunei | E20: =tblTerritories!E4 -> Brunei | F20: =IF(tblTerritories!G4=3,3,IF(tblTerritories!G4=2,2,1)) -> 1 | G20: 100 | H20: =IF(F20=0,"",RANK(G20,G$19:G$38,$B$7)+COUNTIF(G$19:G20,G20)-1) -> 1 | I20: 3 | J20: =IF(I20="","",1) -> 1 | K20: =IF(I20="","",RANK(O20,O$19:O$38,$B$7)) -> 1 | L20: =IF(I20="",0,INDEX($F$19:$F$38,I20)) -> 1 | M20: =IF(I20="","",IF(OR(K20=K19,K20=K21),CONCATENATE("=",K20),K20)) -> =1 | N20: =IF(I20="","",INDEX($C$19:$C$38,I20)) -> Cambodia | O20: =IF(I20="","",INDEX(aRoundedScores,$B$2,I20)) -> 100 | P20: =IF(L20=0,"",IF($C$2=1,"-",O20)) -> 100 | Q20: =IF(ISNA(VLOOKUP(N20,uxb_regions!$C$3:$I$82,7,FALSE)),"",VLOOKUP(N20,uxb_regions!$C$3:$I$82,7,FALSE)) -> KHM | R20: =IF(L20=0,"",O20) -> 100 | S20: =IF(Q20="","",CHOOSE($U$3,IF(R20<R$7,1,IF(R20<R$8,2,IF(R20<R$9,3,IF(R20<=R$10,4)))))) -> 4 | T20: =IF(ISNUMBER(O20),O20,NA()) -> 100 | U20: =1 -> 1 | V20: =IF(ISNA(INDEX($F$19:$F$38,MATCH(N20,$C$19:$C$38,0))),0,INDEX($F$19:$F$38,MATCH(N20,$C$19:$C$38,0))) -> 1 | W20: =IF(OR(V20=3,V20=2),Q20,0) -> 0 | X20: =IF(ISNA(V20),"",Q20) -> KHM | Y20: =IF(L20=2,T20,NA()) ->  | Z20: =IF(L20=2,1,NA()) ->  | AE20: =IF($AE$15=1,0,INDEX(tblTerritories!$S$3:$V$22,A20,$AE$15-1)) -> 0 | AF20: =IF(ISNA(INDEX($AE$19:$AE$38,MATCH(N20,$C$19:$C$38,0))),0,INDEX($AE$19:$AE$38,MATCH(N20,$C$19:$C$38,0))) -> 0 | AJ20: =LARGE($R$19:$R$38,ROW(R2)-ROW($R$1)+1) -> 100 | AM20: =IF(ISNUMBER(O20),N20,CONCATENATE(N20)) -> Cambodia | AN20: =IF(ISNUMBER(P20),P20,"-") -> 100 | AP20: =IF(AF20=0,NA(),$AN20) ->  | AR20: =IF(W20=0,NA(),$AN20) ->  | AS20: =TEXT(AN20,$Q$2) -> 100 | AT20: =AT19+MATCH(AT$17,OFFSET($S$19:$S$38,AT19,0),0) -> 2 | AU20: =AU19+MATCH(AU$17,OFFSET($S$19:$S$38,AU19,0),0) ->  | AV20: =AV19+MATCH(AV$17,OFFSET($S$19:$S$38,AV19,0),0) ->  | AW20: =AW19+MATCH(AW$17,OFFSET($S$19:$S$38,AW19,0),0) ->  | AY20: =IF(ISNA(AT20),"",INDEX($N$19:$P$38,$AT20,AY$17)) -> Cambodia | AZ20: =IF(ISNA(AT20),"",INDEX($N$19:$P$38,$AT20,AZ$17)) -> 100 | BB20: =IF(ISNA(AU20),"",INDEX($N$19:$P$38,$AU20,BB$17)) ->  | BC20: =IF(ISNA(AU20),"",INDEX($N$19:$P$38,$AU20,BC$17)) ->  | BE20: =IF(ISNA(AV20),"",INDEX($N$19:$P$38,$AV20,BE$17)) ->  | BF20: =IF(ISNA(AV20),"",INDEX($N$19:$P$38,$AV20,BF$17)) ->  | BH20: =IF(ISNA(AW20),"",INDEX($N$19:$P$38,$AW20,BH$17)) ->  | BI20: =IF(ISNA(AW20),"",INDEX($N$19:$P$38,$AW20,BI$17)) -> 
A21: =tblTerritories!A5 -> 3 | B21: =tblTerritories!B5 -> KHM | C21: =tblTerritories!C5 -> Cambodia | E21: =tblTerritories!E5 -> Cambodia | F21: =IF(tblTerritories!G5=3,3,IF(tblTerritories!G5=2,2,1)) -> 1 | G21: 100 | H21: =IF(F21=0,"",RANK(G21,G$19:G$38,$B$7)+COUNTIF(G$19:G21,G21)-1) -> 2 | I21: 5 | J21: 1 | K21: 1 | L21: 1 | M21: =1 | N21: Hong Kong | O21: 100 | P21: 100 | Q21: =IF(ISNA(VLOOKUP(N21,uxb_regions!$C$3:$I$82,7,FALSE)),"",VLOOKUP(N21,uxb_regions!$C$3:$I$82,7,FALSE)) -> HKG | R21: 100 | S21: 4 | T21: 100 | U21: =1 -> 1 | V21: 1 | W21: 0 | X21: HKG | AE21: =IF($AE$15=1,0,INDEX(tblTerritories!$S$3:$V$22,A21,$AE$15-1)) -> 0 | AF21: 0 | AJ21: 100 | AM21: Hong Kong | AN21: 100 | AS21: 100 | AT21: 3 | AY21: Hong Kong | AZ21: 100
A22: =tblTerritories!A6 -> 4 | B22: =tblTerritories!B6 -> CHN | C22: =tblTerritories!C6 -> China | E22: =tblTerritories!E6 -> China | F22: =IF(tblTerritories!G6=3,3,IF(tblTerritories!G6=2,2,1)) -> 1 | G22: 85 | H22: =IF(F22=0,"",RANK(G22,G$19:G$38,$B$7)+COUNTIF(G$19:G22,G22)-1) -> 13 | I22: 8 | J22: 1 | K22: 1 | L22: 1 | M22: =1 | N22: Japan | O22: 100 | P22: 100 | Q22: =IF(ISNA(VLOOKUP(N22,uxb_regions!$C$3:$I$82,7,FALSE)),"",VLOOKUP(N22,uxb_regions!$C$3:$I$82,7,FALSE)) -> JPN | R22: 100 | S22: 4 | T22: 100 | U22: =1 -> 1 | V22: 1 | W22: 0 | X22: JPN | AE22: =IF($AE$15=1,0,INDEX(tblTerritories!$S$3:$V$22,A22,$AE$15-1)) -> 0 | AF22: 0 | AJ22: 100 | AM22: Japan | AN22: 100 | AS22: 100 | AT22: 4 | AY22: Japan | AZ22: 100
A23: =tblTerritories!A7 -> 5 | B23: =tblTerritories!B7 -> HKG | C23: =tblTerritories!C7 -> Hong Kong | E23: =tblTerritories!E7 -> Hong Kong | F23: =IF(tblTerritories!G7=3,3,IF(tblTerritories!G7=2,2,1)) -> 1 | G23: 100 | H23: =IF(F23=0,"",RANK(G23,G$19:G$38,$B$7)+COUNTIF(G$19:G23,G23)-1) -> 3 | I23: 9 | J23: 1 | K23: 1 | L23: 1 | M23: =1 | N23: Laos | O23: 100 | P23: 100 | Q23: =IF(ISNA(VLOOKUP(N23,uxb_regions!$C$3:$I$82,7,FALSE)),"",VLOOKUP(N23,uxb_regions!$C$3:$I$82,7,FALSE)) -> LAO | R23: 100 | S23: 4 | T23: 100 | U23: =1 -> 1 | V23: 1 | W23: 0 | X23: LAO | AE23: =IF($AE$15=1,0,INDEX(tblTerritories!$S$3:$V$22,A23,$AE$15-1)) -> 0 | AF23: 0 | AJ23: 100 | AM23: Laos | AN23: 100 | AS23: 100 | AT23: 5 | AY23: Laos | AZ23: 100
A24: =tblTerritories!A8 -> 6 | B24: =tblTerritories!B8 -> IND | C24: =tblTerritories!C8 -> India | E24: =tblTerritories!E8 -> India | F24: =IF(tblTerritories!G8=3,3,IF(tblTerritories!G8=2,2,1)) -> 1 | G24: 75 | H24: =IF(F24=0,"",RANK(G24,G$19:G$38,$B$7)+COUNTIF(G$19:G24,G24)-1) -> 17 | I24: 10 | J24: 1 | K24: 1 | L24: 1 | M24: =1 | N24: Malaysia | O24: 100 | P24: 100 | Q24: =IF(ISNA(VLOOKUP(N24,uxb_regions!$C$3:$I$82,7,FALSE)),"",VLOOKUP(N24,uxb_regions!$C$3:$I$82,7,FALSE)) -> MYS | R24: 100 | S24: 4 | T24: 100 | U24: =1 -> 1 | V24: 1 | W24: 0 | X24: MYS | AE24: =IF($AE$15=1,0,INDEX(tblTerritories!$S$3:$V$22,A24,$AE$15-1)) -> 0 | AF24: 0 | AJ24: 100 | AM24: Malaysia | AN24: 100 | AS24: 100 | AT24: 6 | AY24: Malaysia | AZ24: 100
A25: =tblTerritories!A9 -> 7 | B25: =tblTerritories!B9 -> IDN | C25: =tblTerritories!C9 -> Indonesia | E25: =tblTerritories!E9 -> Indonesia | F25: =IF(tblTerritories!G9=3,3,IF(tblTerritories!G9=2,2,1)) -> 1 | G25: 75 | H25: =IF(F25=0,"",RANK(G25,G$19:G$38,$B$7)+COUNTIF(G$19:G25,G25)-1) -> 18 | I25: 14 | J25: 1 | K25: 1 | L25: 1 | M25: =1 | N25: Singapore | O25: 100 | P25: 100 | Q25: =IF(ISNA(VLOOKUP(N25,uxb_regions!$C$3:$I$82,7,FALSE)),"",VLOOKUP(N25,uxb_regions!$C$3:$I$82,7,FALSE)) -> SGP | R25: 100 | S25: 4 | T25: 100 | U25: =1 -> 1 | V25: 1 | W25: 0 | X25: SGP | AE25: =IF($AE$15=1,0,INDEX(tblTerritories!$S$3:$V$22,A25,$AE$15-1)) -> 0 | AF25: 0 | AJ25: 100 | AM25: Singapore | AN25: 100 | AS25: 100 | AT25: 7 | AY25: Singapore | AZ25: 100
A26: =tblTerritories!A10 -> 8 | B26: =tblTerritories!B10 -> JPN | C26: =tblTerritories!C10 -> Japan | E26: =tblTerritories!E10 -> Japan | F26: =IF(tblTerritories!G10=3,3,IF(tblTerritories!G10=2,2,1)) -> 1 | G26: 100 | H26: =IF(F26=0,"",RANK(G26,G$19:G$38,$B$7)+COUNTIF(G$19:G26,G26)-1) -> 4 | I26: 16 | J26: 1 | K26: 1 | L26: 1 | M26: =1 | N26: Sri Lanka | O26: 100 | P26: 100 | Q26: =IF(ISNA(VLOOKUP(N26,uxb_regions!$C$3:$I$82,7,FALSE)),"",VLOOKUP(N26,uxb_regions!$C$3:$I$82,7,FALSE)) -> LKA | R26: 100 | S26: 4 | T26: 100 | U26: =1 -> 1 | V26: 1 | W26: 0 | X26: LKA | AE26: =IF($AE$15=1,0,INDEX(tblTerritories!$S$3:$V$22,A26,$AE$15-1)) -> 0 | AF26: 0 | AJ26: 100 | AM26: Sri Lanka | AN26: 100 | AS26: 100 | AT26: 8 | AY26: Sri Lanka | AZ26: 100
A27: =tblTerritories!A11 -> 9 | B27: =tblTerritories!B11 -> LAO | C27: =tblTerritories!C11 -> Laos | E27: =tblTerritories!E11 -> Laos | F27: =IF(tblTerritories!G11=3,3,IF(tblTerritories!G11=2,2,1)) -> 1 | G27: 100 | H27: =IF(F27=0,"",RANK(G27,G$19:G$38,$B$7)+COUNTIF(G$19:G27,G27)-1) -> 5 | I27: 17 | J27: 1 | K27: 1 | L27: 1 | M27: =1 | N27: Taiwan | O27: 100 | P27: 100 | Q27: =IF(ISNA(VLOOKUP(N27,uxb_regions!$C$3:$I$82,7,FALSE)),"",VLOOKUP(N27,uxb_regions!$C$3:$I$82,7,FALSE)) -> TWN | R27: 100 | S27: 4 | T27: 100 | U27: =1 -> 1 | V27: 1 | W27: 0 | X27: TWN | AE27: =IF($AE$15=1,0,INDEX(tblTerritories!$S$3:$V$22,A27,$AE$15-1)) -> 0 | AF27: 0 | AJ27: 100 | AM27: Taiwan | AN27: 100 | AS27: 100 | AT27: 9 | AY27: Taiwan | AZ27: 100
A28: =tblTerritories!A12 -> 10 | B28: =tblTerritories!B12 -> MYS | C28: =tblTerritories!C12 -> Malaysia | E28: =tblTerritories!E12 -> Malaysia | F28: =IF(tblTerritories!G12=3,3,IF(tblTerritories!G12=2,2,1)) -> 1 | G28: 100 | H28: =IF(F28=0,"",RANK(G28,G$19:G$38,$B$7)+COUNTIF(G$19:G28,G28)-1) -> 6 | I28: 18 | J28: 1 | K28: 1 | L28: 1 | M28: =1 | N28: Thailand | O28: 100 | P28: 100 | Q28: =IF(ISNA(VLOOKUP(N28,uxb_regions!$C$3:$I$82,7,FALSE)),"",VLOOKUP(N28,uxb_regions!$C$3:$I$82,7,FALSE)) -> THA | R28: 100 | S28: 4 | T28: 100 | U28: =1 -> 1 | V28: 1 | W28: 0 | X28: THA | AE28: =IF($AE$15=1,0,INDEX(tblTerritories!$S$3:$V$22,A28,$AE$15-1)) -> 0 | AF28: 0 | AJ28: 100 | AM28: Thailand | AN28: 100 | AS28: 100 | AT28: 10 | AY28: Thailand | AZ28: 100
A29: =tblTerritories!A13 -> 11 | B29: =tblTerritories!B13 -> MMR | C29: =tblTerritories!C13 -> Myanmar | E29: =tblTerritories!E13 -> Myanmar | F29: =IF(tblTerritories!G13=3,3,IF(tblTerritories!G13=2,2,1)) -> 1 | G29: 75 | H29: =IF(F29=0,"",RANK(G29,G$19:G$38,$B$7)+COUNTIF(G$19:G29,G29)-1) -> 19 | I29: 19 | J29: 1 | K29: 1 | L29: 1 | M29: =1 | N29: Vietnam | O29: 100 | P29: 100 | Q29: =IF(ISNA(VLOOKUP(N29,uxb_regions!$C$3:$I$82,7,FALSE)),"",VLOOKUP(N29,uxb_regions!$C$3:$I$82,7,FALSE)) -> VNM | R29: 100 | S29: 4 | T29: 100 | U29: =1 -> 1 | V29: 1 | W29: 0 | X29: VNM | AE29: =IF($AE$15=1,0,INDEX(tblTerritories!$S$3:$V$22,A29,$AE$15-1)) -> 0 | AF29: 0 | AJ29: 100 | AM29: Vietnam | AN29: 100 | AS29: 100 | AT29: 11 | AY29: Vietnam | AZ29: 100
A30: =tblTerritories!A14 -> 12 | B30: =tblTerritories!B14 -> PAK | C30: =tblTerritories!C14 -> Pakistan | E30: =tblTerritories!E14 -> Pakistan | F30: =IF(tblTerritories!G14=3,3,IF(tblTerritories!G14=2,2,1)) -> 1 | G30: 50 | H30: =IF(F30=0,"",RANK(G30,G$19:G$38,$B$7)+COUNTIF(G$19:G30,G30)-1) -> 20 | I30: 20 | J30: 1 | K30: 1 | L30: 1 | M30: =1 | N30: USA | O30: 100 | P30: 100 | Q30: =IF(ISNA(VLOOKUP(N30,uxb_regions!$C$3:$I$82,7,FALSE)),"",VLOOKUP(N30,uxb_regions!$C$3:$I$82,7,FALSE)) -> USA | R30: 100 | S30: 4 | T30: 100 | U30: =1 -> 1 | V30: 1 | W30: 0 | X30: USA | AE30: =IF($AE$15=1,0,INDEX(tblTerritories!$S$3:$V$22,A30,$AE$15-1)) -> 0 | AF30: 0 | AJ30: 100 | AM30: USA | AN30: 100 | AS30: 100 | AT30: 12 | AY30: USA | AZ30: 100
A31: =tblTerritories!A15 -> 13 | B31: =tblTerritories!B15 -> PHL | C31: =tblTerritories!C15 -> Philippines | E31: =tblTerritories!E15 -> Philippines | F31: =IF(tblTerritories!G15=3,3,IF(tblTerritories!G15=2,2,1)) -> 1 | G31: 85 | H31: =IF(F31=0,"",RANK(G31,G$19:G$38,$B$7)+COUNTIF(G$19:G31,G31)-1) -> 14 | I31: 4 | J31: 1 | K31: 13 | L31: 1 | M31: =13 | N31: China | O31: 85 | P31: 85 | Q31: =IF(ISNA(VLOOKUP(N31,uxb_regions!$C$3:$I$82,7,FALSE)),"",VLOOKUP(N31,uxb_regions!$C$3:$I$82,7,FALSE)) -> CHN | R31: 85 | S31: 4 | T31: 85 | U31: =1 -> 1 | V31: 1 | W31: 0 | X31: CHN | AE31: =IF($AE$15=1,0,INDEX(tblTerritories!$S$3:$V$22,A31,$AE$15-1)) -> 0 | AF31: 0 | AJ31: 85 | AM31: China | AN31: 85 | AS31: 85 | AT31: 13 | AY31: China | AZ31: 85
A32: =tblTerritories!A16 -> 14 | B32: =tblTerritories!B16 -> SGP | C32: =tblTerritories!C16 -> Singapore | E32: =tblTerritories!E16 -> Singapore | F32: =IF(tblTerritories!G16=3,3,IF(tblTerritories!G16=2,2,1)) -> 1 | G32: 100 | H32: =IF(F32=0,"",RANK(G32,G$19:G$38,$B$7)+COUNTIF(G$19:G32,G32)-1) -> 7 | I32: 13 | J32: 1 | K32: 13 | L32: 1 | M32: =13 | N32: Philippines | O32: 85 | P32: 85 | Q32: =IF(ISNA(VLOOKUP(N32,uxb_regions!$C$3:$I$82,7,FALSE)),"",VLOOKUP(N32,uxb_regions!$C$3:$I$82,7,FALSE)) -> PHL | R32: 85 | S32: 4 | T32: 85 | U32: =1 -> 1 | V32: 1 | W32: 0 | X32: PHL | AE32: =IF($AE$15=1,0,INDEX(tblTerritories!$S$3:$V$22,A32,$AE$15-1)) -> 0 | AF32: 0 | AJ32: 85 | AM32: Philippines | AN32: 85 | AS32: 85 | AT32: 14 | AY32: Philippines | AZ32: 85
A33: =tblTerritories!A17 -> 15 | B33: =tblTerritories!B17 -> KOR | C33: =tblTerritories!C17 -> South Korea | E33: =tblTerritories!E17 -> South Korea | F33: =IF(tblTerritories!G17=3,3,IF(tblTerritories!G17=2,2,1)) -> 1 | G33: 85 | H33: =IF(F33=0,"",RANK(G33,G$19:G$38,$B$7)+COUNTIF(G$19:G33,G33)-1) -> 15 | I33: 15 | J33: 1 | K33: 13 | L33: 1 | M33: =13 | N33: South Korea | O33: 85 | P33: 85 | Q33: =IF(ISNA(VLOOKUP(N33,uxb_regions!$C$3:$I$82,7,FALSE)),"",VLOOKUP(N33,uxb_regions!$C$3:$I$82,7,FALSE)) -> KOR | R33: 85 | S33: 4 | T33: 85 | U33: =1 -> 1 | V33: 1 | W33: 0 | X33: KOR | AE33: =IF($AE$15=1,0,INDEX(tblTerritories!$S$3:$V$22,A33,$AE$15-1)) -> 0 | AF33: 0 | AJ33: 85 | AM33: South Korea | AN33: 85 | AS33: 85 | AT33: 15 | AY33: South Korea | AZ33: 85
A34: =tblTerritories!A18 -> 16 | B34: =tblTerritories!B18 -> LKA | C34: =tblTerritories!C18 -> Sri Lanka | E34: =tblTerritories!E18 -> Sri Lanka | F34: =IF(tblTerritories!G18=3,3,IF(tblTerritories!G18=2,2,1)) -> 1 | G34: 100 | H34: =IF(F34=0,"",RANK(G34,G$19:G$38,$B$7)+COUNTIF(G$19:G34,G34)-1) -> 8 | I34: 1 | J34: 1 | K34: 16 | L34: 1 | M34: =16 | N34: Bangladesh | O34: 75 | P34: 75 | Q34: =IF(ISNA(VLOOKUP(N34,uxb_regions!$C$3:$I$82,7,FALSE)),"",VLOOKUP(N34,uxb_regions!$C$3:$I$82,7,FALSE)) -> BGD | R34: 75 | S34: 4 | T34: 75 | U34: =1 -> 1 | V34: 1 | W34: 0 | X34: BGD | AE34: =IF($AE$15=1,0,INDEX(tblTerritories!$S$3:$V$22,A34,$AE$15-1)) -> 0 | AF34: 0 | AJ34: 75 | AM34: Bangladesh | AN34: 75 | AS34: 75 | AT34: 16 | AY34: Bangladesh | AZ34: 75
A35: =tblTerritories!A19 -> 17 | B35: =tblTerritories!B19 -> TWN | C35: =tblTerritories!C19 -> Taiwan | E35: =tblTerritories!E19 -> Taiwan | F35: =IF(tblTerritories!G19=3,3,IF(tblTerritories!G19=2,2,1)) -> 1 | G35: 100 | H35: =IF(F35=0,"",RANK(G35,G$19:G$38,$B$7)+COUNTIF(G$19:G35,G35)-1) -> 9 | I35: 6 | J35: 1 | K35: 16 | L35: 1 | M35: =16 | N35: India | O35: 75 | P35: 75 | Q35: =IF(ISNA(VLOOKUP(N35,uxb_regions!$C$3:$I$82,7,FALSE)),"",VLOOKUP(N35,uxb_regions!$C$3:$I$82,7,FALSE)) -> IND | R35: 75 | S35: 4 | T35: 75 | U35: =1 -> 1 | V35: 1 | W35: 0 | X35: IND | AE35: =IF($AE$15=1,0,INDEX(tblTerritories!$S$3:$V$22,A35,$AE$15-1)) -> 0 | AF35: 0 | AJ35: 75 | AM35: India | AN35: 75 | AS35: 75 | AT35: 17 | AY35: India | AZ35: 75
A36: =tblTerritories!A20 -> 18 | B36: =tblTerritories!B20 -> THA | C36: =tblTerritories!C20 -> Thailand | E36: =tblTerritories!E20 -> Thailand | F36: =IF(tblTerritories!G20=3,3,IF(tblTerritories!G20=2,2,1)) -> 1 | G36: 100 | H36: =IF(F36=0,"",RANK(G36,G$19:G$38,$B$7)+COUNTIF(G$19:G36,G36)-1) -> 10 | I36: 7 | J36: 1 | K36: 16 | L36: 1 | M36: =16 | N36: Indonesia | O36: 75 | P36: 75 | Q36: =IF(ISNA(VLOOKUP(N36,uxb_regions!$C$3:$I$82,7,FALSE)),"",VLOOKUP(N36,uxb_regions!$C$3:$I$82,7,FALSE)) -> IDN | R36: 75 | S36: 4 | T36: 75 | U36: =1 -> 1 | V36: 1 | W36: 0 | X36: IDN | AE36: =IF($AE$15=1,0,INDEX(tblTerritories!$S$3:$V$22,A36,$AE$15-1)) -> 0 | AF36: 0 | AJ36: 75 | AM36: Indonesia | AN36: 75 | AS36: 75 | AT36: 18 | AY36: Indonesia | AZ36: 75
A37: =tblTerritories!A21 -> 19 | B37: =tblTerritories!B21 -> VNM | C37: =tblTerritories!C21 -> Vietnam | E37: =tblTerritories!E21 -> Vietnam | F37: =IF(tblTerritories!G21=3,3,IF(tblTerritories!G21=2,2,1)) -> 1 | G37: 100 | H37: =IF(F37=0,"",RANK(G37,G$19:G$38,$B$7)+COUNTIF(G$19:G37,G37)-1) -> 11 | I37: 11 | J37: 1 | K37: 16 | L37: 1 | M37: =16 | N37: Myanmar | O37: 75 | P37: 75 | Q37: =IF(ISNA(VLOOKUP(N37,uxb_regions!$C$3:$I$82,7,FALSE)),"",VLOOKUP(N37,uxb_regions!$C$3:$I$82,7,FALSE)) -> MMR | R37: 75 | S37: 4 | T37: 75 | U37: =1 -> 1 | V37: 1 | W37: 0 | X37: MMR | AE37: =IF($AE$15=1,0,INDEX(tblTerritories!$S$3:$V$22,A37,$AE$15-1)) -> 0 | AF37: 0 | AJ37: 75 | AM37: Myanmar | AN37: 75 | AS37: 75 | AT37: 19 | AY37: Myanmar | AZ37: 75
A38: =tblTerritories!A22 -> 20 | B38: =tblTerritories!B22 -> USA | C38: =tblTerritories!C22 -> USA | E38: =tblTerritories!E22 -> USA | F38: =IF(tblTerritories!G22=3,3,IF(tblTerritories!G22=2,2,1)) -> 1 | G38: 100 | H38: =IF(F38=0,"",RANK(G38,G$19:G$38,$B$7)+COUNTIF(G$19:G38,G38)-1) -> 12 | I38: 12 | J38: 1 | K38: 20 | L38: 1 | M38: 20 | N38: Pakistan | O38: 50 | P38: 50 | Q38: =IF(ISNA(VLOOKUP(N38,uxb_regions!$C$3:$I$82,7,FALSE)),"",VLOOKUP(N38,uxb_regions!$C$3:$I$82,7,FALSE)) -> PAK | R38: 50 | S38: 3 | T38: 50 | U38: =1 -> 1 | V38: 1 | W38: 0 | X38: PAK | AE38: =IF($AE$15=1,0,INDEX(tblTerritories!$S$3:$V$22,A38,$AE$15-1)) -> 0 | AF38: 0 | AJ38: 50 | AM38: Pakistan | AN38: 50 | AS38: 50
J42: 1 | O42: =IF(uxb_works!B7>1,INDEX(G18:G38,uxb_works!B7),NA()) -> 

Sheet uxb_mapdata (hidden)
N1: 1 | P1: 2 | R1: 3 | T1: 4 | V1: 5
L5: =#REF! -> 
L6: EIU Calculation
M9: =IF(OR(#REF!=0,#REF!=1),IF(#REF!<100,TEXT(#REF!,"0.0"),TEXT(#REF!,"#,#")),"") ->  | N9: =IF(OR(#REF!=0,#REF!=1),"",0) ->  | O9: =IF(OR(#REF!=0,#REF!=1),IF(#REF!<100,TEXT(#REF!,"0.0"),TEXT(#REF!,"#,#")),"") ->  | P9: =IF(OR(#REF!=0,#REF!=1),"",25) ->  | Q9: =IF(OR(#REF!=0,#REF!=1),IF(#REF!<100,TEXT(#REF!,"0.0"),TEXT(#REF!,"#,#")),"") ->  | R9: =IF(OR(#REF!=0,#REF!=1),"",50) ->  | S9: =IF(OR(#REF!=0,#REF!=1),IF(#REF!<100,TEXT(#REF!,"0.0"),TEXT(#REF!,"#,#")),"") ->  | T9: =IF(OR(#REF!=0,#REF!=1),"",75) ->  | U9: =IF(OR(#REF!=0,#REF!=1),IF(#REF!<100,TEXT(#REF!,"0.0"),TEXT(#REF!,"#,#")),"") ->  | V9: =IF(OR(#REF!=0,#REF!=1),"",100) ->  | W9: =IF(OR(#REF!=0,#REF!=1),IF(#REF!<100,TEXT(#REF!,"0.0"),TEXT(#REF!,"#,#")),"") -> 
I12: Highlight outline | J12: Shape outline | K12: N/A Fill | M12: 1 | N12: 2 | O12: 3 | P12: 4
J13: x
M16: Regions
J17: x
V38: .

Sheet uxb_regions (hidden)
B1: RegionCode | C1: <none> | I1: MAPCODE
A2: 1 | C2: <none>
A3: 2 | B3: =tblTerritories!B3 -> BGD | C3: =tblTerritories!C3 -> Bangladesh | E3: =B3 -> BGD | I3: =B3 -> BGD
A4: 3 | B4: =tblTerritories!B4 -> BRN | C4: =tblTerritories!C4 -> Brunei | E4: =B4 -> BRN | I4: =B4 -> BRN
A5: 4 | B5: =tblTerritories!B5 -> KHM | C5: =tblTerritories!C5 -> Cambodia | E5: KHM | I5: KHM
A6: 5 | B6: =tblTerritories!B6 -> CHN | C6: =tblTerritories!C6 -> China | E6: CHN | I6: CHN
A7: 6 | B7: =tblTerritories!B7 -> HKG | C7: =tblTerritories!C7 -> Hong Kong | E7: HKG | I7: HKG
A8: 7 | B8: =tblTerritories!B8 -> IND | C8: =tblTerritories!C8 -> India | E8: IND | I8: IND
A9: 8 | B9: =tblTerritories!B9 -> IDN | C9: =tblTerritories!C9 -> Indonesia | E9: IDN | I9: IDN
A10: 9 | B10: =tblTerritories!B10 -> JPN | C10: =tblTerritories!C10 -> Japan | E10: JPN | I10: JPN
A11: 10 | B11: =tblTerritories!B11 -> LAO | C11: =tblTerritories!C11 -> Laos | E11: LAO | I11: LAO
A12: 11 | B12: =tblTerritories!B12 -> MYS | C12: =tblTerritories!C12 -> Malaysia | E12: MYS | I12: MYS
A13: 12 | B13: =tblTerritories!B13 -> MMR | C13: =tblTerritories!C13 -> Myanmar | E13: MMR | I13: MMR
A14: 13 | B14: =tblTerritories!B14 -> PAK | C14: =tblTerritories!C14 -> Pakistan | E14: PAK | I14: PAK
A15: 14 | B15: =tblTerritories!B15 -> PHL | C15: =tblTerritories!C15 -> Philippines | E15: PHL | I15: PHL
A16: 15 | B16: =tblTerritories!B16 -> SGP | C16: =tblTerritories!C16 -> Singapore | E16: SGP | I16: SGP
A17: 16 | B17: =tblTerritories!B17 -> KOR | C17: =tblTerritories!C17 -> South Korea | E17: KOR | I17: KOR
A18: 17 | B18: =tblTerritories!B18 -> LKA | C18: =tblTerritories!C18 -> Sri Lanka | E18: LKA | I18: LKA
A19: 18 | B19: =tblTerritories!B19 -> TWN | C19: =tblTerritories!C19 -> Taiwan | E19: TWN | I19: TWN
A20: 19 | B20: =tblTerritories!B20 -> THA | C20: =tblTerritories!C20 -> Thailand | E20: THA | I20: THA
A21: 20 | B21: =tblTerritories!B21 -> VNM | C21: =tblTerritories!C21 -> Vietnam | E21: VNM | I21: VNM
A22: 21 | B22: =tblTerritories!B22 -> USA | C22: =tblTerritories!C22 -> USA | E22: USA | I22: USA

Sheet tblIndicators (hidden)
A1: ID | B1: IS_BG | C1: Spare1 | D1: INDI_CODE | E1: PARENT_CODE | F1: DEPTH | G1: REF | H1: NDICATOR_SHORT | I1: DESCRIPTION | J1: INDICATOR_UNIT | K1: Rational | L1: Scoring Criteria (0-100 or 0-4 etc) | M1: Year | N1: Geography | O1: HIGH=Good | P1: Format | Q1: MAIN_SOURCE | R1: SOURCE_WS_ID | S1: HIGH_IS | T1: NORM_ID (1=sumproduct, 2=min max set by data values, 3=min max set by user here) | U1: Set Min | V1: Set Max | W1: WEIGHT_NOM | X1: WEIGHT_PERC | Y1: REF_INDI | Z1: PARENT | AA1: Weight_row | AB1: Weight_nom_inc_1 | AC1: Weight-% | AE1: Weight_nom_inc_2 | AF1: Weight-% | AH1: Weight_nom_inc_3 | AI1: Weight-% | AK1: Weight_nom_inc_4 | AL1: Weight-% | AN1: Weight_nom_2_1 | AO1: Weight-%_2 | AQ1: Weight_nom_2_2 | AR1: Weight-%_2 | AT1: Weight_nom_2_3 | AU1: Weight-%_2 | AW1: Weight_nom_2_4 | AX1: Weight-%_2 | AZ1: Weights for display only | BA1: Weight-%_2
A2: 1 | B2: 0 | D2: TOTAL | E2: OVERALL SCORE | F2: 0 | H2: OVERALL SCORE | I2: The overall score is the weighted sum of the following category scores: 1) ECONOMIC PILLAR 2) SOCIAL PILLAR 3) ENVIRONMENTAL PILLAR | J2: Index score/number | M2: =CHOOSE(iDateCollect!AD4,iDateCollect!Z4,"Dates range between "&iDateCollect!Y4&" and "&iDateCollect!Z4,"Scores derived from data taken between "&iDateCollect!AB4&" and "&iDateCollect!AC4,iDateCollect!AC2) -> Scores derived from data taken between 2006 and 2014 | P2: 0.0 | Q2: EIU Calculation | S2: =IF(O2="","",IF(O2="High score = good",0,1)) ->  | T2: 1 | W2: =AC2 -> 0 | X2: =IF(F2=0,"",IF(SUMIF(E$3:E$126,E2,W$3:W$33)=0,0,W2/SUMIF(E$3:E$33,E2,W$3:W$33))) ->  | Y2: =IF(G2="",H2,CONCATENATE(G2,") ",IF(F2>=2,H2,UPPER(H2)))) -> OVERALL SCORE
A3: 2 | B3: 0 | D3: EP | E3: TOTAL | F3: 1 | G3: 1 | H3: =iDataCollect!C5 -> Economic pillar | I3: The category score is the weighted sum of the following indicator scores: 1.10) Growth in per capita GDP 1.11) Current account liberalisation 1.12) Tariff & non-tariff barriers 1.13) Exchange rate volatility 1.14) Financial sector depth 1.15) Foreign trade and payments risk 1.16) Export market concentration 1.17) Export product concentration 1.18) Foreign Direct Investment 1.19) Gross fixed capital formation 1.20) Trade costs 1.21) Technological innovation 1.22) Technological infrastructure 1.23) Growth in labour force | J3: Index score/number | M3: =CHOOSE(iDateCollect!AD5,iDateCollect!Z5,"Dates range between "&iDateCollect!Y5&" and "&iDateCollect!Z5,"Scores derived from data taken between "&iDateCollect!AB5&" and "&iDateCollect!AC5,iDateCollect!AC3) -> Scores derived from data taken between 2006 and 2014 | P3: #0.0 | Q3: EIU Calculation | R3: =G3 -> 1 | S3: =IF(O3="","",IF(O3="High score = good",0,1)) ->  | T3: 1 | W3: =AC3 -> 0.3333333333 | X3: 0.3333333333 | Y3: 1) ECONOMIC PILLAR | Z3: =$Y$2 -> OVERALL SCORE | AA3: =MATCH($D3,Weights!$C$7:$C$47,0) -> 1 | AB3: =IF(ISERROR($AA3),1,INDEX(Weights2!$G$7:$G$45,$AA3)) -> 1 | AC3: =IF(ISERROR(AB3/SUMIF($E$2:$E$42,$E3,AB$2:AB$33)),0,AB3/SUMIF($E$2:$E$42,$E3,AB$2:AB$33)) -> 0.3333333333 | AE3: =IF(ISERROR($AA3),1,INDEX(Weights2!$K$7:$K$45,$AA3)) -> 1 | AF3: =IF(ISERROR(AE3/SUMIF($E$2:$E$42,$E3,AE$2:AE$33)),0,AE3/SUMIF($E$2:$E$42,$E3,AE$2:AE$33)) -> 0.3333333333 | AH3: =IF(ISERROR(AA3),1,INDEX(Weights2!$O$7:$O$77,AA3)) -> 1 | AI3: =IF(ISERROR(AH3/SUMIF($E$2:$E$42,$E3,AH$2:AH$33)),0,AH3/SUMIF($E$2:$E$42,$E3,AH$2:AH$33)) -> 0.3333333333 | AK3: =IF(ISERROR(AA3),1,INDEX(Weights2!$S$7:$S$77,AA3)) -> 1 | AL3: =IF(ISERROR(AK3/SUMIF($E$2:$E$42,$E3,AK$2:AK$33)),0,AK3/SUMIF($E$2:$E$42,$E3,AK$2:AK$33)) -> 0.3333333333 | AN3: =IF(ISERROR($AA3),1,INDEX(iWeights2!$H$5:$AU$43,$AA3,uxb_works!$B$36)) -> 1 | AO3: =IF(ISERROR(AN3/SUMIF($E$2:$E$42,$E3,AN$2:AN$33)),0,AN3/SUMIF($E$2:$E$42,$E3,AN$2:AN$33)) -> 0.3333333333 | AQ3: =IF(ISERROR($AA3),1,INDEX(iWeights2!$H$5:$AU$43,$AA3,uxb_works!$B$36+1)) -> 1.2 | AR3: =IF(ISERROR(AQ3/SUMIF($E$2:$E$42,$E3,AQ$2:AQ$33)),0,AQ3/SUMIF($E$2:$E$42,$E3,AQ$2:AQ$33)) -> 0.4 | AT3: =IF(ISERROR($AA3),1,INDEX(iWeights2!$H$5:$AU$43,$AA3,uxb_works!$B$36+2)) -> 1.5 | AU3: =IF(ISERROR(AT3/SUMIF($E$2:$E$42,$E3,AT$2:AT$33)),0,AT3/SUMIF($E$2:$E$42,$E3,AT$2:AT$33)) -> 0.5 | AW3: =IF(ISERROR($AA3),1,INDEX(iWeights2!$H$5:$AU$43,$AA3,uxb_works!$B$36+3)) -> 1.8 | AX3: =IF(ISERROR(AW3/SUMIF($E$2:$E$42,$E3,AW$2:AW$33)),0,AW3/SUMIF($E$2:$E$42,$E3,AW$2:AW$33)) -> 0.6 | AZ3: =IF(ISERROR($AA3),1,INDEX(Weights!$G$7:$G$45,$AA3)) -> 1.6 | BA3: =IF(ISERROR(AZ3/SUMIF($E$2:$E$42,$E3,AZ$2:AZ$33)),0,AZ3/SUMIF($E$2:$E$42,$E3,AZ$2:AZ$33)) -> 0.5333333333
A4: 3 | B4: 0 | D4: EP_10 | E4: EP | F4: 2 | G4: 1.10 | H4: =iDataCollect!C6 -> Growth in per capita GDP | I4: Year-on-year growth of per-capita GDP. As a proxy for personal income, this indicator reflects consumers’ ability to spend on imported goods. consumers’ ability to spend on imported goods. | J4: percentage growth | M4: =CHOOSE(iDateCollect!AD6,iDateCollect!Z6,"Dates range between "&iDateCollect!Y6&" and "&iDateCollect!Z6,"Scores derived from data taken between "&iDateCollect!AB6&" and "&iDateCollect!AC6,iDateCollect!AC4) -> 2014 | O4: High score = good | P4: #0.0 | Q4: EIU | R4: =G4 -> 1.10 | S4: 0 | T4: 2 | W4: =AC4 -> 0.07142857143 | X4: 0.07142857143 | Y4: 1.10) Growth in per capita GDP | Z4: =$Y$3 -> 1) ECONOMIC PILLAR | AA4: =MATCH($D4,Weights!$C$7:$C$47,0) -> 7 | AB4: =IF(ISERROR($AA4),1,INDEX(Weights2!$G$7:$G$45,$AA4)) -> 1 | AC4: 0.07142857143 | AE4: =IF(ISERROR(AA4),1,INDEX(Weights2!$K$7:$K$45,AA4)) -> 1 | AF4: =IF(ISERROR(AE4/SUMIF($E$2:$E$42,$E4,AE$2:AE$33)),0,AE4/SUMIF($E$2:$E$42,$E4,AE$2:AE$33)) -> 0.07142857143 | AH4: =IF(ISERROR(AA4),1,INDEX(Weights2!$O$7:$O$77,AA4)) -> 1 | AI4: =IF(ISERROR(AH4/SUMIF($E$2:$E$42,$E4,AH$2:AH$33)),0,AH4/SUMIF($E$2:$E$42,$E4,AH$2:AH$33)) -> 0.07142857143 | AK4: =IF(ISERROR(AA4),1,INDEX(Weights2!$S$7:$S$77,AA4)) -> 1 | AL4: =IF(ISERROR(AK4/SUMIF($E$2:$E$42,$E4,AK$2:AK$33)),0,AK4/SUMIF($E$2:$E$42,$E4,AK$2:AK$33)) -> 0.07142857143 | AN4: =IF(ISERROR($AA4),1,INDEX(iWeights2!$H$5:$AU$43,$AA4,uxb_works!$B$36)) -> 1 | AO4: 0.07142857143 | AQ4: =IF(ISERROR($AA4),1,INDEX(iWeights2!$H$5:$AU$43,$AA4,uxb_works!$B$36+1)) -> 1 | AR4: 0.07142857143 | AT4: =IF(ISERROR($AA4),1,INDEX(iWeights2!$H$5:$AU$43,$AA4,uxb_works!$B$36+2)) -> 1 | AU4: 0.04166666667 | AW4: =IF(ISERROR($AA4),1,INDEX(iWeights2!$H$5:$AU$43,$AA4,uxb_works!$B$36+3)) -> 1 | AX4: 0.07142857143 | AZ4: =IF(ISERROR($AA4),1,INDEX(Weights!$G$7:$G$45,$AA4)) -> 1 | BA4: 0.07142857143
A5: 4 | B5: 0 | D5: EP_11 | E5: EP | F5: 2 | G5: 1.11 | H5: =iDataCollect!C7 -> Current account liberalisation | I5: A measure of a country’s current account liberalisation, with consideration of restrictions in this area; used to capture the ease with which a country trades goods across its border. | J5: 1-5 scores | M5: =CHOOSE(iDateCollect!AD7,iDateCollect!Z7,"Dates range between "&iDateCollect!Y7&" and "&iDateCollect!Z7,"Scores derived from data taken between "&iDateCollect!AB7&" and "&iDateCollect!AC7,iDateCollect!AC5) -> 2014 | O5: High score = good | P5: #0 | Q5: EIU | R5: 1.11 | S5: 0 | T5: 3 | U5: 1 | V5: 5 | W5: 0.07142857143 | X5: 0.07142857143 | Y5: 1.11) Current account liberalisation | Z5: 1) ECONOMIC PILLAR | AA5: =MATCH($D5,Weights!$C$7:$C$47,0) -> 8 | AB5: =IF(ISERROR($AA5),1,INDEX(Weights2!$G$7:$G$45,$AA5)) -> 1 | AC5: 0.07142857143 | AE5: =IF(ISERROR(AA5),1,INDEX(Weights2!$K$7:$K$45,AA5)) -> 1 | AF5: 0.07142857143 | AH5: =IF(ISERROR(AA5),1,INDEX(Weights2!$O$7:$O$77,AA5)) -> 1 | AI5: 0.07142857143 | AK5: =IF(ISERROR(AA5),1,INDEX(Weights2!$S$7:$S$77,AA5)) -> 1 | AL5: 0.07142857143 | AN5: =IF(ISERROR($AA5),1,INDEX(iWeights2!$H$5:$AU$43,$AA5,uxb_works!$B$36)) -> 1 | AO5: 0.07142857143 | AQ5: =IF(ISERROR($AA5),1,INDEX(iWeights2!$H$5:$AU$43,$AA5,uxb_works!$B$36+1)) -> 1 | AR5: 0.07142857143 | AT5: =IF(ISERROR($AA5),1,INDEX(iWeights2!$H$5:$AU$43,$AA5,uxb_works!$B$36+2)) -> 1 | AU5: 0.04166666667 | AW5: =IF(ISERROR($AA5),1,INDEX(iWeights2!$H$5:$AU$43,$AA5,uxb_works!$B$36+3)) -> 1 | AX5: 0.07142857143 | AZ5: =IF(ISERROR($AA5),1,INDEX(Weights!$G$7:$G$45,$AA5)) -> 1 | BA5: 0.07142857143
A6: 5 | B6: 0 | D6: EP_12 | E6: EP | F6: 2 | G6: 1.12 | H6: =iDataCollect!C8 -> Tariff & non-tariff barriers | I6: A measure of tariff barriers and non-tariff barriers such as trade quotas, licensing and import inspection. This indicator provides a broad measure of the impediments to trade in a country. | J6: 1-5 scores | M6: =CHOOSE(iDateCollect!AD8,iDateCollect!Z8,"Dates range between "&iDateCollect!Y8&" and "&iDateCollect!Z8,"Scores derived from data taken between "&iDateCollect!AB8&" and "&iDateCollect!AC8,iDateCollect!AC6) -> 2014 | O6: High score = good | P6: #0 | Q6: EIU | R6: 1.12 | S6: 0 | T6: 3 | U6: 1 | V6: 5 | W6: 0.07142857143 | X6: 0.07142857143 | Y6: 1.12) Tariff & non-tariff barriers | Z6: 1) ECONOMIC PILLAR | AA6: =MATCH($D6,Weights!$C$7:$C$47,0) -> 9 | AB6: =IF(ISERROR($AA6),1,INDEX(Weights2!$G$7:$G$45,$AA6)) -> 1 | AC6: 0.07142857143 | AE6: =IF(ISERROR(AA6),1,INDEX(Weights2!$K$7:$K$45,AA6)) -> 1 | AF6: 0.07142857143 | AH6: =IF(ISERROR(AA6),1,INDEX(Weights2!$O$7:$O$77,AA6)) -> 1 | AI6: 0.07142857143 | AK6: =IF(ISERROR(AA6),1,INDEX(Weights2!$S$7:$S$77,AA6)) -> 1 | AL6: 0.07142857143 | AN6: =IF(ISERROR($AA6),1,INDEX(iWeights2!$H$5:$AU$43,$AA6,uxb_works!$B$36)) -> 1 | AO6: 0.07142857143 | AQ6: =IF(ISERROR($AA6),1,INDEX(iWeights2!$H$5:$AU$43,$AA6,uxb_works!$B$36+1)) -> 1 | AR6: 0.07142857143 | AT6: =IF(ISERROR($AA6),1,INDEX(iWeights2!$H$5:$AU$43,$AA6,uxb_works!$B$36+2)) -> 1 | AU6: 0.04166666667 | AW6: =IF(ISERROR($AA6),1,INDEX(iWeights2!$H$5:$AU$43,$AA6,uxb_works!$B$36+3)) -> 1 | AX6: 0.07142857143 | AZ6: =IF(ISERROR($AA6),1,INDEX(Weights!$G$7:$G$45,$AA6)) -> 1 | BA6: 0.07142857143
A7: 6 | B7: 0 | D7: EP_13 | E7: EP | F7: 2 | G7: 1.13 | H7: =iDataCollect!C9 -> Exchange rate volatility | I7: The standard deviation of a country’s exchange rate to its major trading partners. It is a trade-weighted measure to reflect that volatility matters more for higher volumes of trade. As an indicator, exchange rate volatility is a potential source of uncertainty when conducting trade. | J7: trade-weighted standard deviations | M7: =CHOOSE(iDateCollect!AD9,iDateCollect!Z9,"Dates range between "&iDateCollect!Y9&" and "&iDateCollect!Z9,"Scores derived from data taken between "&iDateCollect!AB9&" and "&iDateCollect!AC9,iDateCollect!AC7) -> 2014 | O7: High score = bad | P7: #0.00 | R7: 1.13 | S7: 1 | T7: 2 | W7: 0.07142857143 | X7: 0.07142857143 | Y7: 1.13) Exchange rate volatility | Z7: 1) ECONOMIC PILLAR | AA7: =MATCH($D7,Weights!$C$7:$C$47,0) -> 10 | AB7: =IF(ISERROR($AA7),1,INDEX(Weights2!$G$7:$G$45,$AA7)) -> 1 | AC7: 0.07142857143 | AE7: =IF(ISERROR(AA7),1,INDEX(Weights2!$K$7:$K$45,AA7)) -> 1 | AF7: 0.07142857143 | AH7: =IF(ISERROR(AA7),1,INDEX(Weights2!$O$7:$O$77,AA7)) -> 1 | AI7: 0.07142857143 | AK7: =IF(ISERROR(AA7),1,INDEX(Weights2!$S$7:$S$77,AA7)) -> 1 | AL7: 0.07142857143 | AN7: =IF(ISERROR($AA7),1,INDEX(iWeights2!$H$5:$AU$43,$AA7,uxb_works!$B$36)) -> 1 | AO7: 0.07142857143 | AQ7: =IF(ISERROR($AA7),1,INDEX(iWeights2!$H$5:$AU$43,$AA7,uxb_works!$B$36+1)) -> 1 | AR7: 0.07142857143 | AT7: =IF(ISERROR($AA7),1,INDEX(iWeights2!$H$5:$AU$43,$AA7,uxb_works!$B$36+2)) -> 6 | AU7: 0.25 | AW7: =IF(ISERROR($AA7),1,INDEX(iWeights2!$H$5:$AU$43,$AA7,uxb_works!$B$36+3)) -> 1 | AX7: 0.07142857143 | AZ7: =IF(ISERROR($AA7),1,INDEX(Weights!$G$7:$G$45,$AA7)) -> 1 | BA7: 0.07142857143
A8: 7 | B8: 0 | D8: EP_14 | E8: EP | F8: 2 | G8: 1.14 | H8: =iDataCollect!C10 -> Financial sector depth | I8: Domestic credit to the private sector, as a percentage of GDP. This indicator is a proxy for the availability of trade finance to provide a hedge against exchange rate volatility. | J8: % of GDP | M8: =CHOOSE(iDateCollect!AD10,iDateCollect!Z10,"Dates range between "&iDateCollect!Y10&" and "&iDateCollect!Z10,"Scores derived from data taken between "&iDateCollect!AB10&" and "&iDateCollect!AC10,iDateCollect!AC8) -> Dates range between 2010 and 2014 | O8: High score = good | P8: #0 | Q8: EIU | R8: 1.14 | S8: 0 | T8: 2 | W8: 0.07142857143 | X8: 0.07142857143 | Y8: 1.14) Financial sector depth | Z8: 1) ECONOMIC PILLAR | AA8: =MATCH($D8,Weights!$C$7:$C$47,0) -> 11 | AB8: =IF(ISERROR($AA8),1,INDEX(Weights2!$G$7:$G$45,$AA8)) -> 1 | AC8: 0.07142857143 | AE8: =IF(ISERROR(AA8),1,INDEX(Weights2!$K$7:$K$45,AA8)) -> 1 | AF8: 0.07142857143 | AH8: =IF(ISERROR(AA8),1,INDEX(Weights2!$O$7:$O$77,AA8)) -> 1 | AI8: 0.07142857143 | AK8: =IF(ISERROR(AA8),1,INDEX(Weights2!$S$7:$S$77,AA8)) -> 1 | AL8: 0.07142857143 | AN8: =IF(ISERROR($AA8),1,INDEX(iWeights2!$H$5:$AU$43,$AA8,uxb_works!$B$36)) -> 1 | AO8: 0.07142857143 | AQ8: =IF(ISERROR($AA8),1,INDEX(iWeights2!$H$5:$AU$43,$AA8,uxb_works!$B$36+1)) -> 1 | AR8: 0.07142857143 | AT8: =IF(ISERROR($AA8),1,INDEX(iWeights2!$H$5:$AU$43,$AA8,uxb_works!$B$36+2)) -> 1 | AU8: 0.04166666667 | AW8: =IF(ISERROR($AA8),1,INDEX(iWeights2!$H$5:$AU$43,$AA8,uxb_works!$B$36+3)) -> 1 | AX8: 0.07142857143 | AZ8: =IF(ISERROR($AA8),1,INDEX(Weights!$G$7:$G$45,$AA8)) -> 1 | BA8: 0.07142857143
A9: 8 | B9: 0 | D9: EP_15 | E9: EP | F9: 2 | G9: 1.15 | H9: =iDataCollect!C11 -> Foreign trade and payments risk | I9: A measure that assesses a company’s risk in getting money or inputs in and out of a country. This indicator captures the risks to conducting trade, which provide an additional barrier to trade for trading companies. | J9: 1-100 scores | M9: =CHOOSE(iDateCollect!AD11,iDateCollect!Z11,"Dates range between "&iDateCollect!Y11&" and "&iDateCollect!Z11,"Scores derived from data taken between "&iDateCollect!AB11&" and "&iDateCollect!AC11,iDateCollect!AC9) -> 2014 | O9: High score = bad | P9: #0 | Q9: EIU | R9: 1.15 | S9: 1 | T9: 3 | U9: 1 | V9: 100 | W9: 0.07142857143 | X9: 0.07142857143 | Y9: 1.15) Foreign trade and payments risk | Z9: 1) ECONOMIC PILLAR | AA9: =MATCH($D9,Weights!$C$7:$C$47,0) -> 12 | AB9: =IF(ISERROR($AA9),1,INDEX(Weights2!$G$7:$G$45,$AA9)) -> 1 | AC9: 0.07142857143 | AE9: =IF(ISERROR(AA9),1,INDEX(Weights2!$K$7:$K$45,AA9)) -> 1 | AF9: 0.07142857143 | AH9: =IF(ISERROR(AA9),1,INDEX(Weights2!$O$7:$O$77,AA9)) -> 1 | AI9: 0.07142857143 | AK9: =IF(ISERROR(AA9),1,INDEX(Weights2!$S$7:$S$77,AA9)) -> 1 | AL9: 0.07142857143 | AN9: =IF(ISERROR($AA9),1,INDEX(iWeights2!$H$5:$AU$43,$AA9,uxb_works!$B$36)) -> 1 | AO9: 0.07142857143 | AQ9: =IF(ISERROR($AA9),1,INDEX(iWeights2!$H$5:$AU$43,$AA9,uxb_works!$B$36+1)) -> 1 | AR9: 0.07142857143 | AT9: =IF(ISERROR($AA9),1,INDEX(iWeights2!$H$5:$AU$43,$AA9,uxb_works!$B$36+2)) -> 6 | AU9: 0.25 | AW9: =IF(ISERROR($AA9),1,INDEX(iWeights2!$H$5:$AU$43,$AA9,uxb_works!$B$36+3)) -> 1 | AX9: 0.07142857143 | AZ9: =IF(ISERROR($AA9),1,INDEX(Weights!$G$7:$G$45,$AA9)) -> 1 | BA9: 0.07142857143
A10: 9 | B10: 0 | D10: EP_16 | E10: EP | F10: 2 | G10: 1.16 | H10: =iDataCollect!C12 -> Export market concentration | I10: The share of a country’s exports by destination, calculated as the average of the country’s top four trading partners. This indicator provides a measure of export market concentration, as a highly concentrated export market is a trading vulnerability. | J10: % | M10: =CHOOSE(iDateCollect!AD12,iDateCollect!Z12,"Dates range between "&iDateCollect!Y12&" and "&iDateCollect!Z12,"Scores derived from data taken between "&iDateCollect!AB12&" and "&iDateCollect!AC12,iDateCollect!AC10) -> 2014 | O10: High score = bad | P10: #0.00 | Q10: EIU | R10: 1.16 | S10: 1 | T10: 2 | W10: 0.07142857143 | X10: 0.07142857143 | Y10: 1.16) Export market concentration | Z10: 1) ECONOMIC PILLAR | AA10: =MATCH($D10,Weights!$C$7:$C$47,0) -> 13 | AB10: =IF(ISERROR($AA10),1,INDEX(Weights2!$G$7:$G$45,$AA10)) -> 1 | AC10: 0.07142857143 | AE10: =IF(ISERROR(AA10),1,INDEX(Weights2!$K$7:$K$45,AA10)) -> 1 | AF10: 0.07142857143 | AH10: =IF(ISERROR(AA10),1,INDEX(Weights2!$O$7:$O$77,AA10)) -> 1 | AI10: 0.07142857143 | AK10: =IF(ISERROR(AA10),1,INDEX(Weights2!$S$7:$S$77,AA10)) -> 1 | AL10: 0.07142857143 | AN10: =IF(ISERROR($AA10),1,INDEX(iWeights2!$H$5:$AU$43,$AA10,uxb_works!$B$36)) -> 1 | AO10: 0.07142857143 | AQ10: =IF(ISERROR($AA10),1,INDEX(iWeights2!$H$5:$AU$43,$AA10,uxb_works!$B$36+1)) -> 1 | AR10: 0.07142857143 | AT10: =IF(ISERROR($AA10),1,INDEX(iWeights2!$H$5:$AU$43,$AA10,uxb_works!$B$36+2)) -> 1 | AU10: 0.04166666667 | AW10: =IF(ISERROR($AA10),1,INDEX(iWeights2!$H$5:$AU$43,$AA10,uxb_works!$B$36+3)) -> 1 | AX10: 0.07142857143 | AZ10: =IF(ISERROR($AA10),1,INDEX(Weights!$G$7:$G$45,$AA10)) -> 1 | BA10: 0.07142857143
A11: 10 | B11: 0 | D11: EP_17 | E11: EP | F11: 2 | G11: 1.17 | H11: =iDataCollect!C13 -> Export product concentration | I11: The share of a country’s exports by product (as opposed to destination), calculated as the average of the country’s top four product shares. This indicator provides a measure of product market concentration, signalling vulnerability if this share is highly concentrated on certain products. | J11: % | M11: =CHOOSE(iDateCollect!AD13,iDateCollect!Z13,"Dates range between "&iDateCollect!Y13&" and "&iDateCollect!Z13,"Scores derived from data taken between "&iDateCollect!AB13&" and "&iDateCollect!AC13,iDateCollect!AC11) -> Dates range between 2006 and 2014 | O11: High score = bad | P11: #0.0 | Q11: EIU | R11: 1.17 | S11: 1 | T11: 2 | W11: 0.07142857143 | X11: 0.07142857143 | Y11: 1.17) Export product concentration | Z11: 1) ECONOMIC PILLAR | AA11: =MATCH($D11,Weights!$C$7:$C$47,0) -> 14 | AB11: =IF(ISERROR($AA11),1,INDEX(Weights2!$G$7:$G$45,$AA11)) -> 1 | AC11: 0.07142857143 | AE11: =IF(ISERROR(AA11),1,INDEX(Weights2!$K$7:$K$45,AA11)) -> 1 | AF11: 0.07142857143 | AH11: =IF(ISERROR(AA11),1,INDEX(Weights2!$O$7:$O$77,AA11)) -> 1 | AI11: 0.07142857143 | AK11: =IF(ISERROR(AA11),1,INDEX(Weights2!$S$7:$S$77,AA11)) -> 1 | AL11: 0.07142857143 | AN11: =IF(ISERROR($AA11),1,INDEX(iWeights2!$H$5:$AU$43,$AA11,uxb_works!$B$36)) -> 1 | AO11: 0.07142857143 | AQ11: =IF(ISERROR($AA11),1,INDEX(iWeights2!$H$5:$AU$43,$AA11,uxb_works!$B$36+1)) -> 1 | AR11: 0.07142857143 | AT11: =IF(ISERROR($AA11),1,INDEX(iWeights2!$H$5:$AU$43,$AA11,uxb_works!$B$36+2)) -> 1 | AU11: 0.04166666667 | AW11: =IF(ISERROR($AA11),1,INDEX(iWeights2!$H$5:$AU$43,$AA11,uxb_works!$B$36+3)) -> 1 | AX11: 0.07142857143 | AZ11: =IF(ISERROR($AA11),1,INDEX(Weights!$G$7:$G$45,$AA11)) -> 1 | BA11: 0.07142857143
A12: 11 | B12: 0 | D12: EP_18 | E12: EP | F12: 2 | G12: 1.18 | H12: =iDataCollect!C14 -> Foreign Direct Investment | I12: Inward FDI as a share of GDP. The indicator measures this source of investment that supports a country’s trade and economic growth. | J12: % of GDP | M12: =CHOOSE(iDateCollect!AD14,iDateCollect!Z14,"Dates range between "&iDateCollect!Y14&" and "&iDateCollect!Z14,"Scores derived from data taken between "&iDateCollect!AB14&" and "&iDateCollect!AC14,iDateCollect!AC12) -> Dates range between 2011 and 2014 | O12: High score = good | P12: #0.0 | Q12: EIU | R12: 1.18 | S12: 0 | T12: 2 | W12: =AC12 -> 0.07142857143 | X12: 0.07142857143 | Y12: 1.18) Foreign Direct Investment | Z12: 1) ECONOMIC PILLAR | AA12: =MATCH($D12,Weights!$C$7:$C$47,0) -> 15 | AB12: =IF(ISERROR($AA12),1,INDEX(Weights2!$G$7:$G$45,$AA12)) -> 1 | AC12: 0.07142857143 | AE12: =IF(ISERROR(AA12),1,INDEX(Weights2!$K$7:$K$45,AA12)) -> 1 | AF12: 0.07142857143 | AH12: =IF(ISERROR(AA12),1,INDEX(Weights2!$O$7:$O$77,AA12)) -> 1 | AI12: 0.07142857143 | AK12: =IF(ISERROR(AA12),1,INDEX(Weights2!$S$7:$S$77,AA12)) -> 1 | AL12: 0.07142857143 | AN12: =IF(ISERROR($AA12),1,INDEX(iWeights2!$H$5:$AU$43,$AA12,uxb_works!$B$36)) -> 1 | AO12: 0.07142857143 | AQ12: =IF(ISERROR($AA12),1,INDEX(iWeights2!$H$5:$AU$43,$AA12,uxb_works!$B$36+1)) -> 1 | AR12: 0.07142857143 | AT12: =IF(ISERROR($AA12),1,INDEX(iWeights2!$H$5:$AU$43,$AA12,uxb_works!$B$36+2)) -> 1 | AU12: 0.04166666667 | AW12: =IF(ISERROR($AA12),1,INDEX(iWeights2!$H$5:$AU$43,$AA12,uxb_works!$B$36+3)) -> 1 | AX12: 0.07142857143 | AZ12: =IF(ISERROR($AA12),1,INDEX(Weights!$G$7:$G$45,$AA12)) -> 1 | BA12: 0.07142857143
A13: 12 | B13: 0 | D13: EP_19 | E13: EP | F13: 2 | G13: 1.19 | H13: =iDataCollect!C15 -> Gross fixed capital formation | I13: Gross fixed investment in the national economy. Like FDI, a country’s gross investment encourages trade and economic growth. | J13: % of GDP | M13: =CHOOSE(iDateCollect!AD15,iDateCollect!Z15,"Dates range between "&iDateCollect!Y15&" and "&iDateCollect!Z15,"Scores derived from data taken between "&iDateCollect!AB15&" and "&iDateCollect!AC15,iDateCollect!AC13) -> 2014 | O13: High score = good | P13: #0.00 | Q13: EIU | R13: 1.19 | S13: 0 | T13: 2 | W13: 0.07142857143 | X13: 0.07142857143 | Y13: 1.19) Gross fixed capital formation | Z13: 1) ECONOMIC PILLAR | AA13: =MATCH($D13,Weights!$C$7:$C$47,0) -> 16 | AB13: =IF(ISERROR($AA13),1,INDEX(Weights2!$G$7:$G$45,$AA13)) -> 1 | AC13: 0.07142857143 | AE13: =IF(ISERROR(AA13),1,INDEX(Weights2!$K$7:$K$45,AA13)) -> 1 | AF13: 0.07142857143 | AH13: =IF(ISERROR(AA13),1,INDEX(Weights2!$O$7:$O$77,AA13)) -> 1 | AI13: 0.07142857143 | AK13: =IF(ISERROR(AA13),1,INDEX(Weights2!$S$7:$S$77,AA13)) -> 1 | AL13: 0.07142857143 | AN13: =IF(ISERROR($AA13),1,INDEX(iWeights2!$H$5:$AU$43,$AA13,uxb_works!$B$36)) -> 1 | AO13: 0.07142857143 | AQ13: =IF(ISERROR($AA13),1,INDEX(iWeights2!$H$5:$AU$43,$AA13,uxb_works!$B$36+1)) -> 1 | AR13: 0.07142857143 | AT13: =IF(ISERROR($AA13),1,INDEX(iWeights2!$H$5:$AU$43,$AA13,uxb_works!$B$36+2)) -> 1 | AU13: 0.04166666667 | AW13: =IF(ISERROR($AA13),1,INDEX(iWeights2!$H$5:$AU$43,$AA13,uxb_works!$B$36+3)) -> 1 | AX13: 0.07142857143 | AZ13: =IF(ISERROR($AA13),1,INDEX(Weights!$G$7:$G$45,$AA13)) -> 1 | BA13: 0.07142857143
A14: 13 | B14: 0 | D14: EP_20 | E14: EP | F14: 2 | G14: 1.20 | H14: =iDataCollect!C16 -> Trade costs | I14: The indicator score is the weighted sum of the following sub-indicator scores: 1.20.1) Infrastructure 1.20.2) Logistics performance 1.20.3) Corruption 1.20.4) Legal system | J14: Index score/number | M14: =CHOOSE(iDateCollect!AD16,iDateCollect!Z16,"Dates range between "&iDateCollect!Y16&" and "&iDateCollect!Z16,"Scores derived from data taken between "&iDateCollect!AB16&" and "&iDateCollect!AC16,iDateCollect!AC14) -> 0 | P14: #0.0 | Q14: EIU Calculation | R14: 1.20 | T14: 1 | W14: 0.07142857143 | X14: 0.07142857143 | Y14: 1.20) Trade costs | Z14: 1) ECONOMIC PILLAR | AA14: =MATCH($D14,Weights!$C$7:$C$47,0) -> 17 | AB14: =IF(ISERROR($AA14),1,INDEX(Weights2!$G$7:$G$45,$AA14)) -> 1 | AC14: 0.07142857143 | AE14: =IF(ISERROR(AA14),1,INDEX(Weights2!$K$7:$K$45,AA14)) -> 1 | AF14: 0.07142857143 | AH14: =IF(ISERROR(AA14),1,INDEX(Weights2!$O$7:$O$77,AA14)) -> 1 | AI14: 0.07142857143 | AK14: =IF(ISERROR(AA14),1,INDEX(Weights2!$S$7:$S$77,AA14)) -> 1 | AL14: 0.07142857143 | AN14: =IF(ISERROR($AA14),1,INDEX(iWeights2!$H$5:$AU$43,$AA14,uxb_works!$B$36)) -> 1 | AO14: 0.07142857143 | AQ14: =IF(ISERROR($AA14),1,INDEX(iWeights2!$H$5:$AU$43,$AA14,uxb_works!$B$36+1)) -> 1 | AR14: 0.07142857143 | AT14: =IF(ISERROR($AA14),1,INDEX(iWeights2!$H$5:$AU$43,$AA14,uxb_works!$B$36+2)) -> 1 | AU14: 0.04166666667 | AW14: =IF(ISERROR($AA14),1,INDEX(iWeights2!$H$5:$AU$43,$AA14,uxb_works!$B$36+3)) -> 1 | AX14: 0.07142857143 | AZ14: =IF(ISERROR($AA14),1,INDEX(Weights!$G$7:$G$45,$AA14)) -> 1 | BA14: 0.07142857143
A15: 14 | B15: 0 | D15: EP_20_1 | E15: EP_20 | F15: 3 | G15: 1.20.1 | H15: =iDataCollect!C17 -> Infrastructure | I15: The EIU’s infrastructure rating scores countries between 1 and 10 on a variety of measures such as telecoms, transport, energy, and office space. Depending on its state, a country’s infrastructure can either support or inhibit economic growth and trade. | J15: 1-10 scores | M15: =CHOOSE(iDateCollect!AD17,iDateCollect!Z17,"Dates range between "&iDateCollect!Y17&" and "&iDateCollect!Z17,"Scores derived from data taken between "&iDateCollect!AB17&" and "&iDateCollect!AC17,iDateCollect!AC15) -> 2014 | O15: High score = good | P15: #0.0 | Q15: EIU | R15: 1.20.1 | S15: 0 | T15: 3 | U15: 1 | V15: 10 | W15: 0.25 | X15: 0.25 | Y15: 1.20.1) Infrastructure | Z15: =$Y$14 -> 1.20) Trade costs | AA15: =MATCH($D15,Weights!$C$7:$C$47,0) -> 36 | AB15: =IF(ISERROR($AA15),1,INDEX(Weights2!$G$7:$G$45,$AA15)) -> 1 | AC15: 0.25 | AE15: =IF(ISERROR(AA15),1,INDEX(Weights2!$K$7:$K$45,AA15)) -> 1 | AF15: 0.25 | AH15: =IF(ISERROR(AA15),1,INDEX(Weights2!$O$7:$O$77,AA15)) -> 1 | AI15: 0.25 | AK15: =IF(ISERROR(AA15),1,INDEX(Weights2!$S$7:$S$77,AA15)) -> 1 | AL15: 0.25 | AN15: =IF(ISERROR($AA15),1,INDEX(iWeights2!$H$5:$AU$43,$AA15,uxb_works!$B$36)) -> 1 | AO15: 0.25 | AQ15: =IF(ISERROR($AA15),1,INDEX(iWeights2!$H$5:$AU$43,$AA15,uxb_works!$B$36+1)) -> 1 | AR15: 0.25 | AT15: =IF(ISERROR($AA15),1,INDEX(iWeights2!$H$5:$AU$43,$AA15,uxb_works!$B$36+2)) -> 1 | AU15: 0.25 | AW15: =IF(ISERROR($AA15),1,INDEX(iWeights2!$H$5:$AU$43,$AA15,uxb_works!$B$36+3)) -> 1 | AX15: 0.25 | AZ15: =IF(ISERROR($AA15),1,INDEX(Weights!$G$7:$G$45,$AA15)) -> 1 | BA15: 0.25
A16: 15 | B16: 0 | D16: EP_20_2 | E16: EP_20 | F16: 3 | G16: 1.20.2 | H16: =iDataCollect!C18 -> Logistics performance | I16: Logistics performance refers to the efficiency of the supply chains that support domestic and international trade in a country. Inefficient logistics can raise the costs of trade and hinder economic growth. | J16: 0 - 5 | M16: =CHOOSE(iDateCollect!AD18,iDateCollect!Z18,"Dates range between "&iDateCollect!Y18&" and "&iDateCollect!Z18,"Scores derived from data taken between "&iDateCollect!AB18&" and "&iDateCollect!AC18,iDateCollect!AC16) -> 2014 | O16: High score = good | P16: #0.00 | Q16: WB LPI | R16: 1.20.2 | S16: 0 | T16: 3 | U16: 0 | V16: 5 | W16: 0.25 | X16: 0.25 | Y16: 1.20.2) Logistics performance | Z16: =$Y$14 -> 1.20) Trade costs | AA16: =MATCH($D16,Weights!$C$7:$C$47,0) -> 37 | AB16: =IF(ISERROR($AA16),1,INDEX(Weights2!$G$7:$G$45,$AA16)) -> 1 | AC16: 0.25 | AE16: =IF(ISERROR(AA16),1,INDEX(Weights2!$K$7:$K$45,AA16)) -> 1 | AF16: 0.25 | AH16: =IF(ISERROR(AA16),1,INDEX(Weights2!$O$7:$O$77,AA16)) -> 1 | AI16: 0.25 | AK16: =IF(ISERROR(AA16),1,INDEX(Weights2!$S$7:$S$77,AA16)) -> 1 | AL16: 0.25 | AN16: =IF(ISERROR($AA16),1,INDEX(iWeights2!$H$5:$AU$43,$AA16,uxb_works!$B$36)) -> 1 | AO16: 0.25 | AQ16: =IF(ISERROR($AA16),1,INDEX(iWeights2!$H$5:$AU$43,$AA16,uxb_works!$B$36+1)) -> 1 | AR16: 0.25 | AT16: =IF(ISERROR($AA16),1,INDEX(iWeights2!$H$5:$AU$43,$AA16,uxb_works!$B$36+2)) -> 1 | AU16: 0.25 | AW16: =IF(ISERROR($AA16),1,INDEX(iWeights2!$H$5:$AU$43,$AA16,uxb_works!$B$36+3)) -> 1 | AX16: 0.25 | AZ16: =IF(ISERROR($AA16),1,INDEX(Weights!$G$7:$G$45,$AA16)) -> 1 | BA16: 0.25
A17: 16 | B17: 0 | D17: EP_20_3 | E17: EP_20 | F17: 3 | G17: 1.20.3 | H17: =iDataCollect!C19 -> Corruption | I17: The EIU’s corruption rating scores countries between 1 and 5 on the pervasiveness of corruption among public officials. Corruption raises the costs of conducting trade. | J17: 1-5 scores | M17: =CHOOSE(iDateCollect!AD19,iDateCollect!Z19,"Dates range between "&iDateCollect!Y19&" and "&iDateCollect!Z19,"Scores derived from data taken between "&iDateCollect!AB19&" and "&iDateCollect!AC19,iDateCollect!AC17) -> 2014 | O17: High score = good | P17: #0 | Q17: EIU | R17: 1.20.3 | S17: 0 | T17: 3 | U17: 1 | V17: 5 | W17: 0.25 | X17: 0.25 | Y17: 1.20.3) Corruption | Z17: 1.20) Trade costs | AA17: =MATCH($D17,Weights!$C$7:$C$47,0) -> 38 | AB17: =IF(ISERROR($AA17),1,INDEX(Weights2!$G$7:$G$45,$AA17)) -> 1 | AC17: 0.25 | AE17: =IF(ISERROR(AA17),1,INDEX(Weights2!$K$7:$K$45,AA17)) -> 1 | AF17: 0.25 | AH17: =IF(ISERROR(AA17),1,INDEX(Weights2!$O$7:$O$77,AA17)) -> 1 | AI17: 0.25 | AK17: =IF(ISERROR(AA17),1,INDEX(Weights2!$S$7:$S$77,AA17)) -> 1 | AL17: 0.25 | AN17: =IF(ISERROR($AA17),1,INDEX(iWeights2!$H$5:$AU$43,$AA17,uxb_works!$B$36)) -> 1 | AO17: 0.25 | AQ17: =IF(ISERROR($AA17),1,INDEX(iWeights2!$H$5:$AU$43,$AA17,uxb_works!$B$36+1)) -> 1 | AR17: 0.25 | AT17: =IF(ISERROR($AA17),1,INDEX(iWeights2!$H$5:$AU$43,$AA17,uxb_works!$B$36+2)) -> 1 | AU17: 0.25 | AW17: =IF(ISERROR($AA17),1,INDEX(iWeights2!$H$5:$AU$43,$AA17,uxb_works!$B$36+3)) -> 1 | AX17: 0.25 | AZ17: =IF(ISERROR($AA17),1,INDEX(Weights!$G$7:$G$45,$AA17)) -> 1 | BA17: 0.25
A18: 17 | B18: 0 | D18: EP_20_4 | E18: EP_20 | F18: 3 | G18: 1.20.4 | H18: =iDataCollect!C20 -> Legal system | I18: The EIU scores countries between 1 and 5 on the transparency and fairness of legal system. An obscure and unfair legal system raises the costs to trade. | J18: 1-5 scores | M18: =CHOOSE(iDateCollect!AD20,iDateCollect!Z20,"Dates range between "&iDateCollect!Y20&" and "&iDateCollect!Z20,"Scores derived from data taken between "&iDateCollect!AB20&" and "&iDateCollect!AC20,iDateCollect!AC18) -> 2014 | O18: High score = good | P18: #0 | Q18: EIU | R18: 1.20.4 | S18: 0 | T18: 3 | U18: 1 | V18: 5 | W18: 0.25 | X18: 0.25 | Y18: 1.20.4) Legal system | Z18: 1.20) Trade costs | AA18: =MATCH($D18,Weights!$C$7:$C$47,0) -> 39 | AB18: =IF(ISERROR($AA18),1,INDEX(Weights2!$G$7:$G$45,$AA18)) -> 1 | AC18: 0.25 | AE18: =IF(ISERROR(AA18),1,INDEX(Weights2!$K$7:$K$45,AA18)) -> 1 | AF18: 0.25 | AH18: =IF(ISERROR(AA18),1,INDEX(Weights2!$O$7:$O$77,AA18)) -> 1 | AI18: 0.25 | AK18: =IF(ISERROR(AA18),1,INDEX(Weights2!$S$7:$S$77,AA18)) -> 1 | AL18: 0.25 | AN18: =IF(ISERROR($AA18),1,INDEX(iWeights2!$H$5:$AU$43,$AA18,uxb_works!$B$36)) -> 1 | AO18: 0.25 | AQ18: =IF(ISERROR($AA18),1,INDEX(iWeights2!$H$5:$AU$43,$AA18,uxb_works!$B$36+1)) -> 1 | AR18: 0.25 | AT18: =IF(ISERROR($AA18),1,INDEX(iWeights2!$H$5:$AU$43,$AA18,uxb_works!$B$36+2)) -> 1 | AU18: 0.25 | AW18: =IF(ISERROR($AA18),1,INDEX(iWeights2!$H$5:$AU$43,$AA18,uxb_works!$B$36+3)) -> 1 | AX18: 0.25 | AZ18: =IF(ISERROR($AA18),1,INDEX(Weights!$G$7:$G$45,$AA18)) -> 1 | BA18: 0.25
A19: 18 | B19: 0 | D19: EP_21 | E19: EP | F19: 2 | G19: 1.21 | H19: =iDataCollect!C21 -> Technological innovation | I19: A measure of a country’s investment in research and development as a percentage of total GDP. This indicator captures a country’s ability to innovate and participate in the trading system as it moves towards more sophisticated goods. | J19: Score | M19: =CHOOSE(iDateCollect!AD21,iDateCollect!Z21,"Dates range between "&iDateCollect!Y21&" and "&iDateCollect!Z21,"Scores derived from data taken between "&iDateCollect!AB21&" and "&iDateCollect!AC21,iDateCollect!AC19) -> Dates range between 2009 and 2014 | O19: High score = good | P19: #0.0 | Q19: UNESCO/World Bank | R19: 1.21 | S19: 0 | T19: 2 | W19: 0.07142857143 | X19: 0.07142857143 | Y19: 1.21) Technological innovation | Z19: =$Y$3 -> 1) ECONOMIC PILLAR | AA19: =MATCH($D19,Weights!$C$7:$C$47,0) -> 18 | AB19: =IF(ISERROR($AA19),1,INDEX(Weights2!$G$7:$G$45,$AA19)) -> 1 | AC19: 0.07142857143 | AE19: =IF(ISERROR(AA19),1,INDEX(Weights2!$K$7:$K$45,AA19)) -> 1 | AF19: 0.07142857143 | AH19: =IF(ISERROR(AA19),1,INDEX(Weights2!$O$7:$O$77,AA19)) -> 1 | AI19: 0.07142857143 | AK19: =IF(ISERROR(AA19),1,INDEX(Weights2!$S$7:$S$77,AA19)) -> 1 | AL19: 0.07142857143 | AN19: =IF(ISERROR($AA19),1,INDEX(iWeights2!$H$5:$AU$43,$AA19,uxb_works!$B$36)) -> 1 | AO19: 0.07142857143 | AQ19: =IF(ISERROR($AA19),1,INDEX(iWeights2!$H$5:$AU$43,$AA19,uxb_works!$B$36+1)) -> 1 | AR19: 0.07142857143 | AT19: =IF(ISERROR($AA19),1,INDEX(iWeights2!$H$5:$AU$43,$AA19,uxb_works!$B$36+2)) -> 1 | AU19: 0.04166666667 | AW19: =IF(ISERROR($AA19),1,INDEX(iWeights2!$H$5:$AU$43,$AA19,uxb_works!$B$36+3)) -> 1 | AX19: 0.07142857143 | AZ19: =IF(ISERROR($AA19),1,INDEX(Weights!$G$7:$G$45,$AA19)) -> 1 | BA19: 0.07142857143
A20: 19 | B20: 0 | D20: EP_22 | E20: EP | F20: 2 | G20: 1.22 | H20: =iDataCollect!C22 -> Technological infrastructure | I20: A measure of a country’s technological infrastructure in the use of telecommunications and computers. This indicator measures a country’s IT infrastructure to attract FDI and have a competitive infrastructure for exporting. | J20: Score | M20: =CHOOSE(iDateCollect!AD22,iDateCollect!Z22,"Dates range between "&iDateCollect!Y22&" and "&iDateCollect!Z22,"Scores derived from data taken between "&iDateCollect!AB22&" and "&iDateCollect!AC22,iDateCollect!AC20) -> 2014 | O20: High score = bad | P20: #0 | Q20: EIU | R20: 1.22 | S20: 1 | T20: 2 | W20: 0.07142857143 | X20: 0.07142857143 | Y20: 1.22) Technological infrastructure | Z20: 1) ECONOMIC PILLAR | AA20: =MATCH($D20,Weights!$C$7:$C$47,0) -> 19 | AB20: =IF(ISERROR($AA20),1,INDEX(Weights2!$G$7:$G$45,$AA20)) -> 1 | AC20: 0.07142857143 | AE20: =IF(ISERROR(AA20),1,INDEX(Weights2!$K$7:$K$45,AA20)) -> 1 | AF20: 0.07142857143 | AH20: =IF(ISERROR(AA20),1,INDEX(Weights2!$O$7:$O$77,AA20)) -> 1 | AI20: 0.07142857143 | AK20: =IF(ISERROR(AA20),1,INDEX(Weights2!$S$7:$S$77,AA20)) -> 1 | AL20: 0.07142857143 | AN20: =IF(ISERROR($AA20),1,INDEX(iWeights2!$H$5:$AU$43,$AA20,uxb_works!$B$36)) -> 1 | AO20: 0.07142857143 | AQ20: =IF(ISERROR($AA20),1,INDEX(iWeights2!$H$5:$AU$43,$AA20,uxb_works!$B$36+1)) -> 1 | AR20: 0.07142857143 | AT20: =IF(ISERROR($AA20),1,INDEX(iWeights2!$H$5:$AU$43,$AA20,uxb_works!$B$36+2)) -> 1 | AU20: 0.04166666667 | AW20: =IF(ISERROR($AA20),1,INDEX(iWeights2!$H$5:$AU$43,$AA20,uxb_works!$B$36+3)) -> 1 | AX20: 0.07142857143 | AZ20: =IF(ISERROR($AA20),1,INDEX(Weights!$G$7:$G$45,$AA20)) -> 1 | BA20: 0.07142857143
A21: 20 | B21: 0 | D21: EP_23 | E21: EP | F21: 2 | G21: 1.23 | H21: =iDataCollect!C23 -> Growth in labour force | I21: The year-on-year change in a country’s labour force. A growing labour force supports economic growth and a country’s ability to continue trading. | J21: % | M21: =CHOOSE(iDateCollect!AD23,iDateCollect!Z23,"Dates range between "&iDateCollect!Y23&" and "&iDateCollect!Z23,"Scores derived from data taken between "&iDateCollect!AB23&" and "&iDateCollect!AC23,iDateCollect!AC21) -> 2014 | O21: High score = good | P21: #0.00 | Q21: EIU | R21: 1.23 | S21: 0 | T21: 2 | W21: 0.07142857143 | X21: 0.07142857143 | Y21: 1.23) Growth in labour force | Z21: 1) ECONOMIC PILLAR | AA21: =MATCH($D21,Weights!$C$7:$C$47,0) -> 20 | AB21: =IF(ISERROR($AA21),1,INDEX(Weights2!$G$7:$G$45,$AA21)) -> 1 | AC21: 0.07142857143 | AE21: =IF(ISERROR(AA21),1,INDEX(Weights2!$K$7:$K$45,AA21)) -> 1 | AF21: 0.07142857143 | AH21: =IF(ISERROR(AA21),1,INDEX(Weights2!$O$7:$O$77,AA21)) -> 1 | AI21: 0.07142857143 | AK21: =IF(ISERROR(AA21),1,INDEX(Weights2!$S$7:$S$77,AA21)) -> 1 | AL21: 0.07142857143 | AN21: =IF(ISERROR($AA21),1,INDEX(iWeights2!$H$5:$AU$43,$AA21,uxb_works!$B$36)) -> 1 | AO21: 0.07142857143 | AQ21: =IF(ISERROR($AA21),1,INDEX(iWeights2!$H$5:$AU$43,$AA21,uxb_works!$B$36+1)) -> 1 | AR21: 0.07142857143 | AT21: =IF(ISERROR($AA21),1,INDEX(iWeights2!$H$5:$AU$43,$AA21,uxb_works!$B$36+2)) -> 1 | AU21: 0.04166666667 | AW21: =IF(ISERROR($AA21),1,INDEX(iWeights2!$H$5:$AU$43,$AA21,uxb_works!$B$36+3)) -> 1 | AX21: 0.07142857143 | AZ21: =IF(ISERROR($AA21),1,INDEX(Weights!$G$7:$G$45,$AA21)) -> 1 | BA21: 0.07142857143
A22: 21 | B22: 0 | D22: SP | E22: TOTAL | F22: 1 | G22: 2 | H22: =iDataCollect!C24 -> Social pillar | I22: The category score is the weighted sum of the following indicator scores: 2.1) Inequality (Gini coefficient) 2.2) Educational attainment 2.3) Labour standards 2.4) Political stability | J22: Index score/number | M22: =CHOOSE(iDateCollect!AD24,iDateCollect!Z24,"Dates range between "&iDateCollect!Y24&" and "&iDateCollect!Z24,"Scores derived from data taken between "&iDateCollect!AB24&" and "&iDateCollect!AC24,iDateCollect!AC22) -> Scores derived from data taken between 2009 and 2014 | P22: #0.0 | Q22: EIU Calculation | R22: 2 | T22: 1 | W22: 0.3333333333 | X22: 0.3333333333 | Y22: 2) SOCIAL PILLAR | Z22: =$Y$2 -> OVERALL SCORE | AA22: =MATCH($D22,Weights!$C$7:$C$47,0) -> 2 | AB22: =IF(ISERROR($AA22),1,INDEX(Weights2!$G$7:$G$45,$AA22)) -> 1 | AC22: 0.3333333333 | AE22: =IF(ISERROR(AA22),1,INDEX(Weights2!$K$7:$K$45,AA22)) -> 1 | AF22: 0.3333333333 | AH22: =IF(ISERROR(AA22),1,INDEX(Weights2!$O$7:$O$77,AA22)) -> 1 | AI22: 0.3333333333 | AK22: =IF(ISERROR(AA22),1,INDEX(Weights2!$S$7:$S$77,AA22)) -> 1 | AL22: 0.3333333333 | AN22: =IF(ISERROR($AA22),1,INDEX(iWeights2!$H$5:$AU$43,$AA22,uxb_works!$B$36)) -> 1 | AO22: 0.3333333333 | AQ22: =IF(ISERROR($AA22),1,INDEX(iWeights2!$H$5:$AU$43,$AA22,uxb_works!$B$36+1)) -> 1.2 | AR22: 0.4 | AT22: =IF(ISERROR($AA22),1,INDEX(iWeights2!$H$5:$AU$43,$AA22,uxb_works!$B$36+2)) -> 1 | AU22: 0.3333333333 | AW22: =IF(ISERROR($AA22),1,INDEX(iWeights2!$H$5:$AU$43,$AA22,uxb_works!$B$36+3)) -> 0.8 | AX22: 0.2666666667 | AZ22: =IF(ISERROR($AA22),1,INDEX(Weights!$G$7:$G$45,$AA22)) -> 0.7 | BA22: 0.2333333333
A23: 22 | B23: 0 | D23: SP_10 | E23: SP | F23: 2 | G23: 2.1 | H23: =iDataCollect!C25 -> Inequality (Gini coefficient) | I23: A country’s measure on the Gini coefficient. This indicator captures the inequality level in a country between the upper and lower income brackets. Trade can impact inequality, and similarly, inequality can be a burden on trade and growth. | J23: 0 to upper bound | M23: =CHOOSE(iDateCollect!AD25,iDateCollect!Z25,"Dates range between "&iDateCollect!Y25&" and "&iDateCollect!Z25,"Scores derived from data taken between "&iDateCollect!AB25&" and "&iDateCollect!AC25,iDateCollect!AC23) -> Dates range between 2009 and 2013 | O23: High score = bad | P23: #0.0 | Q23: World Bank | R23: 2.1 | S23: 1 | T23: 2 | W23: 0.25 | X23: 0.25 | Y23: 2.1) Inequality (Gini coefficient) | Z23: =$Y$22 -> 2) SOCIAL PILLAR | AA23: =MATCH($D23,Weights!$C$7:$C$47,0) -> 22 | AB23: =IF(ISERROR($AA23),1,INDEX(Weights2!$G$7:$G$45,$AA23)) -> 1 | AC23: 0.25 | AE23: =IF(ISERROR(AA23),1,INDEX(Weights2!$K$7:$K$45,AA23)) -> 1 | AF23: 0.25 | AH23: =IF(ISERROR(AA23),1,INDEX(Weights2!$O$7:$O$77,AA23)) -> 1 | AI23: 0.25 | AK23: =IF(ISERROR(AA23),1,INDEX(Weights2!$S$7:$S$77,AA23)) -> 1 | AL23: 0.25 | AN23: =IF(ISERROR($AA23),1,INDEX(iWeights2!$H$5:$AU$43,$AA23,uxb_works!$B$36)) -> 1 | AO23: 0.25 | AQ23: =IF(ISERROR($AA23),1,INDEX(iWeights2!$H$5:$AU$43,$AA23,uxb_works!$B$36+1)) -> 1 | AR23: 0.25 | AT23: =IF(ISERROR($AA23),1,INDEX(iWeights2!$H$5:$AU$43,$AA23,uxb_works!$B$36+2)) -> 1 | AU23: 0.25 | AW23: =IF(ISERROR($AA23),1,INDEX(iWeights2!$H$5:$AU$43,$AA23,uxb_works!$B$36+3)) -> 1 | AX23: 0.25 | AZ23: =IF(ISERROR($AA23),1,INDEX(Weights!$G$7:$G$45,$AA23)) -> 1 | BA23: 0.25
A24: 23 | B24: 0 | D24: SP_11 | E24: SP | F24: 2 | G24: 2.2 | H24: =iDataCollect!C26 -> Educational attainment | I24: Percentage of individuals receiving tertiary education. This indicator provides a proxy for the level of educational attainment in a population, reflecting the relationship between human capital and trade. | J24: 0-100 percentage | M24: =CHOOSE(iDateCollect!AD26,iDateCollect!Z26,"Dates range between "&iDateCollect!Y26&" and "&iDateCollect!Z26,"Scores derived from data taken between "&iDateCollect!AB26&" and "&iDateCollect!AC26,iDateCollect!AC24) -> Dates range between 2011 and 2014 | O24: High score = good | P24: #0.0 | Q24: UNESCO/World Bank | R24: 2.2 | S24: 0 | T24: 2 | W24: 0.25 | X24: 0.25 | Y24: 2.2) Educational attainment | Z24: =$Y$22 -> 2) SOCIAL PILLAR | AA24: =MATCH($D24,Weights!$C$7:$C$47,0) -> 23 | AB24: =IF(ISERROR($AA24),1,INDEX(Weights2!$G$7:$G$45,$AA24)) -> 1 | AC24: 0.25 | AE24: =IF(ISERROR(AA24),1,INDEX(Weights2!$K$7:$K$45,AA24)) -> 1 | AF24: 0.25 | AH24: =IF(ISERROR(AA24),1,INDEX(Weights2!$O$7:$O$77,AA24)) -> 1 | AI24: 0.25 | AK24: =IF(ISERROR(AA24),1,INDEX(Weights2!$S$7:$S$77,AA24)) -> 1 | AL24: 0.25 | AN24: =IF(ISERROR($AA24),1,INDEX(iWeights2!$H$5:$AU$43,$AA24,uxb_works!$B$36)) -> 1 | AO24: 0.25 | AQ24: =IF(ISERROR($AA24),1,INDEX(iWeights2!$H$5:$AU$43,$AA24,uxb_works!$B$36+1)) -> 1 | AR24: 0.25 | AT24: =IF(ISERROR($AA24),1,INDEX(iWeights2!$H$5:$AU$43,$AA24,uxb_works!$B$36+2)) -> 1 | AU24: 0.25 | AW24: =IF(ISERROR($AA24),1,INDEX(iWeights2!$H$5:$AU$43,$AA24,uxb_works!$B$36+3)) -> 1 | AX24: 0.25 | AZ24: =IF(ISERROR($AA24),1,INDEX(Weights!$G$7:$G$45,$AA24)) -> 1 | BA24: 0.25
A25: 24 | B25: 0 | D25: SP_12 | E25: SP | F25: 2 | G25: 2.3 | H25: =iDataCollect!C27 -> Labour standards | I25: An assessment of child labour from the ILO, thus capturing the prevalence of child labour in a country. Trade is unlikely to be sustainable with enduring low-levels of labour standards. | J25: 1-4 score | M25: =CHOOSE(iDateCollect!AD27,iDateCollect!Z27,"Dates range between "&iDateCollect!Y27&" and "&iDateCollect!Z27,"Scores derived from data taken between "&iDateCollect!AB27&" and "&iDateCollect!AC27,iDateCollect!AC25) -> 2014 | O25: High score = bad | P25: #0 | Q25: ILO | R25: 2.3 | S25: 1 | T25: 3 | U25: 1 | V25: 4 | W25: 0.25 | X25: 0.25 | Y25: 2.3) Labour standards | Z25: 2) SOCIAL PILLAR | AA25: =MATCH($D25,Weights!$C$7:$C$47,0) -> 24 | AB25: =IF(ISERROR($AA25),1,INDEX(Weights2!$G$7:$G$45,$AA25)) -> 1 | AC25: 0.25 | AE25: =IF(ISERROR(AA25),1,INDEX(Weights2!$K$7:$K$45,AA25)) -> 1 | AF25: 0.25 | AH25: =IF(ISERROR(AA25),1,INDEX(Weights2!$O$7:$O$77,AA25)) -> 1 | AI25: 0.25 | AK25: =IF(ISERROR(AA25),1,INDEX(Weights2!$S$7:$S$77,AA25)) -> 1 | AL25: 0.25 | AN25: =IF(ISERROR($AA25),1,INDEX(iWeights2!$H$5:$AU$43,$AA25,uxb_works!$B$36)) -> 1 | AO25: 0.25 | AQ25: =IF(ISERROR($AA25),1,INDEX(iWeights2!$H$5:$AU$43,$AA25,uxb_works!$B$36+1)) -> 1 | AR25: 0.25 | AT25: =IF(ISERROR($AA25),1,INDEX(iWeights2!$H$5:$AU$43,$AA25,uxb_works!$B$36+2)) -> 1 | AU25: 0.25 | AW25: =IF(ISERROR($AA25),1,INDEX(iWeights2!$H$5:$AU$43,$AA25,uxb_works!$B$36+3)) -> 1 | AX25: 0.25 | AZ25: =IF(ISERROR($AA25),1,INDEX(Weights!$G$7:$G$45,$AA25)) -> 1 | BA25: 0.25
A26: 25 | B26: 0 | D26: SP_13 | E26: SP | F26: 2 | G26: 2.4 | H26: =iDataCollect!C28 -> Political stability | I26: The EIU scores countries on the level of political stability in a given year, thus providing a link between trade and the political and social stability in a country. | J26: 0-5 score | M26: =CHOOSE(iDateCollect!AD28,iDateCollect!Z28,"Dates range between "&iDateCollect!Y28&" and "&iDateCollect!Z28,"Scores derived from data taken between "&iDateCollect!AB28&" and "&iDateCollect!AC28,iDateCollect!AC26) -> 2014 | O26: High score = bad | P26: #0.0 | Q26: EIU | R26: 2.4 | S26: 1 | T26: 3 | U26: 0 | V26: 5 | W26: 0.25 | X26: 0.25 | Y26: 2.4) Political stability | Z26: 2) SOCIAL PILLAR | AA26: =MATCH($D26,Weights!$C$7:$C$47,0) -> 25 | AB26: =IF(ISERROR($AA26),1,INDEX(Weights2!$G$7:$G$45,$AA26)) -> 1 | AC26: 0.25 | AE26: =IF(ISERROR(AA26),1,INDEX(Weights2!$K$7:$K$45,AA26)) -> 1 | AF26: 0.25 | AH26: =IF(ISERROR(AA26),1,INDEX(Weights2!$O$7:$O$77,AA26)) -> 1 | AI26: 0.25 | AK26: =IF(ISERROR(AA26),1,INDEX(Weights2!$S$7:$S$77,AA26)) -> 1 | AL26: 0.25 | AN26: =IF(ISERROR($AA26),1,INDEX(iWeights2!$H$5:$AU$43,$AA26,uxb_works!$B$36)) -> 1 | AO26: 0.25 | AQ26: =IF(ISERROR($AA26),1,INDEX(iWeights2!$H$5:$AU$43,$AA26,uxb_works!$B$36+1)) -> 1 | AR26: 0.25 | AT26: =IF(ISERROR($AA26),1,INDEX(iWeights2!$H$5:$AU$43,$AA26,uxb_works!$B$36+2)) -> 1 | AU26: 0.25 | AW26: =IF(ISERROR($AA26),1,INDEX(iWeights2!$H$5:$AU$43,$AA26,uxb_works!$B$36+3)) -> 1 | AX26: 0.25 | AZ26: =IF(ISERROR($AA26),1,INDEX(Weights!$G$7:$G$45,$AA26)) -> 1 | BA26: 0.25
A27: 26 | B27: 0 | D27: ENP | E27: TOTAL | F27: 1 | G27: 3 | H27: =iDataCollect!C29 -> Environmental pillar | I27: The category score is the weighted sum of the following indicator scores: 3.1) Air pollution 3.2) Deforestation 3.3) Water pollution 3.4) Environmental standards in trade 3.5) Carbon emissions in trade 3.6) Share of natural resources in trade | J27: Index score/number | M27: =CHOOSE(iDateCollect!AD29,iDateCollect!Z29,"Dates range between "&iDateCollect!Y29&" and "&iDateCollect!Z29,"Scores derived from data taken between "&iDateCollect!AB29&" and "&iDateCollect!AC29,iDateCollect!AC27) -> Scores derived from data taken between 2011 and 2014 | P27: #0.0 | Q27: EIU Calculation | R27: 3 | T27: 1 | W27: 0.3333333333 | X27: 0.3333333333 | Y27: 3) ENVIRONMENTAL PILLAR | Z27: =$Y$2 -> OVERALL SCORE | AA27: =MATCH($D27,Weights!$C$7:$C$47,0) -> 3 | AB27: =IF(ISERROR($AA27),1,INDEX(Weights2!$G$7:$G$45,$AA27)) -> 1 | AC27: 0.3333333333 | AE27: =IF(ISERROR(AA27),1,INDEX(Weights2!$K$7:$K$45,AA27)) -> 1 | AF27: 0.3333333333 | AH27: =IF(ISERROR(AA27),1,INDEX(Weights2!$O$7:$O$77,AA27)) -> 1 | AI27: 0.3333333333 | AK27: =IF(ISERROR(AA27),1,INDEX(Weights2!$S$7:$S$77,AA27)) -> 1 | AL27: 0.3333333333 | AN27: =IF(ISERROR($AA27),1,INDEX(iWeights2!$H$5:$AU$43,$AA27,uxb_works!$B$36)) -> 1 | AO27: 0.3333333333 | AQ27: =IF(ISERROR($AA27),1,INDEX(iWeights2!$H$5:$AU$43,$AA27,uxb_works!$B$36+1)) -> 0.6 | AR27: 0.2 | AT27: =IF(ISERROR($AA27),1,INDEX(iWeights2!$H$5:$AU$43,$AA27,uxb_works!$B$36+2)) -> 0.5 | AU27: 0.1666666667 | AW27: =IF(ISERROR($AA27),1,INDEX(iWeights2!$H$5:$AU$43,$AA27,uxb_works!$B$36+3)) -> 0.4 | AX27: 0.1333333333 | AZ27: =IF(ISERROR($AA27),1,INDEX(Weights!$G$7:$G$45,$AA27)) -> 0.7 | BA27: 0.2333333333
A28: 27 | B28: 0 | D28: ENP_10 | E28: ENP | F28: 2 | G28: 3.1 | H28: =iDataCollect!C30 -> Air pollution | I28: Levels of particulate matter 2.5 (PM 2.5), to capture the air pollution in a country. This indicator highlights the link between economic growth, trade and pollution. | J28: 0 to Upper Bound (Population weighted exposure to PM2.5 (micro-grams per cubic meter)) | M28: =CHOOSE(iDateCollect!AD30,iDateCollect!Z30,"Dates range between "&iDateCollect!Y30&" and "&iDateCollect!Z30,"Scores derived from data taken between "&iDateCollect!AB30&" and "&iDateCollect!AC30,iDateCollect!AC28) -> 2012 | O28: High score = bad | P28: #0.00 | Q28: Yale EPI | R28: 3.1 | S28: 1 | T28: 2 | W28: 0.1666666667 | X28: 0.1666666667 | Y28: 3.1) Air pollution | Z28: =$Y$27 -> 3) ENVIRONMENTAL PILLAR | AA28: =MATCH($D28,Weights!$C$7:$C$47,0) -> 27 | AB28: =IF(ISERROR($AA28),1,INDEX(Weights2!$G$7:$G$45,$AA28)) -> 1 | AC28: 0.1666666667 | AE28: =IF(ISERROR(AA28),1,INDEX(Weights2!$K$7:$K$45,AA28)) -> 1 | AF28: 0.1666666667 | AH28: =IF(ISERROR(AA28),1,INDEX(Weights2!$O$7:$O$77,AA28)) -> 1 | AI28: 0.1666666667 | AK28: =IF(ISERROR(AA28),1,INDEX(Weights2!$S$7:$S$77,AA28)) -> 1 | AL28: 0.1666666667 | AN28: =IF(ISERROR($AA28),1,INDEX(iWeights2!$H$5:$AU$43,$AA28,uxb_works!$B$36)) -> 1 | AO28: 0.1666666667 | AQ28: =IF(ISERROR($AA28),1,INDEX(iWeights2!$H$5:$AU$43,$AA28,uxb_works!$B$36+1)) -> 1 | AR28: 0.1666666667 | AT28: =IF(ISERROR($AA28),1,INDEX(iWeights2!$H$5:$AU$43,$AA28,uxb_works!$B$36+2)) -> 1 | AU28: 0.1666666667 | AW28: =IF(ISERROR($AA28),1,INDEX(iWeights2!$H$5:$AU$43,$AA28,uxb_works!$B$36+3)) -> 1 | AX28: 0.1666666667 | AZ28: =IF(ISERROR($AA28),1,INDEX(Weights!$G$7:$G$45,$AA28)) -> 1 | BA28: 0.1666666667
A29: 28 | B29: 0 | D29: ENP_11 | E29: ENP | F29: 2 | G29: 3.2 | H29: =iDataCollect!C31 -> Deforestation | I29: The change in a country’s forest cover. This indicator measures the rate of deforestation in a country over time, reflecting the links between growth, trade and the degradation of natural resources. | J29: Lower Bound to 0 (percent change) | M29: =CHOOSE(iDateCollect!AD31,iDateCollect!Z31,"Dates range between "&iDateCollect!Y31&" and "&iDateCollect!Z31,"Scores derived from data taken between "&iDateCollect!AB31&" and "&iDateCollect!AC31,iDateCollect!AC29) -> 2012 | O29: High score = good | P29: #0.0 | Q29: Yale EPI | R29: 3.2 | S29: 0 | T29: 2 | W29: 0.1666666667 | X29: 0.1666666667 | Y29: 3.2) Deforestation | Z29: =$Y$27 -> 3) ENVIRONMENTAL PILLAR | AA29: =MATCH($D29,Weights!$C$7:$C$47,0) -> 28 | AB29: =IF(ISERROR($AA29),1,INDEX(Weights2!$G$7:$G$45,$AA29)) -> 1 | AC29: 0.1666666667 | AE29: =IF(ISERROR(AA29),1,INDEX(Weights2!$K$7:$K$45,AA29)) -> 1 | AF29: 0.1666666667 | AH29: =IF(ISERROR(AA29),1,INDEX(Weights2!$O$7:$O$77,AA29)) -> 1 | AI29: 0.1666666667 | AK29: =IF(ISERROR(AA29),1,INDEX(Weights2!$S$7:$S$77,AA29)) -> 1 | AL29: 0.1666666667 | AN29: =IF(ISERROR($AA29),1,INDEX(iWeights2!$H$5:$AU$43,$AA29,uxb_works!$B$36)) -> 1 | AO29: 0.1666666667 | AQ29: =IF(ISERROR($AA29),1,INDEX(iWeights2!$H$5:$AU$43,$AA29,uxb_works!$B$36+1)) -> 1 | AR29: 0.1666666667 | AT29: =IF(ISERROR($AA29),1,INDEX(iWeights2!$H$5:$AU$43,$AA29,uxb_works!$B$36+2)) -> 1 | AU29: 0.1666666667 | AW29: =IF(ISERROR($AA29),1,INDEX(iWeights2!$H$5:$AU$43,$AA29,uxb_works!$B$36+3)) -> 1 | AX29: 0.1666666667 | AZ29: =IF(ISERROR($AA29),1,INDEX(Weights!$G$7:$G$45,$AA29)) -> 1 | BA29: 0.1666666667
A30: 29 | B30: 0 | D30: ENP_12 | E30: ENP | F30: 2 | G30: 3.3 | H30: =iDataCollect!C32 -> Water pollution | I30: The level of water pollution in a country. This indicator reflects the links between economic growth, trade and pollution in a country. | J30: 0-100 (% of wastewater treatment) | M30: =CHOOSE(iDateCollect!AD32,iDateCollect!Z32,"Dates range between "&iDateCollect!Y32&" and "&iDateCollect!Z32,"Scores derived from data taken between "&iDateCollect!AB32&" and "&iDateCollect!AC32,iDateCollect!AC30) -> 2012 | O30: High score = good | P30: #0 | Q30: Yale EPI | R30: 3.3 | S30: 0 | T30: 2 | W30: 0.1666666667 | X30: 0.1666666667 | Y30: 3.3) Water pollution | Z30: 3) ENVIRONMENTAL PILLAR | AA30: =MATCH($D30,Weights!$C$7:$C$47,0) -> 29 | AB30: =IF(ISERROR($AA30),1,INDEX(Weights2!$G$7:$G$45,$AA30)) -> 1 | AC30: 0.1666666667 | AE30: =IF(ISERROR(AA30),1,INDEX(Weights2!$K$7:$K$45,AA30)) -> 1 | AF30: 0.1666666667 | AH30: =IF(ISERROR(AA30),1,INDEX(Weights2!$O$7:$O$77,AA30)) -> 1 | AI30: 0.1666666667 | AK30: =IF(ISERROR(AA30),1,INDEX(Weights2!$S$7:$S$77,AA30)) -> 1 | AL30: 0.1666666667 | AN30: =IF(ISERROR($AA30),1,INDEX(iWeights2!$H$5:$AU$43,$AA30,uxb_works!$B$36)) -> 1 | AO30: 0.1666666667 | AQ30: =IF(ISERROR($AA30),1,INDEX(iWeights2!$H$5:$AU$43,$AA30,uxb_works!$B$36+1)) -> 1 | AR30: 0.1666666667 | AT30: =IF(ISERROR($AA30),1,INDEX(iWeights2!$H$5:$AU$43,$AA30,uxb_works!$B$36+2)) -> 1 | AU30: 0.1666666667 | AW30: =IF(ISERROR($AA30),1,INDEX(iWeights2!$H$5:$AU$43,$AA30,uxb_works!$B$36+3)) -> 1 | AX30: 0.1666666667 | AZ30: =IF(ISERROR($AA30),1,INDEX(Weights!$G$7:$G$45,$AA30)) -> 1 | BA30: 0.1666666667
A31: 30 | B31: 0 | D31: ENP_13 | E31: ENP | F31: 2 | G31: 3.4 | H31: =iDataCollect!C33 -> Environmental standards in trade | I31: Indicator scores a country based on how many of seven key environmental agreements it has signed. | J31: 1-7 score | M31: =CHOOSE(iDateCollect!AD33,iDateCollect!Z33,"Dates range between "&iDateCollect!Y33&" and "&iDateCollect!Z33,"Scores derived from data taken between "&iDateCollect!AB33&" and "&iDateCollect!AC33,iDateCollect!AC31) -> 2014 | O31: High score = good | P31: #0 | Q31: WTO / Academic research | R31: 3.4 | S31: 0 | T31: 3 | U31: 1 | V31: 7 | W31: 0.1666666667 | X31: 0.1666666667 | Y31: 3.4) Environmental standards in trade | Z31: 3) ENVIRONMENTAL PILLAR | AA31: =MATCH($D31,Weights!$C$7:$C$47,0) -> 30 | AB31: =IF(ISERROR($AA31),1,INDEX(Weights2!$G$7:$G$45,$AA31)) -> 1 | AC31: 0.1666666667 | AE31: =IF(ISERROR(AA31),1,INDEX(Weights2!$K$7:$K$45,AA31)) -> 1 | AF31: 0.1666666667 | AH31: =IF(ISERROR(AA31),1,INDEX(Weights2!$O$7:$O$77,AA31)) -> 1 | AI31: 0.1666666667 | AK31: =IF(ISERROR(AA31),1,INDEX(Weights2!$S$7:$S$77,AA31)) -> 1 | AL31: 0.1666666667 | AN31: =IF(ISERROR($AA31),1,INDEX(iWeights2!$H$5:$AU$43,$AA31,uxb_works!$B$36)) -> 1 | AO31: 0.1666666667 | AQ31: =IF(ISERROR($AA31),1,INDEX(iWeights2!$H$5:$AU$43,$AA31,uxb_works!$B$36+1)) -> 1 | AR31: 0.1666666667 | AT31: =IF(ISERROR($AA31),1,INDEX(iWeights2!$H$5:$AU$43,$AA31,uxb_works!$B$36+2)) -> 1 | AU31: 0.1666666667 | AW31: =IF(ISERROR($AA31),1,INDEX(iWeights2!$H$5:$AU$43,$AA31,uxb_works!$B$36+3)) -> 1 | AX31: 0.1666666667 | AZ31: =IF(ISERROR($AA31),1,INDEX(Weights!$G$7:$G$45,$AA31)) -> 1 | BA31: 0.1666666667
A32: 31 | B32: 0 | D32: ENP_14 | E32: ENP | F32: 2 | G32: 3.5 | H32: =iDataCollect!C34 -> Carbon emissions in trade | I32: This indicator captures if a country has carbon pricing for exporting sectors that would internalize the cost of carbon to the production system. Carbon emissions and climate change are likely to significantly impact trade policy, given the links between climate change and the global trading system. | J32: Total of carbon emissions in imports and exports (2004) estimates per country- kilotons C02 | M32: =CHOOSE(iDateCollect!AD34,iDateCollect!Z34,"Dates range between "&iDateCollect!Y34&" and "&iDateCollect!Z34,"Scores derived from data taken between "&iDateCollect!AB34&" and "&iDateCollect!AC34,iDateCollect!AC32) -> Dates range between 2011 and 2014 | O32: High score = bad | P32: #0 | Q32: OECD / WTO / Academic research | R32: 3.5 | S32: 1 | T32: 2 | W32: 0.1666666667 | X32: 0.1666666667 | Y32: 3.5) Carbon emissions in trade | Z32: 3) ENVIRONMENTAL PILLAR | AA32: =MATCH($D32,Weights!$C$7:$C$47,0) -> 31 | AB32: =IF(ISERROR($AA32),1,INDEX(Weights2!$G$7:$G$45,$AA32)) -> 1 | AC32: 0.1666666667 | AE32: =IF(ISERROR(AA32),1,INDEX(Weights2!$K$7:$K$45,AA32)) -> 1 | AF32: 0.1666666667 | AH32: =IF(ISERROR(AA32),1,INDEX(Weights2!$O$7:$O$77,AA32)) -> 1 | AI32: 0.1666666667 | AK32: =IF(ISERROR(AA32),1,INDEX(Weights2!$S$7:$S$77,AA32)) -> 1 | AL32: 0.1666666667 | AN32: =IF(ISERROR($AA32),1,INDEX(iWeights2!$H$5:$AU$43,$AA32,uxb_works!$B$36)) -> 1 | AO32: 0.1666666667 | AQ32: =IF(ISERROR($AA32),1,INDEX(iWeights2!$H$5:$AU$43,$AA32,uxb_works!$B$36+1)) -> 1 | AR32: 0.1666666667 | AT32: =IF(ISERROR($AA32),1,INDEX(iWeights2!$H$5:$AU$43,$AA32,uxb_works!$B$36+2)) -> 1 | AU32: 0.1666666667 | AW32: =IF(ISERROR($AA32),1,INDEX(iWeights2!$H$5:$AU$43,$AA32,uxb_works!$B$36+3)) -> 1 | AX32: 0.1666666667 | AZ32: =IF(ISERROR($AA32),1,INDEX(Weights!$G$7:$G$45,$AA32)) -> 1 | BA32: 0.1666666667
A33: 32 | B33: 0 | D33: ENP_15 | E33: ENP | F33: 2 | G33: 3.6 | H33: =iDataCollect!C35 -> Share of natural resources in trade | I33: As a proxy for sustainability, this indicator captures what percentage of a country’s exports is related to natural resources. If a country hopes to continue trading in the economic system, it must either think of a way to preserve its indigenous resources, or develop other sectors and products to remain competitive. | J33: 0-100 percentage | M33: =CHOOSE(iDateCollect!AD35,iDateCollect!Z35,"Dates range between "&iDateCollect!Y35&" and "&iDateCollect!Z35,"Scores derived from data taken between "&iDateCollect!AB35&" and "&iDateCollect!AC35,iDateCollect!AC33) -> Dates range between 2011 and 2014 | O33: High score = bad | P33: #0.00 | Q33: UNCTAD Concentration Index | R33: 3.6 | S33: 1 | T33: 2 | W33: 0.1666666667 | X33: 0.1666666667 | Y33: 3.6) Share of natural resources in trade | Z33: 3) ENVIRONMENTAL PILLAR | AA33: =MATCH($D33,Weights!$C$7:$C$47,0) -> 32 | AB33: =IF(ISERROR($AA33),1,INDEX(Weights2!$G$7:$G$45,$AA33)) -> 1 | AC33: 0.1666666667 | AE33: =IF(ISERROR(AA33),1,INDEX(Weights2!$K$7:$K$45,AA33)) -> 1 | AF33: 0.1666666667 | AH33: =IF(ISERROR(AA33),1,INDEX(Weights2!$O$7:$O$77,AA33)) -> 1 | AI33: 0.1666666667 | AK33: =IF(ISERROR(AA33),1,INDEX(Weights2!$S$7:$S$77,AA33)) -> 1 | AL33: 0.1666666667 | AN33: =IF(ISERROR($AA33),1,INDEX(iWeights2!$H$5:$AU$43,$AA33,uxb_works!$B$36)) -> 1 | AO33: 0.1666666667 | AQ33: =IF(ISERROR($AA33),1,INDEX(iWeights2!$H$5:$AU$43,$AA33,uxb_works!$B$36+1)) -> 1 | AR33: 0.1666666667 | AT33: =IF(ISERROR($AA33),1,INDEX(iWeights2!$H$5:$AU$43,$AA33,uxb_works!$B$36+2)) -> 1 | AU33: 0.1666666667 | AW33: =IF(ISERROR($AA33),1,INDEX(iWeights2!$H$5:$AU$43,$AA33,uxb_works!$B$36+3)) -> 1 | AX33: 0.1666666667 | AZ33: =IF(ISERROR($AA33),1,INDEX(Weights!$G$7:$G$45,$AA33)) -> 1 | BA33: 0.1666666667

Sheet uxb_works (hidden)
A1: TERRITORY_COUNT | B1: 20
A2: VERSION | B2: =Home!B33 -> PRODUCTION
A3: MAIN_DP | B3: 0
A4: WEIGHT_PROFILE_ID | B4: 1
C5: plus none | D5: ignore none | E5: Country Code | F5: Country Number
A6: CITY_HIGHLIGHT_DD | B6: 1 | C6: =INDEX(luCityPlusNone,B6) -> <none> | D6: =INDEX(luCities,B6) -> Bangladesh | E6: USA | F6: =MATCH(E6,tblTerritories!B2:B22,0) -> 21
A7: CITY_HIGHLIGHT_ID | B7: =B6-1 -> 0
A8: GROUP_HIGHLIGHT_DD | B8: 1 | C8: =INDEX(luRegions,B8) -> <none>
B9: =B8+1 -> 2 | E9: Check if Autoheight on Summary page should run
A10: GROUP_FILTER_ID | B10: 1 | C10: =INDEX(tblTerritories!O4:O8,B10) -> All Incomes | E10: =COUNTIF(iSummary!M8:M27,1) -> 20 | F10: 20 | G10: =IF(E10=F10,1,0) -> 1
B11: =B10-1 -> 0 | AC11: Not Applicable
A12: NUMBER_OF_INDICATORS | B12: 1
A13: Indicator Ranking | B13: 32 | C13: =tblIndicators!B1 -> IS_BG | D13: =tblIndicators!C1 -> Spare1 | E13: =tblIndicators!D1 -> INDI_CODE | F13: =tblIndicators!E1 -> PARENT_CODE | G13: =tblIndicators!F1 -> DEPTH | H13: =tblIndicators!G1 -> REF | I13: =tblIndicators!H1 -> NDICATOR_SHORT | J13: =tblIndicators!I1 -> DESCRIPTION | K13: =tblIndicators!J1 -> INDICATOR_UNIT | L13: =tblIndicators!K1 -> Rational | M13: =tblIndicators!L1 -> Scoring Criteria (0-100 or 0-4 etc) | N13: =tblIndicators!M1 -> Year | O13: =tblIndicators!N1 -> Geography | P13: =tblIndicators!O1 -> HIGH=Good | Q13: =tblIndicators!P1 -> Format | R13: =tblIndicators!Q1 -> MAIN_SOURCE | S13: =tblIndicators!R1 -> SOURCE_WS_ID | T13: =tblIndicators!S1 -> HIGH_IS | U13: =tblIndicators!T1 -> NORM_ID (1=sumproduct, 2=min max set by data values, 3=min max set by user here) | V13: =tblIndicators!U1 -> Set Min | W13: =tblIndicators!V1 -> Set Max | X13: =tblIndicators!W1 -> WEIGHT_NOM | Y13: =tblIndicators!X1 -> WEIGHT_PERC | Z13: =tblIndicators!Y1 -> REF_INDI | AA13: =tblIndicators!Z1 -> PARENT | AB13: =tblIndicators!AA1 -> Weight_row | AC13: =tblIndicators!AB1 -> Weight_nom_inc_1 | AD13: =tblIndicators!AC1 -> Weight-% | AE13: =tblIndicators!#REF! ->  | AF13: =tblIndicators!AN1 -> Weight_nom_2_1 | AG13: =tblIndicators!AO1 -> Weight-%_2 | AH13: =tblIndicators!AD1 -> 0 | AI13: =tblIndicators!AE1 -> Weight_nom_inc_2 | AJ13: =tblIndicators!AF1 -> Weight-% | AK13: =tblIndicators!AF1 -> Weight-%
A14: INDI_ID | B14: 4 | C14: =IF(INDEX(tblIndicators!B$2:B$33,$B14)="","",INDEX(tblIndicators!B$2:B$33,$B14)) -> 0 | D14: =IF(INDEX(tblIndicators!C$2:C$33,$B14)="","",INDEX(tblIndicators!C$2:C$33,$B14)) ->  | E14: =IF(INDEX(tblIndicators!D$2:D$33,$B14)="","",INDEX(tblIndicators!D$2:D$33,$B14)) -> EP_11 | F14: =IF(INDEX(tblIndicators!E$2:E$33,$B14)="","",INDEX(tblIndicators!E$2:E$33,$B14)) -> EP | G14: =IF(INDEX(tblIndicators!F$2:F$33,$B14)="","",INDEX(tblIndicators!F$2:F$33,$B14)) -> 2 | H14: =IF(INDEX(tblIndicators!G$2:G$33,$B14)="","",INDEX(tblIndicators!G$2:G$33,$B14)) -> 1.11 | I14: =IF(INDEX(tblIndicators!H$2:H$33,$B14)="","",INDEX(tblIndicators!H$2:H$33,$B14)) -> Current account liberalisation | J14: =IF(INDEX(tblIndicators!I$2:I$33,$B14)="","",INDEX(tblIndicators!I$2:I$33,$B14)) -> A measure of a country’s current account liberalisation, with consideration of restrictions in this area; used to capture the ease with which a country trades goods across its border. | K14: =IF(INDEX(tblIndicators!J$2:J$33,$B14)="","",INDEX(tblIndicators!J$2:J$33,$B14)) -> 1-5 scores | L14: =IF(INDEX(tblIndicators!K$2:K$33,$B14)="","",INDEX(tblIndicators!K$2:K$33,$B14)) ->  | M14: =IF(INDEX(tblIndicators!L$2:L$33,$B14)="","",INDEX(tblIndicators!L$2:L$33,$B14)) ->  | N14: =IF(INDEX(tblIndicators!M$2:M$33,$B14)="","",INDEX(tblIndicators!M$2:M$33,$B14)) -> 2014 | O14: =IF(INDEX(tblIndicators!N$2:N$33,$B14)="","",INDEX(tblIndicators!N$2:N$33,$B14)) ->  | P14: =IF(INDEX(tblIndicators!O$2:O$33,$B14)="","",INDEX(tblIndicators!O$2:O$33,$B14)) -> High score = good | Q14: =IF(INDEX(tblIndicators!P$2:P$33,$B14)="","",INDEX(tblIndicators!P$2:P$33,$B14)) -> #0 | R14: =IF(INDEX(tblIndicators!Q$2:Q$33,$B14)="","",INDEX(tblIndicators!Q$2:Q$33,$B14)) -> EIU | S14: =IF(INDEX(tblIndicators!R$2:R$33,$B14)="","",INDEX(tblIndicators!R$2:R$33,$B14)) -> 1.11 | T14: =IF(INDEX(tblIndicators!S$2:S$33,$B14)="","",INDEX(tblIndicators!S$2:S$33,$B14)) -> 0 | U14: =IF(INDEX(tblIndicators!T$2:T$33,$B14)="","",INDEX(tblIndicators!T$2:T$33,$B14)) -> 3 | V14: =IF(INDEX(tblIndicators!U$2:U$33,$B14)="","",INDEX(tblIndicators!U$2:U$33,$B14)) -> 1 | W14: =IF(INDEX(tblIndicators!V$2:V$33,$B14)="","",INDEX(tblIndicators!V$2:V$33,$B14)) -> 5 | X14: =IF(INDEX(tblIndicators!W$2:W$33,$B14)="","",INDEX(tblIndicators!W$2:W$33,$B14)) -> 0.07142857143 | Y14: =IF(INDEX(tblIndicators!X$2:X$33,$B14)="","",INDEX(tblIndicators!X$2:X$33,$B14)) -> 0.07142857143 | Z14: =IF(INDEX(tblIndicators!Y$2:Y$33,$B14)="","",INDEX(tblIndicators!Y$2:Y$33,$B14)) -> 1.11) Current account liberalisation | AA14: =IF(INDEX(tblIndicators!Z$2:Z$33,$B14)="","",INDEX(tblIndicators!Z$2:Z$33,$B14)) -> 1) ECONOMIC PILLAR | AB14: =IF(INDEX(tblIndicators!AA$2:AA$33,$B14)="","",INDEX(tblIndicators!AA$2:AA$33,$B14)) -> 8 | AC14: =IF(INDEX(tblIndicators!AB$2:AB$33,$B14)="","",INDEX(tblIndicators!AB$2:AB$33,$B14)) -> 1 | AD14: =IF(INDEX(tblIndicators!AC$2:AC$33,$B14)="","",INDEX(tblIndicators!AC$2:AC$33,$B14)) -> 0.07142857143 | AE14: =IF(INDEX(tblIndicators!#REF!,$B14)="","",INDEX(tblIndicators!#REF!,$B14)) ->  | AF14: =IF(INDEX(tblIndicators!AN$2:AN$33,$B14)="","",INDEX(tblIndicators!AN$2:AN$33,$B14)) -> 1 | AG14: =IF(INDEX(tblIndicators!AO$2:AO$33,$B14)="","",INDEX(tblIndicators!AO$2:AO$33,$B14)) -> 0.07142857143 | AH14: =IF(INDEX(tblIndicators!AD$2:AD$33,$B14)="","",INDEX(tblIndicators!AD$2:AD$33,$B14)) ->  | AI14: =IF(INDEX(tblIndicators!AE$2:AE$33,$B14)="","",INDEX(tblIndicators!AE$2:AE$33,$B14)) -> 1 | AJ14: =IF(INDEX(tblIndicators!AF$2:AF$33,$B14)="","",INDEX(tblIndicators!AF$2:AF$33,$B14)) -> 0.07142857143 | AK14: =IF(INDEX(tblIndicators!AF$2:AF$33,$B14)="","",INDEX(tblIndicators!AF$2:AF$33,$B14)) -> 0.07142857143
A16: INDI_OR_SUB_INDI | B16: FALSE
A18: City PROFILE | C18: City | D18: Code | E18: CoreRegionID
A19: CITY1_ID | B19: 4 | C19: =INDEX(luCities,B19) -> China | D19: =INDEX(OFFSET(luCities,0,-3),B19) -> CHN | E19: =INDEX(OFFSET(luCities,0,3),B19) -> 0
A20: CITY2_ID | B20: 6 | C20: =INDEX(luCities,B20) -> India | D20: =INDEX(OFFSET(luCities,0,-3),B20) -> IND | E20: =INDEX(OFFSET(luCities,0,3),B20) -> 0
A21: Show_data_Buckets | B21: TRUE | C21: =IF(B21,1,0) -> 1
C22: 1 | D22: 2 | E22: 3 | F22: 4 | G22: 5 | H22: 6 | I22: 7 | J22: 8 | K22: 9 | L22: 10 | M22: 11 | N22: 12 | O22: 13 | P22: 14 | Q22: 15 | R22: 16 | S22: 17 | T22: 18 | U22: 19
A23: SCATTER | C23: =INDEX(tblIndicators!$D$1:$AO$1,C22) -> INDI_CODE | D23: =INDEX(tblIndicators!$D$1:$AO$1,D22) -> PARENT_CODE | E23: =INDEX(tblIndicators!$D$1:$AO$1,E22) -> DEPTH | F23: =INDEX(tblIndicators!$D$1:$AO$1,F22) -> REF | G23: =INDEX(tblIndicators!$D$1:$AO$1,G22) -> NDICATOR_SHORT | H23: =INDEX(tblIndicators!$D$1:$AO$1,H22) -> DESCRIPTION | I23: =INDEX(tblIndicators!$D$1:$AO$1,I22) -> INDICATOR_UNIT | J23: =INDEX(tblIndicators!$D$1:$AO$1,J22) -> Rational | K23: =INDEX(tblIndicators!$D$1:$AO$1,K22) -> Scoring Criteria (0-100 or 0-4 etc) | L23: =INDEX(tblIndicators!$D$1:$AO$1,L22) -> Year | M23: =INDEX(tblIndicators!$D$1:$AO$1,M22) -> Geography | N23: =INDEX(tblIndicators!$D$1:$AO$1,N22) -> HIGH=Good | O23: =INDEX(tblIndicators!$D$1:$AO$1,O22) -> Format | P23: =INDEX(tblIndicators!$D$1:$AO$1,P22) -> MAIN_SOURCE | Q23: =INDEX(tblIndicators!$D$1:$AO$1,Q22) -> SOURCE_WS_ID | R23: =INDEX(tblIndicators!$D$1:$AO$1,R22) -> HIGH_IS | S23: =INDEX(tblIndicators!$D$1:$AO$1,S22) -> NORM_ID (1=sumproduct, 2=min max set by data values, 3=min max set by user here) | T23: =INDEX(tblIndicators!$D$1:$AO$1,T22) -> Set Min | U23: =INDEX(tblIndicators!$D$1:$AO$1,U22) -> Set Max
A24: INDI_1 | B24: =B14 -> 4 | C24: =INDEX(tblIndicators!$D$2:$Y$33,uxb_works!$B24,C$22) -> EP_11 | D24: =INDEX(tblIndicators!$D$2:$Y$33,uxb_works!$B24,D$22) -> EP | E24: =INDEX(tblIndicators!$D$2:$Y$33,uxb_works!$B24,E$22) -> 2 | F24: =INDEX(tblIndicators!$D$2:$Y$33,uxb_works!$B24,F$22) -> 1.11 | G24: =INDEX(tblIndicators!$D$2:$Y$33,uxb_works!$B24,G$22) -> Current account liberalisation | H24: =INDEX(tblIndicators!$D$2:$Y$33,uxb_works!$B24,H$22) -> A measure of a country’s current account liberalisation, with consideration of restrictions in this area; used to capture the ease with which a country trades goods across its border. | I24: =INDEX(tblIndicators!$D$2:$Y$33,uxb_works!$B24,I$22) -> 1-5 scores | J24: =INDEX(tblIndicators!$D$2:$Y$33,uxb_works!$B24,J$22) -> 0 | K24: =INDEX(tblIndicators!$D$2:$Y$33,uxb_works!$B24,K$22) -> 0 | L24: =INDEX(tblIndicators!$D$2:$Y$33,uxb_works!$B24,L$22) -> 2014 | M24: =INDEX(tblIndicators!$D$2:$Y$33,uxb_works!$B24,M$22) -> 0 | N24: =INDEX(tblIndicators!$D$2:$Y$33,uxb_works!$B24,N$22) -> High score = good | O24: =INDEX(tblIndicators!$D$2:$Y$33,uxb_works!$B24,O$22) -> #0 | P24: =INDEX(tblIndicators!$D$2:$Y$33,uxb_works!$B24,P$22) -> EIU | Q24: =INDEX(tblIndicators!$D$2:$Y$33,uxb_works!$B24,Q$22) -> 1.11 | R24: =INDEX(tblIndicators!$D$2:$Y$33,uxb_works!$B24,R$22) -> 0 | S24: =INDEX(tblIndicators!$D$2:$Y$33,uxb_works!$B24,S$22) -> 3 | T24: =INDEX(tblIndicators!$D$2:$Y$33,uxb_works!$B24,T$22) -> 1 | U24: =INDEX(tblIndicators!$D$2:$Y$33,uxb_works!$B24,U$22) -> 5
A25: INDI_2 | B25: 1 | C25: =INDEX(tblIndicators!$D$2:$Y$33,uxb_works!$B25,C$22) -> TOTAL | D25: =INDEX(tblIndicators!$D$2:$Y$33,uxb_works!$B25,D$22) -> OVERALL SCORE | E25: =INDEX(tblIndicators!$D$2:$Y$33,uxb_works!$B25,E$22) -> 0 | F25: =INDEX(tblIndicators!$D$2:$Y$33,uxb_works!$B25,F$22) -> 0 | G25: =INDEX(tblIndicators!$D$2:$Y$33,uxb_works!$B25,G$22) -> OVERALL SCORE | H25: =INDEX(tblIndicators!$D$2:$Y$33,uxb_works!$B25,H$22) -> The overall score is the weighted sum of the following category scores: 1) ECONOMIC PILLAR 2) SOCIAL PILLAR 3) ENVIRONMENTAL PILLAR | I25: =INDEX(tblIndicators!$D$2:$Y$33,uxb_works!$B25,I$22) -> Index score/number | J25: =INDEX(tblIndicators!$D$2:$Y$33,uxb_works!$B25,J$22) -> 0 | K25: =INDEX(tblIndicators!$D$2:$Y$33,uxb_works!$B25,K$22) -> 0 | L25: =INDEX(tblIndicators!$D$2:$Y$33,uxb_works!$B25,L$22) -> Scores derived from data taken between 2006 and 2014 | M25: =INDEX(tblIndicators!$D$2:$Y$33,uxb_works!$B25,M$22) -> 0 | N25: =INDEX(tblIndicators!$D$2:$Y$33,uxb_works!$B25,N$22) -> 0 | O25: =INDEX(tblIndicators!$D$2:$Y$33,uxb_works!$B25,O$22) -> 0.0 | P25: =INDEX(tblIndicators!$D$2:$Y$33,uxb_works!$B25,P$22) -> EIU Calculation | Q25: =INDEX(tblIndicators!$D$2:$Y$33,uxb_works!$B25,Q$22) -> 0 | R25: =INDEX(tblIndicators!$D$2:$Y$33,uxb_works!$B25,R$22) ->  | S25: =INDEX(tblIndicators!$D$2:$Y$33,uxb_works!$B25,S$22) -> 1 | T25: =INDEX(tblIndicators!$D$2:$Y$33,uxb_works!$B25,T$22) -> 0 | U25: =INDEX(tblIndicators!$D$2:$Y$33,uxb_works!$B25,U$22) -> 0
A27: SHOW_LABELS | B27: FALSE
A28: SHOW_OUTLIERS | B28: FALSE
A30: CHANGE_IN_WEIGHT | B30: =iWeights2!BC3 -> 0 | C30: =IF(B30=0,"","Weight profile has been changed from it's neutralsetting") -> 
A32: COUNTRY_COMPARE | B32: 1
A34: WEIGHT_PROFILE_2 | B34: 8 | E34: Max count
A35: INDICATOR_SELECT_WEIGHT_COMPARE | B35: 1 | C35: =INDEX(tblIndiSets!B5:B8,B35) -> 1 | D35: =INDEX(tblIndiSets!C5:C8,B35) -> OVERALL SCORE | E35: 4
A36: WEIGHT_PROFILE_2_CALL | B36: =(B34-1)*4+1 -> 29
A37: WEIGHT_INC_1 | B37: 1
A38: WEIGHT_INC_2 | B38: 1
A39: WEIGHT_INC_3 | B39: 1
A40: WEIGHT_INC_4 | B40: 1
A42: SAVE_WEIGHT_INC | B42: 1
A43: SAVE_WEIGHT_INC_ACTIVE | B43: =(B42-1)*4+1 -> 1
B45: 70% (recommended for 1024 width displays) | C45: 70
B46: 0.8 | C46: 80
B47: 0.9 | C47: 90
B48: 100% (recommended for wide screen displays) | C48: 100
B49: 1.25 | C49: 125
A51: ZOOM | B51: 4 | C51: =INDEX(C45:C49,B51) -> 100
A57: Text
B58: Scores are normalized (0-100, where 100=most favorable)
A61: Weight_Compare
A63: Indicator | B63: 1
A64: WEIGHT_COMP | B64: 1
A65: Order | B65: TRUE

Sheet tblIndiSets (hidden)
A2: CATEGORIES
A5: TOTAL | B5: =IF(A5="","",MATCH(A5,tblIndicators!D$2:D$33,0)) -> 1 | C5: =IF($A5="","",INDEX(tblIndicators!Y$2:Y$33,$B5)) -> OVERALL SCORE
A6: EP | B6: =IF(A6="","",MATCH(A6,tblIndicators!D$2:D$33,0)) -> 2 | C6: =IF($A6="","",INDEX(tblIndicators!Y$2:Y$33,$B6)) -> 1) ECONOMIC PILLAR | Q6: TOTAL | R6: TOTAL | S6: TOTAL | T6: TOTAL | U6: TOTAL | V6: TOTAL
A7: SP | B7: =IF(A7="","",MATCH(A7,tblIndicators!D$2:D$33,0)) -> 21 | C7: =IF($A7="","",INDEX(tblIndicators!Y$2:Y$33,$B7)) -> 2) SOCIAL PILLAR | Q7: EP | R7: EP | S7: EP
A8: ENP | B8: =IF(A8="","",MATCH(A8,tblIndicators!D$2:D$33,0)) -> 26 | C8: =IF($A8="","",INDEX(tblIndicators!Y$2:Y$33,$B8)) -> 3) ENVIRONMENTAL PILLAR | Q8: EP_10 | R8: SP | S8: EP_10
Q9: EP_11 | R9: ENP | S9: EP_11
Q10: EP_12 | S10: EP_12
A11: CATEGORIES + INDICATORS (SCORING ONES ONLY) | Q11: EP_13 | S11: EP_13
A12: TOTAL | B12: =IF(A12="","",MATCH(A12,tblIndicators!D$2:D$33,0)) -> 1 | C12: =IF($A12="","",INDEX(tblIndicators!Y$2:Y$33,$B12)) -> OVERALL SCORE | Q12: EP_14 | S12: EP_14
A13: EP | B13: =IF(A13="","",MATCH(A13,tblIndicators!D$2:D$33,0)) -> 2 | C13: =IF($A13="","",INDEX(tblIndicators!Y$2:Y$33,$B13)) -> 1) ECONOMIC PILLAR | Q13: EP_15 | S13: EP_15
A14: EP_10 | B14: =IF(A14="","",MATCH(A14,tblIndicators!D$2:D$33,0)) -> 3 | C14: =IF($A14="","",INDEX(tblIndicators!Y$2:Y$33,$B14)) -> 1.10) Growth in per capita GDP | Q14: EP_16 | S14: EP_16
A15: EP_11 | B15: =IF(A15="","",MATCH(A15,tblIndicators!D$2:D$33,0)) -> 4 | C15: =IF($A15="","",INDEX(tblIndicators!Y$2:Y$33,$B15)) -> 1.11) Current account liberalisation | Q15: EP_17 | S15: EP_17
A16: EP_12 | B16: =IF(A16="","",MATCH(A16,tblIndicators!D$2:D$33,0)) -> 5 | C16: =IF($A16="","",INDEX(tblIndicators!Y$2:Y$33,$B16)) -> 1.12) Tariff & non-tariff barriers | Q16: EP_18 | S16: EP_18
A17: EP_13 | B17: =IF(A17="","",MATCH(A17,tblIndicators!D$2:D$33,0)) -> 6 | C17: =IF($A17="","",INDEX(tblIndicators!Y$2:Y$33,$B17)) -> 1.13) Exchange rate volatility | Q17: EP_19 | S17: EP_19
A18: EP_14 | B18: =IF(A18="","",MATCH(A18,tblIndicators!D$2:D$33,0)) -> 7 | C18: =IF($A18="","",INDEX(tblIndicators!Y$2:Y$33,$B18)) -> 1.14) Financial sector depth | Q18: EP_20 | S18: EP_20
A19: EP_15 | B19: =IF(A19="","",MATCH(A19,tblIndicators!D$2:D$33,0)) -> 8 | C19: =IF($A19="","",INDEX(tblIndicators!Y$2:Y$33,$B19)) -> 1.15) Foreign trade and payments risk | Q19: EP_20_1 | S19: EP_21
A20: EP_16 | B20: =IF(A20="","",MATCH(A20,tblIndicators!D$2:D$33,0)) -> 9 | C20: =IF($A20="","",INDEX(tblIndicators!Y$2:Y$33,$B20)) -> 1.16) Export market concentration | Q20: EP_20_2 | S20: EP_22
A21: EP_17 | B21: =IF(A21="","",MATCH(A21,tblIndicators!D$2:D$33,0)) -> 10 | C21: =IF($A21="","",INDEX(tblIndicators!Y$2:Y$33,$B21)) -> 1.17) Export product concentration | Q21: EP_20_3 | S21: EP_23
A22: EP_18 | B22: =IF(A22="","",MATCH(A22,tblIndicators!D$2:D$33,0)) -> 11 | C22: =IF($A22="","",INDEX(tblIndicators!Y$2:Y$33,$B22)) -> 1.18) Foreign Direct Investment | Q22: EP_20_4 | S22: SP
A23: EP_19 | B23: =IF(A23="","",MATCH(A23,tblIndicators!D$2:D$33,0)) -> 12 | C23: =IF($A23="","",INDEX(tblIndicators!Y$2:Y$33,$B23)) -> 1.19) Gross fixed capital formation | Q23: EP_21 | S23: SP_10
A24: EP_20 | B24: =IF(A24="","",MATCH(A24,tblIndicators!D$2:D$33,0)) -> 13 | C24: =IF($A24="","",INDEX(tblIndicators!Y$2:Y$33,$B24)) -> 1.20) Trade costs | Q24: EP_22 | S24: SP_11
A25: EP_21 | B25: =IF(A25="","",MATCH(A25,tblIndicators!D$2:D$33,0)) -> 18 | C25: =IF($A25="","",INDEX(tblIndicators!Y$2:Y$33,$B25)) -> 1.21) Technological innovation | Q25: EP_23 | S25: SP_12
A26: EP_22 | B26: =IF(A26="","",MATCH(A26,tblIndicators!D$2:D$33,0)) -> 19 | C26: =IF($A26="","",INDEX(tblIndicators!Y$2:Y$33,$B26)) -> 1.22) Technological infrastructure | Q26: SP | S26: SP_13
A27: EP_23 | B27: =IF(A27="","",MATCH(A27,tblIndicators!D$2:D$33,0)) -> 20 | C27: =IF($A27="","",INDEX(tblIndicators!Y$2:Y$33,$B27)) -> 1.23) Growth in labour force | Q27: SP_10 | S27: ENP
A28: SP | B28: =IF(A28="","",MATCH(A28,tblIndicators!D$2:D$33,0)) -> 21 | C28: =IF($A28="","",INDEX(tblIndicators!Y$2:Y$33,$B28)) -> 2) SOCIAL PILLAR | Q28: SP_11 | S28: ENP_10
A29: SP_10 | B29: =IF(A29="","",MATCH(A29,tblIndicators!D$2:D$33,0)) -> 22 | C29: =IF($A29="","",INDEX(tblIndicators!Y$2:Y$33,$B29)) -> 2.1) Inequality (Gini coefficient) | Q29: SP_12 | S29: ENP_11
A30: SP_11 | B30: =IF(A30="","",MATCH(A30,tblIndicators!D$2:D$33,0)) -> 23 | C30: =IF($A30="","",INDEX(tblIndicators!Y$2:Y$33,$B30)) -> 2.2) Educational attainment | Q30: SP_13 | S30: ENP_12
A31: SP_12 | B31: =IF(A31="","",MATCH(A31,tblIndicators!D$2:D$33,0)) -> 24 | C31: =IF($A31="","",INDEX(tblIndicators!Y$2:Y$33,$B31)) -> 2.3) Labour standards | Q31: ENP | S31: ENP_13
A32: SP_13 | B32: =IF(A32="","",MATCH(A32,tblIndicators!D$2:D$33,0)) -> 25 | C32: =IF($A32="","",INDEX(tblIndicators!Y$2:Y$33,$B32)) -> 2.4) Political stability | Q32: ENP_10 | S32: ENP_14
A33: ENP | B33: =IF(A33="","",MATCH(A33,tblIndicators!D$2:D$33,0)) -> 26 | C33: =IF($A33="","",INDEX(tblIndicators!Y$2:Y$33,$B33)) -> 3) ENVIRONMENTAL PILLAR | Q33: ENP_11 | S33: ENP_15
A34: ENP_10 | B34: =IF(A34="","",MATCH(A34,tblIndicators!D$2:D$33,0)) -> 27 | C34: =IF($A34="","",INDEX(tblIndicators!Y$2:Y$33,$B34)) -> 3.1) Air pollution | Q34: ENP_12
A35: ENP_11 | B35: =IF(A35="","",MATCH(A35,tblIndicators!D$2:D$33,0)) -> 28 | C35: =IF($A35="","",INDEX(tblIndicators!Y$2:Y$33,$B35)) -> 3.2) Deforestation | Q35: ENP_13
A36: ENP_12 | B36: =IF(A36="","",MATCH(A36,tblIndicators!D$2:D$33,0)) -> 29 | C36: =IF($A36="","",INDEX(tblIndicators!Y$2:Y$33,$B36)) -> 3.3) Water pollution | Q36: ENP_14
A37: ENP_13 | B37: =IF(A37="","",MATCH(A37,tblIndicators!D$2:D$33,0)) -> 30 | C37: =IF($A37="","",INDEX(tblIndicators!Y$2:Y$33,$B37)) -> 3.4) Environmental standards in trade | Q37: ENP_15
A38: ENP_14 | B38: =IF(A38="","",MATCH(A38,tblIndicators!D$2:D$33,0)) -> 31 | C38: =IF($A38="","",INDEX(tblIndicators!Y$2:Y$33,$B38)) -> 3.5) Carbon emissions in trade
A39: ENP_15 | B39: =IF(A39="","",MATCH(A39,tblIndicators!D$2:D$33,0)) -> 32 | C39: =IF($A39="","",INDEX(tblIndicators!Y$2:Y$33,$B39)) -> 3.6) Share of natural resources in trade
A42: INDICATOR RANKING | B42: Cat, Indi + Sub Indi
A44: TOTAL | B44: =IF(A44="","",MATCH(A44,tblIndicators!D$2:D$33,0)) -> 1 | C44: =IF($A44="","",REPT(" ",D44)&INDEX(tblIndicators!Y$2:Y$33,$B44)) -> OVERALL SCORE | D44: =tblIndicators!F2*2 -> 0
A45: EP | B45: =IF(A45="","",MATCH(A45,tblIndicators!D$2:D$33,0)) -> 2 | C45: =IF($A45="","",REPT(" ",D45)&INDEX(tblIndicators!Y$2:Y$33,$B45)) -> 1) ECONOMIC PILLAR | D45: =tblIndicators!F3*2 -> 2
A46: EP_10 | B46: =IF(A46="","",MATCH(A46,tblIndicators!D$2:D$33,0)) -> 3 | C46: =IF($A46="","",REPT(" ",D46)&INDEX(tblIndicators!Y$2:Y$33,$B46)) -> 1.10) Growth in per capita GDP | D46: =tblIndicators!F4*2 -> 4
A47: EP_11 | B47: =IF(A47="","",MATCH(A47,tblIndicators!D$2:D$33,0)) -> 4 | C47: =IF($A47="","",REPT(" ",D47)&INDEX(tblIndicators!Y$2:Y$33,$B47)) -> 1.11) Current account liberalisation | D47: =tblIndicators!F5*2 -> 4
A48: EP_12 | B48: =IF(A48="","",MATCH(A48,tblIndicators!D$2:D$33,0)) -> 5 | C48: =IF($A48="","",REPT(" ",D48)&INDEX(tblIndicators!Y$2:Y$33,$B48)) -> 1.12) Tariff & non-tariff barriers | D48: =tblIndicators!F6*2 -> 4
A49: EP_13 | B49: =IF(A49="","",MATCH(A49,tblIndicators!D$2:D$33,0)) -> 6 | C49: =IF($A49="","",REPT(" ",D49)&INDEX(tblIndicators!Y$2:Y$33,$B49)) -> 1.13) Exchange rate volatility | D49: =tblIndicators!F7*2 -> 4
A50: EP_14 | B50: =IF(A50="","",MATCH(A50,tblIndicators!D$2:D$33,0)) -> 7 | C50: =IF($A50="","",REPT(" ",D50)&INDEX(tblIndicators!Y$2:Y$33,$B50)) -> 1.14) Financial sector depth | D50: =tblIndicators!F8*2 -> 4
A51: EP_15 | B51: =IF(A51="","",MATCH(A51,tblIndicators!D$2:D$33,0)) -> 8 | C51: =IF($A51="","",REPT(" ",D51)&INDEX(tblIndicators!Y$2:Y$33,$B51)) -> 1.15) Foreign trade and payments risk | D51: =tblIndicators!F9*2 -> 4
A52: EP_16 | B52: =IF(A52="","",MATCH(A52,tblIndicators!D$2:D$33,0)) -> 9 | C52: =IF($A52="","",REPT(" ",D52)&INDEX(tblIndicators!Y$2:Y$33,$B52)) -> 1.16) Export market concentration | D52: =tblIndicators!F10*2 -> 4
A53: EP_17 | B53: =IF(A53="","",MATCH(A53,tblIndicators!D$2:D$33,0)) -> 10 | C53: =IF($A53="","",REPT(" ",D53)&INDEX(tblIndicators!Y$2:Y$33,$B53)) -> 1.17) Export product concentration | D53: =tblIndicators!F11*2 -> 4
A54: EP_18 | B54: =IF(A54="","",MATCH(A54,tblIndicators!D$2:D$33,0)) -> 11 | C54: =IF($A54="","",REPT(" ",D54)&INDEX(tblIndicators!Y$2:Y$33,$B54)) -> 1.18) Foreign Direct Investment | D54: =tblIndicators!F12*2 -> 4
A55: EP_19 | B55: =IF(A55="","",MATCH(A55,tblIndicators!D$2:D$33,0)) -> 12 | C55: =IF($A55="","",REPT(" ",D55)&INDEX(tblIndicators!Y$2:Y$33,$B55)) -> 1.19) Gross fixed capital formation | D55: =tblIndicators!F13*2 -> 4
A56: EP_20 | B56: =IF(A56="","",MATCH(A56,tblIndicators!D$2:D$33,0)) -> 13 | C56: =IF($A56="","",REPT(" ",D56)&INDEX(tblIndicators!Y$2:Y$33,$B56)) -> 1.20) Trade costs | D56: =tblIndicators!F14*2 -> 4
A57: EP_20_1 | B57: =IF(A57="","",MATCH(A57,tblIndicators!D$2:D$33,0)) -> 14 | C57: =IF($A57="","",REPT(" ",D57)&INDEX(tblIndicators!Y$2:Y$33,$B57)) -> 1.20.1) Infrastructure | D57: =tblIndicators!F15*2 -> 6
A58: EP_20_2 | B58: =IF(A58="","",MATCH(A58,tblIndicators!D$2:D$33,0)) -> 15 | C58: =IF($A58="","",REPT(" ",D58)&INDEX(tblIndicators!Y$2:Y$33,$B58)) -> 1.20.2) Logistics performance | D58: =tblIndicators!F16*2 -> 6
A59: EP_20_3 | B59: =IF(A59="","",MATCH(A59,tblIndicators!D$2:D$33,0)) -> 16 | C59: =IF($A59="","",REPT(" ",D59)&INDEX(tblIndicators!Y$2:Y$33,$B59)) -> 1.20.3) Corruption | D59: =tblIndicators!F17*2 -> 6
A60: EP_20_4 | B60: =IF(A60="","",MATCH(A60,tblIndicators!D$2:D$33,0)) -> 17 | C60: =IF($A60="","",REPT(" ",D60)&INDEX(tblIndicators!Y$2:Y$33,$B60)) -> 1.20.4) Legal system | D60: =tblIndicators!F18*2 -> 6
A61: EP_21 | B61: =IF(A61="","",MATCH(A61,tblIndicators!D$2:D$33,0)) -> 18 | C61: =IF($A61="","",REPT(" ",D61)&INDEX(tblIndicators!Y$2:Y$33,$B61)) -> 1.21) Technological innovation | D61: =tblIndicators!F19*2 -> 4
A62: EP_22 | B62: =IF(A62="","",MATCH(A62,tblIndicators!D$2:D$33,0)) -> 19 | C62: =IF($A62="","",REPT(" ",D62)&INDEX(tblIndicators!Y$2:Y$33,$B62)) -> 1.22) Technological infrastructure | D62: =tblIndicators!F20*2 -> 4
A63: EP_23 | B63: =IF(A63="","",MATCH(A63,tblIndicators!D$2:D$33,0)) -> 20 | C63: =IF($A63="","",REPT(" ",D63)&INDEX(tblIndicators!Y$2:Y$33,$B63)) -> 1.23) Growth in labour force | D63: =tblIndicators!F21*2 -> 4
A64: SP | B64: =IF(A64="","",MATCH(A64,tblIndicators!D$2:D$33,0)) -> 21 | C64: =IF($A64="","",REPT(" ",D64)&INDEX(tblIndicators!Y$2:Y$33,$B64)) -> 2) SOCIAL PILLAR | D64: =tblIndicators!F22*2 -> 2
A65: SP_10 | B65: =IF(A65="","",MATCH(A65,tblIndicators!D$2:D$33,0)) -> 22 | C65: =IF($A65="","",REPT(" ",D65)&INDEX(tblIndicators!Y$2:Y$33,$B65)) -> 2.1) Inequality (Gini coefficient) | D65: =tblIndicators!F23*2 -> 4
A66: SP_11 | B66: =IF(A66="","",MATCH(A66,tblIndicators!D$2:D$33,0)) -> 23 | C66: =IF($A66="","",REPT(" ",D66)&INDEX(tblIndicators!Y$2:Y$33,$B66)) -> 2.2) Educational attainment | D66: =tblIndicators!F24*2 -> 4
A67: SP_12 | B67: =IF(A67="","",MATCH(A67,tblIndicators!D$2:D$33,0)) -> 24 | C67: =IF($A67="","",REPT(" ",D67)&INDEX(tblIndicators!Y$2:Y$33,$B67)) -> 2.3) Labour standards | D67: =tblIndicators!F25*2 -> 4
A68: SP_13 | B68: =IF(A68="","",MATCH(A68,tblIndicators!D$2:D$33,0)) -> 25 | C68: =IF($A68="","",REPT(" ",D68)&INDEX(tblIndicators!Y$2:Y$33,$B68)) -> 2.4) Political stability | D68: =tblIndicators!F26*2 -> 4
A69: ENP | B69: =IF(A69="","",MATCH(A69,tblIndicators!D$2:D$33,0)) -> 26 | C69: =IF($A69="","",REPT(" ",D69)&INDEX(tblIndicators!Y$2:Y$33,$B69)) -> 3) ENVIRONMENTAL PILLAR | D69: =tblIndicators!F27*2 -> 2
A70: ENP_10 | B70: =IF(A70="","",MATCH(A70,tblIndicators!D$2:D$33,0)) -> 27 | C70: =IF($A70="","",REPT(" ",D70)&INDEX(tblIndicators!Y$2:Y$33,$B70)) -> 3.1) Air pollution | D70: =tblIndicators!F28*2 -> 4
A71: ENP_11 | B71: =IF(A71="","",MATCH(A71,tblIndicators!D$2:D$33,0)) -> 28 | C71: =IF($A71="","",REPT(" ",D71)&INDEX(tblIndicators!Y$2:Y$33,$B71)) -> 3.2) Deforestation | D71: =tblIndicators!F29*2 -> 4
A72: ENP_12 | B72: =IF(A72="","",MATCH(A72,tblIndicators!D$2:D$33,0)) -> 29 | C72: =IF($A72="","",REPT(" ",D72)&INDEX(tblIndicators!Y$2:Y$33,$B72)) -> 3.3) Water pollution | D72: =tblIndicators!F30*2 -> 4
A73: ENP_13 | B73: =IF(A73="","",MATCH(A73,tblIndicators!D$2:D$33,0)) -> 30 | C73: =IF($A73="","",REPT(" ",D73)&INDEX(tblIndicators!Y$2:Y$33,$B73)) -> 3.4) Environmental standards in trade | D73: =tblIndicators!F31*2 -> 4
A74: ENP_14 | B74: =IF(A74="","",MATCH(A74,tblIndicators!D$2:D$33,0)) -> 31 | C74: =IF($A74="","",REPT(" ",D74)&INDEX(tblIndicators!Y$2:Y$33,$B74)) -> 3.5) Carbon emissions in trade | D74: =tblIndicators!F32*2 -> 4
A75: ENP_15 | B75: =IF(A75="","",MATCH(A75,tblIndicators!D$2:D$33,0)) -> 32 | C75: =IF($A75="","",REPT(" ",D75)&INDEX(tblIndicators!Y$2:Y$33,$B75)) -> 3.6) Share of natural resources in trade | D75: =tblIndicators!F33*2 -> 4
A79: TOTAL | B79: =IF(A79="","",MATCH(A79,tblIndicators!D$2:D$33,0)) -> 1 | C79: VIEW ALL
A80: =A6 -> EP | B80: =IF(A80="","",MATCH(A80,tblIndicators!D$2:D$33,0)) -> 2 | C80: =IF($A80="","",INDEX(tblIndicators!Y$2:Y$33,$B80)) -> 1) ECONOMIC PILLAR
A81: =A7 -> SP | B81: =IF(A81="","",MATCH(A81,tblIndicators!D$2:D$33,0)) -> 21 | C81: =IF($A81="","",INDEX(tblIndicators!Y$2:Y$33,$B81)) -> 2) SOCIAL PILLAR
A82: ENP | B82: =IF(A82="","",MATCH(A82,tblIndicators!D$2:D$33,0)) -> 26 | C82: =IF($A82="","",INDEX(tblIndicators!Y$2:Y$33,$B82)) -> 3) ENVIRONMENTAL PILLAR
A88: City Compare Spider
A89: GSIF | B89: =IF(A89="","",MATCH(A89,tblIndicators!D$2:D$33,0)) ->  | C89: =IF($A89="","",INDEX(tblIndicators!Y$2:Y$33,$B89)) ->  | D89: =B14 -> 3 | E89: 1.10) Growth in per capita GDP | F89: =B22 -> 11 | G89: 1.18) Foreign Direct Investment | H89: =B31 -> 24 | I89: 2.3) Labour standards | J89: =B37 -> 30 | K89: 3.4) Environmental standards in trade
A90: EMEN | B90: =IF(A90="","",MATCH(A90,tblIndicators!D$2:D$33,0)) ->  | C90: =IF($A90="","",INDEX(tblIndicators!Y$2:Y$33,$B90)) ->  | D90: 4 | E90: 1.11) Current account liberalisation | F90: 12 | G90: 1.19) Gross fixed capital formation | H90: 25 | I90: 2.4) Political stability | J90: 31 | K90: 3.5) Carbon emissions in trade
A91: EDTR | B91: =IF(A91="","",MATCH(A91,tblIndicators!D$2:D$33,0)) ->  | C91: =IF($A91="","",INDEX(tblIndicators!Y$2:Y$33,$B91)) ->  | D91: 5 | E91: 1.12) Tariff & non-tariff barriers | F91: 13 | G91: 1.20) Trade costs | H91: 26 | I91: 3) ENVIRONMENTAL PILLAR | J91: 32 | K91: 3.6) Share of natural resources in trade
A92: HUSC | B92: =IF(A92="","",MATCH(A92,tblIndicators!D$2:D$33,0)) ->  | C92: =IF($A92="","",INDEX(tblIndicators!Y$2:Y$33,$B92)) ->  | D92: 6 | E92: 1.13) Exchange rate volatility | F92: 18 | G92: 1.21) Technological innovation | H92: 27 | I92: 3.1) Air pollution | J92: =#REF! ->  | K92: =#REF! -> 
D93: 7 | E93: 1.14) Financial sector depth | F93: 19 | G93: 1.22) Technological infrastructure | H93: 28 | I93: 3.2) Deforestation | J93: =#REF! ->  | K93: =#REF! -> 
D94: 8 | E94: 1.15) Foreign trade and payments risk | F94: 20 | G94: 1.23) Growth in labour force
D95: 9 | E95: 1.16) Export market concentration | F95: 21 | G95: 2) SOCIAL PILLAR
F96: 22 | G96: 2.1) Inequality (Gini coefficient)
A100: MAP
A103: LOOKUPS
A104: 1 | B104: Circles; area=value
A105: 2 | B105: Circles; colour=group
A106: 3 | B106: Circles; area=value, colour=group
A107: 4 | B107: Bars; height=value
A108: 5 | B108: Bars; height=value, colour=group
A112: Weights Compare
C113: Country Name
C114: Score: Weight Profile 1
C115: Score: Weight Profile 2
C116: Change in Score
C117: Rank: Weight Profile 1
C118: Rank: Weight Profile 2
C119: Change in Rank

Sheet tblCategories (hidden)
A1: CityID | B1: ISO | C1: Indicator | D1: DisplayName | E1: ISO/MAP | F1: Display_Status | G1: ParentCity | M1: 1 | N1: 2 | O1: 3 | P1: 4 | U1: For Spider Chart | X1: 1 | Y1: 2 | Z1: 3 | AA1: 4
A2: 0 | C2: <none> | D2: =C2 -> <none> | F2: 0 | K2: All | M2: =INDEX($K$2:$K$6,M1) -> All | N2: =INDEX($K$2:$K$6,N1) -> 1) ECONOMIC PILLAR | O2: =INDEX($K$2:$K$6,O1) -> 2) SOCIAL PILLAR | P2: =INDEX($K$2:$K$6,P1) -> 3) ENVIRONMENTAL PILLAR | V2: All | X2: =INDEX($K$2:$K$6,X1) -> All | Y2: =INDEX($K$2:$K$6,Y1) -> 1) ECONOMIC PILLAR | Z2: =INDEX($K$2:$K$6,Z1) -> 2) SOCIAL PILLAR | AA2: =INDEX($K$2:$K$6,AA1) -> 3) ENVIRONMENTAL PILLAR
A3: 1 | C3: =tblIndicators!Y3 -> 1) ECONOMIC PILLAR | D3: =C3 -> 1) ECONOMIC PILLAR | F3: =INDEX(M3:P3,uxb_works!$B$32) -> 1 | H3: City_HIGHLIGHT_ID | I3: =uxb_works!B7 -> 0 | K3: =C3 -> 1) ECONOMIC PILLAR | L3: 1 | M3: 1 | N3: 1 | O3: 0 | P3: 0 | T3: =INDEX(X3:AA3,uxb_works!$B$32) -> 1 | V3: =K3 -> 1) ECONOMIC PILLAR | W3: 1 | X3: 1 | Y3: 0 | Z3: 0 | AA3: 0
A4: 2 | C4: =tblIndicators!Y4 -> 1.10) Growth in per capita GDP | D4: =C4 -> 1.10) Growth in per capita GDP | F4: =INDEX(M4:P4,uxb_works!$B$32) -> 1 | H4: GROUP_HIGHLIGHT_ID | I4: 1 | K4: =C22 -> 2) SOCIAL PILLAR | L4: 1 | M4: 1 | N4: 1 | O4: 0 | P4: 0 | T4: =INDEX(X4:AA4,uxb_works!$B$32) -> 0 | V4: =K4 -> 2) SOCIAL PILLAR | W4: 1 | X4: 0 | Y4: 1 | Z4: 0 | AA4: 0
A5: 3 | C5: =tblIndicators!Y5 -> 1.11) Current account liberalisation | D5: 1.11) Current account liberalisation | F5: =INDEX(M5:P5,uxb_works!$B$32) -> 1 | I5: =Country_Compare!#REF! ->  | K5: =C27 -> 3) ENVIRONMENTAL PILLAR | L5: 1 | M5: 1 | N5: 1 | O5: 0 | P5: 0 | T5: =INDEX(X5:AA5,uxb_works!$B$32) -> 0 | V5: =K5 -> 3) ENVIRONMENTAL PILLAR | W5: 1 | X5: 0 | Y5: 1 | Z5: 0 | AA5: 0
A6: 4 | C6: =tblIndicators!Y6 -> 1.12) Tariff & non-tariff barriers | D6: 1.12) Tariff & non-tariff barriers | F6: =INDEX(M6:P6,uxb_works!$B$32) -> 1 | L6: 1 | M6: 1 | N6: 1 | O6: 0 | P6: 0 | T6: =INDEX(X6:AA6,uxb_works!$B$32) -> 0 | W6: 1 | X6: 0 | Y6: 1 | Z6: 0 | AA6: 0
A7: 5 | C7: =tblIndicators!Y7 -> 1.13) Exchange rate volatility | D7: 1.13) Exchange rate volatility | F7: =INDEX(M7:P7,uxb_works!$B$32) -> 1 | L7: 1 | M7: 1 | N7: 1 | O7: 0 | P7: 0 | T7: =INDEX(X7:AA7,uxb_works!$B$32) -> 0 | W7: 1 | X7: 0 | Y7: 1 | Z7: 0 | AA7: 0
A8: 6 | C8: =tblIndicators!Y8 -> 1.14) Financial sector depth | D8: 1.14) Financial sector depth | F8: =INDEX(M8:P8,uxb_works!$B$32) -> 1 | L8: 1 | M8: 1 | N8: 1 | O8: 0 | P8: 0 | T8: =INDEX(X8:AA8,uxb_works!$B$32) -> 0 | W8: 1 | X8: 0 | Y8: 1 | Z8: 0 | AA8: 0
A9: 7 | C9: =tblIndicators!Y9 -> 1.15) Foreign trade and payments risk | D9: 1.15) Foreign trade and payments risk | F9: =INDEX(M9:P9,uxb_works!$B$32) -> 1 | L9: 1 | M9: 1 | N9: 1 | O9: 0 | P9: 0 | T9: =INDEX(X9:AA9,uxb_works!$B$32) -> 0 | W9: 1 | X9: 0 | Y9: 1 | Z9: 0 | AA9: 0
A10: 8 | C10: =tblIndicators!Y10 -> 1.16) Export market concentration | D10: 1.16) Export market concentration | F10: =INDEX(M10:P10,uxb_works!$B$32) -> 1 | L10: 1 | M10: 1 | N10: 1 | O10: 0 | P10: 0 | T10: =INDEX(X10:AA10,uxb_works!$B$32) -> 0 | W10: 1 | X10: 0 | Y10: 1 | Z10: 0 | AA10: 0
A11: 9 | C11: =tblIndicators!Y11 -> 1.17) Export product concentration | D11: 1.17) Export product concentration | F11: =INDEX(M11:P11,uxb_works!$B$32) -> 1 | L11: 1 | M11: 1 | N11: 1 | O11: 0 | P11: 0 | T11: =INDEX(X11:AA11,uxb_works!$B$32) -> 0 | W11: 1 | X11: 0 | Y11: 1 | Z11: 0 | AA11: 0
A12: 10 | C12: =tblIndicators!Y12 -> 1.18) Foreign Direct Investment | D12: 1.18) Foreign Direct Investment | F12: =INDEX(M12:P12,uxb_works!$B$32) -> 1 | L12: 1 | M12: 1 | N12: 1 | O12: 0 | P12: 0 | T12: =INDEX(X12:AA12,uxb_works!$B$32) -> 0 | W12: 1 | X12: 0 | Y12: 1 | Z12: 0 | AA12: 0
A13: 11 | C13: =tblIndicators!Y13 -> 1.19) Gross fixed capital formation | D13: 1.19) Gross fixed capital formation | F13: =INDEX(M13:P13,uxb_works!$B$32) -> 1 | L13: 1 | M13: 1 | N13: 1 | O13: 0 | P13: 0 | T13: =INDEX(X13:AA13,uxb_works!$B$32) -> 0 | W13: 1 | X13: 0 | Y13: 1 | Z13: 0 | AA13: 0
A14: 12 | C14: =tblIndicators!Y14 -> 1.20) Trade costs | D14: 1.20) Trade costs | F14: =INDEX(M14:P14,uxb_works!$B$32) -> 1 | L14: 1 | M14: 1 | N14: 1 | O14: 0 | P14: 0 | T14: =INDEX(X14:AA14,uxb_works!$B$32) -> 0 | W14: 1 | X14: 0 | Y14: 1 | Z14: 0 | AA14: 0
A15: 13 | C15: =tblIndicators!Y15 -> 1.20.1) Infrastructure | D15: 1.20.1) Infrastructure | F15: =INDEX(M15:P15,uxb_works!$B$32) -> 1 | L15: 1 | M15: 1 | N15: 1 | O15: 0 | P15: 0 | T15: =INDEX(X15:AA15,uxb_works!$B$32) -> 0 | W15: 1 | X15: 0 | Y15: 0 | Z15: 0 | AA15: 0
A16: 14 | C16: =tblIndicators!Y16 -> 1.20.2) Logistics performance | D16: 1.20.2) Logistics performance | F16: =INDEX(M16:P16,uxb_works!$B$32) -> 1 | L16: 1 | M16: 1 | N16: 1 | O16: 0 | P16: 0 | T16: =INDEX(X16:AA16,uxb_works!$B$32) -> 0 | W16: 1 | X16: 0 | Y16: 0 | Z16: 0 | AA16: 0
A17: 15 | C17: =tblIndicators!Y17 -> 1.20.3) Corruption | D17: 1.20.3) Corruption | F17: =INDEX(M17:P17,uxb_works!$B$32) -> 1 | L17: 1 | M17: 1 | N17: 1 | O17: 0 | P17: 0 | T17: =INDEX(X17:AA17,uxb_works!$B$32) -> 0 | W17: 1 | X17: 0 | Y17: 0 | Z17: 0 | AA17: 0
A18: 16 | C18: =tblIndicators!Y18 -> 1.20.4) Legal system | D18: 1.20.4) Legal system | F18: =INDEX(M18:P18,uxb_works!$B$32) -> 1 | L18: 1 | M18: 1 | N18: 1 | O18: 0 | P18: 0 | T18: =INDEX(X18:AA18,uxb_works!$B$32) -> 0 | W18: 1 | X18: 0 | Y18: 0 | Z18: 0 | AA18: 0
A19: 17 | C19: =tblIndicators!Y19 -> 1.21) Technological innovation | D19: 1.21) Technological innovation | F19: =INDEX(M19:P19,uxb_works!$B$32) -> 1 | L19: 1 | M19: 1 | N19: 1 | O19: 0 | P19: 0 | T19: =INDEX(X19:AA19,uxb_works!$B$32) -> 0 | W19: 1 | X19: 0 | Y19: 1 | Z19: 0 | AA19: 0
A20: 18 | C20: =tblIndicators!Y20 -> 1.22) Technological infrastructure | D20: 1.22) Technological infrastructure | F20: =INDEX(M20:P20,uxb_works!$B$32) -> 1 | L20: 1 | M20: 1 | N20: 1 | O20: 0 | P20: 0 | T20: =INDEX(X20:AA20,uxb_works!$B$32) -> 0 | W20: 1 | X20: 0 | Y20: 1 | Z20: 0 | AA20: 0
A21: 19 | C21: =tblIndicators!Y21 -> 1.23) Growth in labour force | D21: 1.23) Growth in labour force | F21: =INDEX(M21:P21,uxb_works!$B$32) -> 1 | L21: 1 | M21: 1 | N21: 1 | O21: 0 | P21: 0 | T21: =INDEX(X21:AA21,uxb_works!$B$32) -> 0 | W21: 1 | X21: 0 | Y21: 1 | Z21: 0 | AA21: 0
A22: 20 | C22: =tblIndicators!Y22 -> 2) SOCIAL PILLAR | D22: 2) SOCIAL PILLAR | F22: =INDEX(M22:P22,uxb_works!$B$32) -> 1 | L22: 1 | M22: 1 | N22: 0 | O22: 1 | P22: 0 | T22: =INDEX(X22:AA22,uxb_works!$B$32) -> 1 | W22: 1 | X22: 1 | Y22: 0 | Z22: 0 | AA22: 0
A23: 21 | C23: =tblIndicators!Y23 -> 2.1) Inequality (Gini coefficient) | D23: 2.1) Inequality (Gini coefficient) | F23: =INDEX(M23:P23,uxb_works!$B$32) -> 1 | L23: 1 | M23: 1 | N23: 0 | O23: 1 | P23: 0 | T23: =INDEX(X23:AA23,uxb_works!$B$32) -> 0 | W23: 1 | X23: 0 | Y23: 0 | Z23: 1 | AA23: 0
A24: 22 | C24: =tblIndicators!Y24 -> 2.2) Educational attainment | D24: 2.2) Educational attainment | F24: =INDEX(M24:P24,uxb_works!$B$32) -> 1 | L24: 1 | M24: 1 | N24: 0 | O24: 1 | P24: 0 | T24: =INDEX(X24:AA24,uxb_works!$B$32) -> 0 | W24: 1 | X24: 0 | Y24: 0 | Z24: 1 | AA24: 0
A25: 23 | C25: =tblIndicators!Y25 -> 2.3) Labour standards | D25: 2.3) Labour standards | F25: =INDEX(M25:P25,uxb_works!$B$32) -> 1 | L25: 1 | M25: 1 | N25: 0 | O25: 1 | P25: 0 | T25: =INDEX(X25:AA25,uxb_works!$B$32) -> 0 | W25: 1 | X25: 0 | Y25: 0 | Z25: 1 | AA25: 0
A26: 24 | C26: =tblIndicators!Y26 -> 2.4) Political stability | D26: 2.4) Political stability | F26: =INDEX(M26:P26,uxb_works!$B$32) -> 1 | L26: 1 | M26: 1 | N26: 0 | O26: 1 | P26: 0 | T26: =INDEX(X26:AA26,uxb_works!$B$32) -> 0 | W26: 1 | X26: 0 | Y26: 0 | Z26: 1 | AA26: 0
A27: 25 | C27: =tblIndicators!Y27 -> 3) ENVIRONMENTAL PILLAR | D27: 3) ENVIRONMENTAL PILLAR | F27: =INDEX(M27:P27,uxb_works!$B$32) -> 1 | L27: 1 | M27: 1 | N27: 0 | O27: 0 | P27: 1 | T27: =INDEX(X27:AA27,uxb_works!$B$32) -> 1 | W27: 1 | X27: 1 | Y27: 0 | Z27: 0 | AA27: 0
A28: 26 | C28: =tblIndicators!Y28 -> 3.1) Air pollution | D28: 3.1) Air pollution | F28: =INDEX(M28:P28,uxb_works!$B$32) -> 1 | L28: 1 | M28: 1 | N28: 0 | O28: 0 | P28: 1 | T28: =INDEX(X28:AA28,uxb_works!$B$32) -> 0 | W28: 1 | X28: 0 | Y28: 0 | Z28: 0 | AA28: 1
A29: 27 | C29: =tblIndicators!Y29 -> 3.2) Deforestation | D29: 3.2) Deforestation | F29: =INDEX(M29:P29,uxb_works!$B$32) -> 1 | L29: 1 | M29: 1 | N29: 0 | O29: 0 | P29: 1 | T29: =INDEX(X29:AA29,uxb_works!$B$32) -> 0 | W29: 1 | X29: 0 | Y29: 0 | Z29: 0 | AA29: 1
A30: 28 | C30: =tblIndicators!Y30 -> 3.3) Water pollution | D30: =C30 -> 3.3) Water pollution | F30: =INDEX(M30:P30,uxb_works!$B$32) -> 1 | L30: 1 | M30: 1 | N30: 0 | O30: 0 | P30: 1 | T30: =INDEX(X30:AA30,uxb_works!$B$32) -> 0 | W30: 1 | X30: 0 | Y30: 0 | Z30: 0 | AA30: 1
A31: 29 | C31: =tblIndicators!Y31 -> 3.4) Environmental standards in trade | D31: 3.4) Environmental standards in trade | F31: =INDEX(M31:P31,uxb_works!$B$32) -> 1 | L31: 1 | M31: 1 | N31: 0 | O31: 0 | P31: 1 | T31: =INDEX(X31:AA31,uxb_works!$B$32) -> 0 | W31: 1 | X31: 0 | Y31: 0 | Z31: 0 | AA31: 1
A32: 30 | C32: =tblIndicators!Y32 -> 3.5) Carbon emissions in trade | D32: 3.5) Carbon emissions in trade | F32: =INDEX(M32:P32,uxb_works!$B$32) -> 1 | L32: 1 | M32: 1 | N32: 0 | O32: 0 | P32: 1 | T32: =INDEX(X32:AA32,uxb_works!$B$32) -> 0 | W32: 1 | X32: 0 | Y32: 0 | Z32: 0 | AA32: 1
A33: 31 | C33: =tblIndicators!Y33 -> 3.6) Share of natural resources in trade | D33: 3.6) Share of natural resources in trade | F33: =INDEX(M33:P33,uxb_works!$B$32) -> 1 | L33: 1 | M33: 1 | N33: 0 | O33: 0 | P33: 1 | T33: =INDEX(X33:AA33,uxb_works!$B$32) -> 0 | W33: 1 | X33: 0 | Y33: 0 | Z33: 0 | AA33: 1
A34: 32 | C34: =tblIndicators!#REF! ->  | F34: =INDEX(M34:P34,uxb_works!$B$32) -> 1 | L34: 1 | M34: 1 | N34: 0 | O34: 0 | P34: 1 | T34: =INDEX(X34:AA34,uxb_works!$B$32) -> 0 | W34: 1 | X34: 0 | Y34: 0 | Z34: 0 | AA34: 1

Sheet tblTerritories (hidden)
A1: CityID | C1: City | D1: RegionID | E1: DisplayName | F1: MAP OBJECT IDENTIFIER | H1: Display_Status | I1: Parentcity | L1: Tier No. | Q1: 1 | R1: 2 | S1: 3 | T1: 4 | U1: 5 | V1: 6
A2: 0 | C2: <none> | D2: 0 | E2: =C2 -> <none> | G2: 0 | O2: Groups | Q2: =INDEX(luRegionsPlusNone,Q1) -> <none> | R2: All Incomes | S2: Upper income | T2: Lower middle income | U2: low income | V2: Least developed
A3: 1 | B3: BGD | C3: Bangladesh | D3: =H3 -> 0 | E3: =C3 -> Bangladesh | F3: =C3 -> Bangladesh | G3: =IF(A3=$K$3,3,IF(INDEX($R3:$V3,$K$5)=0,0,IF(INDEX($Q3:$V3,$K$4)=1,2,1))) -> 1 | J3: CITY_HIGHLIGHT_ID | K3: =uxb_works!B7 -> 0 | L3: =MATCH(1,S3:V3,0) -> 4 | N3: 1 | O3: <none> | Q3: 0 | R3: 1 | S3: 0 | T3: 0 | U3: 0 | V3: 1 | Y3: =O3 -> <none>
A4: 2 | B4: BRN | C4: Brunei | D4: =H4 -> 0 | E4: =C4 -> Brunei | F4: =C4 -> Brunei | G4: 1 | J4: GROUP_HIGHLIGHT_ID | K4: =IF(uxb_works!B9=2,1,uxb_works!B9) -> 1 | L4: 1 | N4: 2 | O4: All Incomes | Q4: 0 | R4: 1 | S4: 1 | T4: 0 | U4: 0 | V4: 0 | Y4: =O5 -> Upper income | AA4: ="Weight Profile: "&Y4 -> Weight Profile: Upper income
A5: 3 | B5: KHM | C5: Cambodia | D5: 0 | E5: Cambodia | F5: Cambodia | G5: 1 | J5: GROUP_FILTER_ID | K5: =uxb_works!B10 -> 1 | L5: 4 | M5: 1 | N5: 3 | O5: Upper income | Q5: 0 | R5: 1 | S5: 0 | T5: 0 | U5: 0 | V5: 1 | Y5: =O6 -> Lower middle income | AA5: ="Weight Profile: "&Y5 -> Weight Profile: Lower middle income
A6: 4 | B6: CHN | C6: China | D6: 0 | E6: China | F6: China | G6: 1 | L6: 2 | M6: 2 | N6: 4 | O6: Lower middle income | Q6: 0 | R6: 1 | S6: 0 | T6: 1 | U6: 0 | V6: 0 | Y6: low income | AA6: Weight Profile: low income
A7: 5 | B7: HKG | C7: Hong Kong | D7: 0 | E7: Hong Kong | F7: Hong Kong | G7: 1 | L7: 1 | M7: 3 | N7: 5 | O7: low income | Q7: 0 | R7: 1 | S7: 1 | T7: 0 | U7: 0 | V7: 0 | Y7: Least developed | AA7: Weight Profile: Least developed
A8: 6 | B8: IND | C8: India | D8: 0 | E8: India | F8: India | G8: 1 | L8: 4 | M8: 4 | N8: 6 | O8: Least developed | Q8: 0 | R8: 1 | S8: 0 | T8: 0 | U8: 0 | V8: 1
A9: 7 | B9: IDN | C9: Indonesia | D9: 0 | E9: Indonesia | F9: Indonesia | G9: 1 | L9: 3 | Q9: 0 | R9: 1 | S9: 0 | T9: 0 | U9: 1 | V9: 0
A10: 8 | B10: JPN | C10: Japan | D10: 0 | E10: Japan | F10: Japan | G10: 1 | L10: 1 | Q10: 0 | R10: 1 | S10: 1 | T10: 0 | U10: 0 | V10: 0
A11: 9 | B11: LAO | C11: Laos | D11: 0 | E11: Laos | F11: Laos | G11: 1 | L11: 4 | Q11: 0 | R11: 1 | S11: 0 | T11: 0 | U11: 0 | V11: 1
A12: 10 | B12: MYS | C12: Malaysia | D12: 0 | E12: Malaysia | F12: Malaysia | G12: 1 | L12: 2 | Q12: 0 | R12: 1 | S12: 0 | T12: 1 | U12: 0 | V12: 0
A13: 11 | B13: MMR | C13: Myanmar | D13: 0 | E13: Myanmar | F13: Myanmar | G13: 1 | L13: 4 | Q13: 0 | R13: 1 | S13: 0 | T13: 0 | U13: 0 | V13: 1
A14: 12 | B14: PAK | C14: Pakistan | D14: 0 | E14: Pakistan | F14: Pakistan | G14: 1 | L14: 4 | Q14: 0 | R14: 1 | S14: 0 | T14: 0 | U14: 0 | V14: 1
A15: 13 | B15: PHL | C15: Philippines | D15: 0 | E15: Philippines | F15: Philippines | G15: 1 | L15: 3 | Q15: 0 | R15: 1 | S15: 0 | T15: 0 | U15: 1 | V15: 0
A16: 14 | B16: SGP | C16: Singapore | D16: 0 | E16: Singapore | F16: Singapore | G16: 1 | L16: 1 | Q16: 0 | R16: 1 | S16: 1 | T16: 0 | U16: 0 | V16: 0
A17: 15 | B17: KOR | C17: South Korea | D17: 0 | E17: South Korea | F17: South Korea | G17: 1 | L17: 1 | Q17: 0 | R17: 1 | S17: 1 | T17: 0 | U17: 0 | V17: 0
A18: 16 | B18: LKA | C18: Sri Lanka | D18: 0 | E18: Sri Lanka | F18: Sri Lanka | G18: 1 | L18: 3 | Q18: 0 | R18: 1 | S18: 0 | T18: 0 | U18: 1 | V18: 0
A19: 17 | B19: TWN | C19: Taiwan | D19: 0 | E19: Taiwan | F19: Taiwan | G19: 1 | L19: 1 | Q19: 0 | R19: 1 | S19: 1 | T19: 0 | U19: 0 | V19: 0
A20: 18 | B20: THA | C20: Thailand | D20: 0 | E20: Thailand | F20: Thailand | G20: 1 | L20: 2 | Q20: 0 | R20: 1 | S20: 0 | T20: 1 | U20: 0 | V20: 0
A21: 19 | B21: VNM | C21: Vietnam | D21: 0 | E21: Vietnam | F21: Vietnam | G21: 1 | L21: 3 | Q21: 0 | R21: 1 | S21: 0 | T21: 0 | U21: 1 | V21: 0
A22: 20 | B22: USA | C22: USA | D22: 0 | E22: USA | F22: USA | G22: 1 | L22: 1 | Q22: 0 | R22: 1 | S22: 1 | T22: 0 | U22: 0 | V22: 0
S24: =SUM(S3:S22) -> 7 | T24: =SUM(T3:T22) -> 3 | U24: 4 | V24: 6

Sheet iData (hidden)
J3: 3 | K3: 4 | L3: 5 | M3: 6 | N3: 7 | O3: 8 | P3: 9 | Q3: 10 | R3: 11 | S3: 12 | T3: 13 | U3: 14 | V3: 15 | W3: 16 | X3: 17 | Y3: 18 | Z3: 19 | AA3: 20 | AB3: 21 | AC3: 22
B4: =tblIndicators!A1 -> ID | C4: =tblIndicators!B1 -> IS_BG | D4: =tblIndicators!D1 -> INDI_CODE | E4: =tblIndicators!E1 -> PARENT_CODE | F4: Name | G4: =tblIndicators!T1 -> NORM_ID (1=sumproduct, 2=min max set by data values, 3=min max set by user here) | H4: Indicator | I4: Multiplication Factor | J4: =INDEX(tblTerritories!$C$3:$C$22,J3-2) -> Bangladesh | K4: =INDEX(tblTerritories!$C$3:$C$22,K3-2) -> Brunei | L4: =INDEX(tblTerritories!$C$3:$C$22,L3-2) -> Cambodia | M4: =INDEX(tblTerritories!$C$3:$C$22,M3-2) -> China | N4: =INDEX(tblTerritories!$C$3:$C$22,N3-2) -> Hong Kong | O4: =INDEX(tblTerritories!$C$3:$C$22,O3-2) -> India | P4: =INDEX(tblTerritories!$C$3:$C$22,P3-2) -> Indonesia | Q4: =INDEX(tblTerritories!$C$3:$C$22,Q3-2) -> Japan | R4: =INDEX(tblTerritories!$C$3:$C$22,R3-2) -> Laos | S4: =INDEX(tblTerritories!$C$3:$C$22,S3-2) -> Malaysia | T4: =INDEX(tblTerritories!$C$3:$C$22,T3-2) -> Myanmar | U4: =INDEX(tblTerritories!$C$3:$C$22,U3-2) -> Pakistan | V4: =INDEX(tblTerritories!$C$3:$C$22,V3-2) -> Philippines | W4: =INDEX(tblTerritories!$C$3:$C$22,W3-2) -> Singapore | X4: =INDEX(tblTerritories!$C$3:$C$22,X3-2) -> South Korea | Y4: =INDEX(tblTerritories!$C$3:$C$22,Y3-2) -> Sri Lanka | Z4: =INDEX(tblTerritories!$C$3:$C$22,Z3-2) -> Taiwan | AA4: =INDEX(tblTerritories!$C$3:$C$22,AA3-2) -> Thailand | AB4: =INDEX(tblTerritories!$C$3:$C$22,AB3-2) -> Vietnam | AC4: =INDEX(tblTerritories!$C$3:$C$22,AC3-2) -> USA
B5: =tblIndicators!A2 -> 1 | C5: =tblIndicators!B2 -> 0 | D5: =tblIndicators!D2 -> TOTAL | E5: =tblIndicators!E2 -> OVERALL SCORE | F5: =tblIndicators!H2 -> OVERALL SCORE | G5: =tblIndicators!T2 -> 1 | H5: =tblIndicators!Y2 -> OVERALL SCORE | I5: =IF(G5=1,"",tblIndicators!J2) -> 
B6: =tblIndicators!A3 -> 2 | C6: =tblIndicators!B3 -> 0 | D6: =tblIndicators!D3 -> EP | E6: =tblIndicators!E3 -> TOTAL | F6: =tblIndicators!H3 -> Economic pillar | G6: =tblIndicators!T3 -> 1 | H6: =tblIndicators!Y3 -> 1) ECONOMIC PILLAR | I6: =IF(G6=1,"",tblIndicators!J3) -> 
A7: 1 | B7: =tblIndicators!A4 -> 3 | C7: =tblIndicators!B4 -> 0 | D7: =tblIndicators!D4 -> EP_10 | E7: =tblIndicators!E4 -> EP | F7: =tblIndicators!H4 -> Growth in per capita GDP | G7: =tblIndicators!T4 -> 2 | H7: =tblIndicators!Y4 -> 1.10) Growth in per capita GDP | I7: 1 | J7: =IF(Data!J7="","",Data!J7/$I7) -> 4.89 | K7: =IF(Data!K7="","",Data!K7/$I7) -> -1.63 | L7: =IF(Data!L7="","",Data!L7/$I7) -> 5.11 | M7: =IF(Data!M7="","",Data!M7/$I7) -> 8 | N7: =IF(Data!N7="","",Data!N7/$I7) -> 3.04 | O7: =IF(Data!O7="","",Data!O7/$I7) -> 5.15 | P7: =IF(Data!P7="","",Data!P7/$I7) -> 4.73 | Q7: =IF(Data!Q7="","",Data!Q7/$I7) -> 1.59 | R7: =IF(Data!R7="","",Data!R7/$I7) -> 6.04 | S7: =IF(Data!S7="","",Data!S7/$I7) -> 4.04 | T7: =IF(Data!T7="","",Data!T7/$I7) -> 4.36 | U7: =IF(Data!U7="","",Data!U7/$I7) -> 1.65 | V7: =IF(Data!V7="","",Data!V7/$I7) -> 4.42 | W7: =IF(Data!W7="","",Data!W7/$I7) -> 4.5 | X7: =IF(Data!X7="","",Data!X7/$I7) -> 3.16 | Y7: =IF(Data!Y7="","",Data!Y7/$I7) -> 5.83 | Z7: =IF(Data!Z7="","",Data!Z7/$I7) -> 4.22 | AA7: =IF(Data!AA7="","",Data!AA7/$I7) -> 3.58 | AB7: =IF(Data!AB7="","",Data!AB7/$I7) -> 4.7 | AC7: =IF(Data!AC7="","",Data!AC7/$I7) -> 1.29
A8: 1 | B8: =tblIndicators!A5 -> 4 | C8: =tblIndicators!B5 -> 0 | D8: =tblIndicators!D5 -> EP_11 | E8: =tblIndicators!E5 -> EP | F8: =tblIndicators!H5 -> Current account liberalisation | G8: =tblIndicators!T5 -> 3 | H8: =tblIndicators!Y5 -> 1.11) Current account liberalisation | I8: 1 | J8: =IF(Data!J8="","",Data!J8/$I8) -> 4 | K8: =IF(Data!K8="","",Data!K8/$I8) -> 5 | L8: =IF(Data!L8="","",Data!L8/$I8) -> 5 | M8: =IF(Data!M8="","",Data!M8/$I8) -> 4.4 | N8: =IF(Data!N8="","",Data!N8/$I8) -> 5 | O8: =IF(Data!O8="","",Data!O8/$I8) -> 4 | P8: =IF(Data!P8="","",Data!P8/$I8) -> 4 | Q8: =IF(Data!Q8="","",Data!Q8/$I8) -> 5 | R8: =IF(Data!R8="","",Data!R8/$I8) -> 5 | S8: =IF(Data!S8="","",Data!S8/$I8) -> 5 | T8: =IF(Data!T8="","",Data!T8/$I8) -> 4 | U8: =IF(Data!U8="","",Data!U8/$I8) -> 3 | V8: =IF(Data!V8="","",Data!V8/$I8) -> 4.4 | W8: =IF(Data!W8="","",Data!W8/$I8) -> 5 | X8: =IF(Data!X8="","",Data!X8/$I8) -> 4.4 | Y8: =IF(Data!Y8="","",Data!Y8/$I8) -> 5 | Z8: =IF(Data!Z8="","",Data!Z8/$I8) -> 5 | AA8: =IF(Data!AA8="","",Data!AA8/$I8) -> 5 | AB8: =IF(Data!AB8="","",Data!AB8/$I8) -> 5 | AC8: =IF(Data!AC8="","",Data!AC8/$I8) -> 5
A9: 1 | B9: =tblIndicators!A6 -> 5 | C9: =tblIndicators!B6 -> 0 | D9: =tblIndicators!D6 -> EP_12 | E9: =tblIndicators!E6 -> EP | F9: =tblIndicators!H6 -> Tariff & non-tariff barriers | G9: =tblIndicators!T6 -> 3 | H9: =tblIndicators!Y6 -> 1.12) Tariff & non-tariff barriers | I9: 1 | J9: =IF(Data!J9="","",Data!J9/$I9) -> 2 | K9: =IF(Data!K9="","",Data!K9/$I9) -> 3 | L9: =IF(Data!L9="","",Data!L9/$I9) -> 3 | M9: =IF(Data!M9="","",Data!M9/$I9) -> 3 | N9: =IF(Data!N9="","",Data!N9/$I9) -> 5 | O9: =IF(Data!O9="","",Data!O9/$I9) -> 2 | P9: =IF(Data!P9="","",Data!P9/$I9) -> 4 | Q9: =IF(Data!Q9="","",Data!Q9/$I9) -> 4 | R9: =IF(Data!R9="","",Data!R9/$I9) -> 4 | S9: =IF(Data!S9="","",Data!S9/$I9) -> 4 | T9: =IF(Data!T9="","",Data!T9/$I9) -> 4 | U9: =IF(Data!U9="","",Data!U9/$I9) -> 2 | V9: =IF(Data!V9="","",Data!V9/$I9) -> 4 | W9: =IF(Data!W9="","",Data!W9/$I9) -> 5 | X9: =IF(Data!X9="","",Data!X9/$I9) -> 4 | Y9: =IF(Data!Y9="","",Data!Y9/$I9) -> 3 | Z9: =IF(Data!Z9="","",Data!Z9/$I9) -> 4 | AA9: =IF(Data!AA9="","",Data!AA9/$I9) -> 3.4 | AB9: =IF(Data!AB9="","",Data!AB9/$I9) -> 2.4 | AC9: =IF(Data!AC9="","",Data!AC9/$I9) -> 4
A10: 1 | B10: =tblIndicators!A7 -> 6 | C10: =tblIndicators!B7 -> 0 | D10: =tblIndicators!D7 -> EP_13 | E10: =tblIndicators!E7 -> EP | F10: =tblIndicators!H7 -> Exchange rate volatility | G10: =tblIndicators!T7 -> 2 | H10: =tblIndicators!Y7 -> 1.13) Exchange rate volatility | I10: 1 | J10: =IF(Data!J10="","",Data!J10/$I10) -> 0.022 | K10: =IF(Data!K10="","",Data!K10/$I10) -> 0.018 | L10: =IF(Data!L10="","",Data!L10/$I10) -> 0.014 | M10: =IF(Data!M10="","",Data!M10/$I10) -> 0.02 | N10: =IF(Data!N10="","",Data!N10/$I10) -> 0.01 | O10: =IF(Data!O10="","",Data!O10/$I10) -> 0.034 | P10: =IF(Data!P10="","",Data!P10/$I10) -> 0.024 | Q10: =IF(Data!Q10="","",Data!Q10/$I10) -> 0.03 | R10: =IF(Data!R10="","",Data!R10/$I10) -> 0.014 | S10: =IF(Data!S10="","",Data!S10/$I10) -> 0.02 | T10: =IF(Data!T10="","",Data!T10/$I10) -> 0.302 | U10: =IF(Data!U10="","",Data!U10/$I10) -> 0.014 | V10: =IF(Data!V10="","",Data!V10/$I10) -> 0.02 | W10: =IF(Data!W10="","",Data!W10/$I10) -> 0.018 | X10: =IF(Data!X10="","",Data!X10/$I10) -> 0.024 | Y10: =IF(Data!Y10="","",Data!Y10/$I10) -> 0.02 | Z10: =IF(Data!Z10="","",Data!Z10/$I10) -> 0.014 | AA10: =IF(Data!AA10="","",Data!AA10/$I10) -> 0.024 | AB10: =IF(Data!AB10="","",Data!AB10/$I10) -> 0.016 | AC10: =IF(Data!AC10="","",Data!AC10/$I10) -> 0.022
A11: 1 | B11: =tblIndicators!A8 -> 7 | C11: =tblIndicators!B8 -> 0 | D11: =tblIndicators!D8 -> EP_14 | E11: =tblIndicators!E8 -> EP | F11: =tblIndicators!H8 -> Financial sector depth | G11: =tblIndicators!T8 -> 2 | H11: =tblIndicators!Y8 -> 1.14) Financial sector depth | I11: 1 | J11: =IF(Data!J11="","",Data!J11/$I11) -> 42 | K11: =IF(Data!K11="","",Data!K11/$I11) -> 33 | L11: =IF(Data!L11="","",Data!L11/$I11) -> 54 | M11: =IF(Data!M11="","",Data!M11/$I11) -> 142 | N11: =IF(Data!N11="","",Data!N11/$I11) -> 234 | O11: =IF(Data!O11="","",Data!O11/$I11) -> 51 | P11: =IF(Data!P11="","",Data!P11/$I11) -> 40 | Q11: =IF(Data!Q11="","",Data!Q11/$I11) -> 188 | R11: =IF(Data!R11="","",Data!R11/$I11) -> 21 | S11: =IF(Data!S11="","",Data!S11/$I11) -> 125 | T11: =IF(Data!T11="","",Data!T11/$I11) -> 14 | U11: =IF(Data!U11="","",Data!U11/$I11) -> 15 | V11: =IF(Data!V11="","",Data!V11/$I11) -> 39 | W11: =IF(Data!W11="","",Data!W11/$I11) -> 131 | X11: =IF(Data!X11="","",Data!X11/$I11) -> 138 | Y11: =IF(Data!Y11="","",Data!Y11/$I11) -> 28 | Z11: =IF(Data!Z11="","",Data!Z11/$I11) -> 159.6 | AA11: =IF(Data!AA11="","",Data!AA11/$I11) -> 159 | AB11: =IF(Data!AB11="","",Data!AB11/$I11) -> 100 | AC11: =IF(Data!AC11="","",Data!AC11/$I11) -> 196
A12: 1 | B12: =tblIndicators!A9 -> 8 | C12: =tblIndicators!B9 -> 0 | D12: =tblIndicators!D9 -> EP_15 | E12: =tblIndicators!E9 -> EP | F12: =tblIndicators!H9 -> Foreign trade and payments risk | G12: =tblIndicators!T9 -> 3 | H12: =tblIndicators!Y9 -> 1.15) Foreign trade and payments risk | I12: 1 | J12: =IF(Data!J12="","",Data!J12/$I12) -> 57 | K12: =IF(Data!K12="","",Data!K12/$I12) -> 21 | L12: =IF(Data!L12="","",Data!L12/$I12) -> 42 | M12: =IF(Data!M12="","",Data!M12/$I12) -> 33 | N12: =IF(Data!N12="","",Data!N12/$I12) -> 7 | O12: =IF(Data!O12="","",Data!O12/$I12) -> 50 | P12: =IF(Data!P12="","",Data!P12/$I12) -> 43 | Q12: =IF(Data!Q12="","",Data!Q12/$I12) -> 25 | R12: =IF(Data!R12="","",Data!R12/$I12) -> 71 | S12: =IF(Data!S12="","",Data!S12/$I12) -> 21 | T12: =IF(Data!T12="","",Data!T12/$I12) -> 64 | U12: =IF(Data!U12="","",Data!U12/$I12) -> 75 | V12: =IF(Data!V12="","",Data!V12/$I12) -> 29 | W12: =IF(Data!W12="","",Data!W12/$I12) -> 4 | X12: =IF(Data!X12="","",Data!X12/$I12) -> 26 | Y12: =IF(Data!Y12="","",Data!Y12/$I12) -> 36 | Z12: =IF(Data!Z12="","",Data!Z12/$I12) -> 18 | AA12: =IF(Data!AA12="","",Data!AA12/$I12) -> 43 | AB12: =IF(Data!AB12="","",Data!AB12/$I12) -> 49 | AC12: =IF(Data!AC12="","",Data!AC12/$I12) -> 21
A13: 1 | B13: =tblIndicators!A10 -> 9 | C13: =tblIndicators!B10 -> 0 | D13: =tblIndicators!D10 -> EP_16 | E13: =tblIndicators!E10 -> EP | F13: =tblIndicators!H10 -> Export market concentration | G13: =tblIndicators!T10 -> 2 | H13: =tblIndicators!Y10 -> 1.16) Export market concentration | I13: 1 | J13: =IF(Data!J13="","",Data!J13/$I13) -> 10.358 | K13: =IF(Data!K13="","",Data!K13/$I13) -> 70.6 | L13: =IF(Data!L13="","",Data!L13/$I13) -> 11.776 | M13: =IF(Data!M13="","",Data!M13/$I13) -> 11 | N13: =IF(Data!N13="","",Data!N13/$I13) -> 17.456 | O13: =IF(Data!O13="","",Data!O13/$I13) -> 8.056 | P13: =IF(Data!P13="","",Data!P13/$I13) -> 11.028 | Q13: =IF(Data!Q13="","",Data!Q13/$I13) -> 12.294 | R13: =IF(Data!R13="","",Data!R13/$I13) -> 18.238 | S13: =IF(Data!S13="","",Data!S13/$I13) -> 11.526 | T13: =IF(Data!T13="","",Data!T13/$I13) -> 19.74 | U13: =IF(Data!U13="","",Data!U13/$I13) -> 10.334 | V13: =IF(Data!V13="","",Data!V13/$I13) -> 13.448 | W13: =IF(Data!W13="","",Data!W13/$I13) -> 10.032 | X13: =IF(Data!X13="","",Data!X13/$I13) -> 11.95 | Y13: =IF(Data!Y13="","",Data!Y13/$I13) -> 10.212 | Z13: =IF(Data!Z13="","",Data!Z13/$I13) -> 15.236 | AA13: =IF(Data!AA13="","",Data!AA13/$I13) -> 9.346 | AB13: =IF(Data!AB13="","",Data!AB13/$I13) -> 11.524 | AC13: =IF(Data!AC13="","",Data!AC13/$I13) -> 11.174
A14: 1 | B14: =tblIndicators!A11 -> 10 | C14: =tblIndicators!B11 -> 0 | D14: =tblIndicators!D11 -> EP_17 | E14: =tblIndicators!E11 -> EP | F14: =tblIndicators!H11 -> Export product concentration | G14: =tblIndicators!T11 -> 2 | H14: =tblIndicators!Y11 -> 1.17) Export product concentration | I14: 1 | J14: =IF(Data!J14="","",Data!J14/$I14) -> 18.82 | K14: =IF(Data!K14="","",Data!K14/$I14) -> 98.1 | L14: =IF(Data!L14="","",Data!L14/$I14) -> 24.74 | M14: =IF(Data!M14="","",Data!M14/$I14) -> 10.64 | N14: =IF(Data!N14="","",Data!N14/$I14) -> 24.48 | O14: =IF(Data!O14="","",Data!O14/$I14) -> 16.76 | P14: =IF(Data!P14="","",Data!P14/$I14) -> 18.42 | Q14: =IF(Data!Q14="","",Data!Q14/$I14) -> 23.36 | R14: =IF(Data!R14="","",Data!R14/$I14) -> 12.1 | S14: =IF(Data!S14="","",Data!S14/$I14) -> 18.74 | T14: =IF(Data!T14="","",Data!T14/$I14) -> 14.92 | U14: =IF(Data!U14="","",Data!U14/$I14) -> 9.12 | V14: =IF(Data!V14="","",Data!V14/$I14) -> 16.8 | W14: =IF(Data!W14="","",Data!W14/$I14) -> 17.1 | X14: =IF(Data!X14="","",Data!X14/$I14) -> 22.08 | Y14: =IF(Data!Y14="","",Data!Y14/$I14) -> 16 | Z14: =IF(Data!Z14="","",Data!Z14/$I14) -> 18.98 | AA14: =IF(Data!AA14="","",Data!AA14/$I14) -> 25 | AB14: =IF(Data!AB14="","",Data!AB14/$I14) -> 8.32 | AC14: =IF(Data!AC14="","",Data!AC14/$I14) -> 21.88
A15: 1 | B15: =tblIndicators!A12 -> 11 | C15: =tblIndicators!B12 -> 0 | D15: =tblIndicators!D12 -> EP_18 | E15: =tblIndicators!E12 -> EP | F15: =tblIndicators!H12 -> Foreign Direct Investment | G15: =tblIndicators!T12 -> 2 | H15: =tblIndicators!Y12 -> 1.18) Foreign Direct Investment | I15: 1 | J15: =IF(Data!J15="","",Data!J15/$I15) -> 0.92 | K15: =IF(Data!K15="","",Data!K15/$I15) -> 0.003 | L15: =IF(Data!L15="","",Data!L15/$I15) -> 7.714 | M15: =IF(Data!M15="","",Data!M15/$I15) -> 3.954 | N15: =IF(Data!N15="","",Data!N15/$I15) -> 34.22 | O15: =IF(Data!O15="","",Data!O15/$I15) -> 1.62 | P15: =IF(Data!P15="","",Data!P15/$I15) -> 2.36 | Q15: =IF(Data!Q15="","",Data!Q15/$I15) -> 0.1 | R15: =IF(Data!R15="","",Data!R15/$I15) -> 3.64 | S15: =IF(Data!S15="","",Data!S15/$I15) -> 3.88 | T15: =IF(Data!T15="","",Data!T15/$I15) -> 5.08 | U15: =IF(Data!U15="","",Data!U15/$I15) -> 0.68 | V15: =IF(Data!V15="","",Data!V15/$I15) -> 1.26 | W15: =IF(Data!W15="","",Data!W15/$I15) -> 20.7 | X15: =IF(Data!X15="","",Data!X15/$I15) -> 0.84 | Y15: =IF(Data!Y15="","",Data!Y15/$I15) -> 1.38 | Z15: =IF(Data!Z15="","",Data!Z15/$I15) -> 0.4 | AA15: =IF(Data!AA15="","",Data!AA15/$I15) -> 2.62 | AB15: =IF(Data!AB15="","",Data!AB15/$I15) -> 5.64 | AC15: =IF(Data!AC15="","",Data!AC15/$I15) -> 1.46
A16: 1 | B16: =tblIndicators!A13 -> 12 | C16: =tblIndicators!B13 -> 0 | D16: =tblIndicators!D13 -> EP_19 | E16: =tblIndicators!E13 -> EP | F16: =tblIndicators!H13 -> Gross fixed capital formation | G16: =tblIndicators!T13 -> 2 | H16: =tblIndicators!Y13 -> 1.19) Gross fixed capital formation | I16: 1 | J16: =IF(Data!J16="","",Data!J16/$I16) -> 27.802 | K16: =IF(Data!K16="","",Data!K16/$I16) -> 35.266 | L16: =IF(Data!L16="","",Data!L16/$I16) -> 17.222 | M16: =IF(Data!M16="","",Data!M16/$I16) -> 44.456 | N16: =IF(Data!N16="","",Data!N16/$I16) -> 23.698 | O16: =IF(Data!O16="","",Data!O16/$I16) -> 31.072 | P16: =IF(Data!P16="","",Data!P16/$I16) -> 31.906 | Q16: =IF(Data!Q16="","",Data!Q16/$I16) -> 21.14 | R16: =IF(Data!R16="","",Data!R16/$I16) -> 28.188 | S16: =IF(Data!S16="","",Data!S16/$I16) -> 24.488 | T16: =IF(Data!T16="","",Data!T16/$I16) -> 17.14 | U16: =IF(Data!U16="","",Data!U16/$I16) -> 13.39 | V16: =IF(Data!V16="","",Data!V16/$I16) -> 20.032 | W16: =IF(Data!W16="","",Data!W16/$I16) -> 26.034 | X16: =IF(Data!X16="","",Data!X16/$I16) -> 29.736 | Y16: =IF(Data!Y16="","",Data!Y16/$I16) -> 27.858 | Z16: =IF(Data!Z16="","",Data!Z16/$I16) -> 22.62 | AA16: =IF(Data!AA16="","",Data!AA16/$I16) -> 25.344 | AB16: =IF(Data!AB16="","",Data!AB16/$I16) -> 26.204 | AC16: =IF(Data!AC16="","",Data!AC16/$I16) -> 14.914
A17: 1 | B17: =tblIndicators!A14 -> 13 | C17: =tblIndicators!B14 -> 0 | D17: =tblIndicators!D14 -> EP_20 | E17: =tblIndicators!E14 -> EP | F17: =tblIndicators!H14 -> Trade costs | G17: =tblIndicators!T14 -> 1 | H17: =tblIndicators!Y14 -> 1.20) Trade costs | I17: 1 | J17: =IF(Data!J17="","",Data!J17/$I17) ->  | K17: =IF(Data!K17="","",Data!K17/$I17) ->  | L17: =IF(Data!L17="","",Data!L17/$I17) ->  | M17: =IF(Data!M17="","",Data!M17/$I17) ->  | N17: =IF(Data!N17="","",Data!N17/$I17) ->  | O17: =IF(Data!O17="","",Data!O17/$I17) ->  | P17: =IF(Data!P17="","",Data!P17/$I17) ->  | Q17: =IF(Data!Q17="","",Data!Q17/$I17) ->  | R17: =IF(Data!R17="","",Data!R17/$I17) ->  | S17: =IF(Data!S17="","",Data!S17/$I17) ->  | T17: =IF(Data!T17="","",Data!T17/$I17) ->  | U17: =IF(Data!U17="","",Data!U17/$I17) ->  | V17: =IF(Data!V17="","",Data!V17/$I17) ->  | W17: =IF(Data!W17="","",Data!W17/$I17) ->  | X17: =IF(Data!X17="","",Data!X17/$I17) ->  | Y17: =IF(Data!Y17="","",Data!Y17/$I17) ->  | Z17: =IF(Data!Z17="","",Data!Z17/$I17) ->  | AA17: =IF(Data!AA17="","",Data!AA17/$I17) ->  | AB17: =IF(Data!AB17="","",Data!AB17/$I17) ->  | AC17: =IF(Data!AC17="","",Data!AC17/$I17) -> 
A18: 1 | B18: =tblIndicators!A15 -> 14 | C18: =tblIndicators!B15 -> 0 | D18: =tblIndicators!D15 -> EP_20_1 | E18: =tblIndicators!E15 -> EP_20 | F18: =tblIndicators!H15 -> Infrastructure | G18: =tblIndicators!T15 -> 3 | H18: =tblIndicators!Y15 -> 1.20.1) Infrastructure | I18: 1 | J18: =IF(Data!J18="","",Data!J18/$I18) -> 2.5 | K18: =IF(Data!K18="","",Data!K18/$I18) -> 3.53125 | L18: =IF(Data!L18="","",Data!L18/$I18) -> 3.53125 | M18: =IF(Data!M18="","",Data!M18/$I18) -> 6.2 | N18: =IF(Data!N18="","",Data!N18/$I18) -> 8.6 | O18: =IF(Data!O18="","",Data!O18/$I18) -> 4.7 | P18: =IF(Data!P18="","",Data!P18/$I18) -> 5.1 | Q18: =IF(Data!Q18="","",Data!Q18/$I18) -> 8.6 | R18: =IF(Data!R18="","",Data!R18/$I18) -> 2.4 | S18: =IF(Data!S18="","",Data!S18/$I18) -> 7.1 | T18: =IF(Data!T18="","",Data!T18/$I18) -> 1.933333333 | U18: =IF(Data!U18="","",Data!U18/$I18) -> 4.1 | V18: =IF(Data!V18="","",Data!V18/$I18) -> 5.2 | W18: =IF(Data!W18="","",Data!W18/$I18) -> 9.1 | X18: =IF(Data!X18="","",Data!X18/$I18) -> 8 | Y18: =IF(Data!Y18="","",Data!Y18/$I18) -> 5.5 | Z18: =IF(Data!Z18="","",Data!Z18/$I18) -> 8.4 | AA18: =IF(Data!AA18="","",Data!AA18/$I18) -> 5.9 | AB18: =IF(Data!AB18="","",Data!AB18/$I18) -> 5 | AC18: =IF(Data!AC18="","",Data!AC18/$I18) -> 9
A19: 1 | B19: =tblIndicators!A16 -> 15 | C19: =tblIndicators!B16 -> 0 | D19: =tblIndicators!D16 -> EP_20_2 | E19: =tblIndicators!E16 -> EP_20 | F19: =tblIndicators!H16 -> Logistics performance | G19: =tblIndicators!T16 -> 3 | H19: =tblIndicators!Y16 -> 1.20.2) Logistics performance | I19: 1 | J19: =IF(Data!J19="","",Data!J19/$I19) -> 2.56 | K19: =IF(Data!K19="","",Data!K19/$I19) ->  | L19: =IF(Data!L19="","",Data!L19/$I19) -> 2.74 | M19: =IF(Data!M19="","",Data!M19/$I19) -> 3.53 | N19: =IF(Data!N19="","",Data!N19/$I19) -> 3.83 | O19: =IF(Data!O19="","",Data!O19/$I19) -> 3.08 | P19: =IF(Data!P19="","",Data!P19/$I19) -> 3.08 | Q19: =IF(Data!Q19="","",Data!Q19/$I19) -> 3.91 | R19: =IF(Data!R19="","",Data!R19/$I19) -> 2.39 | S19: =IF(Data!S19="","",Data!S19/$I19) -> 3.59 | T19: =IF(Data!T19="","",Data!T19/$I19) -> 2.25 | U19: =IF(Data!U19="","",Data!U19/$I19) -> 2.83 | V19: =IF(Data!V19="","",Data!V19/$I19) -> 3 | W19: =IF(Data!W19="","",Data!W19/$I19) -> 4 | X19: =IF(Data!X19="","",Data!X19/$I19) -> 3.67 | Y19: =IF(Data!Y19="","",Data!Y19/$I19) -> 2.7 | Z19: =IF(Data!Z19="","",Data!Z19/$I19) -> 3.72 | AA19: =IF(Data!AA19="","",Data!AA19/$I19) -> 3.43 | AB19: =IF(Data!AB19="","",Data!AB19/$I19) -> 3.15 | AC19: =IF(Data!AC19="","",Data!AC19/$I19) -> 3.92
A20: 1 | B20: =tblIndicators!A17 -> 16 | C20: =tblIndicators!B17 -> 0 | D20: =tblIndicators!D17 -> EP_20_3 | E20: =tblIndicators!E17 -> EP_20 | F20: =tblIndicators!H17 -> Corruption | G20: =tblIndicators!T17 -> 3 | H20: =tblIndicators!Y17 -> 1.20.3) Corruption | I20: 1 | J20: =IF(Data!J20="","",Data!J20/$I20) -> 1 | K20: =IF(Data!K20="","",Data!K20/$I20) -> 3 | L20: =IF(Data!L20="","",Data!L20/$I20) -> 1 | M20: =IF(Data!M20="","",Data!M20/$I20) -> 1 | N20: =IF(Data!N20="","",Data!N20/$I20) -> 4 | O20: =IF(Data!O20="","",Data!O20/$I20) -> 1.3 | P20: =IF(Data!P20="","",Data!P20/$I20) -> 1 | Q20: =IF(Data!Q20="","",Data!Q20/$I20) -> 3 | R20: =IF(Data!R20="","",Data!R20/$I20) -> 1 | S20: =IF(Data!S20="","",Data!S20/$I20) -> 3 | T20: =IF(Data!T20="","",Data!T20/$I20) -> 1 | U20: =IF(Data!U20="","",Data!U20/$I20) -> 1.3 | V20: =IF(Data!V20="","",Data!V20/$I20) -> 1 | W20: =IF(Data!W20="","",Data!W20/$I20) -> 5 | X20: =IF(Data!X20="","",Data!X20/$I20) -> 4 | Y20: =IF(Data!Y20="","",Data!Y20/$I20) -> 2 | Z20: =IF(Data!Z20="","",Data!Z20/$I20) -> 3 | AA20: =IF(Data!AA20="","",Data!AA20/$I20) -> 2 | AB20: =IF(Data!AB20="","",Data!AB20/$I20) -> 1 | AC20: =IF(Data!AC20="","",Data!AC20/$I20) -> 4
A21: 1 | B21: =tblIndicators!A18 -> 17 | C21: =tblIndicators!B18 -> 0 | D21: =tblIndicators!D18 -> EP_20_4 | E21: =tblIndicators!E18 -> EP_20 | F21: =tblIndicators!H18 -> Legal system | G21: =tblIndicators!T18 -> 3 | H21: =tblIndicators!Y18 -> 1.20.4) Legal system | I21: 1 | J21: =IF(Data!J21="","",Data!J21/$I21) -> 3 | K21: =IF(Data!K21="","",Data!K21/$I21) -> 1 | L21: =IF(Data!L21="","",Data!L21/$I21) -> 1 | M21: =IF(Data!M21="","",Data!M21/$I21) -> 1.3 | N21: =IF(Data!N21="","",Data!N21/$I21) -> 3.4 | O21: =IF(Data!O21="","",Data!O21/$I21) -> 3 | P21: =IF(Data!P21="","",Data!P21/$I21) -> 2 | Q21: =IF(Data!Q21="","",Data!Q21/$I21) -> 4 | R21: =IF(Data!R21="","",Data!R21/$I21) -> 1 | S21: =IF(Data!S21="","",Data!S21/$I21) -> 3 | T21: =IF(Data!T21="","",Data!T21/$I21) -> 1 | U21: =IF(Data!U21="","",Data!U21/$I21) -> 2 | V21: =IF(Data!V21="","",Data!V21/$I21) -> 2 | W21: =IF(Data!W21="","",Data!W21/$I21) -> 4 | X21: =IF(Data!X21="","",Data!X21/$I21) -> 3 | Y21: =IF(Data!Y21="","",Data!Y21/$I21) -> 3 | Z21: =IF(Data!Z21="","",Data!Z21/$I21) -> 3.4 | AA21: =IF(Data!AA21="","",Data!AA21/$I21) -> 2 | AB21: =IF(Data!AB21="","",Data!AB21/$I21) -> 2 | AC21: =IF(Data!AC21="","",Data!AC21/$I21) -> 4
A22: 1 | B22: =tblIndicators!A19 -> 18 | C22: =tblIndicators!B19 -> 0 | D22: =tblIndicators!D19 -> EP_21 | E22: =tblIndicators!E19 -> EP | F22: =tblIndicators!H19 -> Technological innovation | G22: =tblIndicators!T19 -> 2 | H22: =tblIndicators!Y19 -> 1.21) Technological innovation | I22: 1 | J22: =IF(Data!J22="","",Data!J22/$I22) -> 0.4 | K22: =IF(Data!K22="","",Data!K22/$I22) -> 0.03 | L22: =IF(Data!L22="","",Data!L22/$I22) -> 0.05 | M22: =IF(Data!M22="","",Data!M22/$I22) -> 2 | N22: =IF(Data!N22="","",Data!N22/$I22) -> 0.8 | O22: =IF(Data!O22="","",Data!O22/$I22) -> 0.8 | P22: =IF(Data!P22="","",Data!P22/$I22) -> 0.08 | Q22: =IF(Data!Q22="","",Data!Q22/$I22) -> 3.4 | R22: =IF(Data!R22="","",Data!R22/$I22) -> 0.04 | S22: =IF(Data!S22="","",Data!S22/$I22) -> 1.1 | T22: =IF(Data!T22="","",Data!T22/$I22) -> 0.2 | U22: =IF(Data!U22="","",Data!U22/$I22) -> 0.33 | V22: =IF(Data!V22="","",Data!V22/$I22) -> 0.11 | W22: =IF(Data!W22="","",Data!W22/$I22) -> 2.2 | X22: =IF(Data!X22="","",Data!X22/$I22) -> 4.4 | Y22: =IF(Data!Y22="","",Data!Y22/$I22) -> 0.2 | Z22: =IF(Data!Z22="","",Data!Z22/$I22) -> 3.2 | AA22: =IF(Data!AA22="","",Data!AA22/$I22) -> 0.3 | AB22: =IF(Data!AB22="","",Data!AB22/$I22) -> 0.2 | AC22: =IF(Data!AC22="","",Data!AC22/$I22) -> 2.8
A23: 1 | B23: =tblIndicators!A20 -> 19 | C23: =tblIndicators!B20 -> 0 | D23: =tblIndicators!D20 -> EP_22 | E23: =tblIndicators!E20 -> EP | F23: =tblIndicators!H20 -> Technological infrastructure | G23: =tblIndicators!T20 -> 2 | H23: =tblIndicators!Y20 -> 1.22) Technological infrastructure | I23: 1 | J23: =IF(Data!J23="","",Data!J23/$I23) -> 2 | K23: =IF(Data!K23="","",Data!K23/$I23) -> 0 | L23: =IF(Data!L23="","",Data!L23/$I23) -> 3 | M23: =IF(Data!M23="","",Data!M23/$I23) -> 2 | N23: =IF(Data!N23="","",Data!N23/$I23) -> 2 | O23: =IF(Data!O23="","",Data!O23/$I23) -> 1 | P23: =IF(Data!P23="","",Data!P23/$I23) -> 3 | Q23: =IF(Data!Q23="","",Data!Q23/$I23) -> 0 | R23: =IF(Data!R23="","",Data!R23/$I23) -> 3 | S23: =IF(Data!S23="","",Data!S23/$I23) -> 1 | T23: =IF(Data!T23="","",Data!T23/$I23) -> 4 | U23: =IF(Data!U23="","",Data!U23/$I23) -> 3 | V23: =IF(Data!V23="","",Data!V23/$I23) -> 1 | W23: =IF(Data!W23="","",Data!W23/$I23) -> 0 | X23: =IF(Data!X23="","",Data!X23/$I23) -> 0 | Y23: =IF(Data!Y23="","",Data!Y23/$I23) -> 2 | Z23: =IF(Data!Z23="","",Data!Z23/$I23) -> 0 | AA23: =IF(Data!AA23="","",Data!AA23/$I23) -> 2 | AB23: =IF(Data!AB23="","",Data!AB23/$I23) -> 1 | AC23: =IF(Data!AC23="","",Data!AC23/$I23) -> 0
A24: 1 | B24: =tblIndicators!A21 -> 20 | C24: =tblIndicators!B21 -> 0 | D24: =tblIndicators!D21 -> EP_23 | E24: =tblIndicators!E21 -> EP | F24: =tblIndicators!H21 -> Growth in labour force | G24: =tblIndicators!T21 -> 2 | H24: =tblIndicators!Y21 -> 1.23) Growth in labour force | I24: 1 | J24: =IF(Data!J24="","",Data!J24/$I24) -> 0.259 | K24: =IF(Data!K24="","",Data!K24/$I24) -> -0.03 | L24: =IF(Data!L24="","",Data!L24/$I24) -> 0.023 | M24: =IF(Data!M24="","",Data!M24/$I24) -> -0.057 | N24: =IF(Data!N24="","",Data!N24/$I24) -> -0.061 | O24: =IF(Data!O24="","",Data!O24/$I24) -> 0.286 | P24: =IF(Data!P24="","",Data!P24/$I24) -> 0.238 | Q24: =IF(Data!Q24="","",Data!Q24/$I24) -> -0.106 | R24: =IF(Data!R24="","",Data!R24/$I24) -> 0.068 | S24: =IF(Data!S24="","",Data!S24/$I24) -> 0.218 | T24: =IF(Data!T24="","",Data!T24/$I24) -> 0.033 | U24: =IF(Data!U24="","",Data!U24/$I24) -> 0.457 | V24: =IF(Data!V24="","",Data!V24/$I24) -> 0.346 | W24: =IF(Data!W24="","",Data!W24/$I24) -> 0.092 | X24: =IF(Data!X24="","",Data!X24/$I24) -> -0.01 | Y24: =IF(Data!Y24="","",Data!Y24/$I24) -> 0.064 | Z24: =IF(Data!Z24="","",Data!Z24/$I24) -> -0.044 | AA24: =IF(Data!AA24="","",Data!AA24/$I24) -> -0.034 | AB24: =IF(Data!AB24="","",Data!AB24/$I24) -> 0.101 | AC24: =IF(Data!AC24="","",Data!AC24/$I24) -> 0.06
A25: 1 | B25: =tblIndicators!A22 -> 21 | C25: =tblIndicators!B22 -> 0 | D25: =tblIndicators!D22 -> SP | E25: =tblIndicators!E22 -> TOTAL | F25: =tblIndicators!H22 -> Social pillar | G25: =tblIndicators!T22 -> 1 | H25: =tblIndicators!Y22 -> 2) SOCIAL PILLAR | I25: 1 | J25: =IF(Data!J25="","",Data!J25/$I25) ->  | K25: =IF(Data!K25="","",Data!K25/$I25) ->  | L25: =IF(Data!L25="","",Data!L25/$I25) ->  | M25: =IF(Data!M25="","",Data!M25/$I25) ->  | N25: =IF(Data!N25="","",Data!N25/$I25) ->  | O25: =IF(Data!O25="","",Data!O25/$I25) ->  | P25: =IF(Data!P25="","",Data!P25/$I25) ->  | Q25: =IF(Data!Q25="","",Data!Q25/$I25) ->  | R25: =IF(Data!R25="","",Data!R25/$I25) ->  | S25: =IF(Data!S25="","",Data!S25/$I25) ->  | T25: =IF(Data!T25="","",Data!T25/$I25) ->  | U25: =IF(Data!U25="","",Data!U25/$I25) ->  | V25: =IF(Data!V25="","",Data!V25/$I25) ->  | W25: =IF(Data!W25="","",Data!W25/$I25) ->  | X25: =IF(Data!X25="","",Data!X25/$I25) ->  | Y25: =IF(Data!Y25="","",Data!Y25/$I25) ->  | Z25: =IF(Data!Z25="","",Data!Z25/$I25) ->  | AA25: =IF(Data!AA25="","",Data!AA25/$I25) ->  | AB25: =IF(Data!AB25="","",Data!AB25/$I25) ->  | AC25: =IF(Data!AC25="","",Data!AC25/$I25) -> 
A26: 1 | B26: =tblIndicators!A23 -> 22 | C26: =tblIndicators!B23 -> 0 | D26: =tblIndicators!D23 -> SP_10 | E26: =tblIndicators!E23 -> SP | F26: =tblIndicators!H23 -> Inequality (Gini coefficient) | G26: =tblIndicators!T23 -> 2 | H26: =tblIndicators!Y23 -> 2.1) Inequality (Gini coefficient) | I26: 1 | J26: =IF(Data!J26="","",Data!J26/$I26) -> 32 | K26: =IF(Data!K26="","",Data!K26/$I26) -> 40.5 | L26: =IF(Data!L26="","",Data!L26/$I26) -> 30.76 | M26: =IF(Data!M26="","",Data!M26/$I26) -> 42.06 | N26: =IF(Data!N26="","",Data!N26/$I26) -> 53.7 | O26: =IF(Data!O26="","",Data!O26/$I26) -> 33.9 | P26: =IF(Data!P26="","",Data!P26/$I26) -> 35.6 | Q26: =IF(Data!Q26="","",Data!Q26/$I26) -> 33.6 | R26: =IF(Data!R26="","",Data!R26/$I26) -> 37.9 | S26: =IF(Data!S26="","",Data!S26/$I26) -> 46.3 | T26: =IF(Data!T26="","",Data!T26/$I26) -> 38 | U26: =IF(Data!U26="","",Data!U26/$I26) -> 29.6 | V26: =IF(Data!V26="","",Data!V26/$I26) -> 43 | W26: =IF(Data!W26="","",Data!W26/$I26) -> 47.8 | X26: =IF(Data!X26="","",Data!X26/$I26) -> 30.7 | Y26: =IF(Data!Y26="","",Data!Y26/$I26) -> 38.6 | Z26: =IF(Data!Z26="","",Data!Z26/$I26) -> 34.2 | AA26: =IF(Data!AA26="","",Data!AA26/$I26) -> 39.3 | AB26: =IF(Data!AB26="","",Data!AB26/$I26) -> 38.7 | AC26: =IF(Data!AC26="","",Data!AC26/$I26) -> 39
A27: 1 | B27: =tblIndicators!A24 -> 23 | C27: =tblIndicators!B24 -> 0 | D27: =tblIndicators!D24 -> SP_11 | E27: =tblIndicators!E24 -> SP | F27: =tblIndicators!H24 -> Educational attainment | G27: =tblIndicators!T24 -> 2 | H27: =tblIndicators!Y24 -> 2.2) Educational attainment | I27: 1 | J27: =IF(Data!J27="","",Data!J27/$I27) -> 13.22793 | K27: =IF(Data!K27="","",Data!K27/$I27) -> 25.36182 | L27: =IF(Data!L27="","",Data!L27/$I27) -> 15.83411 | M27: =IF(Data!M27="","",Data!M27/$I27) -> 29.69645 | N27: =IF(Data!N27="","",Data!N27/$I27) -> 66.83704 | O27: =IF(Data!O27="","",Data!O27/$I27) -> 24.68669 | P27: =IF(Data!P27="","",Data!P27/$I27) -> 31.51226 | Q27: =IF(Data!Q27="","",Data!Q27/$I27) -> 61.45932 | R27: =IF(Data!R27="","",Data!R27/$I27) -> 17.69779 | S27: =IF(Data!S27="","",Data!S27/$I27) -> 37.20023 | T27: =IF(Data!T27="","",Data!T27/$I27) -> 13.37805 | U27: =IF(Data!U27="","",Data!U27/$I27) -> 9.81827 | V27: =IF(Data!V27="","",Data!V27/$I27) -> 33.84203 | W27: =IF(Data!W27="","",Data!W27/$I27) -> 90 | X27: =IF(Data!X27="","",Data!X27/$I27) -> 96.58497 | Y27: =IF(Data!Y27="","",Data!Y27/$I27) -> 18.7629 | Z27: =IF(Data!Z27="","",Data!Z27/$I27) -> 83.87723183 | AA27: =IF(Data!AA27="","",Data!AA27/$I27) -> 51.23354 | AB27: =IF(Data!AB27="","",Data!AB27/$I27) -> 24.58324 | AC27: =IF(Data!AC27="","",Data!AC27/$I27) -> 89.08239
A28: 1 | B28: =tblIndicators!A25 -> 24 | C28: =tblIndicators!B25 -> 0 | D28: =tblIndicators!D25 -> SP_12 | E28: =tblIndicators!E25 -> SP | F28: =tblIndicators!H25 -> Labour standards | G28: =tblIndicators!T25 -> 3 | H28: =tblIndicators!Y25 -> 2.3) Labour standards | I28: 1 | J28: =IF(Data!J28="","",Data!J28/$I28) -> 4 | K28: =IF(Data!K28="","",Data!K28/$I28) -> 1 | L28: =IF(Data!L28="","",Data!L28/$I28) -> 4 | M28: =IF(Data!M28="","",Data!M28/$I28) -> 3 | N28: =IF(Data!N28="","",Data!N28/$I28) -> 1 | O28: =IF(Data!O28="","",Data!O28/$I28) -> 4 | P28: =IF(Data!P28="","",Data!P28/$I28) -> 4 | Q28: =IF(Data!Q28="","",Data!Q28/$I28) -> 1 | R28: =IF(Data!R28="","",Data!R28/$I28) -> 4 | S28: =IF(Data!S28="","",Data!S28/$I28) -> 2 | T28: =IF(Data!T28="","",Data!T28/$I28) -> 4 | U28: =IF(Data!U28="","",Data!U28/$I28) -> 4 | V28: =IF(Data!V28="","",Data!V28/$I28) -> 4 | W28: =IF(Data!W28="","",Data!W28/$I28) -> 1 | X28: =IF(Data!X28="","",Data!X28/$I28) -> 1 | Y28: =IF(Data!Y28="","",Data!Y28/$I28) -> 2 | Z28: =IF(Data!Z28="","",Data!Z28/$I28) -> 1 | AA28: =IF(Data!AA28="","",Data!AA28/$I28) -> 3 | AB28: =IF(Data!AB28="","",Data!AB28/$I28) -> 3 | AC28: =IF(Data!AC28="","",Data!AC28/$I28) -> 1
A29: 1 | B29: =tblIndicators!A26 -> 25 | C29: =tblIndicators!B26 -> 0 | D29: =tblIndicators!D26 -> SP_13 | E29: =tblIndicators!E26 -> SP | F29: =tblIndicators!H26 -> Political stability | G29: =tblIndicators!T26 -> 3 | H29: =tblIndicators!Y26 -> 2.4) Political stability | I29: 1 | J29: =IF(Data!J29="","",Data!J29/$I29) -> 3 | K29: =IF(Data!K29="","",Data!K29/$I29) -> 0 | L29: =IF(Data!L29="","",Data!L29/$I29) -> 3 | M29: =IF(Data!M29="","",Data!M29/$I29) -> 2 | N29: =IF(Data!N29="","",Data!N29/$I29) -> 2 | O29: =IF(Data!O29="","",Data!O29/$I29) -> 2 | P29: =IF(Data!P29="","",Data!P29/$I29) -> 2 | Q29: =IF(Data!Q29="","",Data!Q29/$I29) -> 0 | R29: =IF(Data!R29="","",Data!R29/$I29) -> 1 | S29: =IF(Data!S29="","",Data!S29/$I29) -> 1 | T29: =IF(Data!T29="","",Data!T29/$I29) -> 3 | U29: =IF(Data!U29="","",Data!U29/$I29) -> 3 | V29: =IF(Data!V29="","",Data!V29/$I29) -> 3 | W29: =IF(Data!W29="","",Data!W29/$I29) -> 1 | X29: =IF(Data!X29="","",Data!X29/$I29) -> 2 | Y29: =IF(Data!Y29="","",Data!Y29/$I29) -> 3 | Z29: =IF(Data!Z29="","",Data!Z29/$I29) -> 2 | AA29: =IF(Data!AA29="","",Data!AA29/$I29) -> 3 | AB29: =IF(Data!AB29="","",Data!AB29/$I29) -> 1 | AC29: =IF(Data!AC29="","",Data!AC29/$I29) -> 0
A30: 1 | B30: =tblIndicators!A27 -> 26 | C30: =tblIndicators!B27 -> 0 | D30: =tblIndicators!D27 -> ENP | E30: =tblIndicators!E27 -> TOTAL | F30: =tblIndicators!H27 -> Environmental pillar | G30: =tblIndicators!T27 -> 1 | H30: =tblIndicators!Y27 -> 3) ENVIRONMENTAL PILLAR | I30: 1 | J30: =IF(Data!J30="","",Data!J30/$I30) ->  | K30: =IF(Data!K30="","",Data!K30/$I30) ->  | L30: =IF(Data!L30="","",Data!L30/$I30) ->  | M30: =IF(Data!M30="","",Data!M30/$I30) ->  | N30: =IF(Data!N30="","",Data!N30/$I30) ->  | O30: =IF(Data!O30="","",Data!O30/$I30) ->  | P30: =IF(Data!P30="","",Data!P30/$I30) ->  | Q30: =IF(Data!Q30="","",Data!Q30/$I30) ->  | R30: =IF(Data!R30="","",Data!R30/$I30) ->  | S30: =IF(Data!S30="","",Data!S30/$I30) ->  | T30: =IF(Data!T30="","",Data!T30/$I30) ->  | U30: =IF(Data!U30="","",Data!U30/$I30) ->  | V30: =IF(Data!V30="","",Data!V30/$I30) ->  | W30: =IF(Data!W30="","",Data!W30/$I30) ->  | X30: =IF(Data!X30="","",Data!X30/$I30) ->  | Y30: =IF(Data!Y30="","",Data!Y30/$I30) ->  | Z30: =IF(Data!Z30="","",Data!Z30/$I30) ->  | AA30: =IF(Data!AA30="","",Data!AA30/$I30) ->  | AB30: =IF(Data!AB30="","",Data!AB30/$I30) ->  | AC30: =IF(Data!AC30="","",Data!AC30/$I30) -> 
A31: 1 | B31: =tblIndicators!A28 -> 27 | C31: =tblIndicators!B28 -> 0 | D31: =tblIndicators!D28 -> ENP_10 | E31: =tblIndicators!E28 -> ENP | F31: =tblIndicators!H28 -> Air pollution | G31: =tblIndicators!T28 -> 2 | H31: =tblIndicators!Y28 -> 3.1) Air pollution | I31: 1 | J31: =IF(Data!J31="","",Data!J31/$I31) -> 29.62 | K31: =IF(Data!K31="","",Data!K31/$I31) -> 9.2 | L31: =IF(Data!L31="","",Data!L31/$I31) -> 9.59 | M31: =IF(Data!M31="","",Data!M31/$I31) -> 48 | N31: =IF(Data!N31="","",Data!N31/$I31) -> 15.37 | O31: =IF(Data!O31="","",Data!O31/$I31) -> 31.98 | P31: =IF(Data!P31="","",Data!P31/$I31) -> 9.21 | Q31: =IF(Data!Q31="","",Data!Q31/$I31) -> 11.69 | R31: =IF(Data!R31="","",Data!R31/$I31) -> 21.14 | S31: =IF(Data!S31="","",Data!S31/$I31) -> 10.65 | T31: =IF(Data!T31="","",Data!T31/$I31) -> 14.12 | U31: =IF(Data!U31="","",Data!U31/$I31) -> 29.35 | V31: =IF(Data!V31="","",Data!V31/$I31) -> 6.68 | W31: =IF(Data!W31="","",Data!W31/$I31) -> 5.16 | X31: =IF(Data!X31="","",Data!X31/$I31) -> 19.9 | Y31: =IF(Data!Y31="","",Data!Y31/$I31) -> 9.17 | Z31: =IF(Data!Z31="","",Data!Z31/$I31) -> 14.57 | AA31: =IF(Data!AA31="","",Data!AA31/$I31) -> 14.6 | AB31: =IF(Data!AB31="","",Data!AB31/$I31) -> 17.87 | AC31: =IF(Data!AC31="","",Data!AC31/$I31) -> 7.47
A32: 1 | B32: =tblIndicators!A29 -> 28 | C32: =tblIndicators!B29 -> 0 | D32: =tblIndicators!D29 -> ENP_11 | E32: =tblIndicators!E29 -> ENP | F32: =tblIndicators!H29 -> Deforestation | G32: =tblIndicators!T29 -> 2 | H32: =tblIndicators!Y29 -> 3.2) Deforestation | I32: 1 | J32: =IF(Data!J32="","",Data!J32/$I32) -> -2.8 | K32: =IF(Data!K32="","",Data!K32/$I32) -> -1.5 | L32: =IF(Data!L32="","",Data!L32/$I32) -> -13.7 | M32: =IF(Data!M32="","",Data!M32/$I32) -> -2.5 | N32: =IF(Data!N32="","",Data!N32/$I32) -> 0.2 | O32: =IF(Data!O32="","",Data!O32/$I32) -> -1.6 | P32: =IF(Data!P32="","",Data!P32/$I32) -> -5.5 | Q32: =IF(Data!Q32="","",Data!Q32/$I32) -> -0.6 | R32: =IF(Data!R32="","",Data!R32/$I32) -> -4.3 | S32: =IF(Data!S32="","",Data!S32/$I32) -> -7.2 | T32: =IF(Data!T32="","",Data!T32/$I32) -> -2.6 | U32: =IF(Data!U32="","",Data!U32/$I32) -> -1.1 | V32: =IF(Data!V32="","",Data!V32/$I32) -> -1.9 | W32: =IF(Data!W32="","",Data!W32/$I32) -> 0 | X32: =IF(Data!X32="","",Data!X32/$I32) -> -1.7 | Y32: =IF(Data!Y32="","",Data!Y32/$I32) -> -1.7 | Z32: =IF(Data!Z32="","",Data!Z32/$I32) -> -0.8 | AA32: =IF(Data!AA32="","",Data!AA32/$I32) -> -2.5 | AB32: =IF(Data!AB32="","",Data!AB32/$I32) -> -3.6 | AC32: =IF(Data!AC32="","",Data!AC32/$I32) -> -4.1
A33: 1 | B33: =tblIndicators!A30 -> 29 | C33: =tblIndicators!B30 -> 0 | D33: =tblIndicators!D30 -> ENP_12 | E33: =tblIndicators!E30 -> ENP | F33: =tblIndicators!H30 -> Water pollution | G33: =tblIndicators!T30 -> 2 | H33: =tblIndicators!Y30 -> 3.3) Water pollution | I33: 1 | J33: =IF(Data!J33="","",Data!J33/$I33) -> 0 | K33: =IF(Data!K33="","",Data!K33/$I33) -> 37.84 | L33: =IF(Data!L33="","",Data!L33/$I33) -> 0 | M33: =IF(Data!M33="","",Data!M33/$I33) -> 18.17991224 | N33: =IF(Data!N33="","",Data!N33/$I33) -> 87.78688 | O33: =IF(Data!O33="","",Data!O33/$I33) -> 10.49 | P33: =IF(Data!P33="","",Data!P33/$I33) -> 0.02 | Q33: =IF(Data!Q33="","",Data!Q33/$I33) -> 71.26 | R33: =IF(Data!R33="","",Data!R33/$I33) -> 0 | S33: =IF(Data!S33="","",Data!S33/$I33) -> 8.64 | T33: =IF(Data!T33="","",Data!T33/$I33) -> 0 | U33: =IF(Data!U33="","",Data!U33/$I33) -> 3.52 | V33: =IF(Data!V33="","",Data!V33/$I33) -> 0.53 | W33: =IF(Data!W33="","",Data!W33/$I33) -> 99.65 | X33: =IF(Data!X33="","",Data!X33/$I33) -> 83.68 | Y33: =IF(Data!Y33="","",Data!Y33/$I33) -> 0 | Z33: =IF(Data!Z33="","",Data!Z33/$I33) -> 4.59 | AA33: =IF(Data!AA33="","",Data!AA33/$I33) -> 16 | AB33: =IF(Data!AB33="","",Data!AB33/$I33) -> 0.14 | AC33: =IF(Data!AC33="","",Data!AC33/$I33) -> 63.67
A34: 1 | B34: =tblIndicators!A31 -> 30 | C34: =tblIndicators!B31 -> 0 | D34: =tblIndicators!D31 -> ENP_13 | E34: =tblIndicators!E31 -> ENP | F34: =tblIndicators!H31 -> Environmental standards in trade | G34: =tblIndicators!T31 -> 3 | H34: =tblIndicators!Y31 -> 3.4) Environmental standards in trade | I34: 1 | J34: =IF(Data!J34="","",Data!J34/$I34) -> 3 | K34: =IF(Data!K34="","",Data!K34/$I34) -> 3 | L34: =IF(Data!L34="","",Data!L34/$I34) -> 5 | M34: =IF(Data!M34="","",Data!M34/$I34) -> 7 | N34: =IF(Data!N34="","",Data!N34/$I34) -> 7 | O34: =IF(Data!O34="","",Data!O34/$I34) -> 5 | P34: =IF(Data!P34="","",Data!P34/$I34) -> 5 | Q34: =IF(Data!Q34="","",Data!Q34/$I34) -> 6 | R34: =IF(Data!R34="","",Data!R34/$I34) -> 4 | S34: =IF(Data!S34="","",Data!S34/$I34) -> 5 | T34: =IF(Data!T34="","",Data!T34/$I34) -> 3 | U34: =IF(Data!U34="","",Data!U34/$I34) -> 5 | V34: =IF(Data!V34="","",Data!V34/$I34) -> 6 | W34: =IF(Data!W34="","",Data!W34/$I34) -> 5 | X34: =IF(Data!X34="","",Data!X34/$I34) -> 6 | Y34: =IF(Data!Y34="","",Data!Y34/$I34) -> 4 | Z34: =IF(Data!Z34="","",Data!Z34/$I34) -> 1 | AA34: =IF(Data!AA34="","",Data!AA34/$I34) -> 5 | AB34: =IF(Data!AB34="","",Data!AB34/$I34) -> 5 | AC34: =IF(Data!AC34="","",Data!AC34/$I34) -> 6
A35: 1 | B35: =tblIndicators!A32 -> 31 | C35: =tblIndicators!B32 -> 0 | D35: =tblIndicators!D32 -> ENP_14 | E35: =tblIndicators!E32 -> ENP | F35: =tblIndicators!H32 -> Carbon emissions in trade | G35: =tblIndicators!T32 -> 2 | H35: =tblIndicators!Y32 -> 3.5) Carbon emissions in trade | I35: 1 | J35: =IF(Data!J35="","",Data!J35/$I35) -> 0.000576619 | K35: =IF(Data!K35="","",Data!K35/$I35) -> 0.000198807 | L35: =IF(Data!L35="","",Data!L35/$I35) -> 0.000157893 | M35: =IF(Data!M35="","",Data!M35/$I35) -> 0.001235593 | N35: =IF(Data!N35="","",Data!N35/$I35) -> 2.07632e-05 | O35: =IF(Data!O35="","",Data!O35/$I35) -> 0.001267273 | P35: =IF(Data!P35="","",Data!P35/$I35) -> 0.000722076 | Q35: =IF(Data!Q35="","",Data!Q35/$I35) -> 0.000348008 | R35: =IF(Data!R35="","",Data!R35/$I35) -> 0.000136461 | S35: =IF(Data!S35="","",Data!S35/$I35) -> 0.000232448 | T35: =IF(Data!T35="","",Data!T35/$I35) -> 0.000336624 | U35: =IF(Data!U35="","",Data!U35/$I35) -> 0.001422755 | V35: =IF(Data!V35="","",Data!V35/$I35) -> 0.000391307 | W35: =IF(Data!W35="","",Data!W35/$I35) -> 1.10187e-05 | X35: =IF(Data!X35="","",Data!X35/$I35) -> 0.000237077 | Y35: =IF(Data!Y35="","",Data!Y35/$I35) -> 0.000304485 | Z35: =IF(Data!Z35="","",Data!Z35/$I35) -> 0.00022695 | AA35: =IF(Data!AA35="","",Data!AA35/$I35) -> 0.000317348 | AB35: =IF(Data!AB35="","",Data!AB35/$I35) -> 0.000446519 | AC35: =IF(Data!AC35="","",Data!AC35/$I35) -> 0.00068022
A36: 1 | B36: =tblIndicators!A33 -> 32 | C36: =tblIndicators!B33 -> 0 | D36: =tblIndicators!D33 -> ENP_15 | E36: =tblIndicators!E33 -> ENP | F36: =tblIndicators!H33 -> Share of natural resources in trade | G36: =tblIndicators!T33 -> 2 | H36: =tblIndicators!Y33 -> 3.6) Share of natural resources in trade | I36: 1 | J36: =IF(Data!J36="","",Data!J36/$I36) -> 0.070791049 | K36: =IF(Data!K36="","",Data!K36/$I36) -> 0.879658079 | L36: =IF(Data!L36="","",Data!L36/$I36) -> 0.105486428 | M36: =IF(Data!M36="","",Data!M36/$I36) -> 0.062638868 | N36: =IF(Data!N36="","",Data!N36/$I36) -> 0.086433671 | O36: =IF(Data!O36="","",Data!O36/$I36) -> 0.303998321 | P36: =IF(Data!P36="","",Data!P36/$I36) -> 0.599441571 | Q36: =IF(Data!Q36="","",Data!Q36/$I36) -> 0.063178455 | R36: =IF(Data!R36="","",Data!R36/$I36) -> 0.732680149 | S36: =IF(Data!S36="","",Data!S36/$I36) -> 0.280923861 | T36: =IF(Data!T36="","",Data!T36/$I36) -> 0.830924702 | U36: =IF(Data!U36="","",Data!U36/$I36) -> 0.204835384 | V36: =IF(Data!V36="","",Data!V36/$I36) -> 0.162346574 | W36: =IF(Data!W36="","",Data!W36/$I36) -> 0.161219523 | X36: =IF(Data!X36="","",Data!X36/$I36) -> 0.105734249 | Y36: =IF(Data!Y36="","",Data!Y36/$I36) -> 0.285779643 | Z36: =IF(Data!Z36="","",Data!Z36/$I36) -> 0.097734885 | AA36: =IF(Data!AA36="","",Data!AA36/$I36) -> 0.247661981 | AB36: =IF(Data!AB36="","",Data!AB36/$I36) -> 0.366843581 | AC36: =IF(Data!AC36="","",Data!AC36/$I36) -> 0.176412633

Sheet iSummary (hidden)
A1: All tiers | B1: =uxb_works!B8 -> 1 | C1: ="Average: "&INDEX(luRegions,B2) -> Average: <none>
B2: =uxb_works!B10 -> 1
A3: Rounding | B3: 1
H5: 1 | S5: 2 | AD5: 3 | AO5: 4
H6: =INDEX(tblIndiSets!$B$5:$B$9,H5) -> 1 | N6: =INDEX(tblIndiSets!$C$5:$C$9,H5) -> OVERALL SCORE | S6: =INDEX(tblIndiSets!$B$5:$B$9,S5) -> 2 | Y6: =INDEX(tblIndiSets!$C$5:$C$9,S5) -> 1) ECONOMIC PILLAR | AD6: =INDEX(tblIndiSets!$B$5:$B$9,AD5) -> 21 | AJ6: =INDEX(tblIndiSets!$C$5:$C$9,AD5) -> 2) SOCIAL PILLAR | AO6: =INDEX(tblIndiSets!$B$5:$B$9,AO5) -> 26 | AU6: =INDEX(tblIndiSets!$C$5:$C$9,AO5) -> 3) ENVIRONMENTAL PILLAR
B7: IN/OUT Group | D7: IsRegion | E7: ActiveStatus | F7: All Tiers | H7: Score | I7: Rank | J7: LU | K7: RankRounded | P7: Score | S7: Score | T7: Rank | U7: LU | V7: RankRounded | AA7: Score | AD7: Score | AE7: Rank | AF7: LU | AG7: RankRounded | AL7: Score | AO7: Score | AP7: Rank | AQ7: LU | AR7: RankRounded | AW7: Score
A8: =tblTerritories!A3 -> 1 | B8: =INDEX(tblTerritories!$R$3:$V$22,$A8,$B$1) -> 1 | C8: =tblTerritories!E3 -> Bangladesh | D8: =tblTerritories!D3 -> 0 | E8: =tblTerritories!G3 -> 1 | F8: =VLOOKUP(C8,tblTerritories!$F$3:$L$22,7,FALSE)+10 -> 14 | H8: =IF($E8=0,"",ROUND(INDEX(aScores,H$6,$A8),$B$3)) -> 45.4 | I8: =IF($E8=0,"",RANK(H8,H$8:H$27,0)+COUNTIF(H$8:H8,H8)-1) -> 18 | J8: =IF(ISERROR(MATCH($A8,I$8:I$27,0)),"",MATCH($A8,I$8:I$27,0)) -> 14 | K8: =IF(J8="","",RANK(P8,P$8:P$27)) -> 1 | L8: =IF(J8="","",COUNTIF(P$8:P$27,P8)) -> 1 | M8: =IF(J8="",0,INDEX($E$8:$E$27,J8)) -> 1 | N8: =IF(J8="","",IF(L8>1,CONCATENATE("=",K8),K8)) -> 1 | O8: =IF(J8="","",INDEX($C$8:$C$27,J8)) -> Singapore | P8: =IF(J8="","",INDEX(H$8:H$27,J8)) -> 81 | S8: =IF($E8=0,"",ROUND(INDEX(aScores,S$6,$A8),$B$3)) -> 50.4 | T8: =IF($E8=0,"",RANK(S8,S$8:S$27,0)+COUNTIF(S$8:S8,S8)-1) -> 15 | U8: =IF(ISERROR(MATCH($A8,T$8:T$27,0)),"",MATCH($A8,T$8:T$27,0)) -> 14 | V8: =IF(U8="","",RANK(AA8,AA$8:AA$27)) -> 1 | W8: =IF(U8="","",COUNTIF(AA$8:AA$27,AA8)) -> 1 | X8: =IF(U8="",0,INDEX($E$8:$E$27,U8)) -> 1 | Y8: =IF(U8="","",IF(W8>1,CONCATENATE("=",V8),V8)) -> 1 | Z8: =IF(U8="","",INDEX($C$8:$C$27,U8)) -> Singapore | AA8: =IF(U8="","",INDEX(S$8:S$27,U8)) -> 76.5 | AD8: =IF($E8=0,"",ROUND(INDEX(aScores,AD$6,$A8),$B$3)) -> 33.5 | AE8: =IF($E8=0,"",RANK(AD8,AD$8:AD$27,0)+COUNTIF(AD$8:AD8,AD8)-1) -> 18 | AF8: =IF(ISERROR(MATCH($A8,AE$8:AE$27,0)),"",MATCH($A8,AE$8:AE$27,0)) -> 15 | AG8: =IF(AF8="","",RANK(AL8,AL$8:AL$27)) -> 1 | AH8: =IF(AF8="","",COUNTIF(AL$8:AL$27,AL8)) -> 1 | AI8: =IF(AF8="",0,INDEX($E$8:$E$27,AF8)) -> 1 | AJ8: =IF(AF8="","",IF(AH8>1,CONCATENATE("=",AG8),AG8)) -> 1 | AK8: =IF(AF8="","",INDEX($C$8:$C$27,AF8)) -> South Korea | AL8: =IF(AF8="","",INDEX(AD$8:AD$27,AF8)) -> 88.9 | AO8: =IF($E8=0,"",ROUND(INDEX(aScores,AO$6,$A8),$B$3)) -> 52.3 | AP8: =IF($E8=0,"",RANK(AO8,AO$8:AO$27,0)+COUNTIF(AO$8:AO8,AO8)-1) -> 14 | AQ8: =IF(ISERROR(MATCH($A8,AP$8:AP$27,0)),"",MATCH($A8,AP$8:AP$27,0)) -> 5 | AR8: =IF(AQ8="","",RANK(AW8,AW$8:AW$27)) -> 1 | AS8: =IF(AQ8="","",COUNTIF(AW$8:AW$27,AW8)) -> 1 | AT8: =IF(AQ8="",0,INDEX($E$8:$E$27,AQ8)) -> 1 | AU8: =IF(AQ8="","",IF(AS8>1,CONCATENATE("=",AR8),AR8)) -> 1 | AV8: =IF(AQ8="","",INDEX($C$8:$C$27,AQ8)) -> Hong Kong | AW8: =IF(AQ8="","",INDEX(AO$8:AO$27,AQ8)) -> 93.4
A9: =tblTerritories!A4 -> 2 | B9: =INDEX(tblTerritories!$R$3:$V$22,$A9,$B$1) -> 1 | C9: =tblTerritories!E4 -> Brunei | D9: =tblTerritories!D4 -> 0 | E9: =tblTerritories!G4 -> 1 | F9: =VLOOKUP(C9,tblTerritories!$F$3:$L$22,7,FALSE)+10 -> 11 | H9: =IF($E9=0,"",ROUND(INDEX(aScores,H$6,$A9),$B$3)) -> 54.2 | I9: =IF($E9=0,"",RANK(H9,H$8:H$27,0)+COUNTIF(H$8:H9,H9)-1) -> 9 | J9: 15 | K9: 2 | L9: 1 | M9: 1 | N9: =IF(J9="","",IF(L9>1,CONCATENATE("=",K9),K9)) -> 2 | O9: South Korea | P9: 80 | S9: 38.5 | T9: =IF($E9=0,"",RANK(S9,S$8:S$27,0)+COUNTIF(S$8:S9,S9)-1) -> 19 | U9: 5 | V9: 2 | W9: 1 | X9: 1 | Y9: =IF(U9="","",IF(W9>1,CONCATENATE("=",V9),V9)) -> 2 | Z9: Hong Kong | AA9: 70.9 | AD9: 68.2 | AE9: =IF($E9=0,"",RANK(AD9,AD$8:AD$27,0)+COUNTIF(AD$8:AD9,AD9)-1) -> 6 | AF9: 20 | AG9: 2 | AH9: 1 | AI9: 1 | AJ9: =IF(AF9="","",IF(AH9>1,CONCATENATE("=",AG9),AG9)) -> 2 | AK9: USA | AL9: 88.1 | AO9: 56.1 | AP9: =IF($E9=0,"",RANK(AO9,AO$8:AO$27,0)+COUNTIF(AO$8:AO9,AO9)-1) -> 13 | AQ9: 14 | AR9: 2 | AS9: 1 | AT9: 1 | AU9: =IF(AQ9="","",IF(AS9>1,CONCATENATE("=",AR9),AR9)) -> 2 | AV9: Singapore | AW9: 92.2
A10: =tblTerritories!A5 -> 3 | B10: =INDEX(tblTerritories!$R$3:$V$22,$A10,$B$1) -> 1 | C10: =tblTerritories!E5 -> Cambodia | D10: =tblTerritories!D5 -> 0 | E10: =tblTerritories!G5 -> 1 | F10: =VLOOKUP(C10,tblTerritories!$F$3:$L$22,7,FALSE)+10 -> 14 | H10: 46.8 | I10: =IF($E10=0,"",RANK(H10,H$8:H$27,0)+COUNTIF(H$8:H10,H10)-1) -> 16 | J10: 8 | K10: 3 | L10: 1 | M10: 1 | N10: 3 | O10: Japan | P10: 78.5 | S10: 48.2 | T10: =IF($E10=0,"",RANK(S10,S$8:S$27,0)+COUNTIF(S$8:S10,S10)-1) -> 17 | U10: 15 | V10: 3 | W10: 1 | X10: 1 | Y10: 3 | Z10: South Korea | AA10: 68.3 | AD10: 35.5 | AE10: =IF($E10=0,"",RANK(AD10,AD$8:AD$27,0)+COUNTIF(AD$8:AD10,AD10)-1) -> 16 | AF10: 8 | AG10: 3 | AH10: 1 | AI10: 1 | AJ10: 3 | AK10: Japan | AL10: 85.7 | AO10: 56.8 | AP10: =IF($E10=0,"",RANK(AO10,AO$8:AO$27,0)+COUNTIF(AO$8:AO10,AO10)-1) -> 12 | AQ10: 8 | AR10: 3 | AS10: 1 | AT10: 1 | AU10: 3 | AV10: Japan | AW10: 85
A11: =tblTerritories!A6 -> 4 | B11: =INDEX(tblTerritories!$R$3:$V$22,$A11,$B$1) -> 1 | C11: =tblTerritories!E6 -> China | D11: =tblTerritories!D6 -> 0 | E11: =tblTerritories!G6 -> 1 | F11: =VLOOKUP(C11,tblTerritories!$F$3:$L$22,7,FALSE)+10 -> 12 | H11: 52.5 | I11: =IF($E11=0,"",RANK(H11,H$8:H$27,0)+COUNTIF(H$8:H11,H11)-1) -> 12 | J11: 20 | K11: 4 | L11: 1 | M11: 1 | N11: 4 | O11: USA | P11: 76.4 | S11: 64.2 | T11: =IF($E11=0,"",RANK(S11,S$8:S$27,0)+COUNTIF(S$8:S11,S11)-1) -> 8 | U11: 17 | V11: 4 | W11: 1 | X11: 1 | Y11: 4 | Z11: Taiwan | AA11: 67.2 | AD11: 41.1 | AE11: =IF($E11=0,"",RANK(AD11,AD$8:AD$27,0)+COUNTIF(AD$8:AD11,AD11)-1) -> 12 | AF11: 17 | AG11: 4 | AH11: 1 | AI11: 1 | AJ11: 4 | AK11: Taiwan | AL11: 81.6 | AO11: 52 | AP11: =IF($E11=0,"",RANK(AO11,AO$8:AO$27,0)+COUNTIF(AO$8:AO11,AO11)-1) -> 15 | AQ11: 15 | AR11: 4 | AS11: 1 | AT11: 1 | AU11: 4 | AV11: South Korea | AW11: 83
A12: =tblTerritories!A7 -> 5 | B12: =INDEX(tblTerritories!$R$3:$V$22,$A12,$B$1) -> 1 | C12: =tblTerritories!E7 -> Hong Kong | D12: =tblTerritories!D7 -> 0 | E12: =tblTerritories!G7 -> 1 | F12: =VLOOKUP(C12,tblTerritories!$F$3:$L$22,7,FALSE)+10 -> 11 | H12: 73.6 | I12: =IF($E12=0,"",RANK(H12,H$8:H$27,0)+COUNTIF(H$8:H12,H12)-1) -> 5 | J12: 5 | K12: 5 | L12: 1 | M12: 1 | N12: 5 | O12: Hong Kong | P12: 73.6 | S12: 70.9 | T12: =IF($E12=0,"",RANK(S12,S$8:S$27,0)+COUNTIF(S$8:S12,S12)-1) -> 2 | U12: 20 | V12: 5 | W12: 1 | X12: 1 | Y12: 5 | Z12: USA | AA12: 66.1 | AD12: 56.4 | AE12: =IF($E12=0,"",RANK(AD12,AD$8:AD$27,0)+COUNTIF(AD$8:AD12,AD12)-1) -> 7 | AF12: 14 | AG12: 5 | AH12: 1 | AI12: 1 | AJ12: 5 | AK12: Singapore | AL12: 74.2 | AO12: 93.4 | AP12: =IF($E12=0,"",RANK(AO12,AO$8:AO$27,0)+COUNTIF(AO$8:AO12,AO12)-1) -> 1 | AQ12: 20 | AR12: 5 | AS12: 1 | AT12: 1 | AU12: 5 | AV12: USA | AW12: 74.9
